Workbook

Sheet Start
C3: =title2 -> NATURAL RESOURCES MODULE
B4: EN

Sheet AgResidues_Component
AB1: 1 | AC1: Select a crop | AD1: Select a commodity | AE1: =title6 -> Select
C2: =title4 -> Agriculture Residues Component | AB2: 2 | AC2: Barley | AD2: Abaca | AE2: =title7 -> the country
AB3: 3 | AC3: Cacao | AD3: Alcohol, Non-Food | AE3: =title8 -> Region:
D4: =title5 -> Country: | F4: Select a country | AB4: 4 | AC4: Cassava | AD4: Apples | AE4: =title9 -> Province:
AB5: 5 | AC5: Coconut | AD5: Bananas | AE5: =title10 -> District:
AB6: 7 | AC6: Coffee | AD6: Barley | AE6: =title11 -> Area:
C7: =title14 -> BEFS Rapid Appraisal for | G7: the country | AB7: 8 | AC7: Cotton | AD7: Beans | AE7: =title12 -> Other:
AB8: 9 | AC8: Groundnut | AD8: Beer

Sheet Cr_R
AA1: 1 | AB1: =crop_selection2 -> Select a crop | AE1: 1 | AG1: =title33 -> Select location
C2: =title19 -> CROP RESIDUES | AA2: 2 | AB2: =crop_selection3 -> barley | AE2: 2 | AF2: 1 | AG2: =title34 -> field - spread
AA3: 3 | AB3: =crop_selection4 -> cacao | AE3: 3 | AF3: 2 | AG3: =title35 -> field - collected
D4: =title24 -> COUNTRY: | E4: =AgResidues_Component!$F$4 -> Select a country | AA4: 4 | AB4: =crop_selection5 -> cassava | AE4: 4 | AF4: 3 | AG4: =title36 -> processing plant
AA5: 5 | AB5: =crop_selection6 -> coconut | AE5: 5
AA6: 6 | AB6: =crop_selection7 -> coffee | AE6: 6 | AG6: =title37 -> List of residue types
C7: =title14 -> BEFS Rapid Appraisal for | F7: =AgResidues_Component!$G$7 -> the country | G7: =IF(AgResidues_Component!$I$7="","",AgResidues_Component!$I$7) ->  | P7: =title22 -> Enter data into white cells | R7: =title23 -> Grey cells are calculated | AA7: 7 | AB7: =crop_selection8 -> cotton | AE7: 7 | AF7: 1-1 | AG7: =IF(HLOOKUP($F$13,Crops!$G$34:$W$37,2,FALSE)=0,"",HLOOKUP($F$13,Crops!$G$34:$W$37,2,FALSE)) -> 
AA8: 8 | AB8: =crop_selection9 -> groundnut | AE8: 8 | AF8: 1-2 | AG8: =IF(HLOOKUP($F$13,Crops!$G$34:$W$37,3,FALSE)=0,"",HLOOKUP($F$13,Crops!$G$34:$W$37,3,FALSE)) -> 
AA9: 9 | AB9: =crop_selection10 -> maize | AE9: 9 | AF9: 1-3 | AG9: =IF(HLOOKUP($F$13,Crops!$G$34:$W$37,4,FALSE)=0,"",HLOOKUP($F$13,Crops!$G$34:$W$37,4,FALSE)) -> 
C10: =title25 -> Select crop-residue type | AA10: 10 | AB10: =crop_selection11 -> millet | AE10: 10 | AF10: 2-1 | AG10: =IF(HLOOKUP($H$13,Crops!$G$34:$W$37,2,FALSE)=0,"",HLOOKUP($H$13,Crops!$G$34:$W$37,2,FALSE)) -> 
AA11: 11 | AB11: =crop_selection12 -> oat | AE11: 11 | AF11: 2-2 | AG11: =IF(HLOOKUP($H$13,Crops!$G$34:$W$37,3,FALSE)=0,"",HLOOKUP($H$13,Crops!$G$34:$W$37,3,FALSE)) -> 
F12: =title26 -> Crop 1 | H12: =title27 -> Crop 2 | J12: =title28 -> Crop 3 | L12: =title29 -> Crop 4 | AA12: 12 | AB12: =crop_selection13 -> oilpalm | AE12: 12 | AF12: 2-3 | AG12: =IF(HLOOKUP($H$13,Crops!$G$34:$W$37,4,FALSE)=0,"",HLOOKUP($H$13,Crops!$G$34:$W$37,4,FALSE)) -> 
C13: =title30 -> Crop | D13: Crop | F13: Select a crop | H13: Select a crop | J13: Select a crop | L13: Select a crop | AA13: 13 | AB13: =crop_selection14 -> rice | AE13: 13 | AF13: 3-1 | AG13: =IF(HLOOKUP($J$13,Crops!$G$34:$W$37,2,FALSE)=0,"",HLOOKUP($J$13,Crops!$G$34:$W$37,2,FALSE)) -> 
C14: =title31 -> Residue | D14: Crop | F14: #N/A | H14: #N/A | J14: #N/A | L14: #N/A | N14: =title41 -> 10-years average annual production at country level | AA14: 14 | AB14: =crop_selection15 -> rye | AE14: 14 | AF14: 3-2 | AG14: =IF(HLOOKUP($J$13,Crops!$G$34:$W$37,3,FALSE)=0,"",HLOOKUP($J$13,Crops!$G$34:$W$37,3,FALSE)) -> 
C15: =title32 -> Location of residue generation | D15: Crop | F15: Select location | H15: Select location | J15: Select location | L15: Select location | N15: =+CONCATENATE("(based on FAOSTAT ",FAOSTAT_yield!$E$3,"-",FAOSTAT_yield!$N$3,")") -> (based on FAOSTAT 2012-2021) | AA15: 15 | AB15: =crop_selection16 -> sorghum | AE15: 15 | AF15: 3-3 | AG15: =IF(HLOOKUP($J$13,Crops!$G$34:$W$37,4,FALSE)=0,"",HLOOKUP($J$13,Crops!$G$34:$W$37,4,FALSE)) -> 
AA16: 16 | AB16: =crop_selection17 -> soybean | AE16: 16 | AF16: 4-1 | AG16: =IF(HLOOKUP($L$13,Crops!$G$34:$W$37,2,FALSE)=0,"",HLOOKUP($L$13,Crops!$G$34:$W$37,2,FALSE)) -> 
F17: =title42 -> Crop production | N17: =title47 -> Parameter | O17: =title48 -> Unit | P17: =title26 -> Crop 1 | Q17: =title27 -> Crop 2 | R17: =title28 -> Crop 3 | S17: =title29 -> Crop 4 | AA17: 17 | AB17: =crop_selection18 -> sugarcane | AE17: 17 | AF17: 4-2 | AG17: =IF(HLOOKUP($L$13,Crops!$G$34:$W$37,3,FALSE)=0,"",HLOOKUP($L$13,Crops!$G$34:$W$37,3,FALSE)) -> 
C18: =title43 -> Crop yield (t/ha) | N18: =title30 -> Crop | P18: =IF(F13="","",F13) -> Select a crop | Q18: =IF(H13="","",H13) -> Select a crop | R18: =IF(J13="","",J13) -> Select a crop | S18: =IF(L13="","",L13) -> Select a crop | AA18: 18 | AB18: =crop_selection19 -> wheat | AE18: 18 | AF18: 4-3 | AG18: =IF(HLOOKUP($L$13,Crops!$G$34:$W$37,4,FALSE)=0,"",HLOOKUP($L$13,Crops!$G$34:$W$37,4,FALSE)) -> 
C19: =title44 -> No. of harvests/year | N19: =title49 -> Yield | O19: =title51 -> t/ha | P19: =IFERROR(INDIRECT("Yield!"&ADDRESS(MATCH($E$4,Yield!$C$1:$C$212,0),MATCH(P$18,Yield!$A$1:$AD$1,0)))/10000,"-") -> - | Q19: =IFERROR(INDIRECT("Yield!"&ADDRESS(MATCH($E$4,Yield!$C$1:$C$212,0),MATCH(Q$18,Yield!$A$1:$AD$1,0)))/10000,"-") -> - | R19: =IFERROR(INDIRECT("Yield!"&ADDRESS(MATCH($E$4,Yield!$C$1:$C$212,0),MATCH(R$18,Yield!$A$1:$AD$1,0)))/10000,"-") -> - | S19: =IFERROR(INDIRECT("Yield!"&ADDRESS(MATCH($E$4,Yield!$C$1:$C$212,0),MATCH(S$18,Yield!$A$1:$AD$1,0)))/10000,"-") -> - | AA19: 19 | AC19: =title38 -> Residue type | AE19: 19 | AG19: =title39 -> Residue type selection
C20: =title45 -> Annual production (t) | N20: =title50 -> Production | O20: =title52 -> t/year | P20: =IFERROR(INDIRECT("Production!"&ADDRESS(MATCH($E$4,Production!$C$1:$C$212,0),MATCH(P$18,Production!$A$1:$AD$1,0))),"-") -> - | Q20: =IFERROR(INDIRECT("Production!"&ADDRESS(MATCH($E$4,Production!$C$1:$C$212,0),MATCH(Q$18,Production!$A$1:$AD$1,0))),"-") -> - | R20: =IFERROR(INDIRECT("Production!"&ADDRESS(MATCH($E$4,Production!$C$1:$C$212,0),MATCH(R$18,Production!$A$1:$AD$1,0))),"-") -> - | S20: =IFERROR(INDIRECT("Production!"&ADDRESS(MATCH($E$4,Production!$C$1:$C$212,0),MATCH(S$18,Production!$A$1:$AD$1,0))),"-") -> - | AA20: 20 | AB20: 1-1 | AC20: =IF($F$13=title179,"",IF(HLOOKUP($F$13,$AG$26:$AW$29,2,FALSE)=0,"",HLOOKUP($F$13,$AG$26:$AW$29,2,FALSE))) ->  | AE20: 20 | AF20: 1 | AG20: =F14 -> #N/A
C21: =title46 -> Total production area (ha) | F21: =IFERROR(F20/F18/F19,0) -> 0 | H21: =IFERROR(H20/H18/H19,0) -> 0 | J21: =IFERROR(J20/J18/J19,0) -> 0 | L21: =IFERROR(L20/L18/L19,0) -> 0 | AA21: 21 | AB21: 1-2 | AC21: =IF($F$13=title179,"",IF(HLOOKUP($F$13,$AG$26:$AW$29,3,FALSE)=0,"",HLOOKUP($F$13,$AG$26:$AW$29,3,FALSE))) ->  | AE21: 21 | AF21: 2 | AG21: =H14 -> #N/A
J22: =IF(OR(TYPE(J18)=2,TYPE(J19)=2,TYPE(J20)=2),title211,"") ->  | L22: =IF(OR(TYPE(L18)=2,TYPE(L19)=2,TYPE(L20)=2),title211,"") ->  | AA22: 22 | AB22: 1-3 | AC22: =IF($F$13=title179,"",IF(HLOOKUP($F$13,$AG$26:$AW$29,4,FALSE)=0,"",HLOOKUP($F$13,$AG$26:$AW$29,4,FALSE))) ->  | AE22: 22 | AF22: 3 | AG22: =J14 -> #N/A
F23: =title58 -> Generation of crop residues | N23: =title53 -> Residue to crop ratio | AA23: 23 | AC23: =title38 -> Residue type | AE23: 23 | AF23: 4 | AG23: =L14 -> #N/A
C24: =title53 -> Residue to crop ratio | D24: =title54 -> User defined | E24: TRUE | G24: TRUE | I24: TRUE | K24: TRUE | N24: =title59 -> Crop - residue type | P24: =CONCATENATE(F13," - ",F14) -> Select a crop - #N/A | Q24: =CONCATENATE(H13," - ",H14) -> Select a crop - #N/A | R24: =CONCATENATE(J13," - ",J14) -> Select a crop - #N/A | S24: =CONCATENATE(L13," - ",L14) -> Select a crop - #N/A | AA24: 24 | AB24: 2-1 | AC24: =IF($H$13=title179,"",IF(HLOOKUP($H$13,$AG$26:$AW$29,2,FALSE)=0,"",HLOOKUP($H$13,$AG$26:$AW$29,2,FALSE))) ->  | AE24: 24
D25: =title55 -> Default value | F25: =IFERROR(IF($E$24=TRUE,"",P26),"") ->  | H25: =IFERROR(IF($G$24=TRUE,"",Q26),"") ->  | J25: =IFERROR(IF($I$24=TRUE,"",R26),"") ->  | L25: =IFERROR(IF($K$24=TRUE,"",S26),"") ->  | AA25: 25 | AB25: 2-2 | AC25: =IF($H$13=title179,"",IF(HLOOKUP($H$13,$AG$26:$AW$29,3,FALSE)=0,"",HLOOKUP($H$13,$AG$26:$AW$29,3,FALSE))) ->  | AE25: 25 | AG25: =title40 -> CROP - RESIDUE COMBINATION LIST
C26: =title56 -> Total residue production (t/year) | F26: =IFERROR(IF(E24=FALSE,F25*F20,F24*F20),0) -> 0 | H26: =IFERROR(IF(G24=FALSE,H25*H20,H24*H20),0) -> 0 | J26: =IFERROR(IF(I24=FALSE,J25*J20,J24*J20),0) -> 0 | L26: =IFERROR(IF(K24=FALSE,L25*L20,L24*L20),0) -> 0 | O26: =title60 -> average | P26: =IFERROR(INDIRECT("'Crops'!"&ADDRESS(MATCH(CONCATENATE($F$13,$F$14),Crops!$H$1:$H$30,0),MATCH($O26,Crops!$A$3:$N$3,0))),"-") -> - | Q26: =IFERROR(INDIRECT("'Crops'!"&ADDRESS(MATCH(CONCATENATE($H$13,$H$14),Crops!$H$1:$H$30,0),MATCH($O26,Crops!$A$3:$N$3,0))),"-") -> - | R26: =IFERROR(INDIRECT("'Crops'!"&ADDRESS(MATCH(CONCATENATE($J$13,$J$14),Crops!$H$1:$H$30,0),MATCH($O26,Crops!$A$3:$N$3,0))),"-") -> - | S26: =IFERROR(INDIRECT("'Crops'!"&ADDRESS(MATCH(CONCATENATE($L$13,$L$14),Crops!$H$1:$H$30,0),MATCH($O26,Crops!$A$3:$N$3,0))),"-") -> - | AA26: 26 | AB26: 2-3 | AC26: =IF($H$13=title179,"",IF(HLOOKUP($H$13,$AG$26:$AW$29,4,FALSE)=0,"",HLOOKUP($H$13,$AG$26:$AW$29,4,FALSE))) ->  | AE26: 26 | AG26: =Crops!$G$34 -> barley | AH26: =Crops!$H$34 -> cacao | AI26: =Crops!$I$34 -> cassava | AJ26: =Crops!$J$34 -> coconut | AK26: =Crops!$K$34 -> coffee | AL26: =Crops!$L$34 -> cotton | AM26: =Crops!$M$34 -> groundnut | AN26: =Crops!$N$34 -> maize | AO26: =Crops!$O$34 -> millet | AP26: =Crops!$P$34 -> oat | AQ26: =Crops!$Q$34 -> oilpalm | AR26: =Crops!$R$34 -> rice | AS26: =Crops!$S$34 -> rye | AT26: =Crops!$T$34 -> sorghum | AU26: =Crops!$U$34 -> soybean | AV26: =Crops!$V$34 -> sugarcane | AW26: =Crops!$W$34 -> wheat
C27: =title57 -> Residue yield (t/ha) | F27: =IFERROR(F26/F21,0) -> 0 | H27: =IFERROR(H26/H21,0) -> 0 | J27: =IFERROR(J26/J21,0) -> 0 | L27: =IFERROR(L26/L21,0) -> 0 | O27: =title61 -> min | P27: =IFERROR(INDIRECT("'Crops'!"&ADDRESS(MATCH(CONCATENATE($F$13,$F$14),Crops!$H$1:$H$30,0),MATCH($O27,Crops!$A$3:$N$3,0))),"-") -> - | Q27: =IFERROR(INDIRECT("'Crops'!"&ADDRESS(MATCH(CONCATENATE($H$13,$H$14),Crops!$H$1:$H$30,0),MATCH($O27,Crops!$A$3:$N$3,0))),"-") -> - | R27: =IFERROR(INDIRECT("'Crops'!"&ADDRESS(MATCH(CONCATENATE($J$13,$J$14),Crops!$H$1:$H$30,0),MATCH($O27,Crops!$A$3:$N$3,0))),"-") -> - | S27: =IFERROR(INDIRECT("'Crops'!"&ADDRESS(MATCH(CONCATENATE($L$13,$L$14),Crops!$H$1:$H$30,0),MATCH($O27,Crops!$A$3:$N$3,0))),"-") -> - | AA27: 27 | AC27: =title38 -> Residue type | AE27: 27 | AG27: =Crops!$G$35 -> straw | AH27: =Crops!$H$35 -> pods | AI27: =Crops!$I$35 -> stalk | AJ27: =Crops!$J$35 -> fronds | AK27: =Crops!$K$35 -> husk | AL27: =Crops!$L$35 -> hull | AM27: =Crops!$M$35 -> husk | AN27: =Crops!$N$35 -> cob | AO27: =Crops!$O$35 -> straw | AP27: =Crops!$P$35 -> straw | AQ27: =Crops!$Q$35 -> empty bunches | AR27: =Crops!$R$35 -> straw | AS27: =Crops!$S$35 -> straw | AT27: =Crops!$T$35 -> straw/stalk | AU27: =Crops!$U$35 -> straw | AV27: =Crops!$V$35 -> tops/leaves | AW27: =Crops!$W$35 -> straw
F28: =IF(TYPE(F24)=2,title211,"") ->  | H28: =IF(TYPE(H24)=2,title211,"") ->  | J28: =IF(TYPE(J24)=2,title211,"") ->  | L28: =IF(TYPE(L24)=2,title211,"") ->  | O28: =title62 -> max | P28: =IFERROR(INDIRECT("'Crops'!"&ADDRESS(MATCH(CONCATENATE($F$13,$F$14),Crops!$H$1:$H$30,0),MATCH($O28,Crops!$A$3:$N$3,0))),"-") -> - | Q28: =IFERROR(INDIRECT("'Crops'!"&ADDRESS(MATCH(CONCATENATE($H$13,$H$14),Crops!$H$1:$H$30,0),MATCH($O28,Crops!$A$3:$N$3,0))),"-") -> - | R28: =IFERROR(INDIRECT("'Crops'!"&ADDRESS(MATCH(CONCATENATE($J$13,$J$14),Crops!$H$1:$H$30,0),MATCH($O28,Crops!$A$3:$N$3,0))),"-") -> - | S28: =IFERROR(INDIRECT("'Crops'!"&ADDRESS(MATCH(CONCATENATE($L$13,$L$14),Crops!$H$1:$H$30,0),MATCH($O28,Crops!$A$3:$N$3,0))),"-") -> - | AA28: 28 | AB28: 3-1 | AC28: =IF($J$13=title179,"",IF(HLOOKUP($J$13,$AG$26:$AW$29,2,FALSE)=0,"",HLOOKUP($J$13,$AG$26:$AW$29,2,FALSE))) ->  | AE28: 28 | AG28: =Crops!$G$36 -> 0 | AH28: =Crops!$H$36 -> 0 | AI28: =Crops!$I$36 -> 0 | AJ28: =Crops!$J$36 -> husk | AK28: =Crops!$K$36 -> 0 | AL28: =Crops!$L$36 -> stalk | AM28: =Crops!$M$36 -> 0 | AN28: =Crops!$N$36 -> husk | AO28: =Crops!$O$36 -> 0 | AP28: =Crops!$P$36 -> 0 | AQ28: =Crops!$Q$36 -> fronds | AR28: =Crops!$R$36 -> husk | AS28: =Crops!$S$36 -> 0 | AT28: =Crops!$T$36 -> 0 | AU28: =Crops!$U$36 -> pods | AV28: =Crops!$V$36 -> baggase | AW28: =Crops!$W$36 -> 0
O29: =title63 -> stdev | P29: =IFERROR(INDIRECT("'Crops'!"&ADDRESS(MATCH(CONCATENATE($F$13,$F$14),Crops!$H$1:$H$30,0),MATCH($O29,Crops!$A$3:$N$3,0))),"-") -> - | Q29: =IFERROR(INDIRECT("'Crops'!"&ADDRESS(MATCH(CONCATENATE($H$13,$H$14),Crops!$H$1:$H$30,0),MATCH($O29,Crops!$A$3:$N$3,0))),"-") -> - | R29: =IFERROR(INDIRECT("'Crops'!"&ADDRESS(MATCH(CONCATENATE($J$13,$J$14),Crops!$H$1:$H$30,0),MATCH($O29,Crops!$A$3:$N$3,0))),"-") -> - | S29: =IFERROR(INDIRECT("'Crops'!"&ADDRESS(MATCH(CONCATENATE($L$13,$L$14),Crops!$H$1:$H$30,0),MATCH($O29,Crops!$A$3:$N$3,0))),"-") -> - | AA29: 29 | AB29: 3-2 | AC29: =IF($J$13=title179,"",IF(HLOOKUP($J$13,$AG$26:$AW$29,3,FALSE)=0,"",HLOOKUP($J$13,$AG$26:$AW$29,3,FALSE))) ->  | AG29: =Crops!$G$37 -> 0 | AH29: =Crops!$H$37 -> 0 | AI29: =Crops!$I$37 -> 0 | AJ29: =Crops!$J$37 -> shell | AK29: =Crops!$K$37 -> 0 | AL29: =Crops!$L$37 -> 0 | AM29: =Crops!$M$37 -> 0 | AN29: =Crops!$N$37 -> stover | AO29: =Crops!$O$37 -> 0 | AP29: =Crops!$P$37 -> 0 | AQ29: =Crops!$Q$37 -> shell | AR29: =Crops!$R$37 -> 0 | AS29: =Crops!$S$37 -> 0 | AT29: =Crops!$T$37 -> 0 | AU29: =Crops!$U$37 -> 0 | AV29: =Crops!$V$37 -> 0 | AW29: =Crops!$W$37 -> 0
AA30: 30 | AB30: 3-3 | AC30: =IF($J$13=title179,"",IF(HLOOKUP($J$13,$AG$26:$AW$29,4,FALSE)=0,"",HLOOKUP($J$13,$AG$26:$AW$29,4,FALSE))) -> 
F31: =title64 -> Residues left in the field (for soil fertility and stability) | AA31: 31 | AC31: =title38 -> Residue type
D32: =title65 -> User defined (%) | E32: TRUE | G32: TRUE | I32: TRUE | K32: TRUE | AA32: 32 | AB32: 4-1 | AC32: =IF($L$13=title179,"",IF(HLOOKUP($L$13,$AG$26:$AW$29,2,FALSE)=0,"",HLOOKUP($L$13,$AG$26:$AW$29,2,FALSE))) -> 
D33: =title66 -> Default value (%) | F33: =IF(E32=TRUE,"",IF(F$15=title36,0,0.25)) ->  | H33: =IF(G32=TRUE,"",IF(H$15=title36,0,0.25)) ->  | J33: =IF(I32=TRUE,"",IF(J$15=title36,0,0.25)) ->  | L33: =IF(K32=TRUE,"",IF(L$15=title36,0,0.25)) ->  | AA33: 33 | AB33: 4-2 | AC33: =IF($L$13=title179,"",IF(HLOOKUP($L$13,$AG$26:$AW$29,3,FALSE)=0,"",HLOOKUP($L$13,$AG$26:$AW$29,3,FALSE))) -> 
D34: =title67 -> Total (t/year) | F34: =IFERROR( IF(E32=FALSE,F$33*F$26,F$32*F$26),0) -> 0 | H34: =IFERROR(IF(G32=FALSE,H$33*H$26,H$32*H$26),0) -> 0 | J34: =IFERROR(IF(I32=FALSE,J$33*J$26,J$32*J$26),0) -> 0 | L34: =IFERROR( IF(K32=FALSE,L$33*L$26,L$32*L$26),0) -> 0 | AA34: 34 | AB34: 4-3 | AC34: =IF($L$13=title179,"",IF(HLOOKUP($L$13,$AG$26:$AW$29,4,FALSE)=0,"",HLOOKUP($L$13,$AG$26:$AW$29,4,FALSE))) -> 
F35: =IF(OR((F32)<0,(F32)>1),title213,"") ->  | H35: =IF(OR((H32)<0,(H32)>1),title213,"") ->  | J35: =IF(OR((J32)<0,(J32)>1),title213,"") ->  | L35: =IF(OR((L32)<0,(L32)>1),title213,"") ->  | AA35: 35 | AC35: Residue type selection
F36: =title68 -> Residues burnt in the field (production area burnt after the harvest) | AA36: 36 | AB36: 1 | AC36: f15
C37: =title69 -> Production area burnt after harvesting | D37: =title70 -> User defined (ha) | E37: TRUE | G37: TRUE | I37: TRUE | K37: TRUE | AA37: 37 | AB37: 2 | AC37: h15
D38: =title71 -> Default value (ha) | F38: =IF($E$37=FALSE,IF(F15=title36,0,F21*0.1),"") ->  | H38: =IF($G$37=FALSE,IF(H15=title36,0,H21*0.1),"") ->  | J38: =IF($I$37=FALSE,IF(J15=title36,0,J21*0.1),"") ->  | L38: =IF($E$37=FALSE,IF(L15=title36,0,L21*0.1),"") ->  | AA38: 38 | AB38: 3 | AC38: j15
C39: =title72 -> Amount of residues burnt (t/year) | F39: =IFERROR(IF(E37=TRUE,F37*F27,F38*F27),0) -> 0 | H39: =IFERROR(IF(G37=TRUE,H37*H27,H38*H27),0) -> 0 | J39: =IFERROR(IF(I37=TRUE,J37*J27,J38*J27),0) -> 0 | L39: =IFERROR(IF(K37=TRUE,L37*L27,L38*L27),0) -> 0 | AA39: 39 | AB39: 4 | AC39: l15
AA40: 40 | AB40: Conditional formating f56
F42: =title73 -> Current use of crop residues | AA42: 42 | AB42: =IF(OR(F54>1,H54>1,J54>1,L54>1),1,0) -> 0
D43: =title74 -> animal feed and bedding | E43: =title75 -> %
E44: =title76 -> t | F44: =IFERROR(F43*F26,0) -> 0 | H44: =IFERROR(H43*H26,0) -> 0 | J44: =IFERROR(J43*J26,0) -> 0 | L44: =IFERROR(L43*L26,0) -> 0
D45: =title77 -> fuel (including charcoal) | E45: =title75 -> %
E46: =title76 -> t | F46: =IFERROR(F45*F26,0) -> 0 | H46: =IFERROR(H45*H26,0) -> 0 | J46: =IFERROR(J45*J26,0) -> 0 | L46: =IFERROR(L45*L26,0) -> 0
D47: =title78 -> construction | E47: =title75 -> %
E48: =title76 -> t | F48: =IFERROR(F47*F26,0) -> 0 | H48: =IFERROR(H47*H26,0) -> 0 | J48: =IFERROR(J47*J26,0) -> 0 | L48: =IFERROR(L47*L26,0) -> 0
D49: =title79 -> industry | E49: =title75 -> %
E50: =title76 -> t | F50: =IFERROR(F49*F26,0) -> 0 | H50: =IFERROR(H49*H26,0) -> 0 | J50: =IFERROR(J49*J26,0) -> 0 | L50: =IFERROR(L49*L26,0) -> 0
C51: =title80 -> other: | E51: =title75 -> %
E52: =title76 -> t | F52: =IFERROR(F51*F26,0) -> 0 | H52: =IFERROR(H51*H26,0) -> 0 | J52: =IFERROR(J51*J26,0) -> 0 | L52: =IFERROR(L51*L26,0) -> 0
C54: =title81 -> Total currently used | E54: =title82 -> (%) | F54: =SUM(F43,F45,F47,F49,F51) -> 0 | H54: =SUM(H43,H45,H47,H49,H51) -> 0 | J54: =SUM(J43,J45,J47,J49,J51) -> 0 | L54: =SUM(L43,L45,L47,L49,L51) -> 0
D55: =title83 -> (t/year) | F55: =IF(SUM(F43,F45,F47,F49,F51)>100%,title84,SUM(F44,F46,F48,F50,F52)) -> 0 | H55: =IF(SUM(H43,H45,H47,H49,H51)>100%,title84,SUM(H44,H46,H48,H50,H52)) -> 0 | J55: =IF(SUM(J43,J45,J47,J49,J51)>100%,title84,SUM(J44,J46,J48,J50,J52)) -> 0 | L55: =IF(SUM(L43,L45,L47,L49,L51)>100%,title84,SUM(L44,L46,L48,L50,L52)) -> 0
C57: =title86 -> Potentially available for bioenergy
F59: =P24 -> Select a crop - #N/A | H59: =Q24 -> Select a crop - #N/A | J59: =R24 -> Select a crop - #N/A | L59: =S24 -> Select a crop - #N/A
C60: =title87 -> Total (t/year) | F60: =IFERROR(F26-F34-F55,"-") -> 0 | H60: =IFERROR(H26-H34-H55,"-") -> 0 | J60: =IFERROR(J26-J34-J55,"-") -> 0 | L60: =IFERROR(L26-L34-L55,"-") -> 0
C61: =title88 -> Total production area (ha) | F61: =F21 -> 0 | H61: =H21 -> 0 | J61: =J21 -> 0 | L61: =L21 -> 0
C62: =title89 -> Residue yield (t/ha) | F62: =IFERROR(F60/F61,0) -> 0 | H62: =IFERROR(H60/H61,0) -> 0 | J62: =IFERROR(J60/J61,0) -> 0 | L62: =IFERROR(L60/L61,0) -> 0
C63: =title90 -> Location of residue generation | F63: =IF(F15=title85,"",F15) -> Select location | H63: =IF(H15=title85,"",H15) -> Select location | J63: =IF(J15=title85,"",J15) -> Select location | L63: =IF(L15=title85,"",L15) -> Select location

Sheet LVS_R
C2: =title95 -> LIVESTOCK RESIDUES
C4: =title24 -> COUNTRY: | D4: =AgResidues_Component!$F$4 -> Select a country
C7: =title14 -> BEFS Rapid Appraisal for | E7: =AgResidues_Component!$G$7 -> the country | F7: =IF(AgResidues_Component!$I$7="","",AgResidues_Component!$I$7) ->  | I7: =title22 -> Enter data into white cells | K7: =title23 -> Grey cells are calculated | Z7: VS used
Z8: =species30 -> Species | AA8: =species11 -> Region | AB8: VS
C10: =title96&": "&species4 -> Cattle: Dairy cow | Y10: 1 | Z10: =E13 -> Dairy cow | AA10: =VLOOKUP($D$4,Country!$B$4:$C$230,2,FALSE) ->  | AB10: =IFERROR(INDIRECT("LVS!"&ADDRESS(MATCH($AA$10,LVS!$H$1:$H$13,0),MATCH(LVS_R!$E$13,LVS!$A$1:$U$1,0))),"") -> 
C12: =title241 -> Dairy cow production | I12: =title133 -> 3-years average annual production data (FAOSTAT 2019-21) | Y12: 2 | Z12: =species6 -> Pig | AA12: =VLOOKUP($D$4,Country!$B$4:$C$230,2,FALSE) ->  | AB12: =IFERROR(INDIRECT("LVS!"&ADDRESS(MATCH($AA$12,LVS!$H$1:$H$13,0),MATCH(LVS_R!$C$79,LVS!$A$1:$U$1,0))),"") -> 
C13: =title98 -> Species | E13: =species4 -> Dairy cow | I13: =title98 -> Species | K13: =E13 -> Dairy cow | Y13: 5 | Z13: =species5 -> Chicken | AA13: =VLOOKUP($D$4,Country!$B$4:$C$230,2,FALSE) ->  | AB13: =IFERROR(INDIRECT("LVS!"&ADDRESS(MATCH($AA$13,LVS!$H$1:$H$13,0),MATCH(LVS_R!$Z$13,LVS!$A$1:$U$1,0))),"") -> 
C14: =title99 -> Total number of heads | I14: =title102 -> heads | K14: =IFERROR(VLOOKUP($D$4,LVS_FAOSTAT!$C$2:$R$202,MATCH(CONCATENATE($E$13,"avg"),LVS_FAOSTAT!$C$4:$R$4,0),FALSE),"-") -> -
C15: =title100 -> Commercial production (%)
C17: =title103 -> Household level production | H17: =title105 -> Commercial level production
C18: =title104 -> Number of heads held by households | F18: =IFERROR(ROUND(E14-(E14*E15),0),"-") -> 0 | H18: =title106 -> Number of heads in commercial production | K18: =IFERROR(ROUND(E14*E15,0),"-") -> 0
C20: =title107 -> Cattle feeding systems | H20: Cattle feeding systems
C21: =title108 -> 1. Daily feeding: stable only | E21: =title75 -> % | H21: =title108 -> 1. Daily feeding: stable only | J21: =title75 -> %
C22: =title109 -> 2. Daily feeding: grazing and stable | E22: =title75 -> % | H22: =title109 -> 2. Daily feeding: grazing and stable | J22: =title75 -> %
C23: =title110 -> 3. Seasonal grazing | E23: =title75 -> % | H23: =title110 -> 3. Seasonal grazing | J23: =title75 -> %
C24: =title111 -> - Number of months in pasture | H24: =title111 -> - Number of months in pasture
C25: =title112 -> 4. Year-round grazing | E25: =title75 -> % | H25: =title112 -> 4. Year-round grazing | J25: =title75 -> %
D27: =title113 -> Production of manure per head/day
D29: =title114 -> DEFAULT VALUE | I29: =title115 -> USER DEFINED
D30: =IFERROR(IF($E$13=title208,$D$32*7.547,$D$32*7.331),"-") -> - | F30: =title116 -> Manure (kg/head/day)
D31: =IFERROR(D32/D30,"-") -> - | F31: =title117 -> % of volatile solids in manure
D32: =IFERROR(INDIRECT("LVS!"&ADDRESS(MATCH($AA$10,LVS!$H$1:$H$13,0),MATCH(LVS_R!$E$13,LVS!$A$1:$U$1,0))),"-") -> - | F32: =title118 -> Volatile solids (kg/head/day) | I32: =IFERROR(IF(AND(I31="",I30<>"",I30<>0),I30*D31,IF(AND(I31<>"",I30=""),D30*I31,I30*I31)),0) -> 0
C34: =title124 -> Manure potential for biogas production
C36: =title125 -> Household level biogas production | H36: =title126 -> Commercial level production
C37: =title127 -> 1. Daily feeding: stable only | E37: =title52 -> t/year | F37: =IFERROR(IF(I$30="",D$30*F21*F18*365/1000,I$30*F21*F18*365/1000),"-") -> - | H37: =title127 -> 1. Daily feeding: stable only | J37: =title52 -> t/year | K37: =IFERROR(IF($I$30="",$D$30*K21*K18*365/1000,$I$30*K21*K18*365/1000),"-") -> -
C38: =title128 -> 2. Daily feeding: pasture and stable | E38: =title52 -> t/year | F38: =IFERROR(IF($I$30="",$D$30*F22*F18*365/2000,$I$30*F22*F18*365/2000),"-") -> - | H38: =title128 -> 2. Daily feeding: pasture and stable | J38: =title52 -> t/year | K38: =IFERROR(IF($I$30="",$D$30*K22*K18*365/2000,$I$30*K22*K18*365/2000),"-") -> -
C39: =title129 -> 3. In pasture seasonal | E39: =title52 -> t/year | F39: =IFERROR(IF($I$30="",$D$30*F18*F23*(365-(30*F24))/1000,$I$30*F18*F23*(365-(30*F24))/1000),"-") -> - | H39: =title129 -> 3. In pasture seasonal | J39: =title52 -> t/year | K39: =IFERROR(IF($I$30="",$D$30*K18*K23*(365-(30*K24))/1000,$I$30*K18*K23*(365-(30*K24))/1000),"-") -> -
C40: =title130 -> Total manure | E40: =title52 -> t/year | F40: =SUM(F37:F39) -> 0 | H40: =title130 -> Total manure | J40: =title52 -> t/year | K40: =SUM(K37:K39) -> 0
C43: =title96&": "&species3 -> Cattle: Buffalo
C45: =title242 -> Buffalo production | I45: =title133 -> 3-years average annual production data (FAOSTAT 2019-21)
C46: =title98 -> Species | E46: =species3 -> Buffalo | I46: =title98 -> Species | K46: =E46 -> Buffalo
C47: =title99 -> Total number of heads | I47: =title102 -> heads | K47: =IFERROR(VLOOKUP($D$4,LVS_FAOSTAT!$C$2:$R$202,MATCH(CONCATENATE($E$46,"avg"),LVS_FAOSTAT!$C$4:$R$4,0),FALSE),"-") -> -
C48: =title100 -> Commercial production (%)
C50: =title103 -> Household level production | H50: =title105 -> Commercial level production
C51: =title104 -> Number of heads held by households | F51: =IFERROR(ROUND(E47-(E47*E48),0),"-") -> 0 | H51: =title106 -> Number of heads in commercial production | K51: =IFERROR(ROUND(E47*E48,0),"-") -> 0
C53: =title107 -> Cattle feeding systems | H53: Cattle feeding systems
C54: =title108 -> 1. Daily feeding: stable only | E54: =title75 -> % | H54: 1. Daily feeding: stable only | J54: %
C55: =title109 -> 2. Daily feeding: grazing and stable | E55: =title75 -> % | H55: 2. Daily feeding: grazing and stable | J55: %
C56: =title110 -> 3. Seasonal grazing | E56: =title75 -> % | H56: 3. Seasonal grazing | J56: %
C57: =title111 -> - Number of months in pasture | H57: - Number of months in pasture
C58: =title112 -> 4. Year-round grazing | E58: =title75 -> % | H58: 4. Year-round grazing | J58: %
D60: =title113 -> Production of manure per head/day
D62: =title114 -> DEFAULT VALUE | I62: =title115 -> USER DEFINED
D63: =IFERROR(IF($E$46=species3,$D$65*7.547,$D$65*7.331),"-") -> - | F63: =title116 -> Manure (kg/head/day)
D64: =IFERROR(D65/D63,"-") -> - | F64: =title117 -> % of volatile solids in manure
D65: =IFERROR(INDIRECT("LVS!"&ADDRESS(MATCH($AA$10,LVS!$H$1:$H$13,0),MATCH(LVS_R!$E$46,LVS!$A$1:$U$1,0))),"-") -> - | F65: =title118 -> Volatile solids (kg/head/day) | I65: =IFERROR(IF(AND(I64="",I63<>"",I63<>0),I63*D64,IF(AND(I64<>"",I63=""),D63*I64,I63*I64)),0) -> 0
C67: =title124 -> Manure potential for biogas production
C69: =title125 -> Household level biogas production | H69: =title126 -> Commercial level production
C70: =title127 -> 1. Daily feeding: stable only | E70: =title52 -> t/year | F70: =IFERROR(IF(I$63="",D$63*F54*F51*365/1000,I$63*F54*F51*365/1000),"-") -> - | H70: =title127 -> 1. Daily feeding: stable only | J70: =title52 -> t/year | K70: =IFERROR(IF($I$63="",$D$63*K54*K51*365/1000,$I$63*K54*K51*365/1000),"-") -> -
C71: =title128 -> 2. Daily feeding: pasture and stable | E71: =title52 -> t/year | F71: =IFERROR(IF($I$63="",$D$63*F55*F51*365/2000,$I$63*F55*F51*365/2000),"-") -> - | H71: =title128 -> 2. Daily feeding: pasture and stable | J71: =title52 -> t/year | K71: =IFERROR(IF($I$63="",$D$63*K55*K51*365/2000,$I$63*K55*K51*365/2000),"-") -> -
C72: =title129 -> 3. In pasture seasonal | E72: =title52 -> t/year | F72: =IFERROR(IF($I$63="",$D$63*F51*F56*(365-(30*F57))/1000,$I$63*F51*F56*(365-(30*F57))/1000),"-") -> - | H72: =title129 -> 3. In pasture seasonal | J72: =title52 -> t/year | K72: =IFERROR(IF($I$63="",$D$63*K51*K56*(365-(30*K57))/1000,$I$63*K51*K56*(365-(30*K57))/1000),"-") -> -
C73: =title130 -> Total manure | E73: =title52 -> t/year | F73: =SUM(F70:F72) -> 0 | H73: =title130 -> Total manure | J73: =title52 -> t/year | K73: =SUM(K70:K72) -> 0
C78: =title131 -> Swine
C80: =title132 -> Swine production | I80: =title236 -> 3-years average annual production data (FAOSTAT 2019-21)
C81: =title99 -> Total number of heads | I81: =title102 -> heads | K81: =IFERROR(VLOOKUP($D$4,LVS_FAOSTAT!$T$4:$AI$211,MATCH(CONCATENATE(title209,"avg"),LVS_FAOSTAT!$T$4:$AI$4,0),FALSE),"-") -> -
C82: =title100 -> Commercial production (%)
C84: =title103 -> Household level production | H84: =title105 -> Commercial level production
C85: =title104 -> Number of heads held by households | F85: =IFERROR(ROUND(E81-(E81*E82),0),"-") -> 0 | H85: =title106 -> Number of heads in commercial production | K85: =IFERROR(ROUND(E81*E82,0),"-") -> 0
D87: =title113 -> Production of manure per head/day
D89: =title114 -> DEFAULT VALUE | I89: =title115 -> USER DEFINED
D90: =IFERROR($D$92*4.237,"-") -> - | F90: =title116 -> Manure (kg/head/day)
D91: =IFERROR(D92/D90,"-") -> - | F91: =title117 -> % of volatile solids in manure
D92: =IFERROR(INDIRECT("LVS!"&ADDRESS(MATCH($AA$12,LVS!$H$1:$H$13,0),MATCH(LVS_R!$C$78,LVS!$A$1:$U$1,0))),"-") -> - | F92: =title118 -> Volatile solids (kg/head/day) | I92: =IFERROR(IF(AND(I91="",I90<>"",I90<>0),I90*D91,IF(AND(I91<>"",I90=""),D90*I91,I90*I91)),0) -> 0
C94: =title124 -> Manure potential for biogas production
C96: =title125 -> Household level biogas production | H96: =title126 -> Commercial level production
C97: =title134 -> Production of manure | E97: =title52 -> t/year | F97: =IFERROR(IF(I$90="",$D$90*F85*365/1000,I$90*F85*365/1000),"-") -> - | H97: Production of manure | J97: =title52 -> t/year | K97: =IFERROR(IF(I$90="",$D$90*K85*365/1000,I$90*K85*365/1000),"-") -> -
C101: =title135 -> Chicken
C103: =title136 -> Chicken production | I103: =title236 -> 3-years average annual production data (FAOSTAT 2019-21)
C104: =title137 -> Total (1,000 heads) | I104: =title138 -> 1,000 heads | K104: =IFERROR(VLOOKUP($D$4,LVS_FAOSTAT!$T$4:$AI$211,MATCH(CONCATENATE(title210,"avg"),LVS_FAOSTAT!$T$4:$AI$4,0),FALSE),"-") -> -
C105: =title100 -> Commercial production (%)
C107: =title126 -> Commercial level production
C108: =title106 -> Number of heads in commercial production | F108: =IFERROR(ROUND(E104*E105*1000,0),"-") -> 0
D110: =title113 -> Production of manure per head/day
D112: =title114 -> DEFAULT VALUE | I112: =title115 -> USER DEFINED
D113: =IFERROR($D$115*2.027,"-") -> - | F113: =title116 -> Manure (kg/head/day)
D114: =IFERROR(D115/D113,"-") -> - | F114: =title117 -> % of volatile solids in manure
D115: =IFERROR(INDIRECT("LVS!"&ADDRESS(MATCH($AA$13,LVS!$H$1:$H$13,0),MATCH(LVS_R!$Z$13,LVS!$A$1:$U$1,0))),"-") -> - | F115: =title118 -> Volatile solids (kg/head/day) | I115: =IFERROR(IF(AND(I114="",I113<>"",I113<>0),I113*D114,IF(AND(I114<>"",I113=""),D113*I114,I113*I114)),0) -> 0
C117: =title124 -> Manure potential for biogas production
C119: =title126 -> Commercial level production
C120: =title134 -> Production of manure | E120: =title52 -> t/year | F120: =IFERROR(IF(I$113="",$D$113*F108*365/1000,I$113*F108*365/1000),"-") -> -
E126: =title225 -> Current use of manure
E127: =title96&": "&E13 -> Cattle: Dairy cow | G127: =title96&": "&E46 -> Cattle: Buffalo | I127: =title131 -> Swine | K127: =title222 -> Poultry
E128: =title223 -> household | F128: =title224 -> commercial | G128: =title223 -> household | H128: =title224 -> commercial | I128: =title223 -> household | J128: =title224 -> commercial | K128: =title224 -> commercial
D129: =title229 -> Composting (%)
D130: (t) | E130: =IFERROR(E129*$F$40,0) -> 0 | F130: =IFERROR(F129*$K$40,0) -> 0 | G130: =IFERROR(G129*$F$73,0) -> 0 | H130: =IFERROR(H129*$K$73,0) -> 0 | I130: =IFERROR(I129*$F$97,0) -> 0 | J130: =IFERROR(J129*$K$97,0) -> 0 | K130: =IFERROR(K129*$F$120,0) -> 0
D131: =title230 -> Direct Fertilization (%)
D132: (t) | E132: =IFERROR(E131*$F$40,0) -> 0 | F132: =IFERROR(F131*$K$40,0) -> 0 | G132: =IFERROR(G131*$F$73,0) -> 0 | H132: =IFERROR(H131*$K$73,0) -> 0 | I132: =IFERROR(I131*$F$97,0) -> 0 | J132: =IFERROR(J131*$K$97,0) -> 0 | K132: =IFERROR(K131*$F$120,0) -> 0
D133: =title231 -> Energy production (%)
D134: (t) | E134: =IFERROR(E133*$F$40,0) -> 0 | F134: =IFERROR(F133*$K$40,0) -> 0 | G134: =IFERROR(G133*$F$73,0) -> 0 | H134: =IFERROR(H133*$K$73,0) -> 0 | I134: =IFERROR(I133*$F$97,0) -> 0 | J134: =IFERROR(J133*$K$97,0) -> 0 | K134: =IFERROR(K133*$F$120,0) -> 0
D135: =title228 -> Other uses (%)
D136: (t) | E136: =IFERROR(E135*$F$40,0) -> 0 | F136: =IFERROR(F135*$K$40,0) -> 0 | G136: =IFERROR(G135*$F$73,0) -> 0 | H136: =IFERROR(H135*$K$73,0) -> 0 | I136: =IFERROR(I135*$F$97,0) -> 0 | J136: =IFERROR(J135*$K$97,0) -> 0 | K136: =IFERROR(K135*$F$120,0) -> 0
D138: =title227 -> Currently used (%) | E138: =SUM(E129,E131,E133,E135) -> 0 | F138: =SUM(F129,F131,F133,F135) -> 0 | G138: =SUM(G129,G131,G133,G135) -> 0 | H138: =SUM(H129,H131,H133,H135) -> 0 | I138: =SUM(I129,I131,I133,I135) -> 0 | J138: =SUM(J129,J131,J133,J135) -> 0 | K138: =SUM(K129,K131,K133,K135) -> 0
D139: (t) | E139: =IFERROR(E138*$F$40,0) -> 0 | F139: =IFERROR(F138*$K$40,0) -> 0 | G139: =IFERROR(G138*$F$73,0) -> 0 | H139: =IFERROR(H138*$K$73,0) -> 0 | I139: =IFERROR(I138*$F$97,0) -> 0 | J139: =IFERROR(J138*$K$97,0) -> 0 | K139: =IFERROR(K138*$F$120,0) -> 0
E143: =title226 -> Manure potentially available for bioenergy
E144: =title96&": "&E13 -> Cattle: Dairy cow | G144: =title96&": "&E46 -> Cattle: Buffalo | I144: =title131 -> Swine | K144: =title222 -> Poultry
E145: =title223 -> household | F145: =title224 -> commercial | G145: =title223 -> household | H145: =title224 -> commercial | I145: =title223 -> household | J145: =title224 -> commercial | K145: =title224 -> commercial
D146: =title52 -> t/year | E146: =IFERROR(F40-E139,0) -> 0 | F146: =IFERROR(K40-F139,0) -> 0 | G146: =IFERROR(F73-G139,0) -> 0 | H146: =IFERROR(K73-H139,0) -> 0 | I146: =IFERROR(F97-I139,0) -> 0 | J146: =IFERROR(K97-J139,0) -> 0 | K146: =IFERROR(F120-K139,0) -> 0
E151: =title237 -> Number of stable reared heads
E152: =title96&": "&E13 -> Cattle: Dairy cow | G152: =title96&": "&E46 -> Cattle: Buffalo | I152: =title131 -> Swine | K152: =title222 -> Poultry
E153: =title223 -> household | F153: =title224 -> commercial | G153: =title223 -> household | H153: =title224 -> commercial | I153: =title223 -> household | J153: =title224 -> commercial | K153: =title224 -> commercial
E154: =IFERROR(F18*(F21+(0.5*F22)+(F24/12*F23)),0) -> 0 | F154: =IFERROR(K18*(K21+(0.5*K22)+(K24/12*K23)),0) -> 0 | G154: =IFERROR(F51*(F54+(0.5*F55)+(F57/12*F56)),0) -> 0 | H154: =IFERROR(K51*(K54+(0.5*K55)+(K57/12*K56)),0) -> 0 | I154: =IFERROR(F85,0) -> 0 | J154: =IFERROR(K85,0) -> 0 | K154: =IFERROR(F108,0) -> 0

Sheet NR_R_AgR
C2: =title147 -> AGRICULTURAL RESIDUES RESULTS
C4: =title24 -> COUNTRY: | D4: =AgResidues_Component!$F$4 -> Select a country
C7: =title14 -> BEFS Rapid Appraisal for | E7: =AgResidues_Component!$G$7 -> the country | F7: =IF(AgResidues_Component!$I$7="","",AgResidues_Component!$I$7) ->  | L7: =title22 -> Enter data into white cells | N7: =title23 -> Grey cells are calculated
C10: =title148 -> Crop Residues Available for Bioenergy
E14: =title149 -> Crop-residue 1 | F14: =title150 -> Crop-residue 2 | G14: =title151 -> Crop-residue 3 | H14: =title152 -> Crop-residue 4
E16: =+Cr_R!F59 -> Select a crop - #N/A | F16: =+Cr_R!H59 -> Select a crop - #N/A | G16: =+Cr_R!J59 -> Select a crop - #N/A | H16: =+Cr_R!L59 -> Select a crop - #N/A
C19: =title153 -> TOTAL | D19: =title52 -> t/year | E19: =+Cr_R!F60 -> 0 | F19: =+Cr_R!H60 -> 0 | G19: =+Cr_R!J60 -> 0 | H19: =+Cr_R!L60 -> 0 | W19: =title160 -> Direct Combustion | X19: =title162 -> Briquettes | Y19: =title163 -> Pellets | Z19: =title167 -> Combustion | AA19: =title168 -> Gasification | AB19: =title169 -> Biogas - Industrial | AC19: CHP | AD19: Ethanol
C21: =title154 -> Total production area | D21: =title157 -> ha | E21: =+Cr_R!F61 -> 0 | F21: =+Cr_R!H61 -> 0 | G21: =+Cr_R!J61 -> 0 | H21: =+Cr_R!L61 -> 0 | W21: Direct Combustion | AA21: Briquettes | AE21: Pellets | AI21: Combustion | AM21: Gasification | AQ21: Biogas-Industrial | AU21: CHP | AY21: Ethanol
C22: =title155 -> Residue yield | D22: =title51 -> t/ha | E22: =+Cr_R!F62 -> 0 | F22: =+Cr_R!H62 -> 0 | G22: =+Cr_R!J62 -> 0 | H22: =+Cr_R!L62 -> 0 | W22: =E31 -> Select a crop - #N/A | X22: =F31 -> Select a crop - #N/A | Y22: =G31 -> Select a crop - #N/A | Z22: =H31 -> Select a crop - #N/A | AA22: =E31 -> Select a crop - #N/A | AB22: =F31 -> Select a crop - #N/A | AC22: =G31 -> Select a crop - #N/A | AD22: =H31 -> Select a crop - #N/A | AE22: =E31 -> Select a crop - #N/A | AF22: =F31 -> Select a crop - #N/A | AG22: =G31 -> Select a crop - #N/A | AH22: =H31 -> Select a crop - #N/A | AI22: =E31 -> Select a crop - #N/A | AJ22: =F31 -> Select a crop - #N/A | AK22: =G31 -> Select a crop - #N/A | AL22: =H31 -> Select a crop - #N/A | AM22: =E31 -> Select a crop - #N/A | AN22: =F31 -> Select a crop - #N/A | AO22: =G31 -> Select a crop - #N/A | AP22: =H31 -> Select a crop - #N/A | AQ22: =E31 -> Select a crop - #N/A | AR22: =F31 -> Select a crop - #N/A | AS22: =G31 -> Select a crop - #N/A | AT22: =H31 -> Select a crop - #N/A | AU22: =E31 -> Select a crop - #N/A | AV22: =F31 -> Select a crop - #N/A | AW22: =G31 -> Select a crop - #N/A | AX22: =H31 -> Select a crop - #N/A | AY22: =E31 -> Select a crop - #N/A | AZ22: =F31 -> Select a crop - #N/A | BA22: =G31 -> Select a crop - #N/A | BB22: =H31 -> Select a crop - #N/A
C23: =title156 -> Location of residue generation | E23: =+Cr_R!F63 -> Select location | F23: =+Cr_R!H63 -> Select location | G23: =+Cr_R!J63 -> Select location | H23: =+Cr_R!L63 -> Select location | W23: =E39 -> 0 | X23: =F39 -> 0 | Y23: =G39 -> 0 | Z23: =H39 -> 0 | AA23: =E42 -> 0 | AB23: =F42 -> 0 | AC23: =G42 -> 0 | AD23: =H42 -> 0 | AE23: =E45 -> 0 | AF23: =F45 -> 0 | AG23: =G45 -> 0 | AH23: =H45 -> 0 | AI23: =L39 -> 0 | AJ23: =M39 -> 0 | AK23: =N39 -> 0 | AL23: =O39 -> 0 | AM23: =L42 -> 0 | AN23: =M42 -> 0 | AO23: =N42 -> 0 | AP23: =O42 -> 0 | AQ23: =L45 -> 0 | AR23: =M45 -> 0 | AS23: =N45 -> 0 | AT23: =O45 -> 0 | AU23: =L48 -> 0 | AV23: =M48 -> 0 | AW23: =N48 -> 0 | AX23: =O48 -> 0 | AY23: =E49 -> 0 | AZ23: =F49 -> 0 | BA23: =G49 -> 0 | BB23: =H49 -> 0
C28: =title158 -> Define the Allocation of Crop Residues for Bioenergy Production
E30: =title149 -> Crop-residue 1 | F30: =title150 -> Crop-residue 2 | G30: =title151 -> Crop-residue 3 | H30: =title152 -> Crop-residue 4 | L30: =title149 -> Crop-residue 1 | M30: =title150 -> Crop-residue 2 | N30: =title151 -> Crop-residue 3 | O30: =title152 -> Crop-residue 4
E31: =E16 -> Select a crop - #N/A | F31: =F16 -> Select a crop - #N/A | G31: =G16 -> Select a crop - #N/A | H31: =H16 -> Select a crop - #N/A | L31: =E16 -> Select a crop - #N/A | M31: =F16 -> Select a crop - #N/A | N31: =G16 -> Select a crop - #N/A | O31: =H16 -> Select a crop - #N/A
C34: =title153 -> TOTAL | D34: =title52 -> t/year | E34: =E19 -> 0 | F34: =F19 -> 0 | G34: =G19 -> 0 | H34: =H19 -> 0 | J34: =title153 -> TOTAL | K34: =title52 -> t/year | L34: =E19 -> 0 | M34: =F19 -> 0 | N34: =G19 -> 0 | O34: =H19 -> 0
C36: =title159 -> Heating and Cooking | J36: =title166 -> Electricity and/or Heat
C37: =title160 -> Direct Combustion | J37: =title167 -> Combustion
C38: =title161 -> % of total | J38: =title161 -> % of total
C39: =title52 -> t/year | D39: t/year | E39: =IFERROR(IF(SUM($E$38,$E$41,E44,E48,L38,L41,L44,L47)>1,title171,E38*$E$34),"-") -> 0 | F39: =IFERROR(IF(SUM($F$38,$F$41,F44,F48,M38,M41,M44,M47)>1,title171,F38*$F$34),"-") -> 0 | G39: =IFERROR(IF(SUM($G$38,$G$41,G44,G48,N38,N41,N44,N47)>1,title171,G38*$G$34),"-") -> 0 | H39: =IFERROR(IF(SUM($H$38,$H$41,H44,H48,O38,O41,O44,O47)>1,title171,H38*$H$34),"-") -> 0 | J39: =title52 -> t/year | K39: t/year | L39: =IFERROR(IF(SUM($E$38,$E$41,E44,E48,L38,L41,L44,L47)>1,title171,L38*$L$34),"-") -> 0 | M39: =IFERROR(IF(SUM($F$38,$F$41,F44,F48,M38,M41,M44,M47)>1,title171,M38*$M$34),"-") -> 0 | N39: =IFERROR(IF(SUM($G$38,$G$41,G44,G48,N38,N41,N44,N47)>1,title171,N38*$N$34),"-") -> 0 | O39: =IFERROR(IF(SUM($H$38,$H$41,H44,H48,O38,O41,O44,O47)>1,title171,O38*$O$34),"-") -> 0
C40: =title162 -> Briquettes | J40: =title168 -> Gasification
C41: =title161 -> % of total | J41: =title161 -> % of total
C42: =title52 -> t/year | D42: t/year | E42: =IFERROR(IF(SUM($E$41,$E$38,E44,E48,L38,L41,L44,L47)>1,title171,E41*$E$34),"-") -> 0 | F42: =IFERROR(IF(SUM($F$41,$F$38,F44,F48,M38,M41,M44,M47)>1,title171,F41*$F$34),"-") -> 0 | G42: =IFERROR(IF(SUM($G$41,$G$38,G44,G48,N38,N41,N44,N47)>1,title171,G41*$G$34),"-") -> 0 | H42: =IFERROR(IF(SUM($H$41,$H$38,H44,H48,O38,O41,O44,O47)>1,title171,H41*$H$34),"-") -> 0 | J42: =title52 -> t/year | K42: t/year | L42: =IFERROR(IF(SUM($E$41,$E$38,E44,E48,L38,L41,L44,L47)>1,title171,L41*$L$34),"-") -> 0 | M42: =IFERROR(IF(SUM($F$41,$F$38,F44,F48,M38,M41,M44,M47)>1,title171,M41*$M$34),"-") -> 0 | N42: =IFERROR(IF(SUM($G$41,$G$38,G44,G48,N38,N41,N44,N47)>1,title171,N41*$N$34),"-") -> 0 | O42: =IFERROR(IF(SUM($H$41,$H$38,H44,H48,O38,O41,O44,O47)>1,title171,O41*$O$34),"-") -> 0
C43: =title163 -> Pellets | J43: =title169 -> Biogas - Industrial
C44: =title161 -> % of total | J44: =title161 -> % of total
C45: =title52 -> t/year | D45: t/year | E45: =IFERROR(IF(SUM($E$41,$E$38,E44,E48,L38,L41,L44,L47)>1,title171,E44*$E$34),"-") -> 0 | F45: =IFERROR(IF(SUM($F$41,$F$38,F44,F48,M38,M41,M44,M47)>1,title171,F44*$F$34),"-") -> 0 | G45: =IFERROR(IF(SUM($G$41,$G$38,G44,G48,N38,N41,N44,N47)>1,title171,G44*$G$34),"-") -> 0 | H45: =IFERROR(IF(SUM($H$41,$H$38,H44,H48,O38,O41,O44,O47)>1,title171,H44*$H$34),"-") -> 0 | J45: =title52 -> t/year | K45: t/year | L45: =IFERROR(IF(SUM($E$38,$E$41,E44,E48,L38,L41,L44,L47)>1,title171,L44*$L$34),"-") -> 0 | M45: =IFERROR(IF(SUM($F$38,$F$41,F44,F48,M38,M41,M44,M47)>1,title171,M44*$M$34),"-") -> 0 | N45: =IFERROR(IF(SUM($G$38,$G$41,G44,G48,N38,N41,N44,N47)>1,title171,N44*$N$34),"-") -> 0 | O45: =IFERROR(IF(SUM($H$38,$H$41,H44,H48,O38,O41,O44,O47)>1,title171,O44*$O$34),"-") -> 0
C46: =title164 -> Transport | J46: =title170 -> CHP (Combined Heat and Power)
C47: =title165 -> Ethanol (Second generation) | J47: =title161 -> % of total
C48: =title161 -> % of total | J48: =title52 -> t/year | K48: t/year | L48: =IFERROR(IF(SUM($E$41,$E$38,E44,E48,L38,L41,L44,L47)>1,title171,L47*$L$34),"-") -> 0 | M48: =IFERROR(IF(SUM($F$41,$F$38,F44,F48,M38,M41,M44,M47)>1,title171,M47*$M$34),"-") -> 0 | N48: =IFERROR(IF(SUM($G$41,$G$38,G44,G48,N38,N41,N44,N47)>1,title171,N47*$N$34),"-") -> 0 | O48: =IFERROR(IF(SUM($H$41,$H$38,H44,H48,O38,O41,O44,O47)>1,title171,O47*$O$34),"-") -> 0
C49: =title52 -> t/year | D49: t/year | E49: =IFERROR(IF(SUM(E38,E41,E44,E48,L38,L41,L44,L47)>1,title171,E48*$E$34),"-") -> 0 | F49: =IFERROR(IF(SUM(F38,F41,F44,F48,M38,M41,M44,M47)>1,title171,F48*$F$34),"-") -> 0 | G49: =IFERROR(IF(SUM(G38,G41,G44,G48,N38,N41,N44,N47)>1,title171,G48*$G$34),"-") -> 0 | H49: =IFERROR(IF(SUM(H38,H41,H44,H48,O38,O41,O44,O47)>1,title171,H48*$H$34),"-") -> 0
W57: =C77 -> Dairy cow | Y57: =C78 -> Buffalo | AA57: =C79 -> Swine | AC57: =C80 -> Chicken
W58: =title175 -> Household | X58: =title176 -> Commercial | Y58: =title175 -> Household | Z58: =title176 -> Commercial | AA58: =title175 -> Household | AB58: =title176 -> Commercial | AC58: =title175 -> Household | AD58: =title176 -> Commercial
W59: =E77 -> 0 | X59: =F77 -> 0 | Y59: =E78 -> 0 | Z59: =F78 -> 0 | AA59: =E79 -> 0 | AB59: =F79 -> 0 | AC59: =E80 -> - | AD59: =F80 -> 0
C73: =title173 -> Manure Generation - Available for Biogas Production
E75: =title177 -> Production level
C76: =title174 -> Livestock species | E76: =title175 -> Household | F76: =title176 -> Commercial | G76: =title178 -> Total
C77: =LVS_R!$E$13 -> Dairy cow | D77: =title52 -> t/year | E77: =LVS_R!E146 -> 0 | F77: =LVS_R!F146 -> 0 | G77: =SUM(E77:F77) -> 0
C78: =LVS_R!$E$46 -> Buffalo | D78: =title52 -> t/year | E78: =LVS_R!G146 -> 0 | F78: =LVS_R!H146 -> 0 | G78: =SUM(E78:F78) -> 0
C79: =LVS_R!$C$78 -> Swine | D79: =title52 -> t/year | E79: =LVS_R!I146 -> 0 | F79: =LVS_R!J146 -> 0 | G79: =SUM(E79:F79) -> 0
C80: =LVS_R!$C$101 -> Chicken | D80: =title52 -> t/year | E80: ="-" -> - | F80: =LVS_R!K146 -> 0 | G80: =SUM(E80:F80) -> 0
E82: =title238 -> Stable reared heads
C83: =title174 -> Livestock species | E83: =title175 -> Household | F83: =title176 -> Commercial | G83: =title178 -> Total
C84: =LVS_R!$E$13 -> Dairy cow | D84: =title239 -> # of heads | E84: =LVS_R!E154 -> 0 | F84: =LVS_R!F154 -> 0 | G84: =SUM(E84:F84) -> 0
C85: =LVS_R!$E$46 -> Buffalo | D85: =title239 -> # of heads | E85: =LVS_R!G154 -> 0 | F85: =LVS_R!H154 -> 0 | G85: =SUM(E85:F85) -> 0
C86: =LVS_R!$C$78 -> Swine | D86: =title239 -> # of heads | E86: =LVS_R!I154 -> 0 | F86: =LVS_R!J154 -> 0 | G86: =SUM(E86:F86) -> 0
C87: =LVS_R!$C$101 -> Chicken | D87: =title239 -> # of heads | E87: ="-" -> - | F87: =LVS_R!K154 -> 0 | G87: =SUM(E87:F87) -> 0

Sheet title_label (hidden)
B2: Selection | C2: =VLOOKUP(Start!B4,$A$3:$C$5,3,FALSE) -> 1
A3: EN | B3: English | C3: 1
A4: FR | B4: French | C4: 2
A5: ES | B5: Spanish | C5: 3
A20: ID | B20: English | C20: French | D20: Spanish | E20: Typeof | F20: Ref | G20: Name
B21: 1 | C21: 2 | D21: 3
A22: 2 | B22: NATURAL RESOURCES MODULE | C22: MODULE RESSOURCES NATURELLES | D22: MÓDULO RECURSOS NATURALES | E22: title | F22: =HLOOKUP($C$2,$B$21:$D22,$A22,FALSE) -> NATURAL RESOURCES MODULE | G22: =$E22&$A22 -> title2
A23: 3 | B23: NEXT >> Agricultural Residues Component | C23: SUIVANT >> Composante Résidus Agricoles | D23: SIGUIENTE >> Componente Residuos Agropecuarios | E23: label | F23: =HLOOKUP($C$2,$B$21:$D23,$A23,FALSE) -> NEXT >> Agricultural Residues Component | G23: =$E23&$A23 -> label3
A24: 4 | B24: Agriculture Residues Component | C24: Composante Résidus Agricoles | D24: COMPONENTE RESIDUOS AGROPECUARIOS | E24: title | F24: =HLOOKUP($C$2,$B$21:$D24,$A24,FALSE) -> Agriculture Residues Component | G24: =$E24&$A24 -> title4
A25: 5 | B25: Country: | C25: Pays: | D25: País: | E25: title | F25: =HLOOKUP($C$2,$B$21:$D25,$A25,FALSE) -> Country: | G25: title5
A26: 6 | B26: Select | C26: Selectionez | D26: Seleccione | E26: title | F26: =HLOOKUP($C$2,$B$21:$D26,$A26,FALSE) -> Select | G26: title6
A27: 7 | B27: the country | C27: Pays | D27: el país | E27: title | F27: =HLOOKUP($C$2,$B$21:$D27,$A27,FALSE) -> the country | G27: title7
A28: 8 | B28: Region: | C28: Région: | D28: Región: | E28: title | F28: =HLOOKUP($C$2,$B$21:$D28,$A28,FALSE) -> Region: | G28: title8
A29: 9 | B29: Province: | C29: Province: | D29: Provincia: | E29: title | F29: =HLOOKUP($C$2,$B$21:$D29,$A29,FALSE) -> Province: | G29: title9
A30: 10 | B30: District: | C30: District: | D30: Distrito: | E30: title | F30: =HLOOKUP($C$2,$B$21:$D30,$A30,FALSE) -> District: | G30: title10
A31: 11 | B31: Area: | C31: Zone: | D31: Area: | E31: title | F31: =HLOOKUP($C$2,$B$21:$D31,$A31,FALSE) -> Area: | G31: title11
A32: 12 | B32: Other: | C32: Autre: | D32: Otros: | E32: title | F32: =HLOOKUP($C$2,$B$21:$D32,$A32,FALSE) -> Other: | G32: title12
A33: 13 | B33: << BACK Start | C33: << RETOUR Début | D33: << VOLVER Inicio | E33: label | F33: =HLOOKUP($C$2,$B$21:$D33,$A33,FALSE) -> << BACK Start | G33: label13
A34: 14 | B34: BEFS Rapid Appraisal for | C34: Évaluation Rapide BEFS pour | D34: BEFS Evaluación Rápida para | E34: title | F34: =HLOOKUP($C$2,$B$21:$D34,$A34,FALSE) -> BEFS Rapid Appraisal for | G34: title14
A35: 15 | B35: Select a country | C35: Sélectionner un pays | D35: Seleccione un país | E35: title | F35: =HLOOKUP($C$2,$B$21:$D35,$A35,FALSE) -> Select a country | G35: title15
A36: 16 | B36: Clear data | C36: Effacer les données | D36: Borrar datos | E36: label | F36: =HLOOKUP($C$2,$B$21:$D36,$A36,FALSE) -> Clear data | G36: label16
A37: 17 | B37: Crop Residues Tool | C37: Outil Résidus de Cultures | D37: Herramienta de Residuos Agrícolas | E37: label | F37: =HLOOKUP($C$2,$B$21:$D37,$A37,FALSE) -> Crop Residues Tool | G37: label17
A38: 18 | B38: Livestock Residues Tool | C38: Outil Résidus d’Élevage | D38: Herramienta de Residuos Ganaderos | E38: label | F38: =HLOOKUP($C$2,$B$21:$D38,$A38,FALSE) -> Livestock Residues Tool | G38: label18
A39: 19 | B39: CROP RESIDUES | C39: RÉSIDUS DE CULTURES | D39: RESIDUOS AGRÍCOLAS | E39: title | F39: =HLOOKUP($C$2,$B$21:$D39,$A39,FALSE) -> CROP RESIDUES | G39: title19
A40: 20 | B40: << BACK Agricultural Residues Component | C40: << RETOUR Composante Résidus Agricoles | D40: << VOLVER Componente Residuos Agropecuarios | E40: label | F40: =HLOOKUP($C$2,$B$21:$D40,$A40,FALSE) -> << BACK Agricultural Residues Component | G40: label20
A41: 21 | B41: NEXT >> Results of the Agricultural Residues | C41: SUIVANT >> Résultats des Résidus Agricoles | D41: SIGUIENTE >> Resultados de los Residuos Agropercuarios | E41: label | F41: =HLOOKUP($C$2,$B$21:$D41,$A41,FALSE) -> NEXT >> Results of the Agricultural Residues | G41: label21
A42: 22 | B42: Enter data into white cells | C42: Entrer les données dans les cellules blanches | D42: Introduzca los datos en las celdas blancas | E42: title | F42: =HLOOKUP($C$2,$B$21:$D42,$A42,FALSE) -> Enter data into white cells | G42: title22
A43: 23 | B43: Grey cells are calculated | C43: Les cellules grisées sont calculées | D43: Las celdas grises son cálculos | E43: title | F43: =HLOOKUP($C$2,$B$21:$D43,$A43,FALSE) -> Grey cells are calculated | G43: title23
A44: 24 | B44: COUNTRY: | C44: PAYS: | D44: País: | E44: title | F44: =HLOOKUP($C$2,$B$21:$D44,$A44,FALSE) -> COUNTRY: | G44: title24
A45: 25 | B45: Select crop-residue type | C45: Sélectionnez le type de résidus de cultures | D45: Selección del tipo de residuo agrícola | E45: title | F45: =HLOOKUP($C$2,$B$21:$D45,$A45,FALSE) -> Select crop-residue type | G45: title25
A46: 26 | B46: Crop 1 | C46: Culture 1 | D46: Cultivo 1 | E46: title | F46: =HLOOKUP($C$2,$B$21:$D46,$A46,FALSE) -> Crop 1 | G46: title26
A47: 27 | B47: Crop 2 | C47: Culture 2 | D47: Cultivo 2 | E47: title | F47: =HLOOKUP($C$2,$B$21:$D47,$A47,FALSE) -> Crop 2 | G47: title27
A48: 28 | B48: Crop 3 | C48: Culture 3 | D48: Cultivo 3 | E48: title | F48: =HLOOKUP($C$2,$B$21:$D48,$A48,FALSE) -> Crop 3 | G48: title28
A49: 29 | B49: Crop 4 | C49: Culture 4 | D49: Cultivo 4 | E49: title | F49: =HLOOKUP($C$2,$B$21:$D49,$A49,FALSE) -> Crop 4 | G49: title29
A50: 30 | B50: Crop | C50: Cultures | D50: Cultivo | E50: title | F50: =HLOOKUP($C$2,$B$21:$D50,$A50,FALSE) -> Crop | G50: title30
A51: 31 | B51: Residue | C51: Résidus | D51: Residuo | E51: title | F51: =HLOOKUP($C$2,$B$21:$D51,$A51,FALSE) -> Residue | G51: title31
A52: 32 | B52: Location of residue generation | C52: Lieu de la production de résidus | D52: Lugar de generación del residuo | E52: title | F52: =HLOOKUP($C$2,$B$21:$D52,$A52,FALSE) -> Location of residue generation | G52: title32
A53: 33 | B53: Select location | C53: Choisir un lieu | D53: Seleccionar ubicación | E53: title | F53: =HLOOKUP($C$2,$B$21:$D53,$A53,FALSE) -> Select location | G53: title33
A54: 34 | B54: field - spread | C54: Champ de propagation | D54: esparcidos en el campo | E54: title | F54: =HLOOKUP($C$2,$B$21:$D54,$A54,FALSE) -> field - spread | G54: title34
A55: 35 | B55: field - collected | C55: Recueillies sur le terrain | D55: recogidos en el campo | E55: title | F55: =HLOOKUP($C$2,$B$21:$D55,$A55,FALSE) -> field - collected | G55: title35
A56: 36 | B56: processing plant | C56: Usine de traitement | D56: planta de procesamiento | E56: title | F56: =HLOOKUP($C$2,$B$21:$D56,$A56,FALSE) -> processing plant | G56: title36
A57: 37 | B57: List of residue types | C57: List of Type de résidus | D57: Lista de tipos de residuos | E57: title | F57: =HLOOKUP($C$2,$B$21:$D57,$A57,FALSE) -> List of residue types | G57: title37
A58: 38 | B58: Residue type | C58: Type de résidus | D58: Tipo de residuo | E58: title | F58: =HLOOKUP($C$2,$B$21:$D58,$A58,FALSE) -> Residue type | G58: title38
A59: 39 | B59: Residue type selection | C59: Type de résidus selection | D59: Selección del tipo de residuo | E59: title | F59: =HLOOKUP($C$2,$B$21:$D59,$A59,FALSE) -> Residue type selection | G59: title39
A60: 40 | B60: CROP - RESIDUE COMBINATION LIST | C60: CROP - RESIDUE COMBINATION LIST | D60: CROP - RESIDUE COMBINATION LIST | E60: title | F60: =HLOOKUP($C$2,$B$21:$D60,$A60,FALSE) -> CROP - RESIDUE COMBINATION LIST | G60: title40
A61: 41 | B61: 10-years average annual production at country level | C61: Moyenne sur 10 ans de la production annuelle au niveau du pays | D61: Producción anual promedio de 10 años a nivel país | E61: title | F61: =HLOOKUP($C$2,$B$21:$D61,$A61,FALSE) -> 10-years average annual production at country level | G61: title41
A62: 42 | B62: Crop production | C62: Production de cultures | D62: Producción del cultivo | E62: title | F62: =HLOOKUP($C$2,$B$21:$D62,$A62,FALSE) -> Crop production | G62: title42
A63: 43 | B63: Crop yield (t/ha) | C63: Rendement des cultures (t/ha) | D63: Rendimiento del cultivo (t/ha) | E63: title | F63: =HLOOKUP($C$2,$B$21:$D63,$A63,FALSE) -> Crop yield (t/ha) | G63: title43
A64: 44 | B64: No. of harvests/year | C64: Nombre de récoltes/an | D64: No. de cultivos/año | E64: title | F64: =HLOOKUP($C$2,$B$21:$D64,$A64,FALSE) -> No. of harvests/year | G64: title44
A65: 45 | B65: Annual production (t) | C65: Production annuelle (t) | D65: Producción anual (t) | E65: title | F65: =HLOOKUP($C$2,$B$21:$D65,$A65,FALSE) -> Annual production (t) | G65: title45
A66: 46 | B66: Total production area (ha) | C66: Superficie totale de la production (ha) | D66: Área de producción total (ha) | E66: title | F66: =HLOOKUP($C$2,$B$21:$D66,$A66,FALSE) -> Total production area (ha) | G66: title46
A67: 47 | B67: Parameter | C67: Paramètre | D67: Parámetro | E67: title | F67: =HLOOKUP($C$2,$B$21:$D67,$A67,FALSE) -> Parameter | G67: title47
A68: 48 | B68: Unit | C68: Unité | D68: unidad | E68: title | F68: =HLOOKUP($C$2,$B$21:$D68,$A68,FALSE) -> Unit | G68: title48
A69: 49 | B69: Yield | C69: Rendement | D69: Rendimiento | E69: title | F69: =HLOOKUP($C$2,$B$21:$D69,$A69,FALSE) -> Yield | G69: title49
A70: 50 | B70: Production | C70: Production | D70: Producción | E70: title | F70: =HLOOKUP($C$2,$B$21:$D70,$A70,FALSE) -> Production | G70: title50
A71: 51 | B71: t/ha | C71: t/ha | D71: t/ha | E71: title | F71: =HLOOKUP($C$2,$B$21:$D71,$A71,FALSE) -> t/ha | G71: title51
A72: 52 | B72: t/year | C72: t/an | D72: t/año | E72: title | F72: =HLOOKUP($C$2,$B$21:$D72,$A72,FALSE) -> t/year | G72: title52
A73: 53 | B73: Residue to crop ratio | C73: Ratio résidus-à-cultures | D73: Relación residuo a cultivo | E73: title | F73: =HLOOKUP($C$2,$B$21:$D73,$A73,FALSE) -> Residue to crop ratio | G73: title53
A74: 54 | B74: User defined | C74: Défini par l'utilisateur | D74: Definido por el usuario | E74: title | F74: =HLOOKUP($C$2,$B$21:$D74,$A74,FALSE) -> User defined | G74: title54
A75: 55 | B75: Default value | C75: Valeur par défaut | D75: Valor por defecto | E75: title | F75: =HLOOKUP($C$2,$B$21:$D75,$A75,FALSE) -> Default value | G75: title55
A76: 56 | B76: Total residue production (t/year) | C76: Production total de résidus (t/an) | D76: Producción total de residuos (t/año) | E76: title | F76: =HLOOKUP($C$2,$B$21:$D76,$A76,FALSE) -> Total residue production (t/year) | G76: title56
A77: 57 | B77: Residue yield (t/ha) | C77: Rendement de résidus (t/ha) | D77: Rendimiento de residuos (t/ha) | E77: title | F77: =HLOOKUP($C$2,$B$21:$D77,$A77,FALSE) -> Residue yield (t/ha) | G77: title57
A78: 58 | B78: Generation of crop residues | C78: Production des résidus de cultures | D78: Generación de residuos agrícolas | E78: title | F78: =HLOOKUP($C$2,$B$21:$D78,$A78,FALSE) -> Generation of crop residues | G78: title58
A79: 59 | B79: Crop - residue type | C79: Culture - type de résidus | D79: Tipo de residuo - cultivo | E79: title | F79: =HLOOKUP($C$2,$B$21:$D79,$A79,FALSE) -> Crop - residue type | G79: title59
A80: 60 | B80: average | C80: moyenne | D80: promedio | E80: title | F80: =HLOOKUP($C$2,$B$21:$D80,$A80,FALSE) -> average | G80: title60
A81: 61 | B81: min | C81: min | D81: min | E81: title | F81: =HLOOKUP($C$2,$B$21:$D81,$A81,FALSE) -> min | G81: title61
A82: 62 | B82: max | C82: max | D82: max | E82: title | F82: =HLOOKUP($C$2,$B$21:$D82,$A82,FALSE) -> max | G82: title62
A83: 63 | B83: stdev | C83: stdev | D83: stdev | E83: title | F83: =HLOOKUP($C$2,$B$21:$D83,$A83,FALSE) -> stdev | G83: title63
A84: 64 | B84: Residues left in the field (for soil fertility and stability) | C84: Résidus laissés dans les champs (pour la fertilité et la stabilité du sol) | D84: Residuos dejados en el campo (para la fertilidad y estabilidad del suelo) | E84: title | F84: =HLOOKUP($C$2,$B$21:$D84,$A84,FALSE) -> Residues left in the field (for soil fertility and stability) | G84: title64
A85: 65 | B85: User defined (%) | C85: Défini par l'utilisateur (%) | D85: Definido por el usuario (%) | E85: title | F85: =HLOOKUP($C$2,$B$21:$D85,$A85,FALSE) -> User defined (%) | G85: title65
A86: 66 | B86: Default value (%) | C86: Valeur par défaut (%) | D86: Valor por defecto (%) | E86: title | F86: =HLOOKUP($C$2,$B$21:$D86,$A86,FALSE) -> Default value (%) | G86: title66
A87: 67 | B87: Total (t/year) | C87: Total (t/an) | D87: Total (t/año) | E87: title | F87: =HLOOKUP($C$2,$B$21:$D87,$A87,FALSE) -> Total (t/year) | G87: title67
A88: 68 | B88: Residues burnt in the field (production area burnt after the harvest) | C88: Résidus brûlés dans les champs (zone de production brûlée après la récolte) | D88: Residuos quemados en el campo (área de producción quemada después de la cosecha) | E88: title | F88: =HLOOKUP($C$2,$B$21:$D88,$A88,FALSE) -> Residues burnt in the field (production area burnt after the harvest) | G88: =$E88&$A88 -> title68
A89: 69 | B89: Production area burnt after harvesting | C89: Zone de production brûlée après la récolte | D89: Área de producción quemada después de la cosecha | E89: title | F89: =HLOOKUP($C$2,$B$21:$D89,$A89,FALSE) -> Production area burnt after harvesting | G89: title69
A90: 70 | B90: User defined (ha) | C90: Défini par l'utilisateur (ha) | D90: Definido por el usuario (ha) | E90: title | F90: =HLOOKUP($C$2,$B$21:$D90,$A90,FALSE) -> User defined (ha) | G90: title70
A91: 71 | B91: Default value (ha) | C91: Valeur par défaut (ha) | D91: Valor por defecto (ha) | E91: title | F91: =HLOOKUP($C$2,$B$21:$D91,$A91,FALSE) -> Default value (ha) | G91: title71
A92: 72 | B92: Amount of residues burnt (t/year) | C92: Quantité de résidus brûlés (t/an) | D92: Cantidad de residuos quemados (t/año) | E92: title | F92: =HLOOKUP($C$2,$B$21:$D92,$A92,FALSE) -> Amount of residues burnt (t/year) | G92: title72
A93: 73 | B93: Current use of crop residues | C93: Utilisation actuelle des résidus de cultures | D93: Uso actual de los residuos | E93: title | F93: =HLOOKUP($C$2,$B$21:$D93,$A93,FALSE) -> Current use of crop residues | G93: title73
A94: 74 | B94: animal feed and bedding | C94: nourriture et litière animale | D94: Alimentación y lecho para animales | E94: title | F94: =HLOOKUP($C$2,$B$21:$D94,$A94,FALSE) -> animal feed and bedding | G94: title74
A95: 75 | B95: % | C95: % | D95: % | E95: title | F95: =HLOOKUP($C$2,$B$21:$D95,$A95,FALSE) -> % | G95: title75
A96: 76 | B96: t | C96: t | D96: t | E96: title | F96: =HLOOKUP($C$2,$B$21:$D96,$A96,FALSE) -> t | G96: title76
A97: 77 | B97: fuel (including charcoal) | C97: combustibles (y compris le charbon de bois) | D97: Combustible (incluyendo carbon) | E97: title | F97: =HLOOKUP($C$2,$B$21:$D97,$A97,FALSE) -> fuel (including charcoal) | G97: title77
A98: 78 | B98: construction | C98: construction | D98: Construcción | E98: title | F98: =HLOOKUP($C$2,$B$21:$D98,$A98,FALSE) -> construction | G98: title78
A99: 79 | B99: industry | C99: industrie | D99: Industria | E99: title | F99: =HLOOKUP($C$2,$B$21:$D99,$A99,FALSE) -> industry | G99: title79
A100: 80 | B100: other: | C100: autre: | D100: Otros: | E100: title | F100: =HLOOKUP($C$2,$B$21:$D100,$A100,FALSE) -> other: | G100: title80
A101: 81 | B101: Total currently used | C101: Total actuellement utilisé | D101: Total usado actualmente | E101: title | F101: =HLOOKUP($C$2,$B$21:$D101,$A101,FALSE) -> Total currently used | G101: title81
A102: 82 | B102: (%) | C102: (%) | D102: (%) | E102: title | F102: =HLOOKUP($C$2,$B$21:$D102,$A102,FALSE) -> (%) | G102: title82
A103: 83 | B103: (t/year) | C103: (t/an) | D103: (t/año) | E103: title | F103: =HLOOKUP($C$2,$B$21:$D103,$A103,FALSE) -> (t/year) | G103: title83
A104: 84 | B104: Revise input data | C104: Réviser les données d'entrée | D104: Revisar los datos de entrada | E104: title | F104: =HLOOKUP($C$2,$B$21:$D104,$A104,FALSE) -> Revise input data | G104: title84
A105: 85 | B105: location | C105: lieu | D105: ubicación | E105: title | F105: =HLOOKUP($C$2,$B$21:$D105,$A105,FALSE) -> location | G105: title85
A106: 86 | B106: Potentially available for bioenergy | C106: Potentiellement disponibles pour la bioénergie | D106: Potencialmente disponible para bioenergía | E106: title | F106: =HLOOKUP($C$2,$B$21:$D106,$A106,FALSE) -> Potentially available for bioenergy | G106: title86
A107: 87 | B107: Total (t/year) | C107: Total (t/an) | D107: Total (t/año) | E107: title | F107: =HLOOKUP($C$2,$B$21:$D107,$A107,FALSE) -> Total (t/year) | G107: title87
A108: 88 | B108: Total production area (ha) | C108: Zone totale de production (ha) | D108: Área de producción total (ha) | E108: title | F108: =HLOOKUP($C$2,$B$21:$D108,$A108,FALSE) -> Total production area (ha) | G108: title88
A109: 89 | B109: Residue yield (t/ha) | C109: Rendement de résidus (t/ha) | D109: Rendimiento de residuos (t/ha) | E109: title | F109: =HLOOKUP($C$2,$B$21:$D109,$A109,FALSE) -> Residue yield (t/ha) | G109: title89
A110: 90 | B110: Location of residue generation | C110: Lieu de la production de résidus | D110: Lugar de generación del residuo | E110: title | F110: =HLOOKUP($C$2,$B$21:$D110,$A110,FALSE) -> Location of residue generation | G110: title90
A111: 91 | B111: << BACK Agriculture Residues Component | C111: << RETOUR Composante Résidus Agricoles | D111: << VOLVER Componente Residuos Agropecuarios | E111: label | F111: =HLOOKUP($C$2,$B$21:$D111,$A111,FALSE) -> << BACK Agriculture Residues Component | G111: label91
A112: 92 | B112: Clear all data | C112: Effacer toutes les données | D112: Borrar todos los datos | E112: label | F112: =HLOOKUP($C$2,$B$21:$D112,$A112,FALSE) -> Clear all data | G112: label92
A113: 93 | B113: NEXT >>> Results of the Agricultural Residues | C113: SUIVANT >>> Résultats des Résidus Agricoles | D113: SIGUIENTE >>> Resultados de los Residuos Agropecuarios | E113: label | F113: =HLOOKUP($C$2,$B$21:$D113,$A113,FALSE) -> NEXT >>> Results of the Agricultural Residues | G113: label93
A114: 94 | B114: NEXT >> Livestock Residues | C114: SUIVANT >> Résidus de l'Élevage | D114: SIGUIENTE >> Residuos Ganaderos | E114: label | F114: =HLOOKUP($C$2,$B$21:$D114,$A114,FALSE) -> NEXT >> Livestock Residues | G114: label94
A115: 95 | B115: LIVESTOCK RESIDUES | C115: RÉSIDUS DE L'ÉLEVAGE | D115: RESIDUOS GANADEROS | E115: title | F115: =HLOOKUP($C$2,$B$21:$D115,$A115,FALSE) -> LIVESTOCK RESIDUES | G115: title95
A116: 96 | B116: Cattle | C116: Bovins | D116: Ganado | E116: title | F116: =HLOOKUP($C$2,$B$21:$D116,$A116,FALSE) -> Cattle | G116: title96
A117: 97 | B117: Cattle production | C117: Production de bovins | D117: Producción vacuna | E117: title | F117: =HLOOKUP($C$2,$B$21:$D117,$A117,FALSE) -> Cattle production | G117: title97
A118: 98 | B118: Species | C118: Espèces | D118: Especies | E118: title | F118: =HLOOKUP($C$2,$B$21:$D118,$A118,FALSE) -> Species | G118: title98
A119: 99 | B119: Total number of heads | C119: Nombre de têtes | D119: Número total de cabezas | E119: title | F119: =HLOOKUP($C$2,$B$21:$D119,$A119,FALSE) -> Total number of heads | G119: title99
A120: 100 | B120: Commercial production (%) | C120: Production commerciale (%) | D120: Producción comercial (%) | E120: title | F120: =HLOOKUP($C$2,$B$21:$D120,$A120,FALSE) -> Commercial production (%) | G120: title100
A121: 101 | B121: 3-years average annual production data (FAOSTAT 2010-12) | C121: Moyenne sur 3 ans des données annuelle de production (FAOSTAT 2010-12) | D121: Datos de producción anual promedio de 3 años (FAOSTAT 2010-12) | E121: title | F121: =HLOOKUP($C$2,$B$21:$D121,$A121,FALSE) -> 3-years average annual production data (FAOSTAT 2010-12) | G121: title101
A122: 102 | B122: heads | C122: Têtes | D122: Cabezas | E122: title | F122: =HLOOKUP($C$2,$B$21:$D122,$A122,FALSE) -> heads | G122: title102
A123: 103 | B123: Household level production | C123: Production au niveau des ménages | D123: Nivel de producción doméstico | E123: title | F123: =HLOOKUP($C$2,$B$21:$D123,$A123,FALSE) -> Household level production | G123: title103
A124: 104 | B124: Number of heads held by households | C124: Nombre de têtes détenues par ménages | D124: Número de cabezas ganaderas para la producción doméstica | E124: title | F124: =HLOOKUP($C$2,$B$21:$D124,$A124,FALSE) -> Number of heads held by households | G124: title104
A125: 105 | B125: Commercial level production | C125: Production au niveau commercial | D125: Nivel de producción comercial | E125: title | F125: =HLOOKUP($C$2,$B$21:$D125,$A125,FALSE) -> Commercial level production | G125: title105
A126: 106 | B126: Number of heads in commercial production | C126: Nombre de têtes dans la production commerciale | D126: Número de cabezas ganaderas para la producción comercial | E126: title | F126: =HLOOKUP($C$2,$B$21:$D126,$A126,FALSE) -> Number of heads in commercial production | G126: title106
A127: 107 | B127: Cattle feeding systems | C127: Systèmes d'alimentation des bovins | D127: Sistemas de alimentación de ganado | E127: title | F127: =HLOOKUP($C$2,$B$21:$D127,$A127,FALSE) -> Cattle feeding systems | G127: title107
A128: 108 | B128: 1. Daily feeding: stable only | C128: 1. Alimentation quotidienne: stable seulement | D128: 1. Alimentación diaria: establo solamente | E128: title | F128: =HLOOKUP($C$2,$B$21:$D128,$A128,FALSE) -> 1. Daily feeding: stable only | G128: title108
A129: 109 | B129: 2. Daily feeding: grazing and stable | C129: 2. Alimentation quotidienne: pâturage et stable | D129: 2. Alimentación diaria: pasto y establo | E129: title | F129: =HLOOKUP($C$2,$B$21:$D129,$A129,FALSE) -> 2. Daily feeding: grazing and stable | G129: title109
A130: 110 | B130: 3. Seasonal grazing | C130: 3. Pâturage saisonnier | D130: 3. Pastoreo estacional | E130: title | F130: =HLOOKUP($C$2,$B$21:$D130,$A130,FALSE) -> 3. Seasonal grazing | G130: title110
A131: 111 | B131: - Number of months in pasture | C131: - Nombre de mois dans les pâturages | D131: - Número de meses en los pastos | E131: title | F131: =HLOOKUP($C$2,$B$21:$D131,$A131,FALSE) -> - Number of months in pasture | G131: title111
A132: 112 | B132: 4. Year-round grazing | C132: 4. Pâturage toute l'année | D132: 4. Pastoreo durante todo el año | E132: title | F132: =HLOOKUP($C$2,$B$21:$D132,$A132,FALSE) -> 4. Year-round grazing | G132: title112
A133: 113 | B133: Production of manure per head/day | C133: Production de fumier par tête/jour | D133: Producción de estiércol por cabeza/día | E133: title | F133: =HLOOKUP($C$2,$B$21:$D133,$A133,FALSE) -> Production of manure per head/day | G133: title113
A134: 114 | B134: DEFAULT VALUE | C134: VALEUR PAR DÉFAUT | D134: Valor por defecto | E134: title | F134: =HLOOKUP($C$2,$B$21:$D134,$A134,FALSE) -> DEFAULT VALUE | G134: title114
A135: 115 | B135: USER DEFINED | C135: DEFINI PAR L’UTILISATEUR | D135: Definido por el usuario | E135: title | F135: =HLOOKUP($C$2,$B$21:$D135,$A135,FALSE) -> USER DEFINED | G135: title115
A136: 116 | B136: Manure (kg/head/day) | C136: Fumier (kg/tête/jour) | D136: Estiércol (kg/cabeza/día) | E136: title | F136: =HLOOKUP($C$2,$B$21:$D136,$A136,FALSE) -> Manure (kg/head/day) | G136: title116
A137: 117 | B137: % of volatile solids in manure | C137: % De matières volatiles dans le fumier | D137: % de sólidos volátiles en el estiércol | E137: title | F137: =HLOOKUP($C$2,$B$21:$D137,$A137,FALSE) -> % of volatile solids in manure | G137: title117
A138: 118 | B138: Volatile solids (kg/head/day) | C138: Matières volatiles (kg/tête/jour) | D138: Sólidos volátiles (kg/cabeza/día) | E138: title | F138: =HLOOKUP($C$2,$B$21:$D138,$A138,FALSE) -> Volatile solids (kg/head/day) | G138: title118
A139: 119 | B139: Buffalo | C139: Buffle | D139: Búfalo | E139: title | F139: =HLOOKUP($C$2,$B$21:$D139,$A139,FALSE) -> Buffalo | G139: title119
A140: 120 | B140: Dairy cow | C140: Vache laitière | D140: Vaca lechera | E140: title | F140: =HLOOKUP($C$2,$B$21:$D140,$A140,FALSE) -> Dairy cow | G140: title120
A141: 121 | B141: Chicken | C141: Poulets | D141: Pollos | E141: title | F141: =HLOOKUP($C$2,$B$21:$D141,$A141,FALSE) -> Chicken | G141: title121
A142: 122 | B142: Pig | C142: Porcs | D142: Cerdos | E142: title | F142: =HLOOKUP($C$2,$B$21:$D142,$A142,FALSE) -> Pig | G142: title122
A143: 123 | B143: Turkey | C143: Dines | D143: Turkey | E143: title | F143: =HLOOKUP($C$2,$B$21:$D143,$A143,FALSE) -> Turkey | G143: title123
A144: 124 | B144: Manure potential for biogas production | C144: Fumier disponible pour la production de biogaz | D144: Estiércol disponible para la producción de biogás | E144: title | F144: =HLOOKUP($C$2,$B$21:$D144,$A144,FALSE) -> Manure potential for biogas production | G144: title124
A145: 125 | B145: Household level biogas production | C145: La production de biogaz par ménages | D145: Nivel de producción doméstico | E145: title | F145: =HLOOKUP($C$2,$B$21:$D145,$A145,FALSE) -> Household level biogas production | G145: title125
A146: 126 | B146: Commercial level production | C146: Production au niveau commercial | D146: Nivel de producción comercial | E146: title | F146: =HLOOKUP($C$2,$B$21:$D146,$A146,FALSE) -> Commercial level production | G146: title126
A147: 127 | B147: 1. Daily feeding: stable only | C147: 1. Alimentation quotidienne: stable seulement | D147: 1. Alimentación diaria: establo solamente | E147: title | F147: =HLOOKUP($C$2,$B$21:$D147,$A147,FALSE) -> 1. Daily feeding: stable only | G147: title127
A148: 128 | B148: 2. Daily feeding: pasture and stable | C148: 2. Alimentation quotidienne: pâturage et stable | D148: 2. Alimentación diaria: pastos y establo | E148: title | F148: =HLOOKUP($C$2,$B$21:$D148,$A148,FALSE) -> 2. Daily feeding: pasture and stable | G148: title128
A149: 129 | B149: 3. In pasture seasonal | C149: 3. Dans les pâturages de saison | D149: 3.Pastoreo estacional | E149: title | F149: =HLOOKUP($C$2,$B$21:$D149,$A149,FALSE) -> 3. In pasture seasonal | G149: title129
A150: 130 | B150: Total manure | C150: Fumier total | D150: Estiércol total | E150: title | F150: =HLOOKUP($C$2,$B$21:$D150,$A150,FALSE) -> Total manure | G150: title130
A151: 131 | B151: Swine | C151: Porc | D151: Cerdos | E151: title | F151: =HLOOKUP($C$2,$B$21:$D151,$A151,FALSE) -> Swine | G151: title131
A152: 132 | B152: Swine production | C152: Production porcine | D152: Producción porcina | E152: title | F152: =HLOOKUP($C$2,$B$21:$D152,$A152,FALSE) -> Swine production | G152: title132
A153: 133 | B153: 3-years average annual production data (FAOSTAT 2019-21) | C153: Moyenne sur 3 ans des données annuelle de production (FAOSTAT 2019-21) | D153: Datos de producción anual promedio de 3 años (FAOSTAT 2019-21) | E153: title | F153: =HLOOKUP($C$2,$B$21:$D153,$A153,FALSE) -> 3-years average annual production data (FAOSTAT 2019-21) | G153: =$E153&$A153 -> title133
A154: 134 | B154: Production of manure | C154: Production de fumier | D154: Producción de estiércol | E154: title | F154: =HLOOKUP($C$2,$B$21:$D154,$A154,FALSE) -> Production of manure | G154: title134
A155: 135 | B155: Chicken | C155: Poulets | D155: Pollos | E155: title | F155: =HLOOKUP($C$2,$B$21:$D155,$A155,FALSE) -> Chicken | G155: title135
A156: 136 | B156: Chicken production | C156: Production avicole | D156: Producción avícola | E156: title | F156: =HLOOKUP($C$2,$B$21:$D156,$A156,FALSE) -> Chicken production | G156: title136
A157: 137 | B157: Total (1,000 heads) | C157: Total (1,000 têtes) | D157: Total (1,000 cabezas) | E157: title | F157: =HLOOKUP($C$2,$B$21:$D157,$A157,FALSE) -> Total (1,000 heads) | G157: title137
A158: 138 | B158: 1,000 heads | C158: 1,000 têtes | D158: 1,000 cabezas | E158: title | F158: =HLOOKUP($C$2,$B$21:$D158,$A158,FALSE) -> 1,000 heads | G158: title138
A159: 139 | B159: << BACK Crop Residues | C159: << RETOUR Résidus de Cultures | D159: << VOLVER Residuos Agrícolas | E159: label | F159: =HLOOKUP($C$2,$B$21:$D159,$A159,FALSE) -> << BACK Crop Residues | G159: label139
A160: 140 | B160: <<< BACK Agricultural Residues Component | C160: <<< RETOUR Composante Résidus Agricoles | D160: <<< VOLVER Componente Residuos Agropercuarios | E160: label | F160: =HLOOKUP($C$2,$B$21:$D160,$A160,FALSE) -> <<< BACK Agricultural Residues Component | G160: label140
A161: 141 | B161: Clear all data | C161: Effacer toutes les données | D161: Borrar Todos los Datos | E161: label | F161: =HLOOKUP($C$2,$B$21:$D161,$A161,FALSE) -> Clear all data | G161: label141
A162: 142 | B162: NEXT >> Results of the Agricultural Residues | C162: SUIVANT >> Résultats des Résidus Agricoles | D162: SIGUIENTE >> Resultados de los Residuos Agropercuarios | E162: label | F162: =HLOOKUP($C$2,$B$21:$D162,$A162,FALSE) -> NEXT >> Results of the Agricultural Residues | G162: label142
A163: 143 | B163: << BACK Agricultural Residues Component | C163: << RETOUR Composante Résidus Agricoles | D163: << VOLVER Componente Residuos Agropecuarios | E163: label | F163: =HLOOKUP($C$2,$B$21:$D163,$A163,FALSE) -> << BACK Agricultural Residues Component | G163: label143
A164: 144 | B164: << BACK Crop Residues | C164: << RETOUR Résidus de Cultures | D164: << VOLVER Residuos Agrícolas | E164: label | F164: =HLOOKUP($C$2,$B$21:$D164,$A164,FALSE) -> << BACK Crop Residues | G164: label144
A165: 145 | B165: << BACK Livestock Residues | C165: << RETOUR Résidus de l'Élevage | D165: << VOLVER Residuos Ganaderos | E165: label | F165: =HLOOKUP($C$2,$B$21:$D165,$A165,FALSE) -> << BACK Livestock Residues | G165: label145
A166: 146 | B166: PRINT THE RESULTS | C166: IMPRIMER LES RÉSULTATS | D166: IMPRIMIR LOS RESULTADOS | E166: label | F166: =HLOOKUP($C$2,$B$21:$D166,$A166,FALSE) -> PRINT THE RESULTS | G166: label146
A167: 147 | B167: AGRICULTURAL RESIDUES RESULTS | C167: RÉSULTATS RÉSIDUS AGRICOLES | D167: RESULTADOS RESIDUOS AGROPECUARIOS | E167: title | F167: =HLOOKUP($C$2,$B$21:$D167,$A167,FALSE) -> AGRICULTURAL RESIDUES RESULTS | G167: title147
A168: 148 | B168: Crop Residues Available for Bioenergy | C168: Les Résidus de Cultures Disponibles pour la Bioénergie | D168: Residuos Agrícolas Disponibles para Bioenergía | E168: title | F168: =HLOOKUP($C$2,$B$21:$D168,$A168,FALSE) -> Crop Residues Available for Bioenergy | G168: title148
A169: 149 | B169: Crop-residue 1 | C169: Culture-residus 1 | D169: Cultivo-residuo 1 | E169: title | F169: =HLOOKUP($C$2,$B$21:$D169,$A169,FALSE) -> Crop-residue 1 | G169: title149
A170: 150 | B170: Crop-residue 2 | C170: Culture-residus 2 | D170: Cultivo-residuo 2 | E170: title | F170: =HLOOKUP($C$2,$B$21:$D170,$A170,FALSE) -> Crop-residue 2 | G170: title150
A171: 151 | B171: Crop-residue 3 | C171: Culture-residus 3 | D171: Cultivo-residuo 3 | E171: title | F171: =HLOOKUP($C$2,$B$21:$D171,$A171,FALSE) -> Crop-residue 3 | G171: title151
A172: 152 | B172: Crop-residue 4 | C172: Culture-residus 4 | D172: Cultivo-residuo 4 | E172: title | F172: =HLOOKUP($C$2,$B$21:$D172,$A172,FALSE) -> Crop-residue 4 | G172: title152
A173: 153 | B173: TOTAL | C173: TOTAL | D173: TOTAL | E173: title | F173: =HLOOKUP($C$2,$B$21:$D173,$A173,FALSE) -> TOTAL | G173: title153
A174: 154 | B174: Total production area | C174: Zone totale de production | D174: Área de producción total | E174: title | F174: =HLOOKUP($C$2,$B$21:$D174,$A174,FALSE) -> Total production area | G174: title154
A175: 155 | B175: Residue yield | C175: Rendement de résidus | D175: Rendimiento de residuos | E175: title | F175: =HLOOKUP($C$2,$B$21:$D175,$A175,FALSE) -> Residue yield | G175: title155
A176: 156 | B176: Location of residue generation | C176: Lieu de production des résidus | D176: Lugar de generación del residuo | E176: title | F176: =HLOOKUP($C$2,$B$21:$D176,$A176,FALSE) -> Location of residue generation | G176: title156
A177: 157 | B177: ha | C177: ha | D177: ha | E177: title | F177: =HLOOKUP($C$2,$B$21:$D177,$A177,FALSE) -> ha | G177: title157
A178: 158 | B178: Define the Allocation of Crop Residues for Bioenergy Production | C178: Définir la Répartition des Résidus de Cultures pour la Production de Bioénergie | D178: Definir la Distribución de los Residuos Agrícolas para la Producción de Bioenergía | E178: title | F178: =HLOOKUP($C$2,$B$21:$D178,$A178,FALSE) -> Define the Allocation of Crop Residues for Bioenergy Production | G178: title158
A179: 159 | B179: Heating and Cooking | C179: Chauffage et Cuisson | D179: Cocina y Calefacción | E179: title | F179: =HLOOKUP($C$2,$B$21:$D179,$A179,FALSE) -> Heating and Cooking | G179: title159
A180: 160 | B180: Direct Combustion | C180: Combustion Directe | D180: Combustión Directa | E180: title | F180: =HLOOKUP($C$2,$B$21:$D180,$A180,FALSE) -> Direct Combustion | G180: title160
A181: 161 | B181: % of total | C181: % du total | D181: % del total | E181: title | F181: =HLOOKUP($C$2,$B$21:$D181,$A181,FALSE) -> % of total | G181: title161
A182: 162 | B182: Briquettes | C182: Briquettes | D182: Briquetas | E182: title | F182: =HLOOKUP($C$2,$B$21:$D182,$A182,FALSE) -> Briquettes | G182: title162
A183: 163 | B183: Pellets | C183: Granulés de Bois | D183: Pellets | E183: title | F183: =HLOOKUP($C$2,$B$21:$D183,$A183,FALSE) -> Pellets | G183: title163
A184: 164 | B184: Transport | C184: Transport | D184: Transporte | E184: title | F184: =HLOOKUP($C$2,$B$21:$D184,$A184,FALSE) -> Transport | G184: title164
A185: 165 | B185: Ethanol (Second generation) | C185: Éthanol (deuxième génération) | D185: Etanol (segunda generación) | E185: title | F185: =HLOOKUP($C$2,$B$21:$D185,$A185,FALSE) -> Ethanol (Second generation) | G185: title165
A186: 166 | B186: Electricity and/or Heat | C186: Électricité et/ou Chauffage | D186: Electricidad y/o Calefacción | E186: title | F186: =HLOOKUP($C$2,$B$21:$D186,$A186,FALSE) -> Electricity and/or Heat | G186: title166
A187: 167 | B187: Combustion | C187: Combustion | D187: Combustión | E187: title | F187: =HLOOKUP($C$2,$B$21:$D187,$A187,FALSE) -> Combustion | G187: title167
A188: 168 | B188: Gasification | C188: Gazéification | D188: Gasificación | E188: title | F188: =HLOOKUP($C$2,$B$21:$D188,$A188,FALSE) -> Gasification | G188: title168
A189: 169 | B189: Biogas - Industrial | C189: Biogaz – Industriel | D189: Biogás – Industrial | E189: title | F189: =HLOOKUP($C$2,$B$21:$D189,$A189,FALSE) -> Biogas - Industrial | G189: title169
A190: 170 | B190: CHP (Combined Heat and Power) | C190: Cogénération | D190: Cogeneración | E190: title | F190: =HLOOKUP($C$2,$B$21:$D190,$A190,FALSE) -> CHP (Combined Heat and Power) | G190: title170
A191: 171 | B191: Revise input data | C191: Réviser les données d'entrée | D191: Revisar los datos de entrada | E191: title | F191: =HLOOKUP($C$2,$B$21:$D191,$A191,FALSE) -> Revise input data | G191: title171
A192: 172 | B192: Allocation of Crop Residues for Bioenergy Production | C192: Répartition des Résidus de Cultures pour la Production de Bioénergie | D192: Distribución de los Residuos Agrícolas para la Producción de Bioenergía | E192: title | F192: =HLOOKUP($C$2,$B$21:$D192,$A192,FALSE) -> Allocation of Crop Residues for Bioenergy Production | G192: title172
A193: 173 | B193: Manure Generation - Available for Biogas Production | C193: Production de Fumier - Disponible pour la Production de Biogaz | D193: Generación de Estiércol Disponible para la Producción de Biogás | E193: title | F193: =HLOOKUP($C$2,$B$21:$D193,$A193,FALSE) -> Manure Generation - Available for Biogas Production | G193: title173
A194: 174 | B194: Livestock species | C194: Espèces d’élevage | D194: Especies ganaderas | E194: title | F194: =HLOOKUP($C$2,$B$21:$D194,$A194,FALSE) -> Livestock species | G194: title174
A195: 175 | B195: Household | C195: Ménage | D195: Doméstica | E195: title | F195: =HLOOKUP($C$2,$B$21:$D195,$A195,FALSE) -> Household | G195: title175
A196: 176 | B196: Commercial | C196: Commercial | D196: Comercial | E196: title | F196: =HLOOKUP($C$2,$B$21:$D196,$A196,FALSE) -> Commercial | G196: title176
A197: 177 | B197: Production level | C197: Niveau de production | D197: Nivel de producción | E197: title | F197: =HLOOKUP($C$2,$B$21:$D197,$A197,FALSE) -> Production level | G197: title177
A198: 178 | B198: Total | C198: Total | D198: Total | E198: title | F198: =HLOOKUP($C$2,$B$21:$D198,$A198,FALSE) -> Total | G198: title178
A199: 179 | B199: Select a crop | C199: Select a crop | D199: Seleccionar un cultivo | E199: title | F199: =HLOOKUP($C$2,$B$21:$D199,$A199,FALSE) -> Select a crop | G199: title179
A200: 180 | B200: The Natural Resources Module | C200: Le Module Ressources Naturelles | D200: El Módulo de Recursos Naturales | E200: title | F200: =HLOOKUP($C$2,$B$21:$D200,$A200,FALSE) -> The Natural Resources Module | G200: title180
A201: 181 | B201: is a set of tools for the assessment of the availability of bioenergy feedstock originating from crops, agricultural residues and woodfuel and wood residues. | C201: est un ensemble d'outils pour l'évaluation de la disponibilité des matières premières bioénergétiques provenant de cultures, des résidus agricoles et des résidus de combustibles ligneux bois de feu et du bois. | D201: Es un conjunto de herramientas para la evaluación de la disponibilidad de materia prima bioenergética a partir de cultivos, de residuos agropecuarios, de madera para combustible y residuos de la madera. | E201: title | F201: =HLOOKUP($C$2,$B$21:$D201,$A201,FALSE) -> is a set of tools for the assessment of the availability of bioenergy feedstock originating from crops, agricultural residues and woodfuel and wood residues. | G201: title181
A202: 182 | B202: The Crops Component is used for the assessment of potential for additional production of oilseed, sugar and starch crops, which can later serve as feedstock for straight vegetable oil (SVO), biodiesel and ethanol. It comprises the Crop Production and Crop Budget Tools. The Crop Production Tool also provides land suitability maps derived from the Global Agro-Ecological Zones (GAEZ) database for 10 crops and two input levels. The Agricultural Residues Component encompasses tools to assess the availability of crop residues and livestock residues that can serve as feedstock for solid biofuels (briquettes, pellets) and biogas, which can be used for heating and cooking, or can be converted into electricity. The Woodfuel and Wood Residues Component is used to assess the potential for additional fuelwood production. The assessment can be carried out with three tools: Forest Harvesting, Wood Processing Residues and Woodfuel Plantation Budget. The tools facilitate a country level assessment, but can also be used for analysis at subnational level. In the Crop Budget and Woodfuel Plantation Budget Tools, which encompass techno-economic analysis of crop and woodfuel plantation production, the assessment is conducted on a per-hectare basis. | C202: La Composante Cultures est utilisée pour l'évaluation du potentiel de production supplémentaire de graines oléagineuses, de sucre et d'amidon des cultures, qui peuvent ensuite servir de matière première pour l'huile végétale brute (HVB), le biodiesel et l'éthanol. Il comprend l’Outil Production de Cultures et Budget des Cultures. L'Outil Production de Cultures fournit également des cartes provenant des bases de données des Zones Agro-Ecologiques (GAEZ) pour 10 cultures et deux niveaux d'intrant. La Composante Résidus Agricoles englobe des Outils pour évaluer la disponibilité des résidus de cultures et des résidus de l'élevage qui peuvent servir de matière première pour les biocarburants solides (briquettes, boulette) et le biogaz, qui peuvent être utilisés pour le chauffage et la cuisson, ou peuvent être convertis en électricité. La Composante Combustibles Ligneux et Résidus du Bois est utilisé pour évaluer le potentiel de production de bois de feu supplémentaire. L'évaluation peut être réalisée avec trois Outils: Exploitation Forestière, Traitement de Résidus du Bois et Budget de Plantation de Combustibles Ligneux. Les outils facilitent une évaluation au niveau des pays, mais peuvent également être utilisés pour l'analyse au niveau infranational. Dans les Outils Budget des Cultures et Budget de Plantation de Combustibles Ligneux, qui englobent l'analyse techno-économique de la production de cultures et de plantation de combustibles ligneux, l'évaluation est effectuée sur une base par hectare. | D202: El Componente Cultivos se utiliza para la evaluación del potencial de la producción adicional de los cultivos de cereales, semillas oleaginosas, azúcar y almidón, que pueden ser utilizadas como materia prima para la obtención de Aceite Vegetal (SVO), Biodiesel y Etanol. Este componente engloba las herramientas Producción de Cultivos y Presupuesto Agrícola. La herramienta de Producción de Cultivos ofrece también mapas de aptitud de la tierra derivados de la base de datos de Zonas Agroecológicas Mundiales (GAEZ por sus siglas en inglés) para 10 cultivos y dos niveles de entrada. El Componente Residuos Agropecuarios abarca las herramientas para evaluar la disponibilidad de residuos agrícolas y de residuos ganaderos que pueden ser utilizados como materia prima para obtener biocombustibles sólidos (briquetas, pellets) y biogás, los cuales pueden ser utilizados para la calefacción, la cocción de alimentos, el calentamiento de agua sanitaria o para la generación de energía eléctrica. Las herramientas facilitan la evaluación a nivel nacional, pero también pueden ser utilizadas para el análisis a nivel sub-nacional. Las herramientas Presupuesto Agrícola y Presupuesto para Plantaciones de Madera como Combustible abarcan el análisis tecno-económico de los cultivos y de la producción plantaciones de madera combustible. La evaluación y se lleva a cabo con base a una hectárea. El Componente Madera Combustible y Residuos de Madera se utiliza para evaluar el potencial de la producción de madera combustible adicional. La evaluación puede llevarse a cabo con tres herramientas: Aprovechamiento Forestal, Residuos del Procesamiento de Madera y Presupuesto para Plantaciones de Madera como Combustible. | E202: title | F202: =HLOOKUP($C$2,$B$21:$D202,$A202,FALSE) -> The Crops Component is used for the assessment of potential for additional production of oilseed, sugar and starch crops, which can later serve as feedstock for straight vegetable oil (SVO), biodiesel and ethanol. It comprises the Crop Production and Crop Budget Tools. The Crop Production Tool also provides land suitability maps derived from the Global Agro-Ecological Zones (GAEZ) database for 10 crops and two input levels. The Agricultural Residues Component encompasses tools to assess the availability of crop residues and livestock residues that can serve as feedstock for solid biofuels (briquettes, pellets) and biogas, which can be used for heating and cooking, or can be converted into electricity. The Woodfuel and Wood Residues Component is used to assess the potential for additional fuelwood production. The assessment can be carried out with three tools: Forest Harvesting, Wood Processing Residues and Woodfuel Plantation Budget. The tools facilitate a country level assessment, but can also be used for analysis at subnational level. In the Crop Budget and Woodfuel Plantation Budget Tools, which encompass techno-economic analysis of crop and woodfuel plantation production, the assessment is conducted on a per-hectare basis. | G202: title182
A203: 183 | B203: NATURAL RESOURCES MODULE | C203: MODULE RESSOURCES NATURALLES | D203: MÓDULO RECURSOS NATURALES | E203: title | F203: =HLOOKUP($C$2,$B$21:$D203,$A203,FALSE) -> NATURAL RESOURCES MODULE | G203: title183
A204: 184 | B204: Crops | C204: Cultures | D204: Cultivos | E204: title | F204: =HLOOKUP($C$2,$B$21:$D204,$A204,FALSE) -> Crops | G204: title184
A205: 185 | B205: Agricultural Residues | C205: Résidus Agricoles | D205: Residuos Agropecuarios | E205: title | F205: =HLOOKUP($C$2,$B$21:$D205,$A205,FALSE) -> Agricultural Residues | G205: title185
A206: 186 | B206: Woodfuel and Wood Residues | C206: Combustible Ligneux et Résidus du Bois | D206: Madera Combustible y Residuos de Madera | E206: title | F206: =HLOOKUP($C$2,$B$21:$D206,$A206,FALSE) -> Woodfuel and Wood Residues | G206: title186
A207: 187 | B207: Crop Production | C207: Production des Cultures | D207: Producción de Cultivos | E207: title | F207: =HLOOKUP($C$2,$B$21:$D207,$A207,FALSE) -> Crop Production | G207: title187
A208: 188 | B208: Crop Budget | C208: Budget des Cultures | D208: Presupuesto Agrícola | E208: title | F208: =HLOOKUP($C$2,$B$21:$D208,$A208,FALSE) -> Crop Budget | G208: title188
A209: 189 | B209: Crop Residues | C209: Résidus des Récoltes | D209: Residuos Agrícolas | E209: title | F209: =HLOOKUP($C$2,$B$21:$D209,$A209,FALSE) -> Crop Residues | G209: title189
A210: 190 | B210: Livestock Residues | C210: Résidus de l’Élevage | D210: Residuos Ganaderos | E210: title | F210: =HLOOKUP($C$2,$B$21:$D210,$A210,FALSE) -> Livestock Residues | G210: title190
A211: 191 | B211: Forest Harvesting | C211: Exploitation Forestière | D211: Aprovechamiento Forestal | E211: title | F211: =HLOOKUP($C$2,$B$21:$D211,$A211,FALSE) -> Forest Harvesting | G211: title191
A212: 192 | B212: Wood Processing Residues | C212: Traitement de Résidus du Bois | D212: Residuos del Procesamiento de la Madera | E212: title | F212: =HLOOKUP($C$2,$B$21:$D212,$A212,FALSE) -> Wood Processing Residues | G212: title192
A213: 193 | B213: Woodfuel Plantation Budget | C213: Budget de Plantation de Combustible Ligneux | D213: Presupuesto para Plantaciones de Madera como Combustible | E213: title | F213: =HLOOKUP($C$2,$B$21:$D213,$A213,FALSE) -> Woodfuel Plantation Budget | G213: title193
A214: 194 | B214: NATURAL RESOURCES RESULTS | C214: RÉSULTATS DES RESSOURCES NATURALLES | D214: RESULTADOS DE LOS RECURSOS NATURALES | E214: title | F214: =HLOOKUP($C$2,$B$21:$D214,$A214,FALSE) -> NATURAL RESOURCES RESULTS | G214: title194
A215: 195 | B215: Techno-economic and Socio-economic Analyses | C215: Analyses Techno-économiques et Socioé-conomiques | D215: Análisis Tecno-económico y Socio-económico | E215: title | F215: =HLOOKUP($C$2,$B$21:$D215,$A215,FALSE) -> Techno-economic and Socio-economic Analyses | G215: title195
... 47 more rows

Sheet DATABASES (hidden)
C6: The following sheets contain databases. Refer to the manual for their description.

Sheet Country (hidden)
B1: Select from the list | C1: Region | D1: Forest type | E1: WB:WDI 2023 | I1: Rural population | K1: Total population (1000 inhab) | M1: Urban population | O1: WB:WDI 2023 | P1: GDP per capita (current US$) | Q1: GDP/capita, PPP (current int. $) | R1: GDP/capita, PPP (const. 2017, int. $) | S1: GDP per unit of energy use (constant 2011 PPP $ per kg of oil equivalent) | T1: Agriculture, value added (% of GDP) | U1: Undernourished population (%) | V1: Energy use (kt of oil equivalent) | W1: Energy use (kg of oil eq. per capita) | X1: Access to electricity (% of population) | Y1: Electricity consumption (kWh/capita) | Z1: Access to clean fuels and technologies for cooking (% of population) | AA1: Access to electricity, rural (% of rural population) | AB1: Access to electricity, urban (% of urban population) | AC1: Level of water stress: freshwater withdrawal as a proportion of available freshwater resources | AD1: Energy intensity level of primary energy (MJ/$2017 PPP GDP) | AG1: Poverty headcount ratio at national poverty line (% of pop.) | AH1: Poverty headcount ratio at national poverty line (% of pop.)year
D2: T-temperate; TS-tropical/subtropical, warm, B-boreal | E2: Items | G2: Areas | I2: Rural population (1000) | J2: 551 | K2: Total Population - Both sexes (1000) | L2: 511 | M2: Urban population (1000) | N2: 561 | O2: Country Name | P2: 2021 | Q2: 2021 | R2: 2021 | S2: 2014 | T2: 2021 | U2: 2020 | V2: 2011 | W2: 2014 | X2: 2020 | Y2: 2014 | Z2: 2020 | AA2: 2020 | AB2: 2020 | AC2: 2019 | AD2: 2019
B3: =country2 -> Select a country | C3: IPCC | I3: 2021 | K3: 2021 | M3: 2021 | O3: Afghanistan | P3: 369 | Q3: 1666 | R3: 1516 | T3: 33.48 | U3: 29.8 | X3: 97.7 | Z3: 33.2 | AA3: 97.07 | AB3: 99.5 | AC3: 54.76 | AD3: 2.41 | AF3: Country Name | AG3: Data | AH3: year
A4: 1 | B4: =country3 -> Afghanistan | C4: =newregion3 -> Indian Subcontinent | D4: T | E4: Population - Est. & Proj. | F4: 3010 | G4: Afghanistan | H4: 2 | I4: 29548 | K4: 40099 | M4: 10552 | O4: Albania | P4: 6493 | Q4: 15810 | R4: 14516 | S4: 13.23577165 | T4: 17.66 | U4: 3.9 | V4: 2173.105 | W4: 808.4558396 | X4: 100 | Y4: 2309.366503 | Z4: 81.3 | AA4: 100 | AB4: 100 | AC4: 6.8 | AD4: 2.5 | AF4: Afghanistan | AG4: 54.5 | AH4: 2016
A5: 2 | B5: =country4 -> Albania | C5: =newregion4 -> Eastern Europe | D5: T | E5: Population - Est. & Proj. | F5: 3010 | G5: Albania | H5: 3 | I5: 1041 | K5: 2812 | M5: 1770 | O5: Algeria | P5: 3691 | Q5: 12128 | R5: 11040 | S5: 10.20614869 | T5: 13.03 | U5: 2.5 | V5: 41851.997 | W5: 1321.099494 | X5: 99.8 | Y5: 1356.264554 | Z5: 99.7 | AA5: 99.58 | AB5: 99.88 | AC5: 137.92 | AD5: 5.32 | AF5: Albania
A6: 3 | B6: =country5 -> Algeria | C6: =newregion5 -> Africa | D6: T | E6: Population - Est. & Proj. | F6: 3010 | G6: Algeria | H6: 4 | I6: 11371 | K6: 44178 | M6: 32807 | O6: American Samoa | P6: 15743 | AF6: Algeria
A7: 4 | B7: =country6 -> American Samoa | C7: =newregion6 -> Oceania | D7: TS | E7: Population - Est. & Proj. | F7: 3010 | G7: American Samoa | H7: 5 | I7: 6 | K7: 45 | M7: 39 | O7: Andean Region | AF7: American Samoa
A8: 5 | B8: =country7 -> Andorra | C8: =newregion7 -> Western Europe | D8: T | E8: Population - Est. & Proj. | F8: 3010 | G8: Andorra | H8: 6 | I8: 10 | K8: 79 | M8: 69 | O8: Andorra | P8: 42137 | X8: 100 | Z8: 100 | AA8: 100 | AB8: 100 | AF8: Andorra
A9: 6 | B9: =country8 -> Angola | C9: =newregion8 -> Africa | D9: TS | E9: Population - Est. & Proj. | F9: 3010 | G9: Angola | H9: 7 | I9: 11228 | K9: 34504 | M9: 23276 | O9: Angola | P9: 1954 | Q9: 6491 | R9: 5909 | S9: 12.50998069 | T9: 7.94 | U9: 20.8 | V9: 13576.207 | W9: 545.0404908 | X9: 46.89 | Y9: 312.4760173 | Z9: 50.2 | AB9: 73.71 | AC9: 1.87 | AD9: 2.94 | AF9: Angola | AG9: 32.3 | AH9: 2018
A10: 7 | B10: =country9 -> Anguilla | C10: =newregion9 -> Latin America | E10: Population - Est. & Proj. | F10: 3010 | G10: Anguilla | H10: 258 | O10: Antigua and Barbuda | P10: 15781 | Q10: 21010 | R10: 19124 | T10: 2.16 | X10: 100 | Z10: 100 | AA10: 100 | AB10: 100 | AC10: 8.46 | AD10: 3.45 | AF10: Antigua and Barbuda
A11: 8 | B11: =country10 -> Antigua and Barbuda | C11: =newregion10 -> Latin America | D11: TS | E11: Population - Est. & Proj. | F11: 3010 | G11: Antigua and Barbuda | H11: 8 | I11: 70 | K11: 93 | M11: 23 | O11: Arab World | P11: 6271 | Q11: 14794 | R11: 13470 | S11: 8.594686502 | T11: 5.1 | U11: 11.91 | V11: 616095.9972 | W11: 1953.28668 | X11: 90.23 | Y11: 2489.220073 | Z11: 87.29 | AA11: 81.61 | AB11: 97.52 | AF11: Argentina | AG11: 42 | AH11: 2020
A12: 9 | B12: =country11 -> Argentina | C12: =newregion11 -> Latin America | D12: T | E12: Population - Est. & Proj. | F12: 3010 | G12: Argentina | H12: 9 | I12: 3560 | K12: 45809 | M12: 42249 | O12: Argentina | P12: 10636 | Q12: 23650 | R12: 21527 | S12: 9.327942057 | T12: 7.13 | U12: 3.7 | V12: 80112.354 | W12: 2015.18704 | X12: 100 | Y12: 3052.381937 | Z12: 99.9 | AA12: 100 | AB12: 100 | AC12: 10.46 | AD12: 3.35 | AF12: Armenia | AG12: 27 | AH12: 2020
A13: 10 | B13: =country12 -> Armenia | C13: =newregion12 -> Asia | D13: T | E13: Population - Est. & Proj. | F13: 3010 | G13: Armenia | H13: 1 | I13: 1021 | K13: 2791 | M13: 1770 | O13: Armenia | P13: 4967 | Q13: 15592 | R13: 14193 | S13: 7.829626859 | T13: 11.34 | U13: 3.5 | V13: 2715.897 | W13: 1018.07124 | X13: 100 | Y13: 1965.783733 | Z13: 98.1 | AA13: 100 | AB13: 99.96 | AC13: 57.8 | AD13: 3.53 | AF13: Aruba
A14: 11 | B14: =country13 -> Aruba | C14: =newregion13 -> Latin America | E14: Population - Est. & Proj. | F14: 3010 | G14: Aruba | H14: 22 | I14: 60 | K14: 107 | M14: 47 | O14: Aruba | P14: 29342 | Q14: 42698 | R14: 38866 | X14: 100 | AA14: 100 | AB14: 100 | AD14: 3.2 | AF14: Australia
A15: 12 | B15: =country14 -> Australia | C15: =newregion14 -> Oceania | D15: TS | E15: Population - Est. & Proj. | F15: 3010 | G15: Australia | H15: 10 | I15: 3503 | K15: 25688 | M15: 22185 | O15: Australia | P15: 60443 | Q15: 55949 | R15: 49774 | S15: 8.172929207 | T15: 2.31 | U15: 2.5 | V15: 122887.653 | W15: 5328.223992 | X15: 100 | Y15: 10059.20745 | Z15: 100 | AA15: 100 | AB15: 100 | AC15: 3.93 | AD15: 4.3 | AF15: Austria | AG15: 14.7 | AH15: 2020
A16: 13 | B16: =country15 -> Austria | C16: =newregion15 -> Western Europe | D16: T | E16: Population - Est. & Proj. | F16: 3010 | G16: Austria | H16: 11 | I16: 3672 | K16: 8956 | M16: 5283 | O16: Austria | P16: 53638 | Q16: 59538 | R16: 54121 | S16: 11.77694401 | T16: 1.21 | U16: 2.5 | V16: 33018.807 | W16: 3763.327903 | X16: 100 | Y16: 8355.841952 | Z16: 100 | AA16: 100 | AB16: 100 | AC16: 9.64 | AD16: 2.82 | AF16: Azerbaijan
A17: 14 | B17: =country16 -> Azerbaijan | C17: =newregion16 -> Asia | D17: T | E17: Population - Est. & Proj. | F17: 3010 | G17: Azerbaijan | H17: 52 | I17: 4382 | K17: 10138 | M17: 5756 | O17: Azerbaijan | P17: 5388 | Q17: 15855 | R17: 14432 | S17: 11.12798646 | T17: 5.88 | U17: 2.5 | V17: 12560.911 | W17: 1502.078168 | X17: 100 | Y17: 2202.393918 | Z17: 96.8 | AA17: 100 | AB17: 100 | AC17: 55.6 | AD17: 4.61 | AF17: Bahamas
A18: 15 | B18: =country17 -> Bahamas | C18: =newregion17 -> Latin America | D18: TS | E18: Population - Est. & Proj. | F18: 3010 | G18: Bahamas | H18: 12 | I18: 68 | K18: 408 | M18: 340 | O18: Bahamas, The | P18: 27478 | Q18: 33189 | R18: 30210 | T18: 0.49 | X18: 100 | Z18: 100 | AA18: 100 | AB18: 100 | AD18: 2.53 | AF18: Bahrain
A19: 16 | B19: =country18 -> Bahrain | C19: =newregion18 -> Asia | D19: T | E19: Population - Est. & Proj. | F19: 3010 | G19: Bahrain | H19: 13 | I19: 152 | K19: 1463 | M19: 1311 | O19: Bahrain | P19: 26563 | Q19: 54257 | R19: 49387 | S19: 4.137941843 | T19: 0.28 | V19: 9505.906 | W19: 10593.99714 | X19: 100 | Y19: 19592.23195 | Z19: 100 | AA19: 100 | AB19: 100 | AC19: 133.71 | AD19: 8.73 | AF19: Bangladesh | AG19: 24.3 | AH19: 2016
A20: 17 | B20: =country19 -> Bangladesh | C20: =newregion19 -> Indian Subcontinent | D20: TS | E20: Population - Est. & Proj. | F20: 3010 | G20: Bangladesh | H20: 16 | I20: 103399 | K20: 169356 | M20: 65957 | O20: Bangladesh | P20: 2458 | Q20: 6494 | R20: 5911 | S20: 13.37876063 | T20: 11.63 | U20: 11.4 | V20: 31294.046 | W20: 222.2209592 | X20: 96.2 | Y20: 310.3912261 | Z20: 25 | AA20: 95.21 | AB20: 97.8 | AC20: 5.72 | AD20: 2.36 | AF20: Barbados
A21: 18 | B21: =country20 -> Barbados | C21: =newregion20 -> Latin America | D21: TS | E21: Population - Est. & Proj. | F21: 3010 | G21: Barbados | H21: 14 | I21: 193 | K21: 281 | M21: 88 | O21: Barbados | P21: 17225 | Q21: 15111 | R21: 13755 | T21: 1.48 | U21: 3.4 | X21: 100 | Z21: 100 | AA21: 100 | AB21: 100 | AC21: 87.5 | AD21: 3.54 | AF21: Belarus | AG21: 4.8 | AH21: 2020
A22: 19 | B22: =country21 -> Belarus | C22: =newregion21 -> Eastern Europe | D22: T | E22: Population - Est. & Proj. | F22: 3010 | G22: Belarus | H22: 57 | I22: 1876 | K22: 9340 | M22: 7464 | O22: Belarus | P22: 7302 | Q22: 21699 | R22: 19751 | S22: 6.123687527 | T22: 6.8 | U22: 2.5 | V22: 29500.953 | W22: 2928.520216 | X22: 100 | Y22: 3679.97884 | Z22: 99.6 | AA22: 100 | AB22: 100 | AC22: 4.48 | AD22: 5.97 | AF22: Belgium | AG22: 13.1 | AH22: 2020
A23: 20 | B23: =country22 -> Belgium | C23: =newregion22 -> Western Europe | D23: T | E23: Population - Est. & Proj. | F23: 3010 | G23: Belgium | H23: 255 | I23: 218 | K23: 11593 | M23: 11375 | O23: Belgium | P23: 51247 | Q23: 59373 | R23: 51740 | S23: 8.784717978 | T23: 0.66 | U23: 2.5 | V23: 59094.102 | W23: 4708.221218 | X23: 100 | Y23: 7709.123078 | Z23: 100 | AA23: 100 | AB23: 100 | AC23: 54.07 | AD23: 3.87 | AF23: Belize
A24: 21 | B24: =country23 -> Belize | C24: =newregion23 -> Latin America | D24: TS | E24: Population - Est. & Proj. | F24: 3010 | G24: Belize | H24: 23 | I24: 215 | K24: 400 | M24: 185 | O24: Belize | P24: 6228 | Q24: 9627 | R24: 8763 | T24: 7.69 | U24: 7.4 | X24: 97.11 | Z24: 82.1 | AA24: 96.07 | AB24: 98.33 | AC24: 1.26 | AD24: 6.12 | AF24: Benin | AG24: 38.5 | AH24: 2019
A25: 22 | B25: =country24 -> Benin | C25: =newregion24 -> Africa | D25: TS | E25: Population - Est. & Proj. | F25: 3010 | G25: Benin | H25: 53 | I25: 6632 | K25: 12997 | M25: 6365 | O25: Benin | P25: 1319 | Q25: 3649 | R25: 3322 | S25: 4.801097938 | T25: 29.44 | U25: 7.4 | V25: 3760.928 | W25: 416.7957653 | X25: 41.41 | Y25: 100.2263892 | Z25: 4 | AA25: 18.2 | AB25: 66.15 | AC25: 0.98 | AD25: 5.69 | AF25: Bermuda
A26: 23 | B26: =country25 -> Bermuda | C26: =newregion25 -> North America | D26: TS | E26: Population - Est. & Proj. | F26: 3010 | G26: Bermuda | H26: 17 | I26: 0 | K26: 64 | M26: 64 | O26: Bermuda | P26: 114090 | Q26: 88185 | R26: 80271 | T26: 0.29 | X26: 100 | AA26: 100 | AB26: 100 | AD26: 1.65 | AF26: Bhutan | AG26: 8.2 | AH26: 2017
A27: 24 | B27: =country26 -> Bhutan | C27: =newregion26 -> Indian Subcontinent | D27: TS | E27: Population - Est. & Proj. | F27: 3010 | G27: Bhutan | H27: 18 | I27: 443 | K27: 777 | M27: 334 | O27: Bhutan | P27: 3266 | Q27: 11983 | R27: 10908 | T27: 19.19 | X27: 100 | Z27: 80.2 | AA27: 100 | AB27: 100 | AC27: 1.41 | AD27: 7.91 | AF27: Bolivia (Plurinational State of) | AG27: 39 | AH27: 2020
A28: 25 | B28: =country27 -> Bolivia (Plurinational State of) | C28: =newregion27 -> Latin America | D28: TS | E28: Population - Est. & Proj. | F28: 3010 | G28: Bolivia (Plurinational State of) | H28: 19 | I28: 3566 | K28: 12079 | M28: 8513 | O28: Bolivia | P28: 3345 | Q28: 8846 | R28: 8052 | S28: 8.018245882 | T28: 12.92 | U28: 13.9 | V28: 7703.654 | W28: 788.8043534 | X28: 97.55 | Y28: 752.6870217 | Z28: 86.1 | AA28: 91.81 | AB28: 100 | AC28: 1.18 | AD28: 3.82 | AF28: Bosnia and Herzegovina | AG28: 16.9 | AH28: 2015
A29: 26 | B29: =country28 -> Bosnia and Herzegovina | C29: =newregion28 -> Eastern Europe | D29: T | E29: Population - Est. & Proj. | F29: 3010 | G29: Bosnia and Herzegovina | H29: 80 | I29: 1654 | K29: 3271 | M29: 1617 | O29: Bosnia and Herzegovina | P29: 7143 | Q29: 17489 | R29: 15664 | S29: 4.793281076 | T29: 5.16 | U29: 2.5 | V29: 7095.337 | W29: 2194.055976 | X29: 100 | Y29: 3365.67394 | Z29: 45.2 | AA29: 100 | AB29: 100 | AC29: 2.03 | AD29: 6.14 | AF29: Botswana
A30: 27 | B30: =country29 -> Botswana | C30: =newregion29 -> Africa | D30: TS | E30: Population - Est. & Proj. | F30: 3010 | G30: Botswana | H30: 20 | I30: 736 | K30: 2588 | M30: 1852 | O30: Botswana | P30: 6805 | Q30: 16304 | R30: 14841 | S30: 12.43639658 | T30: 1.72 | U30: 21.9 | V30: 2215.162 | W30: 1252.679988 | X30: 71.99 | Y30: 1748.615334 | Z30: 64.7 | AA30: 26.38 | AB30: 90.74 | AC30: 2.11 | AD30: 2.69 | AF30: Brazil
A31: 28 | B31: =country30 -> Brazil | C31: =newregion30 -> Latin America | D31: TS | E31: Population - Est. & Proj. | F31: 3010 | G31: Brazil | H31: 21 | I31: 27183 | K31: 214326 | M31: 187143 | O31: Brazil | P31: 7507 | Q31: 16031 | R31: 14592 | S31: 10.35354954 | T31: 6.89 | U31: 4.1 | V31: 270027.529 | W31: 1484.926638 | X31: 100 | Y31: 2601.365506 | Z31: 95.9 | AA31: 100 | AB31: 100 | AC31: 1.55 | AD31: 3.93 | AF31: Brunei Darussalam
A32: 29 | B32: =country31 -> British Virgin Islands | C32: =newregion31 -> Latin America | D32: TS | E32: Population - Est. & Proj. | F32: 3010 | G32: British Virgin Islands | H32: 239 | I32: 16 | K32: 31 | M32: 15 | O32: Brunei Darussalam | P32: 31449 | Q32: 66055 | R32: 60127 | S32: 8.8144597 | T32: 1.26 | U32: 5.9 | V32: 3832.224 | W32: 8632.325651 | X32: 100 | Y32: 10242.7958 | Z32: 100 | AA32: 100 | AB32: 100 | AC32: 3.47 | AD32: 6.35 | AF32: Bulgaria | AG32: 22.1 | AH32: 2020
A33: 30 | B33: =country32 -> Brunei Darussalam | C33: =newregion32 -> Asia | D33: TS | E33: Population - Est. & Proj. | F33: 3010 | G33: Brunei Darussalam | H33: 26 | I33: 96 | K33: 445 | M33: 350 | O33: Bulgaria | P33: 12221 | Q33: 28106 | R33: 24394 | S33: 6.588599636 | T33: 4.37 | U33: 3 | V33: 19216.137 | W33: 2477.655401 | X33: 99.7 | Y33: 4708.927458 | AA33: 100 | AB33: 99.8 | AC33: 40.08 | AD33: 4.74 | AF33: Burkina Faso | AG33: 41.4 | AH33: 2018
A34: 31 | B34: =country33 -> Bulgaria | C34: =newregion33 -> Eastern Europe | D34: T | E34: Population - Est. & Proj. | F34: 3010 | G34: Bulgaria | H34: 27 | I34: 1649 | K34: 6878 | M34: 5229 | O34: Burkina Faso | P34: 893 | Q34: 2395 | R34: 2180 | T34: 17.46 | U34: 18 | X34: 18.96 | Z34: 10.6 | AB34: 65.75 | AC34: 7.82 | AD34: 4.49 | AF34: Burundi
A35: 32 | B35: =country34 -> Burkina Faso | C35: =newregion34 -> Africa | D35: TS | E35: Population - Est. & Proj. | F35: 3010 | G35: Burkina Faso | H35: 233 | I35: 15196 | K35: 22101 | M35: 6904 | O35: Burundi | P35: 221 | Q35: 775 | R35: 705 | T35: 28.66 | X35: 11.74 | Z35: 0.2 | AA35: 3.48 | AB35: 63.68 | AC35: 10.19 | AD35: 7.62 | AF35: Cambodia
A36: 33 | B36: =country35 -> Burundi | C36: =newregion35 -> Africa | D36: TS | E36: Population - Est. & Proj. | F36: 3010 | G36: Burundi | H36: 29 | I36: 10787 | K36: 12551 | M36: 1764 | O36: Cabo Verde | P36: 3293 | Q36: 6717 | R36: 6114 | T36: 4.41 | U36: 17.7 | X36: 94.16 | Z36: 81 | AA36: 93.51 | AB36: 94.49 | AC36: 8.43 | AD36: 2.6 | AF36: Cameroon
A37: 34 | B37: =country36 -> Cambodia | C37: =newregion36 -> Asia | D37: TS | E37: Population - Est. & Proj. | F37: 3010 | G37: Cambodia | H37: 115 | I37: 12497 | K37: 16589 | M37: 4092 | O37: Cambodia | P37: 1625 | Q37: 4784 | R37: 4355 | S37: 7.4934567 | T37: 22.85 | U37: 6.3 | V37: 5333.219 | W37: 416.9396606 | X37: 86.4 | Y37: 271.4332395 | Z37: 36.8 | AA37: 82.91 | AB37: 97.3 | AC37: 1.04 | AD37: 4.68 | AF37: Canada
A38: 35 | B38: =country37 -> Cameroon | C38: =newregion37 -> Africa | D38: TS | E38: Population - Est. & Proj. | F38: 3010 | G38: Cameroon | H38: 32 | I38: 11383 | K38: 27199 | M38: 15815 | O38: Cameroon | P38: 1667 | Q38: 4065 | R38: 3700 | S38: 9.349840713 | T38: 16.91 | U38: 6.7 | V38: 6719.726 | W38: 341.8626717 | X38: 64.72 | Y38: 280.6666791 | Z38: 21.9 | AA38: 24.98 | AB38: 94.03 | AC38: 1.56 | AD38: 4.33 | AF38: Cabo Verde | AG38: 35 | AH38: 2015
A39: 36 | B39: =country38 -> Canada | C39: =newregion38 -> North America | D39: B | E39: Population - Est. & Proj. | F39: 3010 | G39: Canada | H39: 33 | I39: 7017 | K39: 38246 | M39: 31229 | O39: Canada | P39: 51988 | Q39: 52790 | R39: 47893 | S39: 5.469607389 | U39: 2.5 | V39: 251845.189 | W39: 7876.094108 | X39: 100 | Y39: 15545.53511 | Z39: 100 | AA39: 100 | AB39: 100 | AC39: 3.73 | AD39: 6.94 | AF39: Cayman Islands
A40: 37 | B40: =country39 -> Cabo Verde | C40: =newregion39 -> Africa | D40: TS | E40: Population - Est. & Proj. | F40: 3010 | G40: Cabo Verde | H40: 35 | I40: 193 | K40: 588 | M40: 395 | O40: Caribbean small states | P40: 10064 | Q40: 17324 | R40: 15769 | T40: 4.55 | U40: 6.81 | V40: 26968.23362 | X40: 98.8 | Z40: 89.46 | AA40: 98.06 | AB40: 99.63 | AF40: Central African Republic
A41: 38 | B41: =country40 -> Cayman Islands | C41: =newregion40 -> Latin America | D41: TS | E41: Population - Est. & Proj. | F41: 3010 | G41: Cayman Islands | H41: 36 | I41: 0 | K41: 68 | M41: 68 | O41: Cayman Islands | P41: 86569 | Q41: 74155 | R41: 67500 | X41: 100 | AA41: 100 | AB41: 100 | AD41: 2.06 | AF41: Chad | AG41: 42.3 | AH41: 2018
A42: 39 | B42: =country41 -> Central African Republic | C42: =newregion41 -> Africa | D42: TS | E42: Population - Est. & Proj. | F42: 3010 | G42: Central African Republic | H42: 37 | I42: 3130 | K42: 5457 | M42: 2327 | O42: Central African Republic | P42: 461 | Q42: 920 | R42: 838 | T42: 30.07 | U42: 52.2 | X42: 15.47 | Z42: 0.8 | AA42: 2.25 | AB42: 33.56 | AC42: 0.34 | AD42: 8.39 | AF42: Channel Islands
A43: 40 | B43: =country42 -> Chad | C43: =newregion42 -> Africa | D43: TS | E43: Population - Est. & Proj. | F43: 3010 | G43: Chad | H43: 39 | I43: 13094 | K43: 17180 | M43: 4086 | O43: Central Europe and the Baltics | P43: 18751 | Q43: 37570 | R43: 33833 | S43: 9.513163863 | T43: 2.74 | U43: 2.6 | V43: 275049.777 | W43: 2470.544318 | X43: 99.98 | Y43: 4115.630201 | Z43: 97.51 | AA43: 100 | AB43: 99.98 | AF43: Chile | AG43: 10.8 | AH43: 2020
A44: 41 | B44: =country43 -> Chile | C44: =newregion43 -> Latin America | D44: TS | E44: Population - Est. & Proj. | F44: 3010 | G44: Chile | H44: 40 | I44: 2375 | K44: 19493 | M44: 17118 | O44: Chad | P44: 686 | Q44: 1566 | R44: 1425 | T44: 53.99 | U44: 32.7 | X44: 11.08 | Z44: 6.8 | AA44: 1.99 | AB44: 40.62 | AC44: 4.29 | AD44: 3.77 | AF44: China | AG44: 0.6 | AH44: 2020
A45: 42 | B45: =country44 -> China | C45: =newregion44 -> Asia | D45: T | E45: Population - Est. & Proj. | F45: 3010 | G45: China | H45: 351 | I45: 529466 | K45: 1412360 | M45: 882894 | O45: Channel Islands | X45: 100 | AA45: 100 | AB45: 100 | AF45: Colombia | AG45: 42.5 | AH45: 2020
A46: 43 | B46: =country45 -> Colombia | C46: =newregion45 -> Latin America | D46: TS | E46: Population - Est. & Proj. | F46: 3010 | G46: Colombia | H46: 44 | I46: 9407 | K46: 51517 | M46: 42110 | O46: Chile | P46: 16265 | Q46: 28372 | R46: 25449 | S46: 10.82860679 | T46: 3.28 | U46: 2.6 | V46: 33573.547 | W46: 2049.688829 | X46: 100 | Y46: 3911.649265 | Z46: 100 | AA46: 100 | AB46: 100 | AC46: 21.62 | AD46: 3.66 | AF46: Comoros
A47: 44 | B47: =country46 -> Comoros | C47: =newregion46 -> Africa | D47: TS | E47: Population - Est. & Proj. | F47: 3010 | G47: Comoros | H47: 45 | I47: 578 | K47: 822 | M47: 243 | O47: China | P47: 12556 | Q47: 19338 | R47: 17603 | S47: 5.704152185 | T47: 7.26 | U47: 2.5 | V47: 2727727.645 | W47: 2236.729908 | X47: 100 | Y47: 3927.0445 | Z47: 79.4 | AA47: 100 | AB47: 100 | AC47: 43.22 | AD47: 6.31 | AF47: Democratic Republic of the Congo
A48: 45 | B48: =country47 -> Congo | C48: =newregion47 -> Africa | D48: TS | E48: Population - Est. & Proj. | F48: 3010 | G48: Congo | H48: 46 | I48: 1851 | K48: 5836 | M48: 3985 | O48: Colombia | P48: 6104 | Q48: 16904 | R48: 14649 | S48: 17.79939332 | T48: 7.43 | U48: 8.2 | V48: 31612.992 | W48: 711.5831798 | X48: 100 | Y48: 1289.569693 | Z48: 93.2 | AA48: 100 | AB48: 100 | AC48: 4.19 | AD48: 2.51 | AF48: Congo
A49: 46 | B49: =country48 -> Cook Islands | C49: =newregion48 -> Oceania | D49: T | E49: Population - Est. & Proj. | F49: 3010 | G49: Cook Islands | H49: 47 | O49: Comoros | P49: 1577 | Q49: 3547 | R49: 3229 | T49: 35.51 | X49: 86.74 | Z49: 8.4 | AA49: 81.34 | AB49: 99.72 | AC49: 0.83 | AD49: 3.19 | AF49: Costa Rica | AG49: 30 | AH49: 2020
A50: 47 | B50: =country49 -> Costa Rica | C50: =newregion49 -> Latin America | D50: TS | E50: Population - Est. & Proj. | F50: 3010 | G50: Costa Rica | H50: 48 | I50: 957 | K50: 5154 | M50: 4197 | O50: Congo, Dem. Rep. | P50: 577 | Q50: 1179 | R50: 1074 | S50: 2.015947343 | T50: 19.04 | U50: 39.8 | V50: 24496.751 | W50: 389.5673879 | X50: 19.1 | Y50: 108.5823312 | Z50: 3.7 | AA50: 1 | AB50: 40.66 | AC50: 0.23 | AD50: 13.29 | AF50: Côte d'Ivoire | AG50: 39.5 | AH50: 2018
A51: 48 | B51: =country50 -> Côte d'Ivoire | C51: =newregion50 -> Africa | D51: TS | E51: Population - Est. & Proj. | F51: 3010 | G51: Croatia | H51: 98 | I51: 1642 | K51: 3899 | M51: 2257 | O51: Congo, Rep. | P51: 2290 | Q51: 3553 | R51: 3234 | S51: 10.26455682 | T51: 9.51 | U51: 31.6 | V51: 1659.044 | W51: 539.5316172 | X51: 49.52 | Y51: 197.2859935 | Z51: 34.9 | AA51: 14.75 | AB51: 66.01 | AC51: 0.03 | AD51: 6.55 | AF51: Croatia | AG51: 18.3 | AH51: 2018
A52: 49 | B52: =country51 -> Croatia | C52: =newregion51 -> Eastern Europe | D52: T | E52: Population - Est. & Proj. | F52: 3010 | G52: Cuba | H52: 49 | I52: 2556 | K52: 11256 | M52: 8700 | O52: Costa Rica | P52: 12472 | Q52: 22614 | R52: 21199 | S52: 13.93834003 | T52: 4.45 | U52: 3.4 | V52: 4655.08 | W52: 1031.141495 | X52: 99.9 | Y52: 1957.930248 | Z52: 95.7 | AA52: 99.73 | AB52: 99.94 | AC52: 4.15 | AD52: 2.11 | AF52: Cuba
A53: 50 | B53: =country52 -> Cuba | C53: =newregion52 -> Latin America | D53: TS | E53: Population - Est. & Proj. | F53: 3010 | G53: Cyprus | H53: 50 | I53: 412 | K53: 1244 | M53: 832 | O53: Cote d'Ivoire | P53: 2549 | Q53: 5850 | R53: 5325 | S53: 4.960244293 | T53: 19.85 | U53: 4.4 | V53: 11232.639 | W53: 615.803314 | X53: 69.68 | Y53: 276.1485663 | Z53: 31.8 | AA53: 43.14 | AB53: 94.47 | AC53: 5.09 | AD53: 3.32 | AF53: Curaçao
A54: 51 | B54: =country53 -> Cyprus | C54: =newregion53 -> Asia | D54: T | E54: Population - Est. & Proj. | F54: 3010 | G54: Czech Republic | H54: 167 | I54: 2709 | K54: 10506 | M54: 7797 | O54: Croatia | P54: 17685 | Q54: 34535 | R54: 31630 | S54: 10.73030591 | T54: 2.91 | U54: 2.5 | V54: 8439.154 | W54: 1897.840665 | X54: 100 | Y54: 3714.382988 | Z54: 100 | AA54: 100 | AB54: 100 | AC54: 1.49 | AD54: 3.07 | AF54: Cyprus | AG54: 14.7 | AH54: 2018
A55: 52 | B55: =country54 -> Czech Republic | C55: =newregion54 -> Eastern Europe | D55: T | E55: Population - Est. & Proj. | F55: 3010 | G55: Côte d'Ivoire | H55: 107 | I55: 13140 | K55: 27478 | M55: 14338 | O55: Cuba | T55: 0.88 | U55: 2.5 | V55: 11186.615 | W55: 1022.668906 | X55: 100 | Y55: 1434.032704 | Z55: 93.8 | AA55: 100 | AB55: 100 | AC55: 23.94 | AD55: 1.27 | AF55: Czech Republic | AG55: 8.6 | AH55: 2020
A56: 53 | B56: =country55 -> Democratic People's Republic of Korea | C56: =newregion55 -> Asia | D56: T | E56: Population - Est. & Proj. | F56: 3010 | G56: Democratic People's Republic of Korea | H56: 116 | I56: 9703 | K56: 25972 | M56: 16269 | O56: Curacao | P56: 17718 | Q56: 22832 | R56: 20783 | T56: 0.19 | W56: 12650.86044 | X56: 100 | Y56: 4797.670436 | AA56: 100 | AB56: 100 | AD56: 8.34 | AF56: Denmark | AG56: 12.3 | AH56: 2020
A57: 54 | B57: =country56 -> Democratic Republic of the Congo | C57: =newregion56 -> Africa | D57: TS | E57: Population - Est. & Proj. | F57: 3010 | G57: Democratic Republic of the Congo | H57: 250 | I57: 51557 | K57: 95894 | M57: 44337 | O57: Cyprus | P57: 31552 | Q57: 44394 | R57: 41694 | S57: 12.92525151 | T57: 1.7 | U57: 2.5 | V57: 2368.062 | W57: 1712.124092 | X57: 100 | Y57: 3624.895753 | Z57: 100 | AA57: 100 | AB57: 100 | AC57: 27.61 | AD57: 2.67 | AF57: Djibouti | AG57: 21.1 | AH57: 2017
A58: 55 | B58: =country57 -> Denmark | C58: =newregion57 -> Western Europe | D58: T | E58: Population - Est. & Proj. | F58: 3010 | G58: Denmark | H58: 54 | I58: 689 | K58: 5857 | M58: 5168 | O58: Czech Republic | P58: 26821 | Q58: 45707 | R58: 40741 | S58: 7.437745036 | T58: 1.85 | U58: 2.5 | V58: 43429.227 | W58: 3915.113582 | X58: 100 | Y58: 6258.891037 | Z58: 100 | AA58: 100 | AB58: 100 | AC58: 29.7 | AD58: 4.12 | AF58: Dominica
A59: 56 | B59: =country58 -> Djibouti | C59: =newregion58 -> Africa | D59: TS | E59: Population - Est. & Proj. | F59: 3010 | G59: Djibouti | H59: 72 | I59: 241 | K59: 1106 | M59: 865 | O59: Denmark | P59: 68008 | Q59: 64672 | R59: 57963 | S59: 15.6852639 | T59: 0.87 | U59: 2.5 | V59: 17997.338 | W59: 2872.573547 | X59: 100 | Y59: 5858.801536 | Z59: 100 | AA59: 100 | AB59: 100 | AC59: 24.94 | AD59: 2 | AF59: Dominican Republic | AG59: 21 | AH59: 2019
A60: 57 | B60: =country59 -> Dominica | C60: =newregion59 -> Latin America | D60: TS | E60: Population - Est. & Proj. | F60: 3010 | G60: Dominica | H60: 55 | I60: 21 | K60: 72 | M60: 52 | O60: Djibouti | P60: 3150 | Q60: 5398 | R60: 4913 | U60: 13.5 | X60: 61.77 | Z60: 9.65 | AA60: 24.79 | AB60: 72.16 | AC60: 6.33 | AD60: 1.89 | AF60: Ecuador | AG60: 33 | AH60: 2020
A61: 58 | B61: =country60 -> Dominican Republic | C61: =newregion60 -> Latin America | D61: TS | E61: Population - Est. & Proj. | F61: 3010 | G61: Dominican Republic | H61: 56 | I61: 1866 | K61: 11118 | M61: 9252 | O61: Dominica | P61: 7653 | Q61: 11951 | R61: 10878 | T61: 16.99 | U61: 6.9 | X61: 100 | Z61: 88.9 | AC61: 10 | AD61: 2.97 | AF61: Egypt | AG61: 32.5 | AH61: 2017
A62: 59 | B62: =country61 -> Ecuador | C62: =newregion61 -> Latin America | D62: TS | E62: Population - Est. & Proj. | F62: 3010 | G62: Ecuador | H62: 58 | I62: 6343 | K62: 17798 | M62: 11455 | O62: Dominican Republic | P62: 8477 | Q62: 20463 | R62: 18626 | S62: 17.2425192 | T62: 5.67 | U62: 6.7 | V62: 7381.895 | W62: 734.4078962 | X62: 100 | Y62: 1578.151662 | Z62: 91.5 | AA62: 100 | AB62: 100 | AC62: 39.55 | AD62: 2.08 | AF62: El Salvador | AG62: 26.2 | AH62: 2020
A63: 60 | B63: =country62 -> Egypt | C63: =newregion62 -> Middle East | D63: T | E63: Population - Est. & Proj. | F63: 3010 | G63: Egypt | H63: 59 | I63: 62430 | K63: 109262 | M63: 46832 | O63: East Asia & Pacific (all income levels) | P63: 13042 | Q63: 20244 | R63: 18577 | T63: 5.84 | U63: 4.04 | V63: 4314949.905 | X63: 98.01 | Z63: 77.36 | AA63: 96.29 | AB63: 99.14 | AF63: Equatorial Guinea
A64: 61 | B64: =country63 -> El Salvador | C64: =newregion63 -> Latin America | D64: TS | E64: Population - Est. & Proj. | F64: 3010 | G64: El Salvador | H64: 60 | I64: 1634 | K64: 6314 | M64: 4680 | O64: East Asia & Pacific (developing only) | P64: 9772 | Q64: 16895 | R64: 15378 | T64: 7.95 | U64: 4.16 | V64: 3284967.335 | X64: 97.8 | Z64: 75.06 | AA64: 96.19 | AB64: 98.99 | AF64: Eritrea
A65: 62 | B65: =country64 -> Equatorial Guinea | C65: =newregion64 -> Africa | D65: TS | E65: Population - Est. & Proj. | F65: 3010 | G65: Equatorial Guinea | H65: 61 | I65: 432 | K65: 1634 | M65: 1202 | O65: East Asia and the Pacific (IFC classification) | P65: 9880 | Q65: 17082 | R65: 15549 | T65: 7.93 | U65: 3.7 | X65: 98.37 | Z65: 75.84 | AA65: 96.51 | AB65: 99.74 | AF65: Estonia | AG65: 20.6 | AH65: 2020
A66: 63 | B66: =country65 -> Eritrea | C66: =newregion65 -> Africa | D66: TS | E66: Population - Est. & Proj. | F66: 3010 | G66: Eritrea | H66: 178 | I66: 2100 | K66: 3620 | M66: 1520 | O66: Ecuador | P66: 5965 | Q66: 11721 | R66: 10669 | S66: 12.22558896 | T66: 9.41 | U66: 15.4 | V66: 12941.611 | W66: 891.6886204 | X66: 98.85 | Y66: 1380.610286 | Z66: 94.3 | AA66: 97.4 | AB66: 99.66 | AC66: 6.78 | AD66: 3.26 | AF66: Ethiopia
A67: 64 | B67: =country66 -> Estonia | C67: =newregion66 -> Western Europe | D67: B | E67: Population - Est. & Proj. | F67: 3010 | G67: Estonia | H67: 63 | I67: 407 | K67: 1331 | M67: 924 | O67: Egypt, Arab Rep. | P67: 3699 | Q67: 12706 | R67: 11566 | S67: 12.12388689 | T67: 11.83 | U67: 5.1 | V67: 77648.742 | W67: 814.9880595 | X67: 100 | Y67: 1657.76872 | Z67: 99.9 | AA67: 100 | AB67: 100 | AC67: 141.17 | AD67: 3.41 | AF67: Faeroe Islands
A68: 65 | B68: =country67 -> Ethiopia | C68: =newregion67 -> Africa | D68: TS | E68: Population - Est. & Proj. | F68: 3010 | G68: Ethiopia | H68: 238 | I68: 93611 | K68: 120283 | M68: 26672 | O68: El Salvador | P68: 4551 | Q68: 9982 | R68: 9086 | S68: 10.64517369 | T68: 4.92 | U68: 7.7 | V68: 4318.688 | W68: 647.3096097 | X68: 100 | Y68: 939.1533991 | Z68: 91.8 | AA68: 100 | AB68: 100 | AC68: 2.43 | AD68: 3.37 | AF68: Fiji | AG68: 29.9 | AH68: 2019
A69: 66 | B69: =country68 -> Faeroe Islands | C69: =newregion68 -> Western Europe | D69: T | E69: Population - Est. & Proj. | F69: 3010 | G69: Falkland Islands (Malvinas) | H69: 65 | O69: Equatorial Guinea | P69: 7507 | Q69: 16080 | R69: 14637 | T69: 2.63 | X69: 66.75 | Z69: 24.5 | AA69: 0.93 | AB69: 90.97 | AC69: 0.18 | AD69: 3.01 | AF69: Finland | AG69: 10.8 | AH69: 2020
A70: 67 | B70: =country69 -> Falkland Islands (Malvinas) | C70: =newregion69 -> Latin America | D70: TS | E70: Population - Est. & Proj. | F70: 3010 | G70: Faroe Islands | H70: 64 | I70: 30 | K70: 53 | M70: 23 | O70: Eritrea | V70: 765.024 | X70: 52.17 | Z70: 9.3 | AA70: 39.02 | AB70: 76.3 | AC70: 11.18 | AF70: France | AG70: 13.6 | AH70: 2018
A71: 68 | B71: =country70 -> Fiji | C71: =newregion70 -> Oceania | D71: TS | E71: Population - Est. & Proj. | F71: 3010 | G71: Fiji | H71: 66 | I71: 391 | K71: 925 | M71: 534 | O71: Estonia | P71: 27944 | Q71: 42381 | R71: 38718 | S71: 5.903755773 | T71: 2.02 | U71: 2.5 | V71: 5602.935 | W71: 4592.616457 | X71: 100 | Y71: 6732.367473 | Z71: 100 | AA71: 100 | AB71: 100 | AC71: 10.89 | AD71: 4.49 | AF71: French Polynesia
A72: 69 | B72: =country71 -> Finland | C72: =newregion71 -> Western Europe | D72: B | E72: Population - Est. & Proj. | F72: 3010 | G72: Finland | H72: 67 | I72: 798 | K72: 5541 | M72: 4743 | O72: Ethiopia | P72: 925 | Q72: 2548 | R72: 2319 | S72: 2.867321091 | T72: 37.57 | U72: 24.9 | V72: 34063.852 | W72: 496.8146013 | X72: 51.09 | Y72: 69.71577388 | Z72: 7.8 | AA72: 39.41 | AB72: 93.25 | AC72: 32.26 | AD72: 7.53 | AF72: Gabon | AG72: 33.4 | AH72: 2017
A73: 70 | B73: =country72 -> France | C73: =newregion72 -> Western Europe | D73: T | E73: Population - Est. & Proj. | F73: 3010 | G73: France | H73: 68 | I73: 12708 | K73: 67750 | M73: 55041 | O73: Euro area | P73: 42450 | Q73: 51064 | R73: 46314 | S73: 11.37115742 | T73: 1.53 | U73: 2.52 | V73: 1166853.509 | W73: 3266.188831 | X73: 100 | Y73: 6352.754127 | Z73: 100 | AA73: 100 | AB73: 100 | AF73: Gambia | AG73: 48.6 | AH73: 2015
A74: 71 | B74: =country73 -> French Guiana | C74: =newregion73 -> Latin America | D74: TS | E74: Population - Est. & Proj. | F74: 3010 | G74: French Guiana | H74: 69 | O74: Europe & Central Asia (all income levels) | P74: 27152 | Q74: 39221 | R74: 35471 | T74: 2.02 | U74: 2.59 | V74: 2935516.517 | X74: 100 | Z74: 95.21 | AA74: 100 | AB74: 99.99 | AF74: Georgia | AG74: 21.3 | AH74: 2020
A75: 72 | B75: =country74 -> French Polynesia | C75: =newregion74 -> Oceania | D75: TS | E75: Population - Est. & Proj. | F75: 3010 | G75: French Polynesia | H75: 70 | I75: 115 | K75: 304 | M75: 189 | O75: Europe & Central Asia (developing only) | P75: 8759 | Q75: 24979 | R75: 22768 | T75: 5.59 | U75: 2.69 | V75: 558898.197 | X75: 99.99 | Z75: 89.45 | AA75: 100 | AB75: 99.98 | AF75: Germany | AG75: 15.8 | AH75: 2020
A76: 73 | B76: =country75 -> Gabon | C76: =newregion75 -> Africa | D76: TS | E76: Population - Est. & Proj. | F76: 3010 | G76: Gabon | H76: 74 | I76: 224 | K76: 2341 | M76: 2117 | O76: Europe and Central Asia (IFC classification) | P76: 9842 | Q76: 26592 | R76: 24165 | T76: 4.96 | U76: 2.67 | X76: 99.99 | Z76: 90.35 | AA76: 100 | AB76: 99.98 | AF76: Ghana | AG76: 23.4 | AH76: 2016
A77: 74 | B77: =country76 -> Gambia | C77: =newregion76 -> Africa | D77: TS | E77: Population - Est. & Proj. | F77: 3010 | G77: Gambia | H77: 75 | I77: 971 | K77: 2640 | M77: 1669 | O77: European Union | P77: 38411 | Q77: 48767 | R77: 44138 | S77: 11.37015253 | T77: 1.62 | U77: 2.52 | V77: 1662447.89 | W77: 3079.4839 | X77: 100 | Y77: 5908.35932 | Z77: 99.46 | AA77: 100 | AB77: 100 | AF77: Greece | AG77: 19.6 | AH77: 2020
A78: 75 | B78: =country77 -> Georgia | C78: =newregion77 -> Asia | D78: T | E78: Population - Est. & Proj. | F78: 3010 | G78: Georgia | H78: 73 | I78: 1488 | K78: 3709 | M78: 2220 | O78: Faeroe Islands | P78: 69010 | T78: 14.16 | X78: 100 | AA78: 100 | AB78: 100 | AF78: Greenland
A79: 76 | B79: =country78 -> Germany | C79: =newregion78 -> Western Europe | D79: T | E79: Population - Est. & Proj. | F79: 3010 | G79: Germany | H79: 79 | I79: 18683 | K79: 83196 | M79: 64514 | O79: Fiji | P79: 4647 | Q79: 11381 | R79: 10359 | T79: 14.52 | U79: 5.7 | X79: 100 | Z79: 51.4 | AA79: 100 | AB79: 100 | AC79: 0.3 | AD79: 2.15 | AF79: Grenada
A80: 77 | B80: =country79 -> Ghana | C80: =newregion79 -> Africa | D80: TS | E80: Population - Est. & Proj. | F80: 3010 | G80: Ghana | H80: 81 | I80: 13795 | K80: 32833 | M80: 19038 | O80: Finland | P80: 53655 | Q80: 55203 | R80: 48753 | S80: 6.279621853 | T80: 2.3 | U80: 2.5 | V80: 34749.202 | W80: 6213.357766 | X80: 100 | Y80: 15249.98938 | Z80: 100 | AA80: 100 | AB80: 100 | AC80: 7.11 | AD80: 5.19 | AF80: Guam
A81: 78 | B81: =country80 -> Gibraltar | C81: =newregion80 -> Western Europe | D81: T | E81: Population - Est. & Proj. | F81: 3010 | G81: Gibraltar | H81: 82 | I81: 0 | K81: 33 | M81: 33 | O81: Fragile and conflict affected situations | P81: 1796 | Q81: 4766 | R81: 4357 | T81: 18.71 | U81: 21.08 | V81: 201826.2113 | W81: 591.9076425 | X81: 56.53 | Y81: 445.3723279 | Z81: 28.16 | AA81: 36.99 | AB81: 83.41 | AF81: Guatemala
A82: 79 | B82: =country81 -> Greece | C82: =newregion81 -> Western Europe | D82: T | E82: Population - Est. & Proj. | F82: 3010 | G82: Greece | H82: 84 | I82: 2124 | K82: 10641 | M82: 8517 | O82: France | P82: 43659 | Q82: 50996 | R82: 44993 | S82: 10.25556294 | T82: 1.64 | U82: 2.5 | V82: 252826.69 | W82: 3658.865709 | X82: 100 | Y82: 6939.522311 | Z82: 100 | AA82: 100 | AB82: 100 | AC82: 23.51 | AD82: 3.29 | AF82: Guinea | AG82: 43.7 | AH82: 2018
A83: 80 | B83: =country82 -> Greenland | C83: =newregion82 -> North America | D83: B | E83: Population - Est. & Proj. | F83: 3010 | G83: Greenland | H83: 85 | I83: 7 | K83: 57 | M83: 50 | O83: French Polynesia | P83: 19915 | U83: 4 | X83: 100 | AA83: 100 | AB83: 100 | AF83: Guinea-Bissau
A84: 81 | B84: =country83 -> Grenada | C84: =newregion83 -> Latin America | D84: TS | E84: Population - Est. & Proj. | F84: 3010 | G84: Grenada | H84: 86 | I84: 79 | K84: 125 | M84: 46 | O84: Gabon | P84: 8635 | Q84: 15176 | R84: 13814 | S84: 6.163934779 | T84: 6.02 | U84: 17.2 | V84: 1996.632 | W84: 2705.823332 | X84: 91.57 | Y84: 1172.887323 | Z84: 88.1 | AA84: 27.76 | AB84: 98.59 | AC84: 0.5 | AD84: 5.99 | AF84: Guyana
A85: 82 | B85: =country84 -> Guadeloupe | C85: =newregion84 -> Latin America | D85: TS | E85: Population - Est. & Proj. | F85: 3010 | G85: Guadeloupe | H85: 87 | O85: Gambia, The | P85: 772 | Q85: 2281 | R85: 2077 | T85: 22.42 | U85: 21.6 | X85: 62.27 | Z85: 1.7 | AA85: 31.56 | AB85: 80.63 | AC85: 2.21 | AD85: 2.97 | AF85: Haiti
A86: 83 | B86: =country85 -> Guam | C86: =newregion85 -> Oceania | D86: TS | E86: Population - Est. & Proj. | F86: 3010 | G86: Guam | H86: 88 | I86: 9 | K86: 171 | M86: 162 | O86: Georgia | P86: 5023 | Q86: 17014 | R86: 15487 | S86: 7.427944628 | T86: 6.47 | U86: 7.6 | V86: 3542.648 | W86: 1177.870405 | X86: 100 | Y86: 2688.489402 | Z86: 89.1 | AA86: 100 | AB86: 100 | AC86: 5.12 | AD86: 3.83 | AF86: Honduras | AG86: 48.3 | AH86: 2018
A87: 84 | B87: =country86 -> Guatemala | C87: =newregion86 -> Latin America | D87: TS | E87: Population - Est. & Proj. | F87: 3010 | G87: Guatemala | H87: 89 | I87: 8171 | K87: 17110 | M87: 8939 | O87: Germany | P87: 51204 | Q87: 58276 | R87: 53180 | S87: 11.525614 | T87: 0.85 | U87: 2.5 | V87: 311769.547 | W87: 3779.461921 | X87: 100 | Y87: 7035.482975 | Z87: 100 | AA87: 100 | AB87: 100 | AC87: 33.5 | AD87: 2.76 | AF87: Hungary | AG87: 12.7 | AH87: 2020
A88: 85 | B88: =country87 -> Guinea | C88: =newregion87 -> Africa | D88: TS | E88: Population - Est. & Proj. | F88: 3010 | G88: Guinea-Bissau | H88: 175 | I88: 1141 | K88: 2061 | M88: 919 | O88: Ghana | P88: 2363 | Q88: 5971 | R88: 5435 | S88: 11.42546471 | T88: 19.71 | U88: 4.1 | V88: 10549.681 | W88: 335.0505291 | X88: 85.87 | Y88: 354.714053 | Z88: 22.2 | AA88: 73.99 | AB88: 94.71 | AC88: 6.31 | AD88: 2.85 | AF88: Iceland
A89: 86 | B89: =country88 -> Guinea-Bissau | C89: =newregion88 -> Africa | D89: TS | E89: Population - Est. & Proj. | F89: 3010 | G89: Guinea | H89: 90 | I89: 8489 | K89: 13532 | M89: 5043 | O89: Greece | P89: 20193 | Q89: 31486 | R89: 29548 | S89: 11.33841257 | T89: 3.87 | U89: 2.5 | V89: 26722.712 | W89: 2123.897891 | X89: 100 | Y89: 5062.606422 | Z89: 100 | AA89: 100 | AB89: 100 | AC89: 20.46 | AD89: 2.9 | AF89: India
A90: 87 | B90: =country89 -> Guyana | C90: =newregion89 -> Latin America | D90: TS | E90: Population - Est. & Proj. | F90: 3010 | G90: Guyana | H90: 91 | I90: 588 | K90: 805 | M90: 216 | O90: Greenland | X90: 100 | AA90: 100 | AB90: 100 | AF90: Indonesia | AG90: 9.8 | AH90: 2020
A91: 88 | B91: =country90 -> Haiti | C91: =newregion90 -> Latin America | D91: TS | E91: Population - Est. & Proj. | F91: 3010 | G91: Haiti | H91: 93 | I91: 4812 | K91: 11448 | M91: 6635 | O91: Grenada | P91: 9011 | Q91: 15038 | R91: 13688 | T91: 5.34 | X91: 93.59 | Z91: 89.1 | AC91: 7.05 | AD91: 2.68 | AF91: Iran (Islamic Republic of)
A92: 89 | B92: =country91 -> Holy See | C92: =newregion91 -> Western Europe | D92: T | E92: Population - Est. & Proj. | F92: 3010 | G92: Holy See | H92: 94 | O92: Guam | P92: 35905 | X92: 100 | AA92: 100 | AB92: 100 | AF92: Iraq
A93: 90 | B93: =country92 -> Honduras | C93: =newregion92 -> Latin America | D93: TS | E93: Population - Est. & Proj. | F93: 3010 | G93: Honduras | H93: 95 | I93: 4216 | K93: 10278 | M93: 6062 | O93: Guatemala | P93: 5026 | Q93: 9807 | R93: 8927 | S93: 8.610370383 | T93: 9.4 | U93: 16 | V93: 10163.493 | W93: 830.0945159 | X93: 97.06 | Y93: 577.8858859 | Z93: 50.1 | AA93: 96.62 | AB93: 97.46 | AC93: 5.74 | AD93: 4.24 | AF93: Ireland | AG93: 12.9 | AH93: 2020
A94: 91 | B94: =country93 -> Hungary | C94: =newregion93 -> Eastern Europe | D94: T | E94: Population - Est. & Proj. | F94: 3010 | G94: Hungary | H94: 97 | I94: 2695 | K94: 9710 | M94: 7015 | O94: Guinea | P94: 1189 | Q94: 2901 | R94: 2640 | T94: 25.82 | X94: 44.67 | Z94: 1.9 | AA94: 19.31 | AB94: 88.08 | AC94: 1.37 | AD94: 5.57 | AF94: Isle of Man
A95: 92 | B95: =country94 -> Iceland | C95: =newregion94 -> Western Europe | D95: B | E95: Population - Est. & Proj. | F95: 3010 | G95: Iceland | H95: 99 | I95: 23 | K95: 373 | M95: 350 | O95: Guinea-Bissau | P95: 795 | Q95: 2012 | R95: 1831 | X95: 33.34 | Z95: 1.1 | AA95: 15.17 | AB95: 56.27 | AC95: 1.5 | AD95: 8.59 | AF95: Israel
A96: 93 | B96: =country95 -> India | C96: =newregion95 -> Indian Subcontinent | D96: TS | E96: Population - Est. & Proj. | F96: 3010 | G96: India | H96: 100 | I96: 909385 | K96: 1407564 | M96: 498179 | O96: Guyana | P96: 9999 | Q96: 24087 | R96: 21925 | T96: 13.49 | U96: 4.9 | X96: 92.54 | Z96: 80.6 | AA96: 90.95 | AB96: 96.9 | AC96: 3.3 | AD96: 3.98 | AF96: Italy | AG96: 20.1 | AH96: 2020
A97: 94 | B97: =country96 -> Indonesia | C97: =newregion96 -> Asia | D97: TS | E97: Population - Est. & Proj. | F97: 3010 | G97: Indonesia | H97: 101 | I97: 116920 | K97: 273753 | M97: 156833 | O97: Haiti | P97: 1830 | Q97: 3153 | R97: 2870 | S97: 4.207866309 | T97: 20.62 | U97: 47.2 | V97: 3210.927 | W97: 392.8011686 | X97: 46.93 | Y97: 38.96914873 | Z97: 4.5 | AA97: 2.2 | AB97: 80.54 | AC97: 13.38 | AD97: 5.8 | AF97: Jamaica
A98: 95 | B98: =country97 -> Iran (Islamic Republic of) | C98: =newregion97 -> Middle East | D98: T | E98: Population - Est. & Proj. | F98: 3010 | G98: Iran (Islamic Republic of) | H98: 102 | I98: 20798 | K98: 87923 | M98: 67125 | O98: Heavily indebted poor countries (HIPC) | P98: 1036 | Q98: 2767 | R98: 2519 | T98: 22.64 | U98: 24.67 | V98: 235266.8615 | X98: 46.45 | Y98: 208.5912188 | Z98: 13.55 | AA98: 29.84 | AB98: 76.46 | AF98: Japan
A99: 96 | B99: =country98 -> Iraq | C99: =newregion98 -> Middle East | D99: T | E99: Population - Est. & Proj. | F99: 3010 | G99: Iraq | H99: 103 | I99: 12573 | K99: 43534 | M99: 30961 | O99: High income | P99: 48225 | Q99: 54758 | R99: 50122 | S99: 8.875559204 | T99: 1.29 | U99: 2.69 | V99: 6299584.271 | W99: 4637.542367 | X99: 99.99 | Y99: 8832.44112 | Z99: 99.76 | AA99: 99.94 | AB99: 100 | AF99: Jordan | AG99: 15.7 | AH99: 2018
A100: 97 | B100: =country99 -> Ireland | C100: =newregion99 -> Western Europe | D100: T | E100: Population - Est. & Proj. | F100: 3010 | G100: Ireland | H100: 104 | I100: 1816 | K100: 5033 | M100: 3217 | O100: High income: nonOECD | V100: 1375260.337 | Z100: 0 | AA100: 0 | AB100: 0 | AC100: 0 | AF100: Kazakhstan | AG100: 5.3 | AH100: 2020
A101: 98 | B101: =country100 -> Israel | C101: =newregion100 -> Middle East | D101: T | E101: Population - Est. & Proj. | F101: 3010 | G101: Israel | H101: 105 | I101: 686 | K101: 9364 | M101: 8678 | O101: High income: OECD | V101: 4981186.182 | Z101: 0 | AA101: 0 | AB101: 0 | AC101: 0 | AF101: Kenya | AG101: 36.1 | AH101: 2015
A102: 99 | B102: =country101 -> Italy | C102: =newregion101 -> Western Europe | D102: T | E102: Population - Est. & Proj. | F102: 3010 | G102: Italy | H102: 106 | I102: 16937 | K102: 59110 | M102: 42172 | O102: Honduras | P102: 2772 | Q102: 6122 | R102: 5572 | S102: 6.960965846 | T102: 11.04 | U102: 15.3 | V102: 4739.784 | W102: 607.8646499 | X102: 93.21 | Y102: 630.1355308 | Z102: 48.3 | AA102: 83.69 | AB102: 100 | AC102: 4.62 | AD102: 4.3 | AF102: Kiribati | AG102: 21.9 | AH102: 2020
A103: 100 | B103: =country102 -> Jamaica | C103: =newregion102 -> Latin America | D103: TS | E103: Population - Est. & Proj. | F103: 3010 | G103: Jamaica | H103: 109 | I103: 1226 | K103: 2828 | M103: 1602 | O103: Hong Kong SAR, China | P103: 49801 | Q103: 65892 | R103: 59978 | S103: 26.79007896 | T103: 0.08 | U103: 2.5 | V103: 14893.6 | W103: 1970.484128 | X103: 100 | Y103: 6083.269936 | AA103: 100 | AB103: 100 | AD103: 1.32 | AF103: Democratic People's Republic of Korea
A104: 101 | B104: =country103 -> Japan | C104: =newregion103 -> Asia | D104: T | E104: Population - Est. & Proj. | F104: 3010 | G104: Japan | H104: 110 | I104: 10222 | K104: 125682 | M104: 115460 | O104: Hungary | P104: 18728 | Q104: 36765 | R104: 33593 | S104: 10.43917164 | T104: 3.35 | U104: 2.5 | V104: 24963.707 | W104: 2314.496434 | X104: 100 | Y104: 3965.958233 | Z104: 100 | AA104: 100 | AB104: 100 | AC104: 7.71 | AD104: 3.51 | AF104: Republic of Korea
A105: 102 | B105: =country104 -> Jordan | C105: =newregion104 -> Middle East | D105: T | E105: Population - Est. & Proj. | F105: 3010 | G105: Jordan | H105: 112 | I105: 934 | K105: 11148 | M105: 10215 | O105: Iceland | P105: 68728 | Q105: 57967 | R105: 53586 | S105: 2.327576299 | T105: 4.52 | U105: 2.5 | V105: 5730.909 | W105: 17916.12042 | X105: 100 | Y105: 53832.47909 | Z105: 100 | AA105: 100 | AB105: 100 | AC105: 0.39 | AD105: 12.27 | AF105: Kosovo | AG105: 17.6 | AH105: 2015
A106: 103 | B106: =country105 -> Kazakhstan | C106: =newregion105 -> Asia | D106: T | E106: Population - Est. & Proj. | F106: 3010 | G106: Kazakhstan | H106: 108 | I106: 8014 | K106: 19001 | M106: 10987 | O106: India | P106: 2257 | Q106: 7242 | R106: 6592 | S106: 8.448227179 | T106: 16.82 | U106: 16.3 | V106: 749446.652 | W106: 637.4286299 | X106: 99 | Y106: 805.5991906 | Z106: 67.9 | AA106: 98.46 | AB106: 100 | AC106: 66.49 | AD106: 4.28 | AF106: Kuwait
A107: 104 | B107: =country106 -> Kenya | C107: =newregion106 -> Africa | D107: TS | E107: Population - Est. & Proj. | F107: 3010 | G107: Kenya | H107: 114 | I107: 37903 | K107: 53006 | M107: 15103 | O107: Indonesia | P107: 4333 | Q107: 13027 | R107: 11858 | S107: 11.31685123 | T107: 13.28 | U107: 6.5 | V107: 209008.516 | W107: 883.910977 | X107: 96.95 | Y107: 811.9001839 | Z107: 84.5 | AA107: 93.49 | AB107: 99.6 | AC107: 29.7 | AD107: 3.16 | AF107: Kyrgyzstan | AG107: 25.3 | AH107: 2020
A108: 105 | B108: =country107 -> Kiribati | C108: =newregion107 -> Oceania | D108: TS | E108: Population - Est. & Proj. | F108: 3010 | G108: Kiribati | H108: 83 | I108: 56 | K108: 129 | M108: 73 | O108: Iran, Islamic Rep. | P108: 4091 | Q108: 16484 | R108: 15005 | S108: 5.59757043 | T108: 12.39 | U108: 4.1 | V108: 212145.3 | W108: 3023.490439 | X108: 100 | Y108: 2985.68728 | Z108: 96.1 | AA108: 100 | AB108: 100 | AC108: 81.29 | AD108: 11.12 | AF108: Lao People's Democratic Republic | AG108: 18.3 | AH108: 2018
A109: 106 | B109: =country108 -> Kuwait | C109: =newregion108 -> Middle East | D109: T | E109: Population - Est. & Proj. | F109: 3010 | G109: Kuwait | H109: 118 | I109: 0 | K109: 4250 | M109: 4250 | O109: Iraq | P109: 4775 | Q109: 9846 | R109: 8962 | S109: 10.49764574 | T109: 3.95 | U109: 15.9 | V109: 40219.945 | W109: 1413.496256 | X109: 100 | Y109: 1305.687469 | Z109: 99 | AA109: 100 | AB109: 100 | AC109: 79.51 | AD109: 5.57 | AF109: Latvia | AG109: 23.4 | AH109: 2020
A110: 107 | B110: =country109 -> Kyrgyzstan | C110: =newregion109 -> Asia | D110: T | E110: Population - Est. & Proj. | F110: 3010 | G110: Kyrgyzstan | H110: 113 | I110: 4206 | K110: 6692 | M110: 2486 | O110: Ireland | P110: 100172 | Q110: 105355 | R110: 102496 | S110: 17.83585375 | T110: 1.02 | U110: 2.5 | V110: 13216.272 | W110: 2741.574884 | X110: 100 | Y110: 5672.064134 | Z110: 100 | AA110: 100 | AB110: 100 | AC110: 20.04 | AD110: 1.32 | AF110: Lebanon
A111: 108 | B111: =country110 -> Lao People's Democratic Republic | C111: =newregion110 -> Asia | D111: TS | E111: Population - Est. & Proj. | F111: 3010 | G111: Lao People's Democratic Republic | H111: 120 | I111: 4682 | K111: 7425 | M111: 2743 | O111: Isle of Man | X111: 100 | AA111: 100 | AB111: 100 | AF111: Lesotho | AG111: 49.7 | AH111: 2017
A112: 109 | B112: =country111 -> Latvia | C112: =newregion111 -> Western Europe | D112: T | E112: Population - Est. & Proj. | F112: 3010 | G112: Latvia | H112: 119 | I112: 595 | K112: 1884 | M112: 1289 | O112: Israel | P112: 52171 | Q112: 43451 | R112: 42061 | S112: 11.47584269 | T112: 1.26 | U112: 2.5 | V112: 23254.283 | W112: 2762.505934 | X112: 100 | Y112: 6600.89828 | Z112: 100 | AA112: 100 | AB112: 100 | AC112: 100.42 | AD112: 2.51 | AF112: Liberia | AG112: 50.9 | AH112: 2016
A113: 111 | B113: =country112 -> Lebanon | C113: =newregion112 -> Middle East | D113: T | E113: Population - Est. & Proj. | F113: 3010 | G113: Lebanon | H113: 121 | I113: 610 | K113: 5593 | M113: 4983 | O113: Italy | P113: 35657 | Q113: 46374 | R113: 41929 | S113: 14.05925401 | T113: 1.93 | U113: 2.5 | V113: 167415.573 | W113: 2414.484002 | X113: 100 | Y113: 5002.40668 | Z113: 100 | AA113: 100 | AB113: 100 | AC113: 30 | AD113: 2.45 | AF113: Libya
A114: 112 | B114: =country113 -> Lesotho | C114: =newregion113 -> Africa | D114: T | E114: Population - Est. & Proj. | F114: 3010 | G114: Lesotho | H114: 122 | I114: 1609 | K114: 2281 | M114: 673 | O114: Jamaica | P114: 5184 | Q114: 10543 | R114: 9597 | S114: 8.208958083 | T114: 8.34 | U114: 6.9 | V114: 3065.628 | W114: 981.3122382 | X114: 100 | Y114: 1055.523469 | Z114: 82.7 | AA114: 100 | AB114: 100 | AC114: 12.47 | AD114: 4.45 | AF114: Liechtenstein
A115: 113 | B115: =country114 -> Liberia | C115: =newregion114 -> Africa | D115: TS | E115: Population - Est. & Proj. | F115: 3010 | G115: Liberia | H115: 123 | I115: 2463 | K115: 5193 | M115: 2730 | O115: Japan | P115: 39313 | Q115: 42140 | R115: 40784 | S115: 10.75766799 | U115: 3.2 | V115: 461467.843 | W115: 3470.763129 | X115: 100 | Y115: 7819.714636 | Z115: 100 | AA115: 100 | AB115: 100 | AC115: 36.37 | AD115: 3.33 | AF115: Lithuania | AG115: 20.6 | AH115: 2018
A116: 114 | B116: =country115 -> Libya | C116: =newregion115 -> Africa | D116: T | E116: Population - Est. & Proj. | F116: 3010 | G116: Libya | H116: 124 | I116: 1280 | K116: 6735 | M116: 5455 | O116: Jordan | P116: 4103 | Q116: 10133 | R116: 9223 | S116: 9.285940043 | T116: 4.74 | U116: 16.9 | V116: 7064.284 | W116: 928.520476 | X116: 99.9 | Y116: 1888.116953 | Z116: 99.9 | AA116: 98.83 | AB116: 100 | AC116: 104.31 | AD116: 3.8 | AF116: Luxembourg | AG116: 17.5 | AH116: 2018
A117: 115 | B117: =country116 -> Liechtenstein | C117: =newregion116 -> Western Europe | D117: T | E117: Population - Est. & Proj. | F117: 3010 | G117: Liechtenstein | H117: 125 | I117: 33 | K117: 39 | M117: 6 | O117: Kazakhstan | P117: 10374 | Q117: 28685 | R117: 26111 | S117: 5.318885454 | T117: 5.03 | U117: 2.5 | V117: 78101.192 | W117: 4434.639121 | X117: 100 | Y117: 5600.208465 | Z117: 92.7 | AA117: 100 | AB117: 100 | AC117: 32.65 | AD117: 6.27 | AF117: North Macedonia | AG117: 21.6 | AH117: 2018
A118: 116 | B118: =country117 -> Lithuania | C118: =newregion117 -> Western Europe | D118: T | E118: Population - Est. & Proj. | F118: 3010 | G118: Lithuania | H118: 126 | I118: 889 | K118: 2801 | M118: 1912 | O118: Kenya | P118: 2082 | Q118: 5211 | R118: 4743 | S118: 5.362281348 | T118: 22.43 | U118: 26.9 | V118: 20178.939 | W118: 513.4264871 | X118: 71.44 | Y118: 166.7381869 | Z118: 19.5 | AA118: 62.67 | AB118: 93.99 | AC118: 33.24 | AD118: 5.31 | AF118: Madagascar
A119: 117 | B119: =country118 -> Luxembourg | C119: =newregion118 -> Western Europe | D119: T | E119: Population - Est. & Proj. | F119: 3010 | G119: Luxembourg | H119: 256 | I119: 53 | K119: 640 | M119: 587 | O119: Kiribati | P119: 1606 | Q119: 2128 | R119: 1937 | U119: 4.2 | X119: 91.96 | Z119: 9.9 | AA119: 96.44 | AB119: 88.39 | AD119: 5.93 | AF119: Malawi | AG119: 51.5 | AH119: 2016
A120: 118 | B120: =country119 -> Madagascar | C120: =newregion119 -> Africa | D120: TS | E120: Population - Est. & Proj. | F120: 3010 | G120: Madagascar | H120: 129 | I120: 17579 | K120: 28916 | M120: 11337 | O120: Korea, Dem. Rep. | U120: 41.6 | V120: 19037.346 | X120: 52.31 | Z120: 11.5 | AA120: 67.18 | AB120: 43.35 | AC120: 27.74 | AF120: Malaysia | AG120: 5.6 | AH120: 2018
A121: 119 | B121: =country120 -> Malawi | C121: =newregion120 -> Africa | D121: TS | E121: Population - Est. & Proj. | F121: 3010 | G121: Malawi | H121: 130 | I121: 16370 | K121: 19890 | M121: 3519 | O121: Korea, Rep. | P121: 34998 | Q121: 46889 | R121: 44232 | S121: 6.319520981 | T121: 1.79 | U121: 2.5 | V121: 260439.595 | W121: 5289.275832 | X121: 100 | Y121: 10496.51367 | Z121: 100 | AA121: 100 | AB121: 100 | AC121: 85.22 | AD121: 5.31 | AF121: Maldives | AG121: 8.2 | AH121: 2016
A122: 120 | B122: =country121 -> Malaysia | C122: =newregion121 -> Asia | D122: TS | E122: Population - Est. & Proj. | F122: 3010 | G122: Malaysia | H122: 131 | I122: 7488 | K122: 33574 | M122: 26086 | O122: Kosovo | P122: 5270 | Q122: 13056 | R122: 11884 | S122: 7.174729999 | T122: 6.92 | V122: 2527.546 | W122: 1213.283566 | Y122: 2804.369305 | AF122: Mali | AG122: 41.9 | AH122: 2020
A123: 121 | B123: =country122 -> Maldives | C123: =newregion122 -> Indian Subcontinent | D123: TS | E123: Population - Est. & Proj. | F123: 3010 | G123: Maldives | H123: 132 | I123: 307 | K123: 521 | M123: 214 | O123: Kuwait | S123: 7.908204684 | U123: 2.7 | V123: 32522.803 | W123: 8956.820315 | X123: 100 | Y123: 15213.41987 | Z123: 100 | AA123: 100 | AB123: 100 | AC123: 3850.5 | AD123: 7.4 | AF123: Malta | AG123: 17.1 | AH123: 2018
A124: 122 | B124: =country123 -> Mali | C124: =newregion123 -> Africa | D124: TS | E124: Population - Est. & Proj. | F124: 3010 | G124: Mali | H124: 133 | I124: 12118 | K124: 21905 | M124: 9786 | O124: Kyrgyz Republic | P124: 1277 | Q124: 5290 | R124: 4815 | S124: 4.891812402 | T124: 14.68 | U124: 5.3 | V124: 3097.267 | W124: 650.401508 | X124: 99.98 | Y124: 1941.221832 | Z124: 76.6 | AA124: 100 | AB124: 99.5 | AC124: 50.04 | AD124: 4.96 | AF124: Marshall Islands
A125: 123 | B125: =country124 -> Malta | C125: =newregion124 -> Western Europe | D125: T | E125: Population - Est. & Proj. | F125: 3010 | G125: Malta | H125: 134 | I125: 27 | K125: 519 | M125: 492 | O125: Lao PDR | P125: 2536 | Q125: 8621 | R125: 7847 | T125: 16.07 | U125: 5.1 | X125: 100 | Z125: 8.5 | AA125: 100 | AB125: 100 | AC125: 4.79 | AD125: 4.35 | AF125: Mauritania
A126: 124 | B126: =country125 -> Marshall Islands | C126: =newregion125 -> Oceania | D126: TS | E126: Population - Est. & Proj. | F126: 3010 | G126: Marshall Islands | H126: 127 | I126: 9 | K126: 42 | M126: 33 | O126: Latin America & Caribbean (all income levels) | P126: 8328 | Q126: 17120 | R126: 15775 | T126: 6.88 | U126: 7.79 | V126: 824218.8854 | X126: 98.52 | Z126: 88.72 | AA126: 93.56 | AB126: 99.67 | AF126: Mauritius | AG126: 10.3 | AH126: 2017
A127: 125 | B127: =country126 -> Martinique | C127: =newregion126 -> Latin America | D127: TS | E127: Population - Est. & Proj. | F127: 3010 | G127: Martinique | H127: 135 | O127: Latin America & Caribbean (developing only) | P127: 7728 | Q127: 16347 | R127: 15094 | T127: 6.26 | U127: 7.28 | V127: 741935.3884 | X127: 98.39 | Z127: 87.85 | AA127: 93.19 | AB127: 99.63 | AF127: Mexico | AG127: 43.9 | AH127: 2020
A128: 126 | B128: =country127 -> Mauritania | C128: =newregion127 -> Africa | D128: TS | E128: Population - Est. & Proj. | F128: 3010 | G128: Mauritania | H128: 136 | I128: 2024 | K128: 4615 | M128: 2591 | O128: Latin America and the Caribbean | Z128: 0 | AA128: 0 | AB128: 0 | AC128: 0 | AF128: Micronesia (Federated States of)
A129: 127 | B129: =country128 -> Mauritius | C129: =newregion128 -> Africa | D129: TS | E129: Population - Est. & Proj. | F129: 3010 | G129: Mauritius | H129: 137 | I129: 750 | K129: 1266 | M129: 516 | O129: Latin America and the Caribbean (IFC classification) | P129: 8109 | Q129: 17040 | R129: 15704 | T129: 7.16 | U129: 7.89 | X129: 98.48 | Z129: 88.62 | AA129: 93.39 | AB129: 99.66 | AF129: Republic of Moldova | AG129: 26.8 | AH129: 2020
A130: 128 | B130: =country129 -> Mayotte | C130: =newregion129 -> Africa | E130: Population - Est. & Proj. | F130: 3010 | G130: Mayotte | H130: 270 | O130: Latvia | P130: 21148 | Q130: 34258 | R130: 32081 | S130: 10.18545262 | T130: 4.11 | U130: 2.5 | V130: 4370.979 | W130: 2176.843306 | X130: 100 | Y130: 3507.404521 | Z130: 100 | AA130: 100 | AB130: 100 | AC130: 1.05 | AD130: 3.18 | AF130: Monaco
A131: 129 | B131: =country130 -> Mexico | C131: =newregion130 -> Latin America | D131: TS | E131: Population - Est. & Proj. | F131: 3010 | G131: Mexico | H131: 138 | I131: 24054 | K131: 126705 | M131: 102651 | O131: Least developed countries: UN classification | P131: 1165 | Q131: 3336 | R131: 3059 | S131: 7.020527292 | T131: 19.16 | U131: 22.51 | V131: 268250.6703 | W131: 364.7376757 | X131: 54.61 | Y131: 205.6597872 | Z131: 17.18 | AA131: 43.96 | AB131: 78.25 | AF131: Mongolia | AG131: 27.8 | AH131: 2020
A132: 130 | B132: =country131 -> Micronesia (Federated States of) | C132: =newregion131 -> Oceania | D132: TS | E132: Population - Est. & Proj. | F132: 3010 | G132: Micronesia (Federated States of) | H132: 145 | I132: 87 | K132: 113 | M132: 26 | O132: Lebanon | P132: 4136 | Q132: 14257 | R132: 12977 | S132: 10.34000681 | T132: 1.4 | U132: 10.9 | V132: 6349.441 | W132: 1337.366032 | X132: 100 | Y132: 2892.770465 | AA132: 100 | AB132: 100 | AC132: 58.79 | AD132: 3.62 | AF132: Montenegro | AG132: 24.5 | AH132: 2018
A133: 131 | B133: =country132 -> Monaco | C133: =newregion132 -> Western Europe | D133: T | E133: Population - Est. & Proj. | F133: 3010 | G133: Monaco | H133: 140 | I133: 0 | K133: 37 | M133: 37 | O133: Lesotho | P133: 1094 | Q133: 2522 | R133: 2295 | T133: 4.95 | U133: 34.7 | X133: 47.35 | Z133: 40.1 | AA133: 34.93 | AB133: 77.73 | AC133: 2.57 | AD133: 8.14 | AF133: Morocco
A134: 132 | B134: =country133 -> Mongolia | C134: =newregion133 -> Asia | D134: T | E134: Population - Est. & Proj. | F134: 3010 | G134: Mongolia | H134: 141 | I134: 1045 | K134: 3348 | M134: 2303 | O134: Liberia | P134: 676 | Q134: 1564 | R134: 1423 | T134: 36.96 | U134: 38.3 | X134: 27.53 | Z134: 0.4 | AA134: 8.36 | AB134: 45.17 | AC134: 0.26 | AD134: 14.33 | AF134: Mozambique
A135: 133 | B135: =country134 -> Montenegro | C135: =newregion134 -> Eastern Europe | D135: T | E135: Population - Est. & Proj. | F135: 3010 | G135: Montenegro | H135: 273 | I135: 199 | K135: 619 | M135: 420 | O135: Libya | P135: 6357 | Q135: 24131 | R135: 21965 | S135: 5.68440417 | V135: 13342.442 | W135: 2880.14393 | X135: 69.71 | Y135: 1857.156581 | AB135: 100 | AC135: 817.14 | AD135: 8.9 | AF135: Myanmar | AG135: 24.8 | AH135: 2017
A136: 134 | B136: =country135 -> Montserrat | C136: =newregion135 -> Latin America | D136: T | E136: Population - Est. & Proj. | F136: 3010 | G136: Montserrat | H136: 142 | O136: Liechtenstein | X136: 100 | AA136: 100 | AB136: 100 | AF136: Namibia | AG136: 17.4 | AH136: 2015
A137: 135 | B137: =country136 -> Morocco | C137: =newregion136 -> Africa | D137: T | E137: Population - Est. & Proj. | F137: 3010 | G137: Morocco | H137: 143 | I137: 13323 | K137: 37077 | M137: 23753 | O137: Lithuania | P137: 23723 | Q137: 43185 | R137: 39306 | S137: 10.99919157 | T137: 3.31 | U137: 2.5 | V137: 7287.045 | W137: 2387.275194 | X137: 100 | Y137: 3821.14517 | Z137: 100 | AA137: 100 | AB137: 100 | AC137: 1.83 | AD137: 3.08 | AF137: Nepal
A138: 136 | B138: =country137 -> Mozambique | C138: =newregion137 -> Africa | D138: TS | E138: Population - Est. & Proj. | F138: 3010 | G138: Mozambique | H138: 144 | I138: 20007 | K138: 32077 | M138: 12070 | O138: Low & middle income | P138: 5494 | Q138: 11847 | R138: 10807 | S138: 7.158294853 | T138: 9.1 | U138: 10.78 | V138: 6435430.566 | W138: 1324.809752 | X138: 88.62 | Y138: 1922.124623 | Z138: 63.88 | AA138: 81.28 | AB138: 96.4 | AF138: Netherlands | AG138: 14.4 | AH138: 2020
A139: 137 | B139: =country138 -> Myanmar | C139: =newregion138 -> Asia | D139: TS | E139: Population - Est. & Proj. | F139: 3010 | G139: Myanmar | H139: 28 | I139: 36880 | K139: 53798 | M139: 16918 | O139: Low income | P139: 784 | Q139: 2124 | R139: 1964 | T139: 24.11 | U139: 30.76 | V139: 273250.9834 | X139: 41.37 | Z139: 10.58 | AA139: 28.31 | AB139: 68.92 | AF139: New Caledonia
A140: 138 | B140: =country139 -> Namibia | C140: =newregion139 -> Africa | D140: TS | E140: Population - Est. & Proj. | F140: 3010 | G140: Namibia | H140: 147 | I140: 1189 | K140: 2530 | M140: 1341 | O140: Lower middle income | P140: 2573 | Q140: 7955 | R140: 7242 | S140: 9.058076683 | T140: 15.47 | U140: 12.61 | V140: 1696203.545 | W140: 646.2846545 | X140: 90.09 | Y140: 767.1661597 | Z140: 59.23 | AA140: 85.67 | AB140: 96.91 | AF140: New Zealand
A141: 139 | B141: =country140 -> Nauru | C141: =newregion140 -> Oceania | E141: Population - Est. & Proj. | F141: 3010 | G141: Nauru | H141: 148 | I141: 0 | K141: 13 | M141: 13 | O141: Luxembourg | P141: 133590 | Q141: 133330 | R141: 115683 | S141: 13.650179 | T141: 0.2 | U141: 2.5 | V141: 4170.567 | W141: 6861.106667 | X141: 100 | Y141: 13914.67845 | Z141: 100 | AA141: 100 | AB141: 100 | AC141: 4.09 | AD141: 2.34 | AF141: Nicaragua | AG141: 24.9 | AH141: 2016
A142: 140 | B142: =country141 -> Nepal | C142: =newregion141 -> Indian Subcontinent | D142: T | E142: Population - Est. & Proj. | F142: 3010 | G142: Nepal | H142: 149 | I142: 23725 | K142: 30035 | M142: 6310 | O142: Macao SAR, China | P142: 43874 | Q142: 71186 | R142: 64797 | U142: 4.8 | X142: 100 | AA142: 100 | AB142: 100 | AD142: 0.5 | AF142: Niger | AG142: 40.8 | AH142: 2018
A143: 141 | B143: =country142 -> Netherlands | C143: =newregion142 -> Western Europe | D143: T | E143: Population - Est. & Proj. | F143: 3010 | G143: Netherlands Antilles | H143: 151 | O143: North Macedonia | P143: 6695 | Q143: 18340 | R143: 16464 | S143: 9.740845187 | T143: 7.25 | U143: 3.3 | V143: 3121.535 | W143: 1262.556589 | X143: 100 | Y143: 3496.999993 | Z143: 78.1 | AA143: 100 | AB143: 100 | AC143: 25.27 | AD143: 3.39 | AF143: Nigeria | AG143: 40.1 | AH143: 2018
A144: 142 | B144: =country143 -> New Caledonia | C144: =newregion143 -> Oceania | E144: Population - Est. & Proj. | F144: 3010 | G144: Netherlands | H144: 150 | I144: 1302 | K144: 17533 | M144: 16231 | O144: Madagascar | P144: 501 | Q144: 1608 | R144: 1464 | U144: 48.5 | X144: 33.74 | Z144: 1 | AA144: 10.9 | AB144: 70.16 | AC144: 11.26 | AD144: 8.56 | AF144: Northern Mariana Islands
A145: 143 | B145: =country144 -> New Zealand | C145: =newregion144 -> Oceania | D145: TS | E145: Population - Est. & Proj. | F145: 3010 | G145: New Caledonia | H145: 153 | I145: 76 | K145: 271 | M145: 195 | O145: Malawi | P145: 635 | Q145: 1638 | R145: 1491 | T145: 22.73 | U145: 17.8 | X145: 14.87 | Z145: 1 | AA145: 6.61 | AB145: 53.98 | AC145: 17.5 | AD145: 3.18 | AF145: Norway | AG145: 12.7 | AH145: 2018
A146: 144 | B146: =country145 -> Nicaragua | C146: =newregion145 -> Latin America | D146: TS | E146: Population - Est. & Proj. | F146: 3010 | G146: New Zealand | H146: 156 | I146: 677 | K146: 5123 | M146: 4446 | O146: Malaysia | P146: 11109 | Q146: 28929 | R146: 26333 | S146: 8.153090867 | T146: 9.59 | U146: 2.5 | V146: 75907.337 | W146: 2967.541304 | X146: 100 | Y146: 4596.331939 | Z146: 95.5 | AA146: 100 | AB146: 100 | AC146: 3.44 | AD146: 4.25 | AF146: Oman
A147: 145 | B147: =country146 -> Niger | C147: =newregion146 -> Africa | D147: TS | E147: Population - Est. & Proj. | F147: 3010 | G147: Nicaragua | H147: 157 | I147: 2790 | K147: 6851 | M147: 4061 | O147: Maldives | P147: 10366 | Q147: 20615 | R147: 18765 | T147: 5.27 | X147: 100 | Z147: 99.2 | AA147: 100 | AB147: 100 | AC147: 15.67 | AD147: 2.69 | AF147: Pakistan | AG147: 24.3 | AH147: 2015
A148: 146 | B148: =country147 -> Nigeria | C148: =newregion147 -> Africa | D148: TS | E148: Population - Est. & Proj. | F148: 3010 | G148: Niger | H148: 158 | I148: 21023 | K148: 25253 | M148: 4230 | O148: Mali | P148: 874 | Q148: 2330 | R148: 2121 | T148: 35.69 | U148: 9.8 | X148: 50.56 | Z148: 0.9 | AA148: 16.49 | AB148: 94.09 | AC148: 8 | AD148: 4.59 | AF148: Palau
A149: 147 | B149: =country148 -> Niue | C149: =newregion148 -> Oceania | E149: Population - Est. & Proj. | F149: 3010 | G149: Nigeria | H149: 159 | I149: 100841 | K149: 213401 | M149: 112561 | O149: Malta | P149: 33487 | Q149: 48894 | R149: 44651 | S149: 17.872133 | T149: 0.41 | U149: 2.5 | V149: 857.481 | W149: 1781.504425 | X149: 100 | Y149: 4924.544019 | Z149: 100 | AA149: 100 | AB149: 100 | AC149: 81.19 | AD149: 1.37 | AF149: Panama | AG149: 22.1 | AH149: 2016
A150: 148 | B150: =country149 -> Norfolk Island | C150: =newregion149 -> Oceania | E150: Population - Est. & Proj. | F150: 3010 | G150: Niue | H150: 160 | O150: Marshall Islands | P150: 6172 | Q150: 6550 | R150: 5962 | T150: 25.3 | X150: 99.16 | Z150: 63.9 | AA150: 100 | AB150: 95.95 | AD150: 9.74 | AF150: Papua New Guinea
A151: 149 | B151: =country150 -> Northern Mariana Islands | C151: =newregion150 -> Oceania | E151: Population - Est. & Proj. | F151: 3010 | G151: Northern Mariana Islands | H151: 163 | I151: 4 | K151: 49 | M151: 45 | O151: Mauritania | P151: 2166 | Q151: 5831 | R151: 5308 | T151: 18.58 | U151: 10.1 | X151: 47.35 | Z151: 42.6 | AB151: 88.37 | AC151: 13.25 | AD151: 3.24 | AF151: Paraguay | AG151: 26.9 | AH151: 2020
A152: 150 | B152: =country151 -> Norway | C152: =newregion151 -> Western Europe | D152: T | E152: Population - Est. & Proj. | F152: 3010 | G152: Norway | H152: 162 | I152: 902 | K152: 5408 | M152: 4506 | O152: Mauritius | P152: 9106 | Q152: 23035 | R152: 20968 | S152: 16.42571121 | T152: 3.27 | U152: 7.8 | W152: 1111.422168 | X152: 99.66 | Y152: 2182.509156 | Z152: 96.8 | AA152: 99.84 | AB152: 99.41 | AC152: 21.63 | AD152: 2.13 | AF152: Peru | AG152: 30.1 | AH152: 2020
A153: 151 | B153: =country152 -> Occupied Palestinian Territory | C153: =newregion152 -> Middle East | D153: T | E153: Population - Est. & Proj. | F153: 3010 | G153: Occupied Palestinian Territory | H153: 299 | O153: Mexico | P153: 10046 | Q153: 19585 | R153: 19086 | S153: 10.98026028 | T153: 3.89 | U153: 6.1 | V153: 186171.014 | W153: 1513.259208 | X153: 99.4 | Y153: 2090.175944 | Z153: 84.9 | AA153: 97.72 | AB153: 99.8 | AC153: 44.72 | AD153: 3.06 | AF153: Philippines | AG153: 16.7 | AH153: 2018
A154: 152 | B154: =country153 -> Oman | C154: =newregion153 -> Middle East | E154: Population - Est. & Proj. | F154: 3010 | G154: Oman | H154: 221 | I154: 586 | K154: 4520 | M154: 3935 | O154: Mexico and Central America | T154: 0 | U154: 0 | Z154: 0 | AA154: 0 | AB154: 0 | AC154: 0 | AF154: Poland | AG154: 15.4 | AH154: 2018
A155: 153 | B155: =country154 -> Pakistan | C155: =newregion154 -> Indian Subcontinent | D155: T | E155: Population - Est. & Proj. | F155: 3010 | G155: Pakistan | H155: 165 | I155: 144765 | K155: 231402 | M155: 86637 | O155: Micronesia, Fed. Sts. | P155: 3571 | Q155: 3642 | R155: 3315 | T155: 22.28 | X155: 82.93 | Z155: 13 | AA155: 78.83 | AB155: 96.71 | AD155: 5.52 | AF155: Portugal | AG155: 17.2 | AH155: 2018
A156: 154 | B156: =country155 -> Palau | C156: =newregion155 -> Oceania | E156: Population - Est. & Proj. | F156: 3010 | G156: Palau | H156: 180 | I156: 3 | K156: 18 | M156: 15 | O156: Middle East & North Africa (all income levels) | P156: 7569 | Q156: 17277 | R156: 15779 | T156: 5.23 | U156: 8.56 | V156: 833420.393 | X156: 97.24 | Z156: 95.93 | AA156: 93.83 | AB156: 99.65 | AF156: Puerto Rico
A157: 155 | B157: =country156 -> Panama | C157: =newregion156 -> Latin America | D157: TS | E157: Population - Est. & Proj. | F157: 3010 | G157: Panama | H157: 166 | I157: 1359 | K157: 4351 | M157: 2993 | O157: Middle East & North Africa (developing only) | P157: 3573 | Q157: 11444 | R157: 10421 | T157: 10.73 | U157: 9.31 | V157: 456204.3163 | X157: 96.78 | Z157: 95.22 | AA157: 93.5 | AB157: 99.56 | AF157: Qatar
A158: 156 | B158: =country157 -> Papua New Guinea | C158: =newregion157 -> Oceania | D158: TS | E158: Population - Est. & Proj. | F158: 3010 | G158: Papua New Guinea | H158: 168 | I158: 8611 | K158: 9949 | M158: 1339 | O158: Middle East and North Africa (IFC classification) | P158: 3572 | Q158: 11508 | R158: 10479 | T158: 10.77 | U158: 9.31 | X158: 96.74 | Z158: 95.22 | AA158: 93.45 | AB158: 99.56 | AF158: Romania | AG158: 22.6 | AH158: 2020
A159: 157 | B159: =country158 -> Paraguay | C159: =newregion158 -> Latin America | D159: TS | E159: Population - Est. & Proj. | F159: 3010 | G159: Paraguay | H159: 169 | I159: 2514 | K159: 6704 | M159: 4190 | O159: Middle income | P159: 6074 | Q159: 13038 | R159: 11892 | S159: 7.226764386 | T159: 8.86 | U159: 8.9 | V159: 6182688.851 | W159: 1395.789227 | X159: 94.05 | Y159: 2063.743122 | Z159: 69.77 | AA159: 89.62 | AB159: 98.4 | AF159: Russian Federation | AG159: 12.1 | AH159: 2020
A160: 158 | B160: =country159 -> Peru | C160: =newregion159 -> Latin America | D160: TS | E160: Population - Est. & Proj. | F160: 3010 | G160: Peru | H160: 170 | I160: 7249 | K160: 33715 | M160: 26467 | O160: Moldova | P160: 5231 | Q160: 15390 | R160: 14009 | S160: 5.130456182 | T160: 10.39 | V160: 3330.688 | W160: 928.3347725 | X160: 100 | Y160: 1386.234439 | Z160: 95.8 | AA160: 100 | AB160: 100 | AC160: 12.46 | AD160: 4.83 | AF160: Rwanda | AG160: 38.2 | AH160: 2016
A161: 159 | B161: =country160 -> Philippines | C161: =newregion160 -> Asia | D161: TS | E161: Population - Est. & Proj. | F161: 3010 | G161: Philippines | H161: 171 | I161: 59578 | K161: 113880 | M161: 54303 | O161: Monaco | P161: 234315 | X161: 100 | Z161: 100 | AA161: 100 | AB161: 100 | AF161: Samoa
A162: 160 | B162: =country161 -> Poland | C162: =newregion161 -> Eastern Europe | D162: T | E162: Population - Est. & Proj. | F162: 3010 | G162: Poland | H162: 173 | I162: 15071 | K162: 37747 | M162: 22677 | O162: Mongolia | P162: 4566 | Q162: 12819 | R162: 11668 | S162: 6.173650167 | T162: 13.16 | U162: 3.6 | V162: 3607.402 | W162: 1838.239459 | X162: 98.1 | Y162: 2017.513619 | Z162: 51.8 | AA162: 94.6 | AB162: 99.7 | AC162: 3.4 | AD162: 7.01 | AF162: San Marino
A163: 161 | B163: =country162 -> Portugal | C163: =newregion162 -> Western Europe | D163: T | E163: Population - Est. & Proj. | F163: 3010 | G163: Portugal | H163: 174 | I163: 3423 | K163: 10325 | M163: 6902 | O163: Montenegro | P163: 9466 | Q163: 23435 | R163: 20599 | S163: 9.618342136 | T163: 6.46 | U163: 2.5 | V163: 1179.077 | W163: 1538.2641 | X163: 100 | Y163: 4612.34139 | Z163: 62.4 | AA163: 100 | AB163: 100 | AD163: 3.4 | AF163: Sao Tome and Principe | AG163: 66.7 | AH163: 2017
A164: 162 | B164: =country163 -> Puerto Rico | C164: =newregion163 -> Latin America | D164: TS | E164: Population - Est. & Proj. | F164: 3010 | G164: Puerto Rico | H164: 177 | I164: 209 | K164: 3264 | M164: 3054 | O164: Morocco | P164: 3795 | Q164: 8853 | R164: 8058 | S164: 12.99052363 | T164: 12.04 | U164: 5.6 | V164: 17282.675 | W164: 553.1039584 | X164: 100 | Y164: 901.1284488 | Z164: 98.1 | AA164: 100 | AB164: 100 | AC164: 50.75 | AD164: 3.34 | AF164: Saudi Arabia
A165: 163 | B165: =country164 -> Qatar | C165: =newregion164 -> Middle East | D165: T | E165: Population - Est. & Proj. | F165: 3010 | G165: Qatar | H165: 179 | I165: 19 | K165: 2688 | M165: 2669 | O165: Mozambique | P165: 492 | Q165: 1348 | R165: 1227 | S165: 2.525322729 | T165: 27.5 | U165: 32.7 | V165: 10202.089 | W165: 427.5983631 | X165: 30.6 | Y165: 462.6202881 | Z165: 5.1 | AA165: 4.47 | AB165: 74.96 | AC165: 1.75 | AD165: 11.93 | AF165: Senegal
A166: 164 | B166: =country165 -> Réunion | C166: =newregion165 -> Asia | E166: Population - Est. & Proj. | F166: 3010 | G166: Republic of Korea | H166: 117 | I166: 9617 | K166: 51745 | M166: 42128 | O166: Myanmar | P166: 1210 | Q166: 4430 | R166: 4033 | S166: 12.8270944 | T166: 23.44 | U166: 3.1 | V166: 14056.104 | W166: 371.8689107 | X166: 70.4 | Y166: 216.7776086 | Z166: 31.25 | AA166: 60.16 | AB166: 93.03 | AC166: 5.8 | AD166: 3.58 | AF166: Serbia | AG166: 23.2 | AH166: 2018
A167: 165 | B167: =country166 -> Republic of Moldova | C167: =newregion166 -> Eastern Europe | D167: T | E167: Population - Est. & Proj. | F167: 3010 | G167: Republic of Moldova | H167: 146 | I167: 1491 | K167: 2615 | M167: 1124 | O167: Namibia | P167: 4866 | Q167: 10039 | R167: 9138 | S167: 12.62763646 | T167: 9.48 | U167: 18 | V167: 1589.15 | W167: 761.6149696 | X167: 56.26 | Y167: 1584.568822 | Z167: 46.8 | AA167: 36.29 | AB167: 74.67 | AC167: 0.86 | AD167: 3.52 | AF167: Seychelles | AG167: 25.3 | AH167: 2018
A168: 166 | B168: =country167 -> Republic of Korea | C168: =newregion167 -> Africa | D168: T | E168: Population - Est. & Proj. | F168: 3010 | G168: Romania | H168: 183 | I168: 8732 | K168: 19120 | M168: 10388 | O168: Nepal | P168: 1208 | Q168: 4210 | R168: 3832 | S168: 5.490792021 | T168: 21.32 | U168: 5.5 | V168: 10391.019 | W168: 412.724483 | X168: 89.9 | Y168: 139.1436806 | Z168: 34.8 | AA168: 88.79 | AB168: 94.2 | AC168: 8.31 | AD168: 5.23 | AF168: Sierra Leone | AG168: 56.8 | AH168: 2018
A169: 167 | B169: =country168 -> Romania | C169: =newregion168 -> Eastern Europe | D169: T | E169: Population - Est. & Proj. | F169: 3010 | G169: Russian Federation | H169: 185 | I169: 35957 | K169: 143449 | M169: 107492 | O169: Netherlands | P169: 57768 | Q169: 63742 | R169: 56617 | S169: 10.55789877 | T169: 1.55 | U169: 2.5 | V169: 77418.588 | W169: 4325.523712 | X169: 100 | Y169: 6712.774758 | Z169: 100 | AA169: 100 | AB169: 100 | AC169: 17 | AD169: 3.05 | AF169: Singapore
A170: 168 | B170: =country169 -> Russian Federation | C170: =newregion169 -> Eastern Europe | D170: B | E170: Population - Est. & Proj. | F170: 3010 | G170: Rwanda | H170: 184 | I170: 11097 | K170: 13462 | M170: 2365 | O170: New Caledonia | P170: 37160 | U170: 6.8 | X170: 100 | AA170: 100 | AB170: 100 | AF170: Sint Maarten (Dutch part)
A171: 169 | B171: =country170 -> Rwanda | C171: =newregion170 -> Africa | D171: TS | E171: Population - Est. & Proj. | F171: 3010 | G171: Réunion | H171: 182 | O171: New Zealand | P171: 48781 | Q171: 46990 | R171: 42915 | S171: 7.556172265 | U171: 2.5 | V171: 18167.221 | W171: 4559.892232 | X171: 100 | Y171: 9026.321041 | Z171: 100 | AA171: 100 | AB171: 100 | AC171: 8.05 | AD171: 4.02 | AF171: Slovakia | AG171: 11.9 | AH171: 2018
A172: 170 | B172: =country171 -> Saint Helena, Ascension and Tristan da Cunha | C172: =newregion171 -> Africa | D172: TS | E172: Population - Est. & Proj. | F172: 3010 | G172: Saint Helena, Ascension and Tristan da Cunha | H172: 187 | O172: Nicaragua | P172: 2046 | Q172: 6195 | R172: 5639 | S172: 7.856772601 | T172: 15.48 | U172: 18.6 | V172: 3038.209 | W172: 609.0071212 | X172: 88.91 | Y172: 580.4791722 | Z172: 56.2 | AA172: 72.94 | AB172: 100 | AC172: 2.69 | AD172: 4.68 | AF172: Slovenia | AG172: 11.7 | AH172: 2020
A173: 171 | B173: =country172 -> Saint Kitts and Nevis | C173: =newregion172 -> Latin America | D173: TS | E173: Population - Est. & Proj. | F173: 3010 | G173: Saint Kitts and Nevis | H173: 188 | I173: 33 | K173: 48 | M173: 15 | O173: Niger | P173: 591 | Q173: 1304 | R173: 1187 | S173: 6.000358809 | T173: 36.48 | W173: 150.7341231 | X173: 19.25 | Y173: 51.44081546 | Z173: 2.4 | AA173: 13.44 | AB173: 48.39 | AC173: 11.02 | AD173: 4.99 | AF173: Solomon Islands
A174: 172 | B174: =country173 -> Saint Lucia | C174: =newregion173 -> Latin America | D174: TS | E174: Population - Est. & Proj. | F174: 3010 | G174: Saint Lucia | H174: 189 | I174: 146 | K174: 180 | M174: 34 | O174: Nigeria | P174: 2066 | Q174: 5408 | R174: 4923 | S174: 7.448079989 | T174: 23.36 | U174: 12.7 | V174: 118324.588 | W174: 763.3913679 | X174: 55.4 | Y174: 144.4799245 | Z174: 15 | AA174: 24.58 | AB174: 83.9 | AC174: 9.67 | AD174: 6.39 | AF174: Somalia
A175: 173 | B175: =country174 -> Saint Pierre and Miquelon | C175: =newregion174 -> North America | D175: TS | E175: Population - Est. & Proj. | F175: 3010 | G175: Saint Pierre and Miquelon | H175: 190 | O175: North America | P175: 68370 | Q175: 67586 | R175: 62043 | S175: 7.241132042 | T175: 1.02 | U175: 2.5 | V175: 2444063.048 | W175: 7047.891803 | X175: 100 | Y175: 13241.31795 | Z175: 100 | AA175: 100 | AB175: 100 | AF175: South Africa
A176: 174 | B176: =country175 -> Saint Vincent and the Grenadines | C176: =newregion175 -> Latin America | D176: TS | E176: Population - Est. & Proj. | F176: 3010 | G176: Saint Vincent and the Grenadines | H176: 191 | I176: 49 | K176: 104 | M176: 56 | O176: Northern Mariana Islands | X176: 100 | AA176: 100 | AB176: 100 | AF176: South Sudan | AG176: 76.4 | AH176: 2016
A177: 175 | B177: =country176 -> Samoa | C177: =newregion176 -> Oceania | D177: TS | E177: Population - Est. & Proj. | F177: 3010 | G177: Samoa | H177: 244 | I177: 180 | K177: 219 | M177: 39 | O177: Norway | P177: 89154 | Q177: 80535 | R177: 65662 | S177: 11.33367211 | T177: 1.61 | U177: 2.5 | V177: 28136.772 | W177: 5595.654625 | X177: 100 | Y177: 22999.9346 | Z177: 100 | AA177: 100 | AB177: 100 | AC177: 2.05 | AD177: 3.33 | AF177: Spain | AG177: 21.7 | AH177: 2020
A178: 176 | B178: =country177 -> San Marino | C178: =newregion177 -> Western Europe | D178: T | E178: Population - Est. & Proj. | F178: 3010 | G178: San Marino | H178: 192 | I178: 1 | K178: 34 | M178: 33 | O178: Not classified | AF178: Sri Lanka | AG178: 4.1 | AH178: 2016
A179: 177 | B179: =country178 -> Sao Tome and Principe | C179: =newregion178 -> Africa | E179: Population - Est. & Proj. | F179: 3010 | G179: Sao Tome and Principe | H179: 193 | I179: 56 | K179: 223 | M179: 167 | O179: OECD members | P179: 42447 | Q179: 48589 | R179: 44827 | S179: 9.103216258 | T179: 1.42 | U179: 3.12 | V179: 5304779.581 | W179: 4141.006752 | X179: 99.94 | Y179: 7984.599566 | Z179: 98.05 | AA179: 99.79 | AB179: 99.98 | AF179: Sudan
A180: 178 | B180: =country179 -> Saudi Arabia | C180: =newregion179 -> Middle East | D180: T | E180: Population - Est. & Proj. | F180: 3010 | G180: Saudi Arabia | H180: 194 | I180: 5569 | K180: 35950 | M180: 30381 | O180: Oman | P180: 19509 | Q180: 37676 | R180: 34295 | S180: 6.572250711 | T180: 2.12 | U180: 9.8 | V180: 25275.894 | W180: 6141.773197 | X180: 100 | Y180: 6553.519696 | Z180: 100 | AA180: 100 | AB180: 100 | AC180: 116.71 | AD180: 7.23 | AF180: Suriname
A181: 179 | B181: =country180 -> Senegal | C181: =newregion180 -> Africa | D181: TS | E181: Population - Est. & Proj. | F181: 3010 | G181: Senegal | H181: 195 | I181: 8675 | K181: 16877 | M181: 8202 | O181: Other small states | P181: 13879 | Q181: 23649 | R181: 21565 | T181: 2.27 | U181: 16.65 | X181: 78.6 | Z181: 57.69 | AA181: 57.26 | AB181: 91.18 | AF181: Eswatini | AG181: 58.9 | AH181: 2016
A182: 180 | B182: =country181 -> Serbia | C182: =newregion181 -> Eastern Europe | D182: T | E182: Population - Est. & Proj. | F182: 3010 | G182: Serbia | H182: 272 | I182: 2963 | K182: 6834 | M182: 3872 | O182: Pacific island small states | P182: 3644 | Q182: 6486 | R182: 5903 | U182: 10.13 | X182: 87.7 | Z182: 31.93 | AA182: 83.1 | AB182: 94.76 | AF182: Sweden | AG182: 15.7 | AH182: 2020
A183: 181 | B183: =country182 -> Seychelles | C183: =newregion182 -> Africa | D183: TS | E183: Population - Est. & Proj. | F183: 3010 | G183: Seychelles | H183: 196 | I183: 42 | K183: 99 | M183: 58 | O183: Pakistan | P183: 1505 | Q183: 5748 | R183: 5232 | S183: 9.446325077 | T183: 22.67 | U183: 16.9 | V183: 84844.564 | W183: 484.4452184 | X183: 75.38 | Y183: 471.0415689 | Z183: 49.3 | AA183: 60.82 | AB183: 100 | AC183: 108.65 | AD183: 4.59 | AF183: Switzerland | AG183: 16 | AH183: 2018
A184: 182 | B184: =country183 -> Sierra Leone | C184: =newregion183 -> Africa | D184: TS | E184: Population - Est. & Proj. | F184: 3010 | G184: Sierra Leone | H184: 197 | I184: 4768 | K184: 8421 | M184: 3652 | O184: Palau | P184: 12084 | Q184: 15145 | R184: 13785 | T184: 3.86 | X184: 100 | Z184: 100 | AA184: 100 | AB184: 100 | AD184: 9.64 | AF184: Syrian Arab Republic
A185: 183 | B185: =country184 -> Singapore | C185: =newregion184 -> Asia | D185: TS | E185: Population - Est. & Proj. | F185: 3010 | G185: Singapore | H185: 200 | I185: 0 | K185: 5454 | M185: 5454 | O185: Panama | P185: 14618 | Q185: 31901 | R185: 29038 | S185: 18.55012055 | T185: 2.6 | U185: 5.8 | V185: 4058.247 | W185: 1079.130151 | X185: 96.7 | Y185: 2062.763545 | Z185: 87.6 | AA185: 90.25 | AB185: 99.69 | AC185: 0.9 | AD185: 1.54 | AF185: Tajikistan | AG185: 26.3 | AH185: 2019
A186: 184 | B186: =country185 -> Slovakia | C186: =newregion185 -> Eastern Europe | D186: T | E186: Population - Est. & Proj. | F186: 3010 | G186: Slovakia | H186: 199 | I186: 2516 | K186: 5447 | M186: 2932 | O186: Papua New Guinea | P186: 2673 | Q186: 4040 | R186: 3677 | U186: 21.6 | X186: 60.4 | Z186: 9.4 | AA186: 56.83 | AB186: 83.6 | AC186: 0.13 | AD186: 5.28 | AF186: United Republic of Tanzania | AG186: 26.4 | AH186: 2017
A187: 185 | B187: =country186 -> Slovenia | C187: =newregion186 -> Western Europe | D187: T | E187: Population - Est. & Proj. | F187: 3010 | G187: Slovenia | H187: 198 | I187: 940 | K187: 2108 | M187: 1168 | O187: Paraguay | P187: 5891 | Q187: 15037 | R187: 13688 | S187: 13.88203921 | T187: 9.87 | U187: 8.7 | V187: 4857.559 | W187: 788.6896223 | X187: 100 | Y187: 1563.505329 | Z187: 68.6 | AA187: 100 | AB187: 100 | AC187: 1.84 | AD187: 3.39 | AF187: Thailand | AG187: 6.8 | AH187: 2020
A188: 186 | B188: =country187 -> Solomon Islands | C188: =newregion187 -> Oceania | D188: TS | E188: Population - Est. & Proj. | F188: 3010 | G188: Solomon Islands | H188: 25 | I188: 530 | K188: 708 | M188: 178 | O188: Peru | P188: 6622 | Q188: 13749 | R188: 12515 | S188: 15.04232381 | T188: 6.97 | U188: 8.3 | V188: 20582.203 | W188: 767.6895114 | X188: 99.31 | Y188: 1307.510966 | Z188: 85.1 | AA188: 96.83 | AB188: 100 | AC188: 7.18 | AD188: 2.6 | AF188: Timor-Leste
A189: 187 | B189: =country188 -> Somalia | C189: =newregion188 -> Africa | D189: TS | E189: Population - Est. & Proj. | F189: 3010 | G189: Somalia | H189: 201 | I189: 9091 | K189: 17066 | M189: 7975 | O189: Philippines | P189: 3461 | Q189: 8893 | R189: 8095 | S189: 13.82880609 | T189: 10.07 | U189: 5.2 | V189: 40452.031 | W189: 476.2447245 | X189: 96.84 | Y189: 699.2050698 | Z189: 48 | AA189: 95.59 | AB189: 98.23 | AC189: 26.25 | AD189: 2.68 | AF189: Togo | AG189: 55.1 | AH189: 2015
A190: 188 | B190: =country189 -> South Africa | C190: =newregion189 -> Africa | D190: T | E190: Population - Est. & Proj. | F190: 3010 | G190: South Africa | H190: 202 | I190: 19096 | K190: 59392 | M190: 40296 | O190: Poland | P190: 18000 | Q190: 38125 | R190: 34916 | S190: 9.846902035 | T190: 2.22 | U190: 2.5 | V190: 101312.95 | W190: 2473.406883 | X190: 100 | Y190: 3971.799761 | Z190: 100 | AA190: 100 | AB190: 100 | AC190: 31.1 | AD190: 3.42 | AF190: Tonga
A191: 189 | B191: =country190 -> South Sudan | C191: =newregion190 -> Africa | D191: TS | E191: Population - Est. & Proj. | F191: 3010 | G191: Spain | H191: 203 | I191: 8982 | K191: 47416 | M191: 38433 | O191: Portugal | P191: 24568 | Q191: 36038 | R191: 33675 | S191: 12.79112131 | T191: 2.19 | U191: 2.5 | V191: 23084.167 | W191: 2034.51263 | X191: 100 | Y191: 4662.6008 | Z191: 100 | AA191: 100 | AB191: 100 | AC191: 12.32 | AD191: 2.54 | AF191: Trinidad and Tobago
A192: 190 | B192: =country191 -> Spain | C192: =newregion191 -> Western Europe | D192: T | E192: Population - Est. & Proj. | F192: 3010 | G192: Sri Lanka | H192: 38 | I192: 17977 | K192: 22156 | M192: 4179 | O192: Puerto Rico | P192: 32641 | Q192: 35850 | R192: 32633 | T192: 0.67 | X192: 100 | AA192: 100 | AB192: 100 | AC192: 19.54 | AD192: 0.63 | AF192: Tunisia | AG192: 15.2 | AH192: 2015
A193: 191 | B193: =country192 -> Sri Lanka | C193: =newregion192 -> Indian Subcontinent | D193: TS | E193: Population - Est. & Proj. | F193: 3010 | G193: Sudan (former) | H193: 206 | I193: 29406 | K193: 45657 | M193: 16251 | O193: Qatar | P193: 66838 | Q193: 102018 | R193: 92862 | S193: 6.510921526 | T193: 0.3 | V193: 33285.403 | W193: 18562.66691 | X193: 100 | Y193: 15309.42938 | Z193: 100 | AA193: 100 | AB193: 100 | AC193: 431.03 | AD193: 6.79 | AF193: Turkiye | AG193: 14.4 | AH193: 2018
A194: 192 | B194: =country193 -> Sudan | C194: =newregion193 -> Africa | D194: TS | E194: Population - Est. & Proj. | F194: 3010 | G194: Suriname | H194: 207 | I194: 207 | K194: 613 | M194: 406 | O194: Romania | P194: 14858 | Q194: 36101 | R194: 30771 | S194: 12.44096496 | T194: 4.35 | U194: 2.5 | V194: 35830.313 | W194: 1591.667659 | X194: 100 | Y194: 2584.411787 | Z194: 87.7 | AA194: 100 | AB194: 100 | AC194: 6.01 | AD194: 2.38 | AF194: Turkmenistan
A195: 193 | B195: =country194 -> Sudan (former) | C195: =newregion194 -> Africa | D195: TS | E195: Population - Est. & Proj. | F195: 3010 | G195: Eswatini | H195: 209 | I195: 902 | K195: 1192 | M195: 291 | O195: Russian Federation | P195: 12195 | Q195: 32966 | R195: 27960 | S195: 5.196132451 | T195: 3.8 | U195: 2.5 | V195: 730969.878 | W195: 4942.875517 | X195: 100 | Y195: 6602.657525 | Z195: 86.3 | AA195: 100 | AB195: 100 | AC195: 4.12 | AD195: 8.1 | AF195: Turks and Caicos Islands
A196: 194 | B196: =country195 -> Suriname | C196: =newregion195 -> Latin America | D196: TS | E196: Population - Est. & Proj. | F196: 3010 | G196: Sweden | H196: 210 | I196: 1225 | K196: 10416 | M196: 9191 | O196: Rwanda | P196: 822 | Q196: 2460 | R196: 2239 | T196: 24.06 | U196: 35.8 | X196: 46.6 | Z196: 2.4 | AA196: 38.2 | AB196: 86.4 | AC196: 20.2 | AD196: 3.94 | AF196: Tuvalu
A197: 195 | B197: =country196 -> Eswatini | C197: =newregion196 -> Africa | D197: TS | E197: Population - Est. & Proj. | F197: 3010 | G197: Switzerland | H197: 211 | I197: 2263 | K197: 8703 | M197: 6440 | O197: Samoa | P197: 3857 | Q197: 6080 | R197: 5534 | T197: 9.85 | U197: 4.4 | X197: 100 | Z197: 36.5 | AA197: 100 | AB197: 99.99 | AD197: 4.44 | AF197: Uganda | AG197: 21.4 | AH197: 2016
A198: 196 | B198: =country197 -> Sweden | C198: =newregion197 -> Western Europe | D198: B | E198: Population - Est. & Proj. | F198: 3010 | G198: Syrian Arab Republic | H198: 212 | I198: 9356 | K198: 21324 | M198: 11968 | O198: San Marino | X198: 100 | Z198: 100 | AA198: 100 | AB198: 100 | AF198: Ukraine | AG198: 1.4 | AH198: 2020
A199: 197 | B199: =country198 -> Switzerland | C199: =newregion198 -> Western Europe | D199: T | E199: Population - Est. & Proj. | F199: 3010 | G199: Tajikistan | H199: 208 | I199: 7047 | K199: 9750 | M199: 2703 | O199: Sao Tome and Principe | P199: 2361 | Q199: 4452 | R199: 4052 | T199: 13.95 | U199: 13.5 | X199: 76.56 | Z199: 3.3 | AA199: 71.08 | AB199: 78.45 | AC199: 1.88 | AD199: 3.47 | AF199: United Arab Emirates
A200: 198 | B200: =country199 -> Syrian Arab Republic | C200: =newregion199 -> Middle East | D200: T | E200: Population - Est. & Proj. | F200: 3010 | G200: Thailand | H200: 216 | I200: 34252 | K200: 71601 | M200: 37349 | O200: Saudi Arabia | P200: 23186 | Q200: 48711 | R200: 44339 | S200: 7.201496629 | T200: 2.31 | U200: 3.7 | V200: 187070.066 | W200: 6937.230677 | X200: 100 | Y200: 9444.215664 | Z200: 100 | AA200: 100 | AB200: 100 | AC200: 974.17 | AD200: 5.58 | AF200: United Kingdom | AG200: 18.6 | AH200: 2017
... 60 more rows

Sheet Crops (hidden)
A1: 1 | B1: 2 | C1: 3 | D1: 4 | E1: 5 | F1: 6 | G1: 7 | H1: 8 | I1: 9 | J1: 10 | K1: 11 | L1: 12 | M1: 13 | N1: 14 | O1: 15 | P1: 16 | Q1: 17
A2: Code | B2: Select a crop | D2: Biodiesel | E2: Ethanol | I2: Residues | K2: Residue : Product ratio | O2: Location | Q2: Alternative uses
A3: 1 | B3: Barley | D3: jatropha | E3: cassava | G3: =crop2 -> Select a crop | I3: =crop20 -> Crop | J3: =residue21 -> residue | K3: =param35 -> average | L3: =param36 -> min | M3: =param37 -> max | N3: =param38 -> stdev
A4: 2 | B4: Cacao | D4: oil palm | E4: maize | F4: 1 | G4: =crop3 -> barley | H4: =CONCATENATE(I4,J4) -> barleystraw | I4: =crop3 -> barley | J4: =residue22 -> straw | K4: 1.35 | L4: 0.95 | M4: 1.75 | N4: 0.27 | O4: field
A5: 3 | B5: Cassava | D5: rapeseed | E5: sorghum | F5: 2 | G5: =crop4 -> cacao | H5: =CONCATENATE(I5,J5) -> cacaopods | I5: =crop4 -> cacao | J5: =residue23 -> pods | K5: 1.5 | L5: 1 | M5: 2 | N5: 0.71 | O5: field | P5: processing
A6: 4 | B6: Coconut | D6: soybean | E6: sugarbeet | F6: 3 | G6: =crop5 -> cassava | H6: cassavastalk | I6: =crop5 -> cassava | J6: =residue24 -> stalk | K6: 0.13 | L6: 0.06 | M6: 0.2 | N6: 0.06 | O6: field
A7: 5 | B7: Coffee | D7: sunflower | E7: sugar cane | F7: 4 | G7: =crop6 -> coconut | H7: coconutfronds | I7: =crop6 -> coconut | J7: =residue25 -> fronds | K7: 0.47 | L7: 0.23 | M7: 0.95 | N7: 0.34 | O7: field
A8: 6 | B8: Cotton | F8: 5 | G8: =crop7 -> coffee | H8: coconuthusk | I8: =crop6 -> coconut | J8: =residue26 -> husk | K8: 0.49 | L8: 0.36 | M8: 0.84 | N8: 0.18 | P8: processing | Q8: fibers
A9: 7 | B9: Groundnut | D9: Coversion to bioenergy | F9: 6 | G9: =crop8 -> cotton | H9: coconutshell | I9: =crop6 -> coconut | J9: =residue28 -> shell | K9: 0.39 | L9: 0.12 | M9: 0.7 | N9: 0.25 | P9: processing | Q9: charcoal, activated carbon
A10: 8 | B10: Jatropha | D10: Gasification | F10: 7 | G10: =crop9 -> groundnut | H10: coffeehusk | I10: =crop7 -> coffee | J10: =residue26 -> husk | K10: 1.32 | L10: 0.16 | M10: 2.1 | N10: 0.95 | P10: processing | Q10: bioenergy; animal bedding (potentially poisenous)
A11: 9 | B11: Maize | D11: Briquettes | F11: 8 | G11: =crop10 -> maize | H11: cottonhull | I11: =crop8 -> cotton | J11: =residue27 -> hull | K11: 0.26 | L11: 0.26 | M11: 0.26 | N11: 0 | P11: processing | Q11: animal feed (cakes)
A12: 10 | B12: Millet | D12: Combustion | F12: 9 | G12: =crop11 -> millet | H12: cottonstalk | I12: =crop8 -> cotton | J12: =residue24 -> stalk | K12: 3.4 | L12: 2.76 | M12: 4.25 | N12: 0.47 | O12: field | Q12: bioenergy
A13: 11 | B13: Oat | D13: Charcoal | F13: 10 | G13: =crop12 -> oat | H13: groundnuthusk | I13: =crop9 -> groundnut | J13: =residue26 -> husk | K13: 0.47 | L13: 0.32 | M13: 0.67 | N13: 0.12 | P13: processing | Q13: cattle feed, carrier of incecticides, alpha cellulose, charcoal, activated carbon; pellets, briquettes
A14: 12 | B14: Oilpalm | F14: 11 | G14: =crop13 -> oilpalm | H14: maizecob | I14: =crop10 -> maize | J14: =residue29 -> cob | K14: 0.33 | L14: 0.2 | M14: 0.86 | N14: 0.16 | P14: processing | Q14: feed
A15: 13 | B15: Potato | F15: 12 | G15: =crop14 -> rice | H15: maizehusk | I15: =crop10 -> maize | J15: =residue26 -> husk | K15: 0.22 | L15: 0.2 | M15: 0.3 | N15: 0.04 | P15: processing | Q15: feed
A16: 14 | B16: Rapeseed | F16: 13 | G16: =crop15 -> rye | H16: maizestover | I16: =crop10 -> maize | J16: =residue30 -> stover | K16: 1.96 | L16: 1 | M16: 3.77 | N16: 0.67
A17: 15 | B17: Rice | F17: 14 | G17: =crop16 -> sorghum | H17: milletstraw | I17: =crop11 -> millet | J17: =residue22 -> straw | K17: 2.54 | L17: 1.4 | M17: 4 | N17: 0.81 | O17: field | P17: processing | Q17: feed, mulch, thatching material for tranditional houses
A18: 16 | B18: Rye | F18: 15 | G18: =crop17 -> soybean | H18: oatstraw | I18: =crop12 -> oat | J18: =residue22 -> straw | K18: 1.42 | L18: 1 | M18: 2 | N18: 0.33 | O18: field
A19: 17 | B19: Sorghum | F19: 16 | G19: =crop18 -> sugarcane | H19: =CONCATENATE(I19,J19) -> oilpalmempty bunches | I19: =crop13 -> oilpalm | J19: =residue31 -> empty bunches | K19: 0.31 | L19: 0.23 | M19: 0.43 | N19: 0.09 | P19: processing
A20: 18 | B20: Soybean | F20: 17 | G20: =crop19 -> wheat | H20: oilpalmfronds | I20: =crop13 -> oilpalm | J20: =residue25 -> fronds | K20: 2.6 | L20: 2.6 | M20: 2.6 | N20: 0 | O20: field
A21: 19 | B21: Sugarbeet | F21: 18 | H21: oilpalmshell | I21: =crop13 -> oilpalm | J21: =residue28 -> shell | K21: 0.06 | L21: 0.05 | M21: 0.08 | N21: 0.01 | P21: processing | Q21: construction of roads, fuel (contains silicates which damage boilers)
A22: 20 | B22: Sugarcane | F22: 19 | H22: ricestraw | I22: =crop14 -> rice | J22: =residue22 -> straw | K22: 1.33 | L22: 0.42 | M22: 2.15 | N22: 0.68 | O22: field | Q22: bedding
A23: 21 | B23: Sunflower | F23: 20 | H23: ricehusk | I23: =crop14 -> rice | J23: =residue26 -> husk | K23: 0.25 | L23: 0.15 | M23: 0.36 | N23: 0.06 | P23: processing
A24: 22 | B24: Tea | F24: 21 | H24: ryestraw | I24: =crop15 -> rye | J24: =residue22 -> straw | K24: 1.61 | L24: 1 | M24: 2 | N24: 0.37 | O24: field | Q24: bedding
A25: 23 | B25: Tobacco | F25: 22 | H25: sorghumstraw/stalk | I25: =crop16 -> sorghum | J25: =residue32 -> straw/stalk | K25: 2.44 | L25: 1 | M25: 4.6 | N25: 0.97 | Q25: fuel, mat, hat, building materials, frame materials, barrier;
A26: 24 | B26: Wheat | F26: 23 | H26: soybeanstraw | I26: =crop17 -> soybean | J26: =residue22 -> straw | K26: 1.53 | L26: 1 | M26: 2.5 | N26: 0.84 | O26: field | P26: processing | Q26: left on the soil
A27: 25 | B27: Yams | F27: 24 | H27: =CONCATENATE(I27,J27) -> soybeanpods | I27: =crop17 -> soybean | J27: =residue23 -> pods | K27: 1.09 | L27: 0.9 | M27: 1.36 | N27: 0.24 | O27: field | P27: processing
A28: 26 | F28: 25 | H28: sugarcanetops/leaves | I28: =crop18 -> sugarcane | J28: =residue33 -> tops/leaves | K28: 0.2 | L28: 0.05 | M28: 0.3 | N28: 0.1 | O28: field | Q28: animal feed and bedding, only avaialble with machinery harvesting
A29: 27 | F29: 26 | H29: sugarcanebaggase | I29: =crop18 -> sugarcane | J29: =residue34 -> baggase | K29: 0.26 | L29: 0.14 | M29: 0.4 | N29: 0.07 | P29: processing | Q29: feed, fertilizer
F30: 27 | H30: wheatstraw | I30: =crop19 -> wheat | J30: =residue22 -> straw | K30: 1.28 | L30: 0.5 | M30: 2 | N30: 0.36 | O30: field
G33: CROP - RESIDUE COMBINATION LIST
G34: =crop3 -> barley | H34: =crop4 -> cacao | I34: =crop5 -> cassava | J34: =crop6 -> coconut | K34: =crop7 -> coffee | L34: =crop8 -> cotton | M34: =crop9 -> groundnut | N34: =crop10 -> maize | O34: =crop11 -> millet | P34: =crop12 -> oat | Q34: =crop13 -> oilpalm | R34: =crop14 -> rice | S34: =crop15 -> rye | T34: =crop16 -> sorghum | U34: =crop17 -> soybean | V34: =crop18 -> sugarcane | W34: =crop19 -> wheat
G35: =residue22 -> straw | H35: =residue23 -> pods | I35: =residue24 -> stalk | J35: =residue25 -> fronds | K35: =residue26 -> husk | L35: =residue27 -> hull | M35: =residue26 -> husk | N35: =residue29 -> cob | O35: =residue22 -> straw | P35: =residue22 -> straw | Q35: =residue31 -> empty bunches | R35: =residue22 -> straw | S35: =residue22 -> straw | T35: =residue32 -> straw/stalk | U35: =residue22 -> straw | V35: =residue33 -> tops/leaves | W35: =residue22 -> straw
J36: =residue26 -> husk | L36: =residue24 -> stalk | N36: =residue26 -> husk | Q36: =residue25 -> fronds | R36: =residue26 -> husk | U36: =residue23 -> pods | V36: =residue34 -> baggase
J37: =residue28 -> shell | N37: =residue30 -> stover | Q37: =residue28 -> shell
K40: =+ROUND(K4,2) -> 1.35 | L40: =+ROUND(L4,2) -> 0.95 | M40: 1.75 | N40: 0.27
K41: =+ROUND(K5,2) -> 1.5 | L41: 1 | M41: 2 | N41: 0.71
A42: Plantations | K42: =+ROUND(K6,2) -> 0.13 | L42: 0.06 | M42: 0.2 | N42: 0.06
B43: Species | D43: Management system | G43: Wood use | K43: =+ROUND(K7,2) -> 0.47 | L43: 0.23 | M43: 0.95 | N43: 0.34
A44: 1 | B44: Acacia | D44: clear-felling and replanting | G44: fuelwood | K44: =+ROUND(K8,2) -> 0.49 | L44: 0.36 | M44: 0.84 | N44: 0.18
A45: 2 | B45: Eucalyptus | D45: short rotation coppice | G45: charcoal production | K45: =+ROUND(K9,2) -> 0.39 | L45: 0.12 | M45: 0.7 | N45: 0.25
A46: 3 | B46: Pinus | D46: pollarding | G46: industrial roundwood | K46: =+ROUND(K10,2) -> 1.32 | L46: 0.16 | M46: 2.1 | N46: 0.95
A47: 4 | B47: Populus | G47: second-generation biofuels | K47: =+ROUND(K11,2) -> 0.26 | L47: 0.26 | M47: 0.26 | N47: 0
A48: 5 | B48: Salix | G48: combustion | K48: =+ROUND(K12,2) -> 3.4 | L48: 2.76 | M48: 4.25 | N48: 0.47
A49: 6 | B49: Cunninghamia | G49: gasification | K49: =+ROUND(K13,2) -> 0.47 | L49: 0.32 | M49: 0.67 | N49: 0.12
K50: =+ROUND(K14,2) -> 0.33 | L50: 0.2 | M50: 0.86 | N50: 0.16
K51: =+ROUND(K15,2) -> 0.22 | L51: 0.2 | M51: 0.3 | N51: 0.04
K52: =+ROUND(K16,2) -> 1.96 | L52: 1 | M52: 3.77 | N52: 0.67
K53: =+ROUND(K17,2) -> 2.54 | L53: 1.4 | M53: 4 | N53: 0.81
K54: =+ROUND(K18,2) -> 1.42 | L54: 1 | M54: 2 | N54: 0.33
K55: =+ROUND(K19,2) -> 0.31 | L55: 0.23 | M55: 0.43 | N55: 0.09
K56: =+ROUND(K20,2) -> 2.6 | L56: 2.6 | M56: 2.6 | N56: 0
K57: =+ROUND(K21,2) -> 0.06 | L57: 0.05 | M57: 0.08 | N57: 0.01
K58: =+ROUND(K22,2) -> 1.33 | L58: 0.42 | M58: 2.15 | N58: 0.68
K59: =+ROUND(K23,2) -> 0.25 | L59: 0.15 | M59: 0.36 | N59: 0.06
K60: =+ROUND(K24,2) -> 1.61 | L60: 1 | M60: 2 | N60: 0.37
K61: =+ROUND(K25,2) -> 2.44 | L61: 1 | M61: 4.6 | N61: 0.97
K62: =+ROUND(K26,2) -> 1.53 | L62: 1 | M62: 2.5 | N62: 0.84
K63: =+ROUND(K27,2) -> 1.09 | L63: 0.9 | M63: 1.36 | N63: 0.24
K64: =+ROUND(K28,2) -> 0.2 | L64: 0.05 | M64: 0.3 | N64: 0.1
K65: =+ROUND(K29,2) -> 0.26 | L65: 0.14 | M65: 0.4 | N65: 0.07
K66: =+ROUND(K30,2) -> 1.28 | L66: 0.5 | M66: 2 | N66: 0.36

Sheet Crop_Translation (hidden)
C2: Selection | D2: =title_label!$C$2 -> 1
C3: English | D3: 1
C4: French | D4: 2
C5: Spanish | D5: 3 | J5: This is used only for crop selection
B9: English | C9: French | D9: Spanish | E9: Typeof | F9: Ref | G9: Name | J9: English | K9: French | L9: Spanish | M9: Typeof | N9: Ref | O9: Name
A10: 1 | B10: 1 | C10: 2 | D10: 3 | J10: 1 | K10: 2 | L10: 3
A11: 2 | B11: Select a crop | C11: Sélectionnez | D11: Seleccionar un cultivo | E11: crop | F11: =HLOOKUP($D$2,$B$10:$D11,$A11,FALSE) -> Select a crop | G11: =$E11&$A11 -> crop2 | J11: Select a crop | K11: Sélectionnez | L11: Seleccionar un cultivo | M11: crop_selection | N11: =HLOOKUP($D$2,$J$10:$M11,$A11,FALSE) -> Select a crop | O11: =$M11&$A11 -> crop_selection2
A12: 3 | B12: barley | C12: orge | D12: cebada | E12: crop | F12: =HLOOKUP($D$2,$B$10:$D12,$A12,FALSE) -> barley | G12: =$E12&$A12 -> crop3 | J12: barley | K12: Arachide | L12: algodón | M12: crop_selection | N12: =HLOOKUP($D$2,$J$10:$M12,$A12,FALSE) -> barley | O12: =$M12&$A12 -> crop_selection3
A13: 4 | B13: cacao | C13: cacao | D13: cacao | E13: crop | F13: =HLOOKUP($D$2,$B$10:$D13,$A13,FALSE) -> cacao | G13: crop4 | J13: cacao | K13: Avoine | L13: arroz | M13: crop_selection | N13: =HLOOKUP($D$2,$J$10:$M13,$A13,FALSE) -> cacao | O13: crop_selection4
A14: 5 | B14: cassava | C14: manioc | D14: yuca | E14: crop | F14: =HLOOKUP($D$2,$B$10:$D14,$A14,FALSE) -> cassava | G14: crop5 | J14: cassava | K14: Blé | L14: avena | M14: crop_selection | N14: =HLOOKUP($D$2,$J$10:$M14,$A14,FALSE) -> cassava | O14: crop_selection5
A15: 6 | B15: coconut | C15: noix de coco | D15: coco | E15: crop | F15: =HLOOKUP($D$2,$B$10:$D15,$A15,FALSE) -> coconut | G15: crop6 | J15: coconut | K15: Cacao | L15: cacahuete | M15: crop_selection | N15: =HLOOKUP($D$2,$J$10:$M15,$A15,FALSE) -> coconut | O15: crop_selection6
A16: 7 | B16: coffee | C16: café | D16: café | E16: crop | F16: =HLOOKUP($D$2,$B$10:$D16,$A16,FALSE) -> coffee | G16: crop7 | J16: coffee | K16: Café | L16: cacao | M16: crop_selection | N16: =HLOOKUP($D$2,$J$10:$M16,$A16,FALSE) -> coffee | O16: crop_selection7
A17: 8 | B17: cotton | C17: coton | D17: algodón | E17: crop | F17: =HLOOKUP($D$2,$B$10:$D17,$A17,FALSE) -> cotton | G17: crop8 | J17: cotton | K17: Canne à sucre | L17: café | M17: crop_selection | N17: =HLOOKUP($D$2,$J$10:$M17,$A17,FALSE) -> cotton | O17: crop_selection8
A18: 9 | B18: groundnut | C18: arachide | D18: cacahuete | E18: crop | F18: =HLOOKUP($D$2,$B$10:$D18,$A18,FALSE) -> groundnut | G18: crop9 | J18: groundnut | K18: Coton | L18: caña de azúcar | M18: crop_selection | N18: =HLOOKUP($D$2,$J$10:$M18,$A18,FALSE) -> groundnut | O18: crop_selection9
A19: 10 | B19: maize | C19: maïs | D19: maíz | E19: crop | F19: =HLOOKUP($D$2,$B$10:$D19,$A19,FALSE) -> maize | G19: crop10 | J19: maize | K19: Maïs | L19: cebada | M19: crop_selection | N19: =HLOOKUP($D$2,$J$10:$M19,$A19,FALSE) -> maize | O19: crop_selection10
A20: 11 | B20: millet | C20: millet | D20: mijo | E20: crop | F20: =HLOOKUP($D$2,$B$10:$D20,$A20,FALSE) -> millet | G20: crop11 | J20: millet | K20: Manioc | L20: centeno | M20: crop_selection | N20: =HLOOKUP($D$2,$J$10:$M20,$A20,FALSE) -> millet | O20: crop_selection11
A21: 12 | B21: oat | C21: avoine | D21: avena | E21: crop | F21: =HLOOKUP($D$2,$B$10:$D21,$A21,FALSE) -> oat | G21: crop12 | J21: oat | K21: Millet | L21: coco | M21: crop_selection | N21: =HLOOKUP($D$2,$J$10:$M21,$A21,FALSE) -> oat | O21: crop_selection12
A22: 13 | B22: oilpalm | C22: palmier à huile | D22: palma aceitera | E22: crop | F22: =HLOOKUP($D$2,$B$10:$D22,$A22,FALSE) -> oilpalm | G22: crop13 | J22: oilpalm | K22: Orge | L22: maíz | M22: crop_selection | N22: =HLOOKUP($D$2,$J$10:$M22,$A22,FALSE) -> oilpalm | O22: crop_selection13
A23: 14 | B23: rice | C23: riz | D23: arroz | E23: crop | F23: =HLOOKUP($D$2,$B$10:$D23,$A23,FALSE) -> rice | G23: crop14 | J23: rice | K23: Noix de coco | L23: mijo | M23: crop_selection | N23: =HLOOKUP($D$2,$J$10:$M23,$A23,FALSE) -> rice | O23: crop_selection14
A24: 15 | B24: rye | C24: seigle | D24: centeno | E24: crop | F24: =HLOOKUP($D$2,$B$10:$D24,$A24,FALSE) -> rye | G24: crop15 | J24: rye | K24: Palmier à huile | L24: palma aceitera | M24: crop_selection | N24: =HLOOKUP($D$2,$J$10:$M24,$A24,FALSE) -> rye | O24: crop_selection15
A25: 16 | B25: sorghum | C25: sorgho | D25: sorgo | E25: crop | F25: =HLOOKUP($D$2,$B$10:$D25,$A25,FALSE) -> sorghum | G25: crop16 | J25: sorghum | K25: Riz | L25: soja | M25: crop_selection | N25: =HLOOKUP($D$2,$J$10:$M25,$A25,FALSE) -> sorghum | O25: crop_selection16
A26: 17 | B26: soybean | C26: soja | D26: soja | E26: crop | F26: =HLOOKUP($D$2,$B$10:$D26,$A26,FALSE) -> soybean | G26: crop17 | J26: soybean | K26: Seigle | L26: sorgo | M26: crop_selection | N26: =HLOOKUP($D$2,$J$10:$M26,$A26,FALSE) -> soybean | O26: crop_selection17
A27: 18 | B27: sugarcane | C27: canne à sucre | D27: caña de azúcar | E27: crop | F27: =HLOOKUP($D$2,$B$10:$D27,$A27,FALSE) -> sugarcane | G27: crop18 | J27: sugarcane | K27: Soja | L27: trigo | M27: crop_selection | N27: =HLOOKUP($D$2,$J$10:$M27,$A27,FALSE) -> sugarcane | O27: crop_selection18
A28: 19 | B28: wheat | C28: blé | D28: trigo | E28: crop | F28: =HLOOKUP($D$2,$B$10:$D28,$A28,FALSE) -> wheat | G28: crop19 | J28: wheat | K28: Sorgho | L28: yuca | M28: crop_selection | N28: =HLOOKUP($D$2,$J$10:$M28,$A28,FALSE) -> wheat | O28: crop_selection19
A29: 20 | B29: Crop | C29: Culture | D29: Cultivo | E29: crop | F29: =HLOOKUP($D$2,$B$10:$D29,$A29,FALSE) -> Crop | G29: crop20
A30: 21 | B30: residue | C30: Résidus | D30: Residuo | E30: residue | F30: =HLOOKUP($D$2,$B$10:$D30,$A30,FALSE) -> residue | G30: residue21
A31: 22 | B31: straw | C31: paille | D31: paja | E31: residue | F31: =HLOOKUP($D$2,$B$10:$D31,$A31,FALSE) -> straw | G31: residue22
A32: 23 | B32: pods | C32: cosses | D32: vainas | E32: residue | F32: =HLOOKUP($D$2,$B$10:$D32,$A32,FALSE) -> pods | G32: residue23
A33: 24 | B33: stalk | C33: tige | D33: tallos | E33: residue | F33: =HLOOKUP($D$2,$B$10:$D33,$A33,FALSE) -> stalk | G33: residue24
A34: 25 | B34: fronds | C34: feuilles | D34: follaje | E34: residue | F34: =HLOOKUP($D$2,$B$10:$D34,$A34,FALSE) -> fronds | G34: residue25
A35: 26 | B35: husk | C35: écorce | D35: cascarilla | E35: residue | F35: =HLOOKUP($D$2,$B$10:$D35,$A35,FALSE) -> husk | G35: residue26
A36: 27 | B36: hull | C36: coques | D36: cáscara | E36: residue | F36: =HLOOKUP($D$2,$B$10:$D36,$A36,FALSE) -> hull | G36: residue27
A37: 28 | B37: shell | C37: coquille | D37: cáscara | E37: residue | F37: =HLOOKUP($D$2,$B$10:$D37,$A37,FALSE) -> shell | G37: residue28
A38: 29 | B38: cob | C38: cob | D38: mazorca | E38: residue | F38: =HLOOKUP($D$2,$B$10:$D38,$A38,FALSE) -> cob | G38: residue29
A39: 30 | B39: stover | C39: la canne | D39: rastrojo | E39: residue | F39: =HLOOKUP($D$2,$B$10:$D39,$A39,FALSE) -> stover | G39: residue30
A40: 31 | B40: empty bunches | C40: rafles | D40: racimos | E40: residue | F40: =HLOOKUP($D$2,$B$10:$D40,$A40,FALSE) -> empty bunches | G40: residue31
A41: 32 | B41: straw/stalk | C41: paille/tige | D41: paja/tallos | E41: residue | F41: =HLOOKUP($D$2,$B$10:$D41,$A41,FALSE) -> straw/stalk | G41: residue32
A42: 33 | B42: tops/leaves | C42: dessus/feuilles | D42: copa/hojas | E42: residue | F42: =HLOOKUP($D$2,$B$10:$D42,$A42,FALSE) -> tops/leaves | G42: residue33
A43: 34 | B43: baggase | C43: baggase | D43: bagazo | E43: residue | F43: =HLOOKUP($D$2,$B$10:$D43,$A43,FALSE) -> baggase | G43: residue34
A44: 35 | B44: average | C44: moyenne | D44: promedio | E44: param | F44: =HLOOKUP($D$2,$B$10:$D44,$A44,FALSE) -> average | G44: param35
A45: 36 | B45: min | C45: min | D45: min | E45: param | F45: =HLOOKUP($D$2,$B$10:$D45,$A45,FALSE) -> min | G45: param36
A46: 37 | B46: max | C46: max | D46: max | E46: param | F46: =HLOOKUP($D$2,$B$10:$D46,$A46,FALSE) -> max | G46: param37
A47: 38 | B47: stdev | C47: stdev | D47: stdev | E47: param | F47: =HLOOKUP($D$2,$B$10:$D47,$A47,FALSE) -> stdev | G47: param38

Sheet Country_Translation (hidden)
B2: Selection | C2: =title_label!$C$2 -> 1
B3: EN | C3: 1 | D3: COUNTRY_EN
B4: FR | C4: 2 | D4: COUNTRY_FR
B5: ES | C5: 3 | D5: COUNTRY_ES
B6: List For Selection | I6: List For Translation
A7: ID | B7: English | C7: French | D7: Spanish | E7: Typeof | F7: Ref | G7: Name | I7: English | J7: French | K7: Spanish | L7: Typeof | N7: English | O7: French | P7: Spanish | Q7: Typeof
A8: 1 | B8: 1 | C8: 2 | D8: 3 | I8: 1 | J8: 2 | K8: 3 | N8: 1 | O8: 2 | P8: 3
A9: 2 | B9: Select a country | C9: Sélectionner un pays | D9: Seleccione un país | E9: country | F9: =HLOOKUP($C$2,$B$8:$D9,$A9,FALSE) -> Select a country | G9: =$E9&$A9 -> country2 | I9: Select a country | J9: Sélectionner un pays | K9: Seleccione un país | L9: country
A10: 3 | B10: Afghanistan | C10: Afghanistan | D10: Afganistán | E10: country | F10: =HLOOKUP($C$2,$B$8:$D10,$A10,FALSE) -> Afghanistan | G10: =$E10&$A10 -> country3 | I10: Afghanistan | J10: Afghanistan | K10: Afganistán | L10: country | N10: Indian Subcontinent | O10: Sous-continent Indien | P10: Subcontinente de La India | Q10: newregion | R10: =HLOOKUP($C$2,$N$8:$P10,$A10,FALSE) -> Indian Subcontinent | S10: =$Q10&$A10 -> newregion3
A11: 4 | B11: Albania | C11: Afrique du Sud | D11: Albania | E11: country | F11: =HLOOKUP($C$2,$B$8:$D11,$A11,FALSE) -> Albania | G11: country4 | I11: Albania | J11: Albanie | K11: Albania | L11: country | N11: Eastern Europe | O11: Europe Occidentale | P11: Europa del Este | Q11: newregion | R11: =HLOOKUP($C$2,$N$8:$P11,$A11,FALSE) -> Eastern Europe | S11: =$Q11&$A11 -> newregion4
A12: 5 | B12: Algeria | C12: Albanie | D12: Alemania | E12: country | F12: =HLOOKUP($C$2,$B$8:$D12,$A12,FALSE) -> Algeria | G12: country5 | I12: Algeria | J12: Algérie | K12: Argelia | L12: country | N12: Africa | O12: Europe de l’Est | P12: Europa Occidental | Q12: newregion | R12: =HLOOKUP($C$2,$N$8:$P12,$A12,FALSE) -> Africa | S12: newregion5
A13: 6 | B13: American Samoa | C13: Algérie | D13: Andorra | E13: country | F13: =HLOOKUP($C$2,$B$8:$D13,$A13,FALSE) -> American Samoa | G13: country6 | I13: American Samoa | J13: Samoa américaines | K13: Samoa Americana | L13: country | N13: Oceania | O13: Afrique | P13: Europa Occidental | Q13: newregion | R13: =HLOOKUP($C$2,$N$8:$P13,$A13,FALSE) -> Oceania | S13: newregion6
A14: 7 | B14: Andorra | C14: Allemagne | D14: Angola | E14: country | F14: =HLOOKUP($C$2,$B$8:$D14,$A14,FALSE) -> Andorra | G14: country7 | I14: Andorra | J14: Andorre | K14: Andorra | L14: country | N14: Western Europe | O14: Europe Occidentale | P14: África | Q14: newregion | R14: =HLOOKUP($C$2,$N$8:$P14,$A14,FALSE) -> Western Europe | S14: newregion7
A15: 8 | B15: Angola | C15: Andorre | D15: Anguila | E15: country | F15: =HLOOKUP($C$2,$B$8:$D15,$A15,FALSE) -> Angola | G15: country8 | I15: Angola | J15: Angola | K15: Angola | L15: country | N15: Africa | O15: Europe Occidentale | P15: América Latina | Q15: newregion | R15: =HLOOKUP($C$2,$N$8:$P15,$A15,FALSE) -> Africa | S15: newregion8
A16: 9 | B16: Anguilla | C16: Angola | D16: Antigua y Barbuda | E16: country | F16: =HLOOKUP($C$2,$B$8:$D16,$A16,FALSE) -> Anguilla | G16: country9 | I16: Anguilla | J16: Anguilla | K16: Anguila | L16: country | N16: Latin America | O16: Afrique | P16: América Latina | Q16: newregion | R16: =HLOOKUP($C$2,$N$8:$P16,$A16,FALSE) -> Latin America | S16: newregion9
A17: 10 | B17: Antigua and Barbuda | C17: Anguilla | D17: Arabia Saudita | E17: country | F17: =HLOOKUP($C$2,$B$8:$D17,$A17,FALSE) -> Antigua and Barbuda | G17: country10 | I17: Antigua and Barbuda | J17: Antigua-et-Barbuda | K17: Antigua y Barbuda | L17: country | N17: Latin America | O17: Amérique Latine | P17: Oriente Próximo | Q17: newregion | R17: =HLOOKUP($C$2,$N$8:$P17,$A17,FALSE) -> Latin America | S17: newregion10
A18: 11 | B18: Argentina | C18: Antigua-et-Barbuda | D18: Argelia | E18: country | F18: =HLOOKUP($C$2,$B$8:$D18,$A18,FALSE) -> Argentina | G18: country11 | I18: Argentina | J18: Argentine | K18: Argentina | L18: country | N18: Latin America | O18: Amérique Latine | P18: África | Q18: newregion | R18: =HLOOKUP($C$2,$N$8:$P18,$A18,FALSE) -> Latin America | S18: newregion11
A19: 12 | B19: Armenia | C19: Arabie saoudite | D19: Argentina | E19: country | F19: =HLOOKUP($C$2,$B$8:$D19,$A19,FALSE) -> Armenia | G19: country12 | I19: Armenia | J19: Arménie | K19: Armenia | L19: country | N19: Asia | O19: Afrique | P19: América Latina | Q19: newregion | R19: =HLOOKUP($C$2,$N$8:$P19,$A19,FALSE) -> Asia | S19: newregion12
A20: 13 | B20: Aruba | C20: Argentine | D20: Armenia | E20: country | F20: =HLOOKUP($C$2,$B$8:$D20,$A20,FALSE) -> Aruba | G20: country13 | I20: Aruba | J20: Aruba | K20: Aruba | L20: country | N20: Latin America | O20: Amérique Latine | P20: Asia | Q20: newregion | R20: =HLOOKUP($C$2,$N$8:$P20,$A20,FALSE) -> Latin America | S20: newregion13
A21: 14 | B21: Australia | C21: Arménie | D21: Aruba | E21: country | F21: =HLOOKUP($C$2,$B$8:$D21,$A21,FALSE) -> Australia | G21: country14 | I21: Australia | J21: Australie | K21: Australia | L21: country | N21: Oceania | O21: Asie | P21: América Latina | Q21: newregion | R21: =HLOOKUP($C$2,$N$8:$P21,$A21,FALSE) -> Oceania | S21: newregion14
A22: 15 | B22: Austria | C22: Aruba | D22: Australia | E22: country | F22: =HLOOKUP($C$2,$B$8:$D22,$A22,FALSE) -> Austria | G22: country15 | I22: Austria | J22: Autriche | K22: Austria | L22: country | N22: Western Europe | O22: Amérique Latine | P22: Oceanía | Q22: newregion | R22: =HLOOKUP($C$2,$N$8:$P22,$A22,FALSE) -> Western Europe | S22: newregion15
A23: 16 | B23: Azerbaijan | C23: Australie | D23: Austria | E23: country | F23: =HLOOKUP($C$2,$B$8:$D23,$A23,FALSE) -> Azerbaijan | G23: country16 | I23: Azerbaijan | J23: Azerbaïdjan | K23: Azerbaiyán | L23: country | N23: Asia | O23: Océanie | P23: Europa Occidental | Q23: newregion | R23: =HLOOKUP($C$2,$N$8:$P23,$A23,FALSE) -> Asia | S23: newregion16
A24: 17 | B24: Bahamas | C24: Autriche | D24: Azerbaiyán | E24: country | F24: =HLOOKUP($C$2,$B$8:$D24,$A24,FALSE) -> Bahamas | G24: country17 | I24: Bahamas | J24: Bahamas | K24: Bahamas | L24: country | N24: Latin America | O24: Europe Occidentale | P24: Asia | Q24: newregion | R24: =HLOOKUP($C$2,$N$8:$P24,$A24,FALSE) -> Latin America | S24: newregion17
A25: 18 | B25: Bahrain | C25: Azerbaïdjan | D25: Bahamas | E25: country | F25: =HLOOKUP($C$2,$B$8:$D25,$A25,FALSE) -> Bahrain | G25: country18 | I25: Bahrain | J25: Bahreïn | K25: Bahrein | L25: country | N25: Asia | O25: Asie | P25: América Latina | Q25: newregion | R25: =HLOOKUP($C$2,$N$8:$P25,$A25,FALSE) -> Asia | S25: newregion18
A26: 19 | B26: Bangladesh | C26: Bahamas | D26: Bahrein | E26: country | F26: =HLOOKUP($C$2,$B$8:$D26,$A26,FALSE) -> Bangladesh | G26: country19 | I26: Bangladesh | J26: Bangladesh | K26: Bangladesh | L26: country | N26: Indian Subcontinent | O26: Amérique Latine | P26: Asia | Q26: newregion | R26: =HLOOKUP($C$2,$N$8:$P26,$A26,FALSE) -> Indian Subcontinent | S26: newregion19
A27: 20 | B27: Barbados | C27: Bahreïn | D27: Bangladesh | E27: country | F27: =HLOOKUP($C$2,$B$8:$D27,$A27,FALSE) -> Barbados | G27: country20 | I27: Barbados | J27: Barbade | K27: Barbados | L27: country | N27: Latin America | O27: Asie | P27: Subcontinente de La India | Q27: newregion | R27: =HLOOKUP($C$2,$N$8:$P27,$A27,FALSE) -> Latin America | S27: newregion20
A28: 21 | B28: Belarus | C28: Bangladesh | D28: Barbados | E28: country | F28: =HLOOKUP($C$2,$B$8:$D28,$A28,FALSE) -> Belarus | G28: country21 | I28: Belarus | J28: Bélarus | K28: Belarús | L28: country | N28: Eastern Europe | O28: Sous-continent Indien | P28: América Latina | Q28: newregion | R28: =HLOOKUP($C$2,$N$8:$P28,$A28,FALSE) -> Eastern Europe | S28: newregion21
A29: 22 | B29: Belgium | C29: Barbade | D29: Belarús | E29: country | F29: =HLOOKUP($C$2,$B$8:$D29,$A29,FALSE) -> Belgium | G29: country22 | I29: Belgium | J29: Belgique | K29: Bélgica | L29: country | N29: Western Europe | O29: Amérique Latine | P29: Europa del Este | Q29: newregion | R29: =HLOOKUP($C$2,$N$8:$P29,$A29,FALSE) -> Western Europe | S29: newregion22
A30: 23 | B30: Belize | C30: Bélarus | D30: Bélgica | E30: country | F30: =HLOOKUP($C$2,$B$8:$D30,$A30,FALSE) -> Belize | G30: country23 | I30: Belize | J30: Belize | K30: Belice | L30: country | N30: Latin America | O30: Europe de l’Est | P30: Europa Occidental | Q30: newregion | R30: =HLOOKUP($C$2,$N$8:$P30,$A30,FALSE) -> Latin America | S30: newregion23
A31: 24 | B31: Benin | C31: Belgique | D31: Belice | E31: country | F31: =HLOOKUP($C$2,$B$8:$D31,$A31,FALSE) -> Benin | G31: country24 | I31: Benin | J31: Bénin | K31: Benin | L31: country | N31: Africa | O31: Europe Occidentale | P31: América Latina | Q31: newregion | R31: =HLOOKUP($C$2,$N$8:$P31,$A31,FALSE) -> Africa | S31: newregion24
A32: 25 | B32: Bermuda | C32: Belize | D32: Benin | E32: country | F32: =HLOOKUP($C$2,$B$8:$D32,$A32,FALSE) -> Bermuda | G32: country25 | I32: Bermuda | J32: Bermudes | K32: Bermudas | L32: country | N32: North America | O32: Amérique Latine | P32: África | Q32: newregion | R32: =HLOOKUP($C$2,$N$8:$P32,$A32,FALSE) -> North America | S32: newregion25
A33: 26 | B33: Bhutan | C33: Bénin | D33: Bermudas | E33: country | F33: =HLOOKUP($C$2,$B$8:$D33,$A33,FALSE) -> Bhutan | G33: country26 | I33: Bhutan | J33: Bhoutan | K33: Bután | L33: country | N33: Indian Subcontinent | O33: Afrique | P33: Norteamérica | Q33: newregion | R33: =HLOOKUP($C$2,$N$8:$P33,$A33,FALSE) -> Indian Subcontinent | S33: newregion26
A34: 27 | B34: Bolivia (Plurinational State of) | C34: Bermudes | D34: Bolivia (Estado Plurinacional de) | E34: country | F34: =HLOOKUP($C$2,$B$8:$D34,$A34,FALSE) -> Bolivia (Plurinational State of) | G34: country27 | I34: Bolivia (Plurinational State of) | J34: Bolivie (État plurinational de) | K34: Bolivia (Estado Plurinacional de) | L34: country | N34: Latin America | O34: Amérique du Nord | P34: América Latina | Q34: newregion | R34: =HLOOKUP($C$2,$N$8:$P34,$A34,FALSE) -> Latin America | S34: newregion27
A35: 28 | B35: Bosnia and Herzegovina | C35: Bhoutan | D35: Bosnia y Herzegovina | E35: country | F35: =HLOOKUP($C$2,$B$8:$D35,$A35,FALSE) -> Bosnia and Herzegovina | G35: country28 | I35: Bosnia and Herzegovina | J35: Bosnie-Herzégovine | K35: Bosnia y Herzegovina | L35: country | N35: Eastern Europe | O35: Sous-continent Indien | P35: Europa del Este | Q35: newregion | R35: =HLOOKUP($C$2,$N$8:$P35,$A35,FALSE) -> Eastern Europe | S35: newregion28
A36: 29 | B36: Botswana | C36: Bolivie (État plurinational de) | D36: Botswana | E36: country | F36: =HLOOKUP($C$2,$B$8:$D36,$A36,FALSE) -> Botswana | G36: country29 | I36: Botswana | J36: Botswana | K36: Botswana | L36: country | N36: Africa | O36: Amérique Latine | P36: África | Q36: newregion | R36: =HLOOKUP($C$2,$N$8:$P36,$A36,FALSE) -> Africa | S36: newregion29
A37: 30 | B37: Brazil | C37: Bosnie-Herzégovine | D37: Brasil | E37: country | F37: =HLOOKUP($C$2,$B$8:$D37,$A37,FALSE) -> Brazil | G37: country30 | I37: Brazil | J37: Brésil | K37: Brasil | L37: country | N37: Latin America | O37: Europe de l’Est | P37: América Latina | Q37: newregion | R37: =HLOOKUP($C$2,$N$8:$P37,$A37,FALSE) -> Latin America | S37: newregion30
A38: 31 | B38: British Virgin Islands | C38: Botswana | D38: Brunei Darussalam | E38: country | F38: =HLOOKUP($C$2,$B$8:$D38,$A38,FALSE) -> British Virgin Islands | G38: country31 | I38: British Virgin Islands | J38: Îles Vierges britanniques | K38: Islas Vírgenes Británicas | L38: country | N38: Latin America | O38: Afrique | P38: Asia | Q38: newregion | R38: =HLOOKUP($C$2,$N$8:$P38,$A38,FALSE) -> Latin America | S38: newregion31
A39: 32 | B39: Brunei Darussalam | C39: Brésil | D39: Bulgaria | E39: country | F39: =HLOOKUP($C$2,$B$8:$D39,$A39,FALSE) -> Brunei Darussalam | G39: country32 | I39: Brunei Darussalam | J39: Brunéi Darussalam | K39: Brunei Darussalam | L39: country | N39: Asia | O39: Amérique Latine | P39: Europa del Este | Q39: newregion | R39: =HLOOKUP($C$2,$N$8:$P39,$A39,FALSE) -> Asia | S39: newregion32
A40: 33 | B40: Bulgaria | C40: Brunéi Darussalam | D40: Burkina Faso | E40: country | F40: =HLOOKUP($C$2,$B$8:$D40,$A40,FALSE) -> Bulgaria | G40: country33 | I40: Bulgaria | J40: Bulgarie | K40: Bulgaria | L40: country | N40: Eastern Europe | O40: Asie | P40: África | Q40: newregion | R40: =HLOOKUP($C$2,$N$8:$P40,$A40,FALSE) -> Eastern Europe | S40: newregion33
A41: 34 | B41: Burkina Faso | C41: Bulgarie | D41: Burundi | E41: country | F41: =HLOOKUP($C$2,$B$8:$D41,$A41,FALSE) -> Burkina Faso | G41: country34 | I41: Burkina Faso | J41: Burkina Faso | K41: Burkina Faso | L41: country | N41: Africa | O41: Europe de l’Est | P41: África | Q41: newregion | R41: =HLOOKUP($C$2,$N$8:$P41,$A41,FALSE) -> Africa | S41: newregion34
A42: 35 | B42: Burundi | C42: Burkina Faso | D42: Bután | E42: country | F42: =HLOOKUP($C$2,$B$8:$D42,$A42,FALSE) -> Burundi | G42: country35 | I42: Burundi | J42: Burundi | K42: Burundi | L42: country | N42: Africa | O42: Afrique | P42: Subcontinente de La India | Q42: newregion | R42: =HLOOKUP($C$2,$N$8:$P42,$A42,FALSE) -> Africa | S42: newregion35
A43: 36 | B43: Cambodia | C43: Burundi | D43: Cabo Verde | E43: country | F43: =HLOOKUP($C$2,$B$8:$D43,$A43,FALSE) -> Cambodia | G43: country36 | I43: Cambodia | J43: Cambodge | K43: Camboya | L43: country | N43: Asia | O43: Afrique | P43: África | Q43: newregion | R43: =HLOOKUP($C$2,$N$8:$P43,$A43,FALSE) -> Asia | S43: newregion36
A44: 37 | B44: Cameroon | C44: Cabo Verde | D44: Camboya | E44: country | F44: =HLOOKUP($C$2,$B$8:$D44,$A44,FALSE) -> Cameroon | G44: country37 | I44: Cameroon | J44: Cameroun | K44: Camerún | L44: country | N44: Africa | O44: Afrique | P44: Asia | Q44: newregion | R44: =HLOOKUP($C$2,$N$8:$P44,$A44,FALSE) -> Africa | S44: newregion37
A45: 38 | B45: Canada | C45: Cambodge | D45: Camerún | E45: country | F45: =HLOOKUP($C$2,$B$8:$D45,$A45,FALSE) -> Canada | G45: country38 | I45: Canada | J45: Canada | K45: Canadá | L45: country | N45: North America | O45: Asie | P45: África | Q45: newregion | R45: =HLOOKUP($C$2,$N$8:$P45,$A45,FALSE) -> North America | S45: newregion38
A46: 39 | B46: Cabo Verde | C46: Cameroun | D46: Canadá | E46: country | F46: =HLOOKUP($C$2,$B$8:$D46,$A46,FALSE) -> Cabo Verde | G46: country39 | I46: Cabo Verde | J46: Cabo Verde | K46: Cabo Verde | L46: country | N46: Africa | O46: Afrique | P46: Norteamérica | Q46: newregion | R46: =HLOOKUP($C$2,$N$8:$P46,$A46,FALSE) -> Africa | S46: newregion39
A47: 40 | B47: Cayman Islands | C47: Canada | D47: Chad | E47: country | F47: =HLOOKUP($C$2,$B$8:$D47,$A47,FALSE) -> Cayman Islands | G47: country40 | I47: Cayman Islands | J47: Îles Caïmanes | K47: Islas Caimán | L47: country | N47: Latin America | O47: Amérique du Nord | P47: África | Q47: newregion | R47: =HLOOKUP($C$2,$N$8:$P47,$A47,FALSE) -> Latin America | S47: newregion40
A48: 41 | B48: Central African Republic | C48: Chili | D48: Chile | E48: country | F48: =HLOOKUP($C$2,$B$8:$D48,$A48,FALSE) -> Central African Republic | G48: country41 | I48: Central African Republic | J48: République centrafricaine | K48: República Centroafricana | L48: country | N48: Africa | O48: Amérique Latine | P48: América Latina | Q48: newregion | R48: =HLOOKUP($C$2,$N$8:$P48,$A48,FALSE) -> Africa | S48: newregion41
A49: 42 | B49: Chad | C49: Chine | D49: China | E49: country | F49: =HLOOKUP($C$2,$B$8:$D49,$A49,FALSE) -> Chad | G49: country42 | I49: Chad | J49: Tchad | K49: Chad | L49: country | N49: Africa | O49: Asie | P49: Asia | Q49: newregion | R49: =HLOOKUP($C$2,$N$8:$P49,$A49,FALSE) -> Africa | S49: newregion42
A50: 43 | B50: Chile | C50: Chypre | D50: Chipre | E50: country | F50: =HLOOKUP($C$2,$B$8:$D50,$A50,FALSE) -> Chile | G50: country43 | I50: Chile | J50: Chili | K50: Chile | L50: country | N50: Latin America | O50: Europe de l’Est | P50: Asia | Q50: newregion | R50: =HLOOKUP($C$2,$N$8:$P50,$A50,FALSE) -> Latin America | S50: newregion43
A51: 44 | B51: China | C51: Colombie | D51: Colombia | E51: country | F51: =HLOOKUP($C$2,$B$8:$D51,$A51,FALSE) -> China | G51: country44 | I51: China | J51: Chine | K51: China | L51: country | N51: Asia | O51: Amérique Latine | P51: América Latina | Q51: newregion | R51: =HLOOKUP($C$2,$N$8:$P51,$A51,FALSE) -> Asia | S51: newregion44
A52: 45 | B52: Colombia | C52: Comores | D52: Comoras | E52: country | F52: =HLOOKUP($C$2,$B$8:$D52,$A52,FALSE) -> Colombia | G52: country45 | I52: Colombia | J52: Colombie | K52: Colombia | L52: country | N52: Latin America | O52: Afrique | P52: África | Q52: newregion | R52: =HLOOKUP($C$2,$N$8:$P52,$A52,FALSE) -> Latin America | S52: newregion45
A53: 46 | B53: Comoros | C53: Congo | D53: Congo | E53: country | F53: =HLOOKUP($C$2,$B$8:$D53,$A53,FALSE) -> Comoros | G53: country46 | I53: Comoros | J53: Comores | K53: Comoras | L53: country | N53: Africa | O53: Afrique | P53: África | Q53: newregion | R53: =HLOOKUP($C$2,$N$8:$P53,$A53,FALSE) -> Africa | S53: newregion46
A54: 47 | B54: Congo | C54: Costa Rica | D54: Costa Rica | E54: country | F54: =HLOOKUP($C$2,$B$8:$D54,$A54,FALSE) -> Congo | G54: country47 | I54: Congo | J54: Congo | K54: Congo | L54: country | N54: Africa | O54: Amérique Latine | P54: América Latina | Q54: newregion | R54: =HLOOKUP($C$2,$N$8:$P54,$A54,FALSE) -> Africa | S54: newregion47
A55: 48 | B55: Cook Islands | C55: Côte d'Ivoire | D55: Côte d'Ivoire | E55: country | F55: =HLOOKUP($C$2,$B$8:$D55,$A55,FALSE) -> Cook Islands | G55: country48 | I55: Cook Islands | J55: Îles Cook | K55: Islas Cook | L55: country | N55: Oceania | O55: Europe de l’Est | P55: África | Q55: newregion | R55: =HLOOKUP($C$2,$N$8:$P55,$A55,FALSE) -> Oceania | S55: newregion48
A56: 49 | B56: Costa Rica | C56: Croatie | D56: Croacia | E56: country | F56: =HLOOKUP($C$2,$B$8:$D56,$A56,FALSE) -> Costa Rica | G56: country49 | I56: Costa Rica | J56: Costa Rica | K56: Costa Rica | L56: country | N56: Latin America | O56: Amérique Latine | P56: Europa del Este | Q56: newregion | R56: =HLOOKUP($C$2,$N$8:$P56,$A56,FALSE) -> Latin America | S56: newregion49
A57: 50 | B57: Côte d'Ivoire | C57: Cuba | D57: Cuba | E57: country | F57: =HLOOKUP($C$2,$B$8:$D57,$A57,FALSE) -> Côte d'Ivoire | G57: country50 | I57: Côte d'Ivoire | J57: Côte d'Ivoire | K57: Côte d'Ivoire | L57: country | N57: Africa | O57: Asie | P57: América Latina | Q57: newregion | R57: =HLOOKUP($C$2,$N$8:$P57,$A57,FALSE) -> Africa | S57: newregion50
A58: 51 | B58: Croatia | C58: Danemark | D58: Dinamarca | E58: country | F58: =HLOOKUP($C$2,$B$8:$D58,$A58,FALSE) -> Croatia | G58: country51 | I58: Croatia | J58: Croatie | K58: Croacia | L58: country | N58: Eastern Europe | O58: Europe Occidentale | P58: Europa Occidental | Q58: newregion | R58: =HLOOKUP($C$2,$N$8:$P58,$A58,FALSE) -> Eastern Europe | S58: newregion51
A59: 52 | B59: Cuba | C59: Djibouti | D59: Djibouti | E59: country | F59: =HLOOKUP($C$2,$B$8:$D59,$A59,FALSE) -> Cuba | G59: country52 | I59: Cuba | J59: Cuba | K59: Cuba | L59: country | N59: Latin America | O59: Afrique | P59: África | Q59: newregion | R59: =HLOOKUP($C$2,$N$8:$P59,$A59,FALSE) -> Latin America | S59: newregion52
A60: 53 | B60: Cyprus | C60: Dominique | D60: Dominica | E60: country | F60: =HLOOKUP($C$2,$B$8:$D60,$A60,FALSE) -> Cyprus | G60: country53 | I60: Cyprus | J60: Chypre | K60: Chipre | L60: country | N60: Asia | O60: Amérique Latine | P60: América Latina | Q60: newregion | R60: =HLOOKUP($C$2,$N$8:$P60,$A60,FALSE) -> Asia | S60: newregion53
A61: 54 | B61: Czech Republic | C61: Égypte | D61: Ecuador | E61: country | F61: =HLOOKUP($C$2,$B$8:$D61,$A61,FALSE) -> Czech Republic | G61: country54 | I61: Czech Republic | J61: République tchèque | K61: República Checa | L61: country | N61: Eastern Europe | O61: Moyen Orient | P61: América Latina | Q61: newregion | R61: =HLOOKUP($C$2,$N$8:$P61,$A61,FALSE) -> Eastern Europe | S61: newregion54
A62: 55 | B62: Democratic People's Republic of Korea | C62: El Salvador | D62: Egipto | E62: country | F62: =HLOOKUP($C$2,$B$8:$D62,$A62,FALSE) -> Democratic People's Republic of Korea | G62: country55 | I62: Democratic People's Republic of Korea | J62: République populaire démocratique de Corée | K62: República Popular Democrática de Corea | L62: country | N62: Asia | O62: Amérique Latine | P62: Oriente Próximo | Q62: newregion | R62: =HLOOKUP($C$2,$N$8:$P62,$A62,FALSE) -> Asia | S62: newregion55
A63: 56 | B63: Democratic Republic of the Congo | C63: Émirats arabes unis | D63: El Salvador | E63: country | F63: =HLOOKUP($C$2,$B$8:$D63,$A63,FALSE) -> Democratic Republic of the Congo | G63: country56 | I63: Democratic Republic of the Congo | J63: République démocratique du Congo | K63: República Democrática del Congo | L63: country | N63: Africa | O63: Amérique Latine | P63: América Latina | Q63: newregion | R63: =HLOOKUP($C$2,$N$8:$P63,$A63,FALSE) -> Africa | S63: newregion56
A64: 57 | B64: Denmark | C64: Équateur | D64: Emiratos Árabes Unidos | E64: country | F64: =HLOOKUP($C$2,$B$8:$D64,$A64,FALSE) -> Denmark | G64: country57 | I64: Denmark | J64: Danemark | K64: Dinamarca | L64: country | N64: Western Europe | O64: Amérique Latine | P64: Oriente Próximo | Q64: newregion | R64: =HLOOKUP($C$2,$N$8:$P64,$A64,FALSE) -> Western Europe | S64: newregion57
A65: 58 | B65: Djibouti | C65: Érythrée | D65: Eritrea | E65: country | F65: =HLOOKUP($C$2,$B$8:$D65,$A65,FALSE) -> Djibouti | G65: country58 | I65: Djibouti | J65: Djibouti | K65: Djibouti | L65: country | N65: Africa | O65: Afrique | P65: África | Q65: newregion | R65: =HLOOKUP($C$2,$N$8:$P65,$A65,FALSE) -> Africa | S65: newregion58
A66: 59 | B66: Dominica | C66: Espagne | D66: Eslovaquia | E66: country | F66: =HLOOKUP($C$2,$B$8:$D66,$A66,FALSE) -> Dominica | G66: country59 | I66: Dominica | J66: Dominique | K66: Dominica | L66: country | N66: Latin America | O66: Afrique | P66: Europa del Este | Q66: newregion | R66: =HLOOKUP($C$2,$N$8:$P66,$A66,FALSE) -> Latin America | S66: newregion59
A67: 60 | B67: Dominican Republic | C67: Estonie | D67: Eslovenia | E67: country | F67: =HLOOKUP($C$2,$B$8:$D67,$A67,FALSE) -> Dominican Republic | G67: country60 | I67: Dominican Republic | J67: République dominicaine | K67: República Dominicana | L67: country | N67: Latin America | O67: Europe Occidentale | P67: Europa Occidental | Q67: newregion | R67: =HLOOKUP($C$2,$N$8:$P67,$A67,FALSE) -> Latin America | S67: newregion60
A68: 61 | B68: Ecuador | C68: États-Unis d'Amérique | D68: España | E68: country | F68: =HLOOKUP($C$2,$B$8:$D68,$A68,FALSE) -> Ecuador | G68: country61 | I68: Ecuador | J68: Équateur | K68: Ecuador | L68: country | N68: Latin America | O68: Asie | P68: Europa Occidental | Q68: newregion | R68: =HLOOKUP($C$2,$N$8:$P68,$A68,FALSE) -> Latin America | S68: newregion61
A69: 62 | B69: Egypt | C69: Éthiopie | D69: Estados Unidos de América | E69: country | F69: =HLOOKUP($C$2,$B$8:$D69,$A69,FALSE) -> Egypt | G69: country62 | I69: Egypt | J69: Égypte | K69: Egipto | L69: country | N69: Middle East | O69: Afrique | P69: Norteamérica | Q69: newregion | R69: =HLOOKUP($C$2,$N$8:$P69,$A69,FALSE) -> Middle East | S69: newregion62
A70: 63 | B70: El Salvador | C70: Fédération de Russie | D70: Estonia | E70: country | F70: =HLOOKUP($C$2,$B$8:$D70,$A70,FALSE) -> El Salvador | G70: country63 | I70: El Salvador | J70: El Salvador | K70: El Salvador | L70: country | N70: Latin America | O70: Asie | P70: Europa Occidental | Q70: newregion | R70: =HLOOKUP($C$2,$N$8:$P70,$A70,FALSE) -> Latin America | S70: newregion63
A71: 64 | B71: Equatorial Guinea | C71: Fidji | D71: Etiopía | E71: country | F71: =HLOOKUP($C$2,$B$8:$D71,$A71,FALSE) -> Equatorial Guinea | G71: country64 | I71: Equatorial Guinea | J71: Guinée équatoriale | K71: Guinea Ecuatorial | L71: country | N71: Africa | O71: Océanie | P71: África | Q71: newregion | R71: =HLOOKUP($C$2,$N$8:$P71,$A71,FALSE) -> Africa | S71: newregion64
A72: 65 | B72: Eritrea | C72: Finlande | D72: Federación de Rusia | E72: country | F72: =HLOOKUP($C$2,$B$8:$D72,$A72,FALSE) -> Eritrea | G72: country65 | I72: Eritrea | J72: Érythrée | K72: Eritrea | L72: country | N72: Africa | O72: Europe Occidentale | P72: Europa del Este | Q72: newregion | R72: =HLOOKUP($C$2,$N$8:$P72,$A72,FALSE) -> Africa | S72: newregion65
A73: 66 | B73: Estonia | C73: France | D73: Fiji | E73: country | F73: =HLOOKUP($C$2,$B$8:$D73,$A73,FALSE) -> Estonia | G73: country66 | I73: Estonia | J73: Estonie | K73: Estonia | L73: country | N73: Western Europe | O73: Europe Occidentale | P73: Oceanía | Q73: newregion | R73: =HLOOKUP($C$2,$N$8:$P73,$A73,FALSE) -> Western Europe | S73: newregion66
A74: 67 | B74: Ethiopia | C74: Gabon | D74: Filipinas | E74: country | F74: =HLOOKUP($C$2,$B$8:$D74,$A74,FALSE) -> Ethiopia | G74: =$E74&$A74 -> country67 | I74: Ethiopia | J74: Éthiopie | K74: Etiopía | L74: country | N74: Africa | O74: Afrique | P74: Asia | Q74: newregion | R74: =HLOOKUP($C$2,$N$8:$P74,$A74,FALSE) -> Africa | S74: newregion67
A75: 68 | B75: Faeroe Islands | C75: Gambie | D75: Finlandia | E75: country | F75: =HLOOKUP($C$2,$B$8:$D75,$A75,FALSE) -> Faeroe Islands | G75: country68 | I75: Faeroe Islands | J75: Îles Féroé | K75: Islas Feroe | L75: country | N75: Western Europe | O75: Afrique | P75: Europa Occidental | Q75: newregion | R75: =HLOOKUP($C$2,$N$8:$P75,$A75,FALSE) -> Western Europe | S75: =$Q75&$A75 -> newregion68
A76: 69 | B76: Falkland Islands (Malvinas) | C76: Géorgie | D76: Francia | E76: country | F76: =HLOOKUP($C$2,$B$8:$D76,$A76,FALSE) -> Falkland Islands (Malvinas) | G76: country69 | I76: Falkland Islands (Malvinas) | J76: Îles Falkland | K76: Islas Malvinas | L76: country | N76: Latin America | O76: Asie | P76: Europa Occidental | Q76: newregion | R76: =HLOOKUP($C$2,$N$8:$P76,$A76,FALSE) -> Latin America | S76: newregion69
A77: 70 | B77: Fiji | C77: Ghana | D77: Gabón | E77: country | F77: =HLOOKUP($C$2,$B$8:$D77,$A77,FALSE) -> Fiji | G77: country70 | I77: Fiji | J77: Fidji | K77: Fiji | L77: country | N77: Oceania | O77: Afrique | P77: África | Q77: newregion | R77: =HLOOKUP($C$2,$N$8:$P77,$A77,FALSE) -> Oceania | S77: newregion70
A78: 71 | B78: Finland | C78: Gibraltar | D78: Gambia | E78: country | F78: =HLOOKUP($C$2,$B$8:$D78,$A78,FALSE) -> Finland | G78: country71 | I78: Finland | J78: Finlande | K78: Finlandia | L78: country | N78: Western Europe | O78: Europe Occidentale | P78: África | Q78: newregion | R78: =HLOOKUP($C$2,$N$8:$P78,$A78,FALSE) -> Western Europe | S78: newregion71
A79: 72 | B79: France | C79: Grèce | D79: Georgia | E79: country | F79: =HLOOKUP($C$2,$B$8:$D79,$A79,FALSE) -> France | G79: country72 | I79: France | J79: France | K79: Francia | L79: country | N79: Western Europe | O79: Europe Occidentale | P79: Asia | Q79: newregion | R79: =HLOOKUP($C$2,$N$8:$P79,$A79,FALSE) -> Western Europe | S79: newregion72
A80: 73 | B80: French Guiana | C80: Grenade | D80: Ghana | E80: country | F80: =HLOOKUP($C$2,$B$8:$D80,$A80,FALSE) -> French Guiana | G80: country73 | I80: French Guiana | J80: Guyane française | K80: Guayana francesa | L80: country | N80: Latin America | O80: Amérique Latine | P80: África | Q80: newregion | R80: =HLOOKUP($C$2,$N$8:$P80,$A80,FALSE) -> Latin America | S80: newregion73
A81: 74 | B81: French Polynesia | C81: Groenland | D81: Gibraltar | E81: country | F81: =HLOOKUP($C$2,$B$8:$D81,$A81,FALSE) -> French Polynesia | G81: country74 | I81: French Polynesia | J81: Polynésie française | K81: Polinesia Francesa | L81: country | N81: Oceania | O81: Amérique du Nord | P81: Europa Occidental | Q81: newregion | R81: =HLOOKUP($C$2,$N$8:$P81,$A81,FALSE) -> Oceania | S81: newregion74
A82: 75 | B82: Gabon | C82: Guadeloupe | D82: Granada | E82: country | F82: =HLOOKUP($C$2,$B$8:$D82,$A82,FALSE) -> Gabon | G82: country75 | I82: Gabon | J82: Gabon | K82: Gabón | L82: country | N82: Africa | O82: Amérique Latine | P82: América Latina | Q82: newregion | R82: =HLOOKUP($C$2,$N$8:$P82,$A82,FALSE) -> Africa | S82: newregion75
A83: 76 | B83: Gambia | C83: Guam | D83: Grecia | E83: country | F83: =HLOOKUP($C$2,$B$8:$D83,$A83,FALSE) -> Gambia | G83: country76 | I83: Gambia | J83: Gambie | K83: Gambia | L83: country | N83: Africa | O83: Océanie | P83: Europa Occidental | Q83: newregion | R83: =HLOOKUP($C$2,$N$8:$P83,$A83,FALSE) -> Africa | S83: newregion76
A84: 77 | B84: Georgia | C84: Guatemala | D84: Groenlandia | E84: country | F84: =HLOOKUP($C$2,$B$8:$D84,$A84,FALSE) -> Georgia | G84: country77 | I84: Georgia | J84: Géorgie | K84: Georgia | L84: country | N84: Asia | O84: Amérique Latine | P84: Norteamérica | Q84: newregion | R84: =HLOOKUP($C$2,$N$8:$P84,$A84,FALSE) -> Asia | S84: newregion77
A85: 78 | B85: Germany | C85: Guinée | D85: Guadalupe | E85: country | F85: =HLOOKUP($C$2,$B$8:$D85,$A85,FALSE) -> Germany | G85: country78 | I85: Germany | J85: Allemagne | K85: Alemania | L85: country | N85: Western Europe | O85: Afrique | P85: América Latina | Q85: newregion | R85: =HLOOKUP($C$2,$N$8:$P85,$A85,FALSE) -> Western Europe | S85: newregion78
A86: 79 | B86: Ghana | C86: Guinée équatoriale | D86: Guam | E86: country | F86: =HLOOKUP($C$2,$B$8:$D86,$A86,FALSE) -> Ghana | G86: country79 | I86: Ghana | J86: Ghana | K86: Ghana | L86: country | N86: Africa | O86: Afrique | P86: Oceanía | Q86: newregion | R86: =HLOOKUP($C$2,$N$8:$P86,$A86,FALSE) -> Africa | S86: newregion79
A87: 80 | B87: Gibraltar | C87: Guinée-Bissau | D87: Guatemala | E87: country | F87: =HLOOKUP($C$2,$B$8:$D87,$A87,FALSE) -> Gibraltar | G87: country80 | I87: Gibraltar | J87: Gibraltar | K87: Gibraltar | L87: country | N87: Western Europe | O87: Afrique | P87: América Latina | Q87: newregion | R87: =HLOOKUP($C$2,$N$8:$P87,$A87,FALSE) -> Western Europe | S87: newregion80
A88: 81 | B88: Greece | C88: Guyana | D88: Guayana francesa | E88: country | F88: =HLOOKUP($C$2,$B$8:$D88,$A88,FALSE) -> Greece | G88: country81 | I88: Greece | J88: Grèce | K88: Granada | L88: country | N88: Western Europe | O88: Amérique Latine | P88: América Latina | Q88: newregion | R88: =HLOOKUP($C$2,$N$8:$P88,$A88,FALSE) -> Western Europe | S88: newregion81
A89: 82 | B89: Greenland | C89: Guyane française | D89: Guinea | E89: country | F89: =HLOOKUP($C$2,$B$8:$D89,$A89,FALSE) -> Greenland | G89: country82 | I89: Greenland | J89: Grenade | K89: Grecia | L89: country | N89: North America | O89: Amérique Latine | P89: África | Q89: newregion | R89: =HLOOKUP($C$2,$N$8:$P89,$A89,FALSE) -> North America | S89: newregion82
A90: 83 | B90: Grenada | C90: Haïti | D90: Guinea Ecuatorial | E90: country | F90: =HLOOKUP($C$2,$B$8:$D90,$A90,FALSE) -> Grenada | G90: country83 | I90: Grenada | J90: Groenland | K90: Groenlandia | L90: country | N90: Latin America | O90: Amérique Latine | P90: África | Q90: newregion | R90: =HLOOKUP($C$2,$N$8:$P90,$A90,FALSE) -> Latin America | S90: newregion83
A91: 84 | B91: Guadeloupe | C91: Honduras | D91: Guinea-Bissau | E91: country | F91: =HLOOKUP($C$2,$B$8:$D91,$A91,FALSE) -> Guadeloupe | G91: country84 | I91: Guadeloupe | J91: Guadeloupe | K91: Guadalupe | L91: country | N91: Latin America | O91: Europe Occidentale | P91: África | Q91: newregion | R91: =HLOOKUP($C$2,$N$8:$P91,$A91,FALSE) -> Latin America | S91: newregion84
A92: 85 | B92: Guam | C92: Hongrie | D92: Guyana | E92: country | F92: =HLOOKUP($C$2,$B$8:$D92,$A92,FALSE) -> Guam | G92: country85 | I92: Guam | J92: Guam | K92: Guam | L92: country | N92: Oceania | O92: Europe de l’Est | P92: América Latina | Q92: newregion | R92: =HLOOKUP($C$2,$N$8:$P92,$A92,FALSE) -> Oceania | S92: newregion85
A93: 86 | B93: Guatemala | C93: Îles Caïmanes | D93: Haití | E93: country | F93: =HLOOKUP($C$2,$B$8:$D93,$A93,FALSE) -> Guatemala | G93: country86 | I93: Guatemala | J93: Guatemala | K93: Guatemala | L93: country | N93: Latin America | O93: Amérique Latine | P93: América Latina | Q93: newregion | R93: =HLOOKUP($C$2,$N$8:$P93,$A93,FALSE) -> Latin America | S93: newregion86
A94: 87 | B94: Guinea | C94: Îles Cook | D94: Honduras | E94: country | F94: =HLOOKUP($C$2,$B$8:$D94,$A94,FALSE) -> Guinea | G94: country87 | I94: Guinea | J94: Guinée | K94: Guinea | L94: country | N94: Africa | O94: Océanie | P94: América Latina | Q94: newregion | R94: =HLOOKUP($C$2,$N$8:$P94,$A94,FALSE) -> Africa | S94: newregion87
A95: 88 | B95: Guinea-Bissau | C95: Îles Falkland | D95: Hungría | E95: country | F95: =HLOOKUP($C$2,$B$8:$D95,$A95,FALSE) -> Guinea-Bissau | G95: country88 | I95: Guinea-Bissau | J95: Guinée-Bissau | K95: Guinea-Bissau | L95: country | N95: Africa | O95: Europe Occidentale | P95: Europa del Este | Q95: newregion | R95: =HLOOKUP($C$2,$N$8:$P95,$A95,FALSE) -> Africa | S95: newregion88
A96: 89 | B96: Guyana | C96: Îles Féroé | D96: India | E96: country | F96: =HLOOKUP($C$2,$B$8:$D96,$A96,FALSE) -> Guyana | G96: country89 | I96: Guyana | J96: Guyana | K96: Guyana | L96: country | N96: Latin America | O96: Amérique Latine | P96: Subcontinente de La India | Q96: newregion | R96: =HLOOKUP($C$2,$N$8:$P96,$A96,FALSE) -> Latin America | S96: newregion89
A97: 90 | B97: Haiti | C97: Îles Mariannes du Nord | D97: Indonesia | E97: country | F97: =HLOOKUP($C$2,$B$8:$D97,$A97,FALSE) -> Haiti | G97: country90 | I97: Haiti | J97: Haïti | K97: Haití | L97: country | N97: Latin America | O97: Europe Occidentale | P97: Asia | Q97: newregion | R97: =HLOOKUP($C$2,$N$8:$P97,$A97,FALSE) -> Latin America | S97: newregion90
A98: 91 | B98: Holy See | C98: Îles Marshall | D98: Irán (República Islámica del) | E98: country | F98: =HLOOKUP($C$2,$B$8:$D98,$A98,FALSE) -> Holy See | G98: country91 | I98: Holy See | J98: Saint-Siège | K98: Santa Sede | L98: country | N98: Western Europe | O98: Océanie | P98: Oriente Próximo | Q98: newregion | R98: =HLOOKUP($C$2,$N$8:$P98,$A98,FALSE) -> Western Europe | S98: newregion91
A99: 92 | B99: Honduras | C99: Îles Salomon | D99: Iraq | E99: country | F99: =HLOOKUP($C$2,$B$8:$D99,$A99,FALSE) -> Honduras | G99: country92 | I99: Honduras | J99: Honduras | K99: Honduras | L99: country | N99: Latin America | O99: Afrique | P99: Oriente Próximo | Q99: newregion | R99: =HLOOKUP($C$2,$N$8:$P99,$A99,FALSE) -> Latin America | S99: newregion92
A100: 93 | B100: Hungary | C100: Îles Turques et Caïques | D100: Irlanda | E100: country | F100: =HLOOKUP($C$2,$B$8:$D100,$A100,FALSE) -> Hungary | G100: country93 | I100: Hungary | J100: Hongrie | K100: Hungría | L100: country | N100: Eastern Europe | O100: Europe de l’Est | P100: Europa Occidental | Q100: newregion | R100: =HLOOKUP($C$2,$N$8:$P100,$A100,FALSE) -> Eastern Europe | S100: newregion93
A101: 94 | B101: Iceland | C101: Îles Vierges américaines | D101: Isla de Norfolk | E101: country | F101: =HLOOKUP($C$2,$B$8:$D101,$A101,FALSE) -> Iceland | G101: country94 | I101: Iceland | J101: Islande | K101: Islandia | L101: country | N101: Western Europe | O101: Océanie | P101: Oceanía | Q101: newregion | R101: =HLOOKUP($C$2,$N$8:$P101,$A101,FALSE) -> Western Europe | S101: newregion94
A102: 95 | B102: India | C102: Îles Vierges britanniques | D102: Islandia | E102: country | F102: =HLOOKUP($C$2,$B$8:$D102,$A102,FALSE) -> India | G102: country95 | I102: India | J102: Inde | K102: India | L102: country | N102: Indian Subcontinent | O102: Amérique Latine | P102: Europa Occidental | Q102: newregion | R102: =HLOOKUP($C$2,$N$8:$P102,$A102,FALSE) -> Indian Subcontinent | S102: newregion95
A103: 96 | B103: Indonesia | C103: Inde | D103: Islas Caimán | E103: country | F103: =HLOOKUP($C$2,$B$8:$D103,$A103,FALSE) -> Indonesia | G103: country96 | I103: Indonesia | J103: Indonésie | K103: Indonesia | L103: country | N103: Asia | O103: Sous-continent Indien | P103: América Latina | Q103: newregion | R103: =HLOOKUP($C$2,$N$8:$P103,$A103,FALSE) -> Asia | S103: newregion96
A104: 97 | B104: Iran (Islamic Republic of) | C104: Indonésie | D104: Islas Cook | E104: country | F104: =HLOOKUP($C$2,$B$8:$D104,$A104,FALSE) -> Iran (Islamic Republic of) | G104: country97 | I104: Iran (Islamic Republic of) | J104: Iran (République islamique d') | K104: Irán (República Islámica del) | L104: country | N104: Middle East | O104: Asie | P104: Oceanía | Q104: newregion | R104: =HLOOKUP($C$2,$N$8:$P104,$A104,FALSE) -> Middle East | S104: newregion97
A105: 98 | B105: Iraq | C105: Iran (République islamique d') | D105: Islas Feroe | E105: country | F105: =HLOOKUP($C$2,$B$8:$D105,$A105,FALSE) -> Iraq | G105: country98 | I105: Iraq | J105: Iraq | K105: Iraq | L105: country | N105: Middle East | O105: Moyen Orient | P105: Europa Occidental | Q105: newregion | R105: =HLOOKUP($C$2,$N$8:$P105,$A105,FALSE) -> Middle East | S105: newregion98
A106: 99 | B106: Ireland | C106: Iraq | D106: Islas Malvinas | E106: country | F106: =HLOOKUP($C$2,$B$8:$D106,$A106,FALSE) -> Ireland | G106: country99 | I106: Ireland | J106: Irlande | K106: Irlanda | L106: country | N106: Western Europe | O106: Moyen Orient | P106: América Latina | Q106: newregion | R106: =HLOOKUP($C$2,$N$8:$P106,$A106,FALSE) -> Western Europe | S106: newregion99
A107: 100 | B107: Israel | C107: Irlande | D107: Islas Marianas septentrionales | E107: country | F107: =HLOOKUP($C$2,$B$8:$D107,$A107,FALSE) -> Israel | G107: country100 | I107: Israel | J107: Israël | K107: Israel | L107: country | N107: Middle East | O107: Europe Occidentale | P107: Oceanía | Q107: newregion | R107: =HLOOKUP($C$2,$N$8:$P107,$A107,FALSE) -> Middle East | S107: newregion100
A108: 101 | B108: Italy | C108: Islande | D108: Islas Marshall | E108: country | F108: =HLOOKUP($C$2,$B$8:$D108,$A108,FALSE) -> Italy | G108: country101 | I108: Italy | J108: Italie | K108: Italia | L108: country | N108: Western Europe | O108: Europe Occidentale | P108: Oceanía | Q108: newregion | R108: =HLOOKUP($C$2,$N$8:$P108,$A108,FALSE) -> Western Europe | S108: newregion101
A109: 102 | B109: Jamaica | C109: Israël | D109: Islas Salomón | E109: country | F109: =HLOOKUP($C$2,$B$8:$D109,$A109,FALSE) -> Jamaica | G109: country102 | I109: Jamaica | J109: Jamaïque | K109: Jamaica | L109: country | N109: Latin America | O109: Moyen Orient | P109: Oceanía | Q109: newregion | R109: =HLOOKUP($C$2,$N$8:$P109,$A109,FALSE) -> Latin America | S109: newregion102
A110: 103 | B110: Japan | C110: Italie | D110: Islas Turcas y Caicos | E110: country | F110: =HLOOKUP($C$2,$B$8:$D110,$A110,FALSE) -> Japan | G110: country103 | I110: Japan | J110: Japon | K110: Japón | L110: country | N110: Asia | O110: Europe Occidentale | P110: América Latina | Q110: newregion | R110: =HLOOKUP($C$2,$N$8:$P110,$A110,FALSE) -> Asia | S110: newregion103
A111: 104 | B111: Jordan | C111: Jamaïque | D111: Islas Vírgenes (EE.UU.) | E111: country | F111: =HLOOKUP($C$2,$B$8:$D111,$A111,FALSE) -> Jordan | G111: country104 | I111: Jordan | J111: Jordanie | K111: Jordania | L111: country | N111: Middle East | O111: Amérique Latine | P111: América Latina | Q111: newregion | R111: =HLOOKUP($C$2,$N$8:$P111,$A111,FALSE) -> Middle East | S111: newregion104
A112: 105 | B112: Kazakhstan | C112: Japon | D112: Islas Vírgenes Británicas | E112: country | F112: =HLOOKUP($C$2,$B$8:$D112,$A112,FALSE) -> Kazakhstan | G112: country105 | I112: Kazakhstan | J112: Kazakhstan | K112: Kazajstán | L112: country | N112: Asia | O112: Asie | P112: América Latina | Q112: newregion | R112: =HLOOKUP($C$2,$N$8:$P112,$A112,FALSE) -> Asia | S112: newregion105
A113: 106 | B113: Kenya | C113: Jordanie | D113: Islas Wallis y Futuna | E113: country | F113: =HLOOKUP($C$2,$B$8:$D113,$A113,FALSE) -> Kenya | G113: country106 | I113: Kenya | J113: Kenya | K113: Kenya | L113: country | N113: Africa | O113: Moyen Orient | P113: Oceanía | Q113: newregion | R113: =HLOOKUP($C$2,$N$8:$P113,$A113,FALSE) -> Africa | S113: newregion106
A114: 107 | B114: Kiribati | C114: Kazakhstan | D114: Israel | E114: country | F114: =HLOOKUP($C$2,$B$8:$D114,$A114,FALSE) -> Kiribati | G114: country107 | I114: Kiribati | J114: Kiribati | K114: Kiribati | L114: country | N114: Oceania | O114: Asie | P114: Oriente Próximo | Q114: newregion | R114: =HLOOKUP($C$2,$N$8:$P114,$A114,FALSE) -> Oceania | S114: newregion107
A115: 108 | B115: Kuwait | C115: Kenya | D115: Italia | E115: country | F115: =HLOOKUP($C$2,$B$8:$D115,$A115,FALSE) -> Kuwait | G115: country108 | I115: Kuwait | J115: Koweït | K115: Kuwait | L115: country | N115: Middle East | O115: Afrique | P115: Europa Occidental | Q115: newregion | R115: =HLOOKUP($C$2,$N$8:$P115,$A115,FALSE) -> Middle East | S115: newregion108
A116: 109 | B116: Kyrgyzstan | C116: Kirghizistan | D116: Jamaica | E116: country | F116: =HLOOKUP($C$2,$B$8:$D116,$A116,FALSE) -> Kyrgyzstan | G116: country109 | I116: Kyrgyzstan | J116: Kirghizistan | K116: Kirguistán | L116: country | N116: Asia | O116: Asie | P116: América Latina | Q116: newregion | R116: =HLOOKUP($C$2,$N$8:$P116,$A116,FALSE) -> Asia | S116: newregion109
A117: 110 | B117: Lao People's Democratic Republic | C117: Kiribati | D117: Japón | E117: country | F117: =HLOOKUP($C$2,$B$8:$D117,$A117,FALSE) -> Lao People's Democratic Republic | G117: country110 | I117: Lao People's Democratic Republic | J117: République démocratique populaire lao | K117: República Democrática Popular Lao | L117: country | N117: Asia | O117: Océanie | P117: Asia | Q117: newregion | R117: =HLOOKUP($C$2,$N$8:$P117,$A117,FALSE) -> Asia | S117: newregion110
A118: 111 | B118: Latvia | C118: Koweït | D118: Jordania | E118: country | F118: =HLOOKUP($C$2,$B$8:$D118,$A118,FALSE) -> Latvia | G118: country111 | I118: Latvia | J118: Lettonie | K118: Letonia | L118: country | N118: Western Europe | O118: Moyen Orient | P118: Oriente Próximo | Q118: newregion | R118: =HLOOKUP($C$2,$N$8:$P118,$A118,FALSE) -> Western Europe | S118: newregion111
A119: 112 | B119: Lebanon | C119: Lesotho | D119: Kazajstán | E119: country | F119: =HLOOKUP($C$2,$B$8:$D119,$A119,FALSE) -> Lebanon | G119: country112 | I119: Lebanon | J119: Liban | K119: Líbano | L119: country | N119: Middle East | O119: Afrique | P119: Asia | Q119: newregion | R119: =HLOOKUP($C$2,$N$8:$P119,$A119,FALSE) -> Middle East | S119: newregion112
A120: 113 | B120: Lesotho | C120: Lettonie | D120: Kenya | E120: country | F120: =HLOOKUP($C$2,$B$8:$D120,$A120,FALSE) -> Lesotho | G120: country113 | I120: Lesotho | J120: Lesotho | K120: Lesotho | L120: country | N120: Africa | O120: Europe Occidentale | P120: África | Q120: newregion | R120: =HLOOKUP($C$2,$N$8:$P120,$A120,FALSE) -> Africa | S120: newregion113
A121: 114 | B121: Liberia | C121: Macédoine du Nord | D121: Kirguistán | E121: country | F121: =HLOOKUP($C$2,$B$8:$D121,$A121,FALSE) -> Liberia | G121: country114 | I121: Liberia | J121: Libéria | K121: Liberia | L121: country | N121: Africa | O121: Océanie | P121: Asia | Q121: newregion | R121: =HLOOKUP($C$2,$N$8:$P121,$A121,FALSE) -> Africa | S121: newregion114
A122: 115 | B122: Libya | C122: Liban | D122: Kiribati | E122: country | F122: =HLOOKUP($C$2,$B$8:$D122,$A122,FALSE) -> Libya | G122: country115 | I122: Libya | J122: Libye | K122: Libia | L122: country | N122: Africa | O122: Moyen Orient | P122: Oceanía | Q122: newregion | R122: =HLOOKUP($C$2,$N$8:$P122,$A122,FALSE) -> Africa | S122: newregion115
A123: 116 | B123: Liechtenstein | C123: Libéria | D123: Kuwait | E123: country | F123: =HLOOKUP($C$2,$B$8:$D123,$A123,FALSE) -> Liechtenstein | G123: country116 | I123: Liechtenstein | J123: Liechtenstein | K123: Liechtenstein | L123: country | N123: Western Europe | O123: Afrique | P123: Oriente Próximo | Q123: newregion | R123: =HLOOKUP($C$2,$N$8:$P123,$A123,FALSE) -> Western Europe | S123: newregion116
A124: 117 | B124: Lithuania | C124: Libye | D124: Macedonia del Norte | E124: country | F124: =HLOOKUP($C$2,$B$8:$D124,$A124,FALSE) -> Lithuania | G124: country117 | I124: Lithuania | J124: Lituanie | K124: Lituania | L124: country | N124: Western Europe | O124: Afrique | P124: Europa del Este | Q124: newregion | R124: =HLOOKUP($C$2,$N$8:$P124,$A124,FALSE) -> Western Europe | S124: newregion117
A125: 118 | B125: Luxembourg | C125: Liechtenstein | D125: Lesotho | E125: country | F125: =HLOOKUP($C$2,$B$8:$D125,$A125,FALSE) -> Luxembourg | G125: country118 | I125: Luxembourg | J125: Luxembourg | K125: Luxemburgo | L125: country | N125: Western Europe | O125: Europe Occidentale | P125: África | Q125: newregion | R125: =HLOOKUP($C$2,$N$8:$P125,$A125,FALSE) -> Western Europe | S125: newregion118
A126: 119 | B126: Madagascar | C126: l'île Norfolk | D126: Letonia | E126: country | F126: =HLOOKUP($C$2,$B$8:$D126,$A126,FALSE) -> Madagascar | G126: country119 | I126: Madagascar | J126: Madagascar | K126: Madagascar | L126: country | N126: Africa | O126: Océanie | P126: Europa Occidental | Q126: newregion | R126: =HLOOKUP($C$2,$N$8:$P126,$A126,FALSE) -> Africa | S126: newregion119
A127: 120 | B127: Malawi | C127: Lituanie | D127: Líbano | E127: country | F127: =HLOOKUP($C$2,$B$8:$D127,$A127,FALSE) -> Malawi | G127: country120 | I127: Malawi | J127: Malawi | K127: Malawi | L127: country | N127: Africa | O127: Europe Occidentale | P127: Oriente Próximo | Q127: newregion | R127: =HLOOKUP($C$2,$N$8:$P127,$A127,FALSE) -> Africa | S127: newregion120
A128: 121 | B128: Malaysia | C128: Luxembourg | D128: Liberia | E128: country | F128: =HLOOKUP($C$2,$B$8:$D128,$A128,FALSE) -> Malaysia | G128: country121 | I128: Malaysia | J128: Malaisie | K128: Malasia | L128: country | N128: Asia | O128: Europe Occidentale | P128: África | Q128: newregion | R128: =HLOOKUP($C$2,$N$8:$P128,$A128,FALSE) -> Asia | S128: newregion121
A129: 122 | B129: Maldives | C129: Madagascar | D129: Libia | E129: country | F129: =HLOOKUP($C$2,$B$8:$D129,$A129,FALSE) -> Maldives | G129: country122 | I129: Maldives | J129: Maldives | K129: Maldivas | L129: country | N129: Indian Subcontinent | O129: Afrique | P129: África | Q129: newregion | R129: =HLOOKUP($C$2,$N$8:$P129,$A129,FALSE) -> Indian Subcontinent | S129: newregion122
A130: 123 | B130: Mali | C130: Malaisie | D130: Liechtenstein | E130: country | F130: =HLOOKUP($C$2,$B$8:$D130,$A130,FALSE) -> Mali | G130: country123 | I130: Mali | J130: Mali | K130: Malí | L130: country | N130: Africa | O130: Asie | P130: Europa Occidental | Q130: newregion | R130: =HLOOKUP($C$2,$N$8:$P130,$A130,FALSE) -> Africa | S130: newregion123
A131: 124 | B131: Malta | C131: Malawi | D131: Lituania | E131: country | F131: =HLOOKUP($C$2,$B$8:$D131,$A131,FALSE) -> Malta | G131: country124 | I131: Malta | J131: Malte | K131: Malta | L131: country | N131: Western Europe | O131: Afrique | P131: Europa Occidental | Q131: newregion | R131: =HLOOKUP($C$2,$N$8:$P131,$A131,FALSE) -> Western Europe | S131: newregion124
A132: 125 | B132: Marshall Islands | C132: Maldives | D132: Luxemburgo | E132: country | F132: =HLOOKUP($C$2,$B$8:$D132,$A132,FALSE) -> Marshall Islands | G132: country125 | I132: Marshall Islands | J132: Îles Marshall | K132: Islas Marshall | L132: country | N132: Oceania | O132: Sous-continent Indien | P132: Europa Occidental | Q132: newregion | R132: =HLOOKUP($C$2,$N$8:$P132,$A132,FALSE) -> Oceania | S132: newregion125
A133: 126 | B133: Martinique | C133: Mali | D133: Madagascar | E133: country | F133: =HLOOKUP($C$2,$B$8:$D133,$A133,FALSE) -> Martinique | G133: country126 | I133: Martinique | J133: Martinique | K133: Martinica | L133: country | N133: Latin America | O133: Afrique | P133: África | Q133: newregion | R133: =HLOOKUP($C$2,$N$8:$P133,$A133,FALSE) -> Latin America | S133: newregion126
A134: 127 | B134: Mauritania | C134: Malte | D134: Malasia | E134: country | F134: =HLOOKUP($C$2,$B$8:$D134,$A134,FALSE) -> Mauritania | G134: country127 | I134: Mauritania | J134: Mauritanie | K134: Mauritania | L134: country | N134: Africa | O134: Europe Occidentale | P134: Asia | Q134: newregion | R134: =HLOOKUP($C$2,$N$8:$P134,$A134,FALSE) -> Africa | S134: newregion127
A135: 128 | B135: Mauritius | C135: Maroc | D135: Malawi | E135: country | F135: =HLOOKUP($C$2,$B$8:$D135,$A135,FALSE) -> Mauritius | G135: country128 | I135: Mauritius | J135: Maurice | K135: Mauricio | L135: country | N135: Africa | O135: Afrique | P135: África | Q135: newregion | R135: =HLOOKUP($C$2,$N$8:$P135,$A135,FALSE) -> Africa | S135: newregion128
A136: 129 | B136: Mayotte | C136: Martinique | D136: Maldivas | E136: country | F136: =HLOOKUP($C$2,$B$8:$D136,$A136,FALSE) -> Mayotte | G136: country129 | I136: Mayotte | J136: Mayotte | K136: Mayotte | L136: country | N136: Africa | O136: Amérique Latine | P136: Subcontinente de La India | Q136: newregion | R136: =HLOOKUP($C$2,$N$8:$P136,$A136,FALSE) -> Africa | S136: newregion129
A137: 130 | B137: Mexico | C137: Maurice | D137: Malí | E137: country | F137: =HLOOKUP($C$2,$B$8:$D137,$A137,FALSE) -> Mexico | G137: country130 | I137: Mexico | J137: Mexique | K137: México | L137: country | N137: Latin America | O137: Afrique | P137: África | Q137: newregion | R137: =HLOOKUP($C$2,$N$8:$P137,$A137,FALSE) -> Latin America | S137: newregion130
A138: 131 | B138: Micronesia (Federated States of) | C138: Mauritanie | D138: Malta | E138: country | F138: =HLOOKUP($C$2,$B$8:$D138,$A138,FALSE) -> Micronesia (Federated States of) | G138: =$E138&$A138 -> country131 | I138: Micronesia (Federated States of) | J138: Micronésie (États fédérés de) | K138: Micronesia (Estados Federados de) | L138: country | N138: Oceania | O138: Afrique | P138: Europa Occidental | Q138: newregion | R138: =HLOOKUP($C$2,$N$8:$P138,$A138,FALSE) -> Oceania | S138: newregion131
A139: 132 | B139: Monaco | C139: Mayotte | D139: Marruecos | E139: country | F139: =HLOOKUP($C$2,$B$8:$D139,$A139,FALSE) -> Monaco | G139: country132 | I139: Monaco | J139: Monaco | K139: Mónaco | L139: country | N139: Western Europe | O139: Afrique | P139: África | Q139: newregion | R139: =HLOOKUP($C$2,$N$8:$P139,$A139,FALSE) -> Western Europe | S139: =$Q139&$A139 -> newregion132
A140: 133 | B140: Mongolia | C140: Mexique | D140: Martinica | E140: country | F140: =HLOOKUP($C$2,$B$8:$D140,$A140,FALSE) -> Mongolia | G140: country133 | I140: Mongolia | J140: Mongolie | K140: Mongolia | L140: country | N140: Asia | O140: Amérique Latine | P140: América Latina | Q140: newregion | R140: =HLOOKUP($C$2,$N$8:$P140,$A140,FALSE) -> Asia | S140: newregion133
A141: 134 | B141: Montenegro | C141: Micronésie (États fédérés de) | D141: Mauricio | E141: country | F141: =HLOOKUP($C$2,$B$8:$D141,$A141,FALSE) -> Montenegro | G141: country134 | I141: Montenegro | J141: Monténégro | K141: Montenegro | L141: country | N141: Eastern Europe | O141: Océanie | P141: África | Q141: newregion | R141: =HLOOKUP($C$2,$N$8:$P141,$A141,FALSE) -> Eastern Europe | S141: newregion134
A142: 135 | B142: Montserrat | C142: Monaco | D142: Mauritania | E142: country | F142: =HLOOKUP($C$2,$B$8:$D142,$A142,FALSE) -> Montserrat | G142: country135 | I142: Montserrat | J142: Montserrat | K142: Montserrat | L142: country | N142: Latin America | O142: Europe Occidentale | P142: África | Q142: newregion | R142: =HLOOKUP($C$2,$N$8:$P142,$A142,FALSE) -> Latin America | S142: newregion135
A143: 136 | B143: Morocco | C143: Mongolie | D143: Mayotte | E143: country | F143: =HLOOKUP($C$2,$B$8:$D143,$A143,FALSE) -> Morocco | G143: country136 | I143: Morocco | J143: Maroc | K143: Marruecos | L143: country | N143: Africa | O143: Asie | P143: África | Q143: newregion | R143: =HLOOKUP($C$2,$N$8:$P143,$A143,FALSE) -> Africa | S143: newregion136
A144: 137 | B144: Mozambique | C144: Monténégro | D144: México | E144: country | F144: =HLOOKUP($C$2,$B$8:$D144,$A144,FALSE) -> Mozambique | G144: country137 | I144: Mozambique | J144: Mozambique | K144: Mozambique | L144: country | N144: Africa | O144: Europe de l’Est | P144: América Latina | Q144: newregion | R144: =HLOOKUP($C$2,$N$8:$P144,$A144,FALSE) -> Africa | S144: newregion137
A145: 138 | B145: Myanmar | C145: Montserrat | D145: Micronesia (Estados Federados de) | E145: country | F145: =HLOOKUP($C$2,$B$8:$D145,$A145,FALSE) -> Myanmar | G145: country138 | I145: Myanmar | J145: Myanmar | K145: Myanmar | L145: country | N145: Asia | O145: Amérique Latine | P145: Oceanía | Q145: newregion | R145: =HLOOKUP($C$2,$N$8:$P145,$A145,FALSE) -> Asia | S145: newregion138
A146: 139 | B146: Namibia | C146: Mozambique | D146: Mónaco | E146: country | F146: =HLOOKUP($C$2,$B$8:$D146,$A146,FALSE) -> Namibia | G146: country139 | I146: Namibia | J146: Namibie | K146: Namibia | L146: country | N146: Africa | O146: Afrique | P146: Europa Occidental | Q146: newregion | R146: =HLOOKUP($C$2,$N$8:$P146,$A146,FALSE) -> Africa | S146: newregion139
A147: 140 | B147: Nauru | C147: Myanmar | D147: Mongolia | E147: country | F147: =HLOOKUP($C$2,$B$8:$D147,$A147,FALSE) -> Nauru | G147: country140 | I147: Nauru | J147: Nauru | K147: Nauru | L147: country | N147: Oceania | O147: Asie | P147: Asia | Q147: newregion | R147: =HLOOKUP($C$2,$N$8:$P147,$A147,FALSE) -> Oceania | S147: newregion140
A148: 141 | B148: Nepal | C148: Namibie | D148: Montenegro | E148: country | F148: =HLOOKUP($C$2,$B$8:$D148,$A148,FALSE) -> Nepal | G148: country141 | I148: Nepal | J148: Népal | K148: Nepal | L148: country | N148: Indian Subcontinent | O148: Afrique | P148: Europa del Este | Q148: newregion | R148: =HLOOKUP($C$2,$N$8:$P148,$A148,FALSE) -> Indian Subcontinent | S148: newregion141
A149: 142 | B149: Netherlands | C149: Nauru | D149: Montserrat | E149: country | F149: =HLOOKUP($C$2,$B$8:$D149,$A149,FALSE) -> Netherlands | G149: country142 | I149: Netherlands | J149: Pays-Bas | K149: Países Bajos | L149: country | N149: Western Europe | O149: Océanie | P149: América Latina | Q149: newregion | R149: =HLOOKUP($C$2,$N$8:$P149,$A149,FALSE) -> Western Europe | S149: newregion142
A150: 143 | B150: New Caledonia | C150: Népal | D150: Mozambique | E150: country | F150: =HLOOKUP($C$2,$B$8:$D150,$A150,FALSE) -> New Caledonia | G150: country143 | I150: New Caledonia | J150: Nouvelle-Calédonie | K150: Nueva Caledonia | L150: country | N150: Oceania | O150: Sous-continent Indien | P150: África | Q150: newregion | R150: =HLOOKUP($C$2,$N$8:$P150,$A150,FALSE) -> Oceania | S150: newregion143
A151: 144 | B151: New Zealand | C151: Nicaragua | D151: Myanmar | E151: country | F151: =HLOOKUP($C$2,$B$8:$D151,$A151,FALSE) -> New Zealand | G151: country144 | I151: New Zealand | J151: Nouvelle-Zélande | K151: Nueva Zelandia | L151: country | N151: Oceania | O151: Amérique Latine | P151: Asia | Q151: newregion | R151: =HLOOKUP($C$2,$N$8:$P151,$A151,FALSE) -> Oceania | S151: newregion144
A152: 145 | B152: Nicaragua | C152: Niger | D152: Namibia | E152: country | F152: =HLOOKUP($C$2,$B$8:$D152,$A152,FALSE) -> Nicaragua | G152: country145 | I152: Nicaragua | J152: Nicaragua | K152: Nicaragua | L152: country | N152: Latin America | O152: Afrique | P152: África | Q152: newregion | R152: =HLOOKUP($C$2,$N$8:$P152,$A152,FALSE) -> Latin America | S152: newregion145
A153: 146 | B153: Niger | C153: Nigéria | D153: Nauru | E153: country | F153: =HLOOKUP($C$2,$B$8:$D153,$A153,FALSE) -> Niger | G153: country146 | I153: Niger | J153: Niger | K153: Níger | L153: country | N153: Africa | O153: Afrique | P153: Oceanía | Q153: newregion | R153: =HLOOKUP($C$2,$N$8:$P153,$A153,FALSE) -> Africa | S153: newregion146
A154: 147 | B154: Nigeria | C154: Nioué | D154: Nepal | E154: country | F154: =HLOOKUP($C$2,$B$8:$D154,$A154,FALSE) -> Nigeria | G154: country147 | I154: Nigeria | J154: Nigéria | K154: Nigeria | L154: country | N154: Africa | O154: Océanie | P154: Subcontinente de La India | Q154: newregion | R154: =HLOOKUP($C$2,$N$8:$P154,$A154,FALSE) -> Africa | S154: newregion147
A155: 148 | B155: Niue | C155: Norvège | D155: Nicaragua | E155: country | F155: =HLOOKUP($C$2,$B$8:$D155,$A155,FALSE) -> Niue | G155: country148 | I155: Niue | J155: Nioué | K155: Niue | L155: country | N155: Oceania | O155: Moyen Orient | P155: América Latina | Q155: newregion | R155: =HLOOKUP($C$2,$N$8:$P155,$A155,FALSE) -> Oceania | S155: newregion148
A156: 149 | B156: Norfolk Island | C156: Nouvelle-Calédonie | D156: Níger | E156: country | F156: =HLOOKUP($C$2,$B$8:$D156,$A156,FALSE) -> Norfolk Island | G156: country149 | I156: Norfolk Island | J156: l'île Norfolk | K156: Isla de Norfolk | L156: country | N156: Oceania | O156: Océanie | P156: África | Q156: newregion | R156: =HLOOKUP($C$2,$N$8:$P156,$A156,FALSE) -> Oceania | S156: newregion149
A157: 150 | B157: Northern Mariana Islands | C157: Nouvelle-Zélande | D157: Nigeria | E157: country | F157: =HLOOKUP($C$2,$B$8:$D157,$A157,FALSE) -> Northern Mariana Islands | G157: country150 | I157: Northern Mariana Islands | J157: Îles Mariannes du Nord | K157: Islas Marianas septentrionales | L157: country | N157: Oceania | O157: Océanie | P157: África | Q157: newregion | R157: =HLOOKUP($C$2,$N$8:$P157,$A157,FALSE) -> Oceania | S157: newregion150
A158: 151 | B158: Norway | C158: Oman | D158: Niue | E158: country | F158: =HLOOKUP($C$2,$B$8:$D158,$A158,FALSE) -> Norway | G158: country151 | I158: Norway | J158: Norvège | K158: Noruega | L158: country | N158: Western Europe | O158: Sous-continent Indien | P158: Oceanía | Q158: newregion | R158: =HLOOKUP($C$2,$N$8:$P158,$A158,FALSE) -> Western Europe | S158: newregion151
A159: 152 | B159: Occupied Palestinian Territory | C159: Ouganda | D159: Noruega | E159: country | F159: =HLOOKUP($C$2,$B$8:$D159,$A159,FALSE) -> Occupied Palestinian Territory | G159: country152 | I159: Occupied Palestinian Territory | J159: Territoire palestinien occupé | K159: Territorio Palestino Ocupado | L159: country | N159: Middle East | O159: Europe Occidentale | P159: Europa Occidental | Q159: newregion | R159: =HLOOKUP($C$2,$N$8:$P159,$A159,FALSE) -> Middle East | S159: newregion152
A160: 153 | B160: Oman | C160: Ouzbékistan | D160: Nueva Caledonia | E160: country | F160: =HLOOKUP($C$2,$B$8:$D160,$A160,FALSE) -> Oman | G160: country153 | I160: Oman | J160: Oman | K160: Omán | L160: country | N160: Middle East | O160: Asie | P160: Oceanía | Q160: newregion | R160: =HLOOKUP($C$2,$N$8:$P160,$A160,FALSE) -> Middle East | S160: newregion153
A161: 154 | B161: Pakistan | C161: Pakistan | D161: Nueva Zelandia | E161: country | F161: =HLOOKUP($C$2,$B$8:$D161,$A161,FALSE) -> Pakistan | G161: country154 | I161: Pakistan | J161: Pakistan | K161: Pakistán | L161: country | N161: Indian Subcontinent | O161: Océanie | P161: Oceanía | Q161: newregion | R161: =HLOOKUP($C$2,$N$8:$P161,$A161,FALSE) -> Indian Subcontinent | S161: newregion154
A162: 155 | B162: Palau | C162: Palaos | D162: Omán | E162: country | F162: =HLOOKUP($C$2,$B$8:$D162,$A162,FALSE) -> Palau | G162: country155 | I162: Palau | J162: Palaos | K162: Palau | L162: country | N162: Oceania | O162: Amérique Latine | P162: Oriente Próximo | Q162: newregion | R162: =HLOOKUP($C$2,$N$8:$P162,$A162,FALSE) -> Oceania | S162: newregion155
A163: 156 | B163: Panama | C163: Panama | D163: Países Bajos | E163: country | F163: =HLOOKUP($C$2,$B$8:$D163,$A163,FALSE) -> Panama | G163: country156 | I163: Panama | J163: Panama | K163: Panamá | L163: country | N163: Latin America | O163: Océanie | P163: Europa Occidental | Q163: newregion | R163: =HLOOKUP($C$2,$N$8:$P163,$A163,FALSE) -> Latin America | S163: newregion156
A164: 157 | B164: Papua New Guinea | C164: Papouasie-Nouvelle-Guinée | D164: Pakistán | E164: country | F164: =HLOOKUP($C$2,$B$8:$D164,$A164,FALSE) -> Papua New Guinea | G164: country157 | I164: Papua New Guinea | J164: Papouasie-Nouvelle-Guinée | K164: Papua Nueva Guinea | L164: country | N164: Oceania | O164: Amérique Latine | P164: Subcontinente de La India | Q164: newregion | R164: =HLOOKUP($C$2,$N$8:$P164,$A164,FALSE) -> Oceania | S164: newregion157
A165: 158 | B165: Paraguay | C165: Paraguay | D165: Palau | E165: country | F165: =HLOOKUP($C$2,$B$8:$D165,$A165,FALSE) -> Paraguay | G165: country158 | I165: Paraguay | J165: Paraguay | K165: Paraguay | L165: country | N165: Latin America | O165: Amérique Latine | P165: Oceanía | Q165: newregion | R165: =HLOOKUP($C$2,$N$8:$P165,$A165,FALSE) -> Latin America | S165: newregion158
A166: 159 | B166: Peru | C166: Pays-Bas | D166: Panamá | E166: country | F166: =HLOOKUP($C$2,$B$8:$D166,$A166,FALSE) -> Peru | G166: country159 | I166: Peru | J166: Pérou | K166: Perú | L166: country | N166: Latin America | O166: Europe Occidentale | P166: América Latina | Q166: newregion | R166: =HLOOKUP($C$2,$N$8:$P166,$A166,FALSE) -> Latin America | S166: newregion159
A167: 160 | B167: Philippines | C167: Pérou | D167: Papua Nueva Guinea | E167: country | F167: =HLOOKUP($C$2,$B$8:$D167,$A167,FALSE) -> Philippines | G167: country160 | I167: Philippines | J167: Philippines | K167: Filipinas | L167: country | N167: Asia | O167: Asie | P167: Oceanía | Q167: newregion | R167: =HLOOKUP($C$2,$N$8:$P167,$A167,FALSE) -> Asia | S167: newregion160
A168: 161 | B168: Poland | C168: Philippines | D168: Paraguay | E168: country | F168: =HLOOKUP($C$2,$B$8:$D168,$A168,FALSE) -> Poland | G168: country161 | I168: Poland | J168: Pologne | K168: Polonia | L168: country | N168: Eastern Europe | O168: Europe de l’Est | P168: América Latina | Q168: newregion | R168: =HLOOKUP($C$2,$N$8:$P168,$A168,FALSE) -> Eastern Europe | S168: newregion161
A169: 162 | B169: Portugal | C169: Pologne | D169: Perú | E169: country | F169: =HLOOKUP($C$2,$B$8:$D169,$A169,FALSE) -> Portugal | G169: country162 | I169: Portugal | J169: Portugal | K169: Portugal | L169: country | N169: Western Europe | O169: Europe Occidentale | P169: América Latina | Q169: newregion | R169: =HLOOKUP($C$2,$N$8:$P169,$A169,FALSE) -> Western Europe | S169: newregion162
A170: 163 | B170: Puerto Rico | C170: Polynésie française | D170: Polinesia Francesa | E170: country | F170: =HLOOKUP($C$2,$B$8:$D170,$A170,FALSE) -> Puerto Rico | G170: country163 | I170: Puerto Rico | J170: Porto Rico | K170: Puerto Rico | L170: country | N170: Latin America | O170: Océanie | P170: Oceanía | Q170: newregion | R170: =HLOOKUP($C$2,$N$8:$P170,$A170,FALSE) -> Latin America | S170: newregion163
A171: 164 | B171: Qatar | C171: Porto Rico | D171: Polonia | E171: country | F171: =HLOOKUP($C$2,$B$8:$D171,$A171,FALSE) -> Qatar | G171: country164 | I171: Qatar | J171: Qatar | K171: Qatar | L171: country | N171: Middle East | O171: Moyen Orient | P171: Europa del Este | Q171: newregion | R171: =HLOOKUP($C$2,$N$8:$P171,$A171,FALSE) -> Middle East | S171: newregion164
A172: 165 | B172: Réunion | C172: Portugal | D172: Portugal | E172: country | F172: =HLOOKUP($C$2,$B$8:$D172,$A172,FALSE) -> Réunion | G172: country165 | I172: Réunion | J172: Réunion | K172: Reunión | L172: country | N172: Asia | O172: Amérique Latine | P172: Europa Occidental | Q172: newregion | R172: =HLOOKUP($C$2,$N$8:$P172,$A172,FALSE) -> Asia | S172: newregion165
A173: 166 | B173: Republic of Moldova | C173: Qatar | D173: Puerto Rico | E173: country | F173: =HLOOKUP($C$2,$B$8:$D173,$A173,FALSE) -> Republic of Moldova | G173: country166 | I173: Republic of Moldova | J173: République de Moldova | K173: República de Moldova | L173: country | N173: Eastern Europe | O173: Afrique | P173: América Latina | Q173: newregion | R173: =HLOOKUP($C$2,$N$8:$P173,$A173,FALSE) -> Eastern Europe | S173: newregion166
A174: 167 | B174: Republic of Korea | C174: République arabe syrienne | D174: Qatar | E174: country | F174: =HLOOKUP($C$2,$B$8:$D174,$A174,FALSE) -> Republic of Korea | G174: country167 | I174: Republic of Korea | J174: République de Corée | K174: República de Corea | L174: country | N174: Africa | O174: Europe de l’Est | P174: Oriente Próximo | Q174: newregion | R174: =HLOOKUP($C$2,$N$8:$P174,$A174,FALSE) -> Africa | S174: newregion167
A175: 168 | B175: Romania | C175: République centrafricaine | D175: Reino Unido | E175: country | F175: =HLOOKUP($C$2,$B$8:$D175,$A175,FALSE) -> Romania | G175: country168 | I175: Romania | J175: Roumanie | K175: Rumania | L175: country | N175: Eastern Europe | O175: Afrique | P175: Europa Occidental | Q175: newregion | R175: =HLOOKUP($C$2,$N$8:$P175,$A175,FALSE) -> Eastern Europe | S175: newregion168
A176: 169 | B176: Russian Federation | C176: République de Corée | D176: República Árabe Siria | E176: country | F176: =HLOOKUP($C$2,$B$8:$D176,$A176,FALSE) -> Russian Federation | G176: country169 | I176: Russian Federation | J176: Fédération de Russie | K176: Federación de Rusia | L176: country | N176: Eastern Europe | O176: Europe de l’Est | P176: Oriente Próximo | Q176: newregion | R176: =HLOOKUP($C$2,$N$8:$P176,$A176,FALSE) -> Eastern Europe | S176: newregion169
A177: 170 | B177: Rwanda | C177: République de Moldova | D177: República Centroafricana | E177: country | F177: =HLOOKUP($C$2,$B$8:$D177,$A177,FALSE) -> Rwanda | G177: country170 | I177: Rwanda | J177: Rwanda | K177: Rwanda | L177: country | N177: Africa | O177: Europe de l’Est | P177: África | Q177: newregion | R177: =HLOOKUP($C$2,$N$8:$P177,$A177,FALSE) -> Africa | S177: newregion170
A178: 171 | B178: Saint Helena, Ascension and Tristan da Cunha | C178: République démocratique du Congo | D178: República Checa | E178: country | F178: =HLOOKUP($C$2,$B$8:$D178,$A178,FALSE) -> Saint Helena, Ascension and Tristan da Cunha | G178: country171 | I178: Saint Helena, Ascension and Tristan da Cunha | J178: Sainte-Hélène Ascension et Tristan de Cunha | K178: Santa Elena Ascension y Tristan da Cunha | L178: country | N178: Africa | O178: Afrique | P178: Europa del Este | Q178: newregion | R178: =HLOOKUP($C$2,$N$8:$P178,$A178,FALSE) -> Africa | S178: newregion171
A179: 172 | B179: Saint Kitts and Nevis | C179: République démocratique populaire lao | D179: República de Corea | E179: country | F179: =HLOOKUP($C$2,$B$8:$D179,$A179,FALSE) -> Saint Kitts and Nevis | G179: country172 | I179: Saint Kitts and Nevis | J179: Saint-Kitts-et-Nevis | K179: Saint Kitts y Nevis | L179: country | N179: Latin America | O179: Asie | P179: África | Q179: newregion | R179: =HLOOKUP($C$2,$N$8:$P179,$A179,FALSE) -> Latin America | S179: newregion172
A180: 173 | B180: Saint Lucia | C180: République dominicaine | D180: República de Moldova | E180: country | F180: =HLOOKUP($C$2,$B$8:$D180,$A180,FALSE) -> Saint Lucia | G180: country173 | I180: Saint Lucia | J180: Sainte-Lucie | K180: Santa Lucía | L180: country | N180: Latin America | O180: Amérique Latine | P180: Europa del Este | Q180: newregion | R180: =HLOOKUP($C$2,$N$8:$P180,$A180,FALSE) -> Latin America | S180: newregion173
A181: 174 | B181: Saint Pierre and Miquelon | C181: République populaire démocratique de Corée | D181: República Democrática del Congo | E181: country | F181: =HLOOKUP($C$2,$B$8:$D181,$A181,FALSE) -> Saint Pierre and Miquelon | G181: country174 | I181: Saint Pierre and Miquelon | J181: Saint-Pierre-et-Miquelon | K181: Saint-Pierre y Miquelon | L181: country | N181: North America | O181: Asie | P181: África | Q181: newregion | R181: =HLOOKUP($C$2,$N$8:$P181,$A181,FALSE) -> North America | S181: newregion174
A182: 175 | B182: Saint Vincent and the Grenadines | C182: République tchèque | D182: República Democrática Popular Lao | E182: country | F182: =HLOOKUP($C$2,$B$8:$D182,$A182,FALSE) -> Saint Vincent and the Grenadines | G182: country175 | I182: Saint Vincent and the Grenadines | J182: Saint-Vincent-et-les Grenadines | K182: San Vicente y las Granadinas | L182: country | N182: Latin America | O182: Afrique | P182: Asia | Q182: newregion | R182: =HLOOKUP($C$2,$N$8:$P182,$A182,FALSE) -> Latin America | S182: newregion175
A183: 176 | B183: Samoa | C183: République-Unie de Tanzanie | D183: República Dominicana | E183: country | F183: =HLOOKUP($C$2,$B$8:$D183,$A183,FALSE) -> Samoa | G183: country176 | I183: Samoa | J183: Samoa | K183: Samoa | L183: country | N183: Oceania | O183: Amérique Latine | P183: América Latina | Q183: newregion | R183: =HLOOKUP($C$2,$N$8:$P183,$A183,FALSE) -> Oceania | S183: newregion176
A184: 177 | B184: San Marino | C184: Réunion | D184: República Popular Democrática de Corea | E184: country | F184: =HLOOKUP($C$2,$B$8:$D184,$A184,FALSE) -> San Marino | G184: country177 | I184: San Marino | J184: Saint-Marin | K184: San Marino | L184: country | N184: Western Europe | O184: Europe de l’Est | P184: Asia | Q184: newregion | R184: =HLOOKUP($C$2,$N$8:$P184,$A184,FALSE) -> Western Europe | S184: newregion177
A185: 178 | B185: Sao Tome and Principe | C185: Roumanie | D185: República Unida de Tanzanía | E185: country | F185: =HLOOKUP($C$2,$B$8:$D185,$A185,FALSE) -> Sao Tome and Principe | G185: country178 | I185: Sao Tome and Principe | J185: Sao Tomé-et-Principe | K185: Santo Tomé y Príncipe | L185: country | N185: Africa | O185: Afrique | P185: África | Q185: newregion | R185: =HLOOKUP($C$2,$N$8:$P185,$A185,FALSE) -> Africa | S185: newregion178
A186: 179 | B186: Saudi Arabia | C186: Royaume-Uni | D186: Reunión | E186: country | F186: =HLOOKUP($C$2,$B$8:$D186,$A186,FALSE) -> Saudi Arabia | G186: country179 | I186: Saudi Arabia | J186: Arabie saoudite | K186: Arabia Saudita | L186: country | N186: Middle East | O186: Amérique du Nord | P186: Asia | Q186: newregion | R186: =HLOOKUP($C$2,$N$8:$P186,$A186,FALSE) -> Middle East | S186: newregion179
A187: 180 | B187: Senegal | C187: Rwanda | D187: Rumania | E187: country | F187: =HLOOKUP($C$2,$B$8:$D187,$A187,FALSE) -> Senegal | G187: country180 | I187: Senegal | J187: Sénégal | K187: Senegal | L187: country | N187: Africa | O187: Afrique | P187: Europa del Este | Q187: newregion | R187: =HLOOKUP($C$2,$N$8:$P187,$A187,FALSE) -> Africa | S187: newregion180
A188: 181 | B188: Serbia | C188: Sahara occidental | D188: Rwanda | E188: country | F188: =HLOOKUP($C$2,$B$8:$D188,$A188,FALSE) -> Serbia | G188: country181 | I188: Serbia | J188: Serbie | K188: Serbia | L188: country | N188: Eastern Europe | O188: Afrique | P188: África | Q188: newregion | R188: =HLOOKUP($C$2,$N$8:$P188,$A188,FALSE) -> Eastern Europe | S188: newregion181
A189: 182 | B189: Seychelles | C189: Sainte-Hélène Ascension et Tristan de Cunha | D189: Sáhara occidental | E189: country | F189: =HLOOKUP($C$2,$B$8:$D189,$A189,FALSE) -> Seychelles | G189: country182 | I189: Seychelles | J189: Seychelles | K189: Seychelles | L189: country | N189: Africa | O189: Amérique Latine | P189: África | Q189: newregion | R189: =HLOOKUP($C$2,$N$8:$P189,$A189,FALSE) -> Africa | S189: newregion182
A190: 183 | B190: Sierra Leone | C190: Sainte-Lucie | D190: Saint Kitts y Nevis | E190: country | F190: =HLOOKUP($C$2,$B$8:$D190,$A190,FALSE) -> Sierra Leone | G190: country183 | I190: Sierra Leone | J190: Sierra Leone | K190: Sierra Leona | L190: country | N190: Africa | O190: Amérique du Nord | P190: América Latina | Q190: newregion | R190: =HLOOKUP($C$2,$N$8:$P190,$A190,FALSE) -> Africa | S190: newregion183
A191: 184 | B191: Singapore | C191: Saint-Kitts-et-Nevis | D191: Saint-Pierre y Miquelon | E191: country | F191: =HLOOKUP($C$2,$B$8:$D191,$A191,FALSE) -> Singapore | G191: country184 | I191: Singapore | J191: Singapour | K191: Singapur | L191: country | N191: Asia | O191: Amérique Latine | P191: Norteamérica | Q191: newregion | R191: =HLOOKUP($C$2,$N$8:$P191,$A191,FALSE) -> Asia | S191: newregion184
A192: 185 | B192: Slovakia | C192: Saint-Marin | D192: Samoa | E192: country | F192: =HLOOKUP($C$2,$B$8:$D192,$A192,FALSE) -> Slovakia | G192: country185 | I192: Slovakia | J192: Slovaquie | K192: Eslovaquia | L192: country | N192: Eastern Europe | O192: Afrique | P192: Oceanía | Q192: newregion | R192: =HLOOKUP($C$2,$N$8:$P192,$A192,FALSE) -> Eastern Europe | S192: newregion185
A193: 186 | B193: Slovenia | C193: Saint-Pierre-et-Miquelon | D193: Samoa Americana | E193: country | F193: =HLOOKUP($C$2,$B$8:$D193,$A193,FALSE) -> Slovenia | G193: country186 | I193: Slovenia | J193: Slovénie | K193: Eslovenia | L193: country | N193: Western Europe | O193: Amérique Latine | P193: Oceanía | Q193: newregion | R193: =HLOOKUP($C$2,$N$8:$P193,$A193,FALSE) -> Western Europe | S193: newregion186
A194: 187 | B194: Solomon Islands | C194: Saint-Siège | D194: San Marino | E194: country | F194: =HLOOKUP($C$2,$B$8:$D194,$A194,FALSE) -> Solomon Islands | G194: country187 | I194: Solomon Islands | J194: Îles Salomon | K194: Islas Salomón | L194: country | N194: Oceania | O194: Amérique Latine | P194: Europa Occidental | Q194: newregion | R194: =HLOOKUP($C$2,$N$8:$P194,$A194,FALSE) -> Oceania | S194: newregion187
A195: 188 | B195: Somalia | C195: Saint-Vincent-et-les Grenadines | D195: San Vicente y las Granadinas | E195: country | F195: =HLOOKUP($C$2,$B$8:$D195,$A195,FALSE) -> Somalia | G195: country188 | I195: Somalia | J195: Somalie | K195: Somalia | L195: country | N195: Africa | O195: Océanie | P195: América Latina | Q195: newregion | R195: =HLOOKUP($C$2,$N$8:$P195,$A195,FALSE) -> Africa | S195: newregion188
A196: 189 | B196: South Africa | C196: Samoa | D196: Santa Elena Ascension y Tristan da Cunha | E196: country | F196: =HLOOKUP($C$2,$B$8:$D196,$A196,FALSE) -> South Africa | G196: country189 | I196: South Africa | J196: Afrique du Sud | K196: Sudáfrica | L196: country | N196: Africa | O196: Europe Occidentale | P196: África | Q196: newregion | R196: =HLOOKUP($C$2,$N$8:$P196,$A196,FALSE) -> Africa | S196: newregion189
A197: 190 | B197: South Sudan | C197: Samoa américaines | D197: Santa Lucía | E197: country | F197: =HLOOKUP($C$2,$B$8:$D197,$A197,FALSE) -> South Sudan | G197: country190 | I197: South Sudan | J197: Sud du Soudan | K197: Sudan del Sur | L197: country | N197: Africa | O197: Océanie | P197: América Latina | Q197: newregion | R197: =HLOOKUP($C$2,$N$8:$P197,$A197,FALSE) -> Africa | S197: newregion190
A198: 191 | B198: Spain | C198: Sao Tomé-et-Principe | D198: Santa Sede | E198: country | F198: =HLOOKUP($C$2,$B$8:$D198,$A198,FALSE) -> Spain | G198: country191 | I198: Spain | J198: Espagne | K198: España | L198: country | N198: Western Europe | O198: Moyen Orient | P198: Europa Occidental | Q198: newregion | R198: =HLOOKUP($C$2,$N$8:$P198,$A198,FALSE) -> Western Europe | S198: newregion191
A199: 192 | B199: Sri Lanka | C199: Sénégal | D199: Santo Tomé y Príncipe | E199: country | F199: =HLOOKUP($C$2,$B$8:$D199,$A199,FALSE) -> Sri Lanka | G199: country192 | I199: Sri Lanka | J199: Sri Lanka | K199: Sri Lanka | L199: country | N199: Indian Subcontinent | O199: Europe de l’Est | P199: África | Q199: newregion | R199: =HLOOKUP($C$2,$N$8:$P199,$A199,FALSE) -> Indian Subcontinent | S199: newregion192
A200: 193 | B200: Sudan | C200: Serbie | D200: Senegal | E200: country | F200: =HLOOKUP($C$2,$B$8:$D200,$A200,FALSE) -> Sudan | G200: country193 | I200: Sudan | J200: Soudan | K200: Sudán | L200: country | N200: Africa | O200: Afrique | P200: África | Q200: newregion | R200: =HLOOKUP($C$2,$N$8:$P200,$A200,FALSE) -> Africa | S200: newregion193
A201: 194 | B201: Sudan (former) | C201: Seychelles | D201: Serbia | E201: country | F201: =HLOOKUP($C$2,$B$8:$D201,$A201,FALSE) -> Sudan (former) | G201: country194 | I201: Sudan (former) | J201: Sudan | K201: Sudan | L201: country | N201: Africa | O201: Afrique | P201: Europa del Este | Q201: newregion | R201: =HLOOKUP($C$2,$N$8:$P201,$A201,FALSE) -> Africa | S201: newregion194
... 44 more rows

Sheet LVS_Traslation (hidden)
B2: Selection | C2: =title_label!$C$2 -> 1
B3: EN | C3: 1
B4: FR | C4: 2
B5: ES | C5: 3
A7: ID | B7: English | C7: French | D7: Spanish | E7: Typeof | F7: Ref | G7: Name
A8: 1 | B8: 1 | C8: 2 | D8: 3
A9: 2 | B9: Livestock species | C9: Espèces d'élevage | D9: Especies de ganado | E9: species | F9: =HLOOKUP($C$2,$B$8:$D9,$A9,FALSE) -> Livestock species | G9: =$E9&$A9 -> species2
A10: 3 | B10: Buffalo | C10: Buffle | D10: Búfalo | E10: species | F10: =HLOOKUP($C$2,$B$8:$D10,$A10,FALSE) -> Buffalo | G10: =$E10&$A10 -> species3
A11: 4 | B11: Dairy cow | C11: Vache laitière | D11: Vaca lechera | E11: species | F11: =HLOOKUP($C$2,$B$8:$D11,$A11,FALSE) -> Dairy cow | G11: species4
A12: 5 | B12: Chicken | C12: Poulet | D12: Pollos | E12: species | F12: =HLOOKUP($C$2,$B$8:$D12,$A12,FALSE) -> Chicken | G12: species5
A13: 6 | B13: Pig | C13: Porc | D13: Cerdos | E13: species | F13: =HLOOKUP($C$2,$B$8:$D13,$A13,FALSE) -> Pig | G13: species6
A14: 7 | B14: Turkey | C14: Turkey | D14: Turkey | E14: species | F14: =HLOOKUP($C$2,$B$8:$D14,$A14,FALSE) -> Turkey | G14: species7
A15: 8 | B15: Cattle | C15: Bovins | D15: Ganado | E15: species | F15: =HLOOKUP($C$2,$B$8:$D15,$A15,FALSE) -> Cattle | G15: species8
A16: 9 | B16: Poultry | C16: Volailles | D16: Avícola | E16: species | F16: =HLOOKUP($C$2,$B$8:$D16,$A16,FALSE) -> Poultry | G16: species9
A17: 10 | B17: Swine | C17: Porc | D17: Cerdos | E17: species | F17: =HLOOKUP($C$2,$B$8:$D17,$A17,FALSE) -> Swine | G17: species10
A18: 11 | B18: Region | C18: Region | D18: Región | E18: species | F18: =HLOOKUP($C$2,$B$8:$D18,$A18,FALSE) -> Region | G18: species11
A19: 12 | B19: North America | C19: Amérique du Nord | D19: Norteamérica | E19: species | F19: =HLOOKUP($C$2,$B$8:$D19,$A19,FALSE) -> North America | G19: species12
A20: 13 | B20: Western Europe | C20: Europe Occidentale | D20: Europa Occidental | E20: species | F20: =HLOOKUP($C$2,$B$8:$D20,$A20,FALSE) -> Western Europe | G20: species13
A21: 14 | B21: Eastern Europe | C21: Europe de l’Est | D21: Europa del Este | E21: species | F21: =HLOOKUP($C$2,$B$8:$D21,$A21,FALSE) -> Eastern Europe | G21: species14
A22: 15 | B22: Oceania | C22: Océanie | D22: Oceanía | E22: species | F22: =HLOOKUP($C$2,$B$8:$D22,$A22,FALSE) -> Oceania | G22: species15
A23: 16 | B23: Latin America | C23: Amérique Latine | D23: América Latina | E23: species | F23: =HLOOKUP($C$2,$B$8:$D23,$A23,FALSE) -> Latin America | G23: species16
A24: 17 | B24: Africa | C24: Afrique | D24: África | E24: species | F24: =HLOOKUP($C$2,$B$8:$D24,$A24,FALSE) -> Africa | G24: species17
A25: 18 | B25: Middle East | C25: Moyen Orient | D25: Oriente Próximo | E25: species | F25: =HLOOKUP($C$2,$B$8:$D25,$A25,FALSE) -> Middle East | G25: species18
A26: 19 | B26: Asia | C26: Asie | D26: Asia | E26: species | F26: =HLOOKUP($C$2,$B$8:$D26,$A26,FALSE) -> Asia | G26: species19
A27: 20 | B27: Indian Subcontinent | C27: Sous-continent Indien | D27: Subcontinente de La India | E27: species | F27: =HLOOKUP($C$2,$B$8:$D27,$A27,FALSE) -> Indian Subcontinent | G27: species20
A28: 21 | B28: Buffalo Characteristics | C28: Buffalo Characteristics | D28: Buffalo Characteristics | E28: species | F28: =HLOOKUP($C$2,$B$8:$D28,$A28,FALSE) -> Buffalo Characteristics | G28: species21
A29: 22 | B29: Dairy Cow Characteristics | C29: Dairy Cow Characteristics | D29: Dairy Cow Characteristics | E29: species | F29: =HLOOKUP($C$2,$B$8:$D29,$A29,FALSE) -> Dairy Cow Characteristics | G29: species22
A30: 23 | B30: Mass | C30: Mass | D30: Mass | E30: species | F30: =HLOOKUP($C$2,$B$8:$D30,$A30,FALSE) -> Mass | G30: species23
A31: 24 | B31: kg | C31: kg | D31: kg | E31: species | F31: =HLOOKUP($C$2,$B$8:$D31,$A31,FALSE) -> kg | G31: species24
A32: 25 | B32: Bo | C32: Bo | D32: Bo | E32: species | F32: =HLOOKUP($C$2,$B$8:$D32,$A32,FALSE) -> Bo | G32: species25
A33: 26 | B33: m3 CH4/kg VS | C33: m3 CH4/kg VS | D33: m3 CH4/kg VS | E33: species | F33: =HLOOKUP($C$2,$B$8:$D33,$A33,FALSE) -> m3 CH4/kg VS | G33: species26
A34: 27 | B34: VS | C34: VS | D34: VS | E34: species | F34: =HLOOKUP($C$2,$B$8:$D34,$A34,FALSE) -> VS | G34: species27
A35: 28 | B35: kg/hd/day | C35: kg/hd/day | D35: kg/hd/day | E35: species | F35: =HLOOKUP($C$2,$B$8:$D35,$A35,FALSE) -> kg/hd/day | G35: species28
A36: 29 | B36: Buffalo | C36: Buffle | D36: Búfala | E36: species | F36: =HLOOKUP($C$2,$B$8:$D36,$A36,FALSE) -> Buffalo | G36: species29
A37: 30 | B37: Species | C37: Species | D37: Especies | E37: species | F37: =HLOOKUP($C$2,$B$8:$D37,$A37,FALSE) -> Species | G37: species30
C261: Production des vaches laitières
C262: Production des buffles

Sheet LVS (hidden)
K1: =species3 -> Buffalo | N1: =species4 -> Dairy cow | P1: =species5 -> Chicken | S1: =species10 -> Swine | U1: =species7 -> Turkey
A2: Code | B2: =species2 -> Livestock species | D2: Cattle | E2: Poultry | F2: Swine | H2: =species11 -> Region | I2: =species21 -> Buffalo Characteristics | L2: =species22 -> Dairy Cow Characteristics | O2: =species5 -> Chicken | Q2: =species6 -> Pig | T2: =species7 -> Turkey
A3: 1 | B3: =species3 -> Buffalo | D3: =species29 -> Buffalo | E3: =species5 -> Chicken | F3: =species10 -> Swine | I3: =species23 -> Mass | J3: =species25 -> Bo | K3: =species27 -> VS | L3: =species23 -> Mass | M3: =species25 -> Bo | N3: =species27 -> VS | O3: =species25 -> Bo | P3: =species27 -> VS | Q3: =species23 -> Mass | R3: =species25 -> Bo | S3: =species27 -> VS | T3: =species25 -> Bo | U3: =species27 -> VS
A4: 2 | B4: =species4 -> Dairy cow | D4: =species4 -> Dairy cow | E4: =species7 -> Turkey | I4: =species24 -> kg | J4: =species26 -> m3 CH4/kg VS | K4: =species28 -> kg/hd/day | L4: =species24 -> kg | M4: =species26 -> m3 CH4/kg VS | N4: =species28 -> kg/hd/day | O4: =species26 -> m3 CH4/kg VS | P4: =species28 -> kg/hd/day | Q4: =species24 -> kg | R4: =species26 -> m3 CH4/kg VS | S4: =species28 -> kg/hd/day | T4: =species26 -> m3 CH4/kg VS | U4: =species28 -> kg/hd/day
A5: 3 | B5: =species5 -> Chicken | G5: 1 | H5: =species12 -> North America | L5: 604 | M5: 0.24 | N5: 5.4 | O5: 0.39 | P5: 0.02 | Q5: 46 | R5: 0.48 | S5: 0.27 | T5: 0.36 | U5: 0.07
A6: 4 | B6: =species6 -> Pig | G6: 2 | H6: =species13 -> Western Europe | I6: 380 | J6: 0.1 | K6: 3.9 | L6: 600 | M6: 0.24 | N6: 5.1 | O6: 0.39 | P6: 0.02 | Q6: 50 | R6: 0.45 | S6: 0.3 | T6: 0.36 | U6: 0.07
A7: 5 | B7: =species7 -> Turkey | G7: 3 | H7: =species14 -> Eastern Europe | I7: 380 | J7: 0.1 | K7: 3.9 | L7: 550 | M7: 0.24 | N7: 4.5 | O7: 0.39 | P7: 0.02 | Q7: 50 | R7: 0.45 | S7: 0.3 | T7: 0.36 | U7: 0.07
G8: 4 | H8: =species15 -> Oceania | L8: 500 | M8: 0.24 | N8: 3.5 | O8: 0.39 | P8: 0.02 | Q8: 45 | R8: 0.45 | S8: 0.28 | T8: 0.36 | U8: 0.07
G9: 5 | H9: =species16 -> Latin America | I9: 380 | J9: 0.1 | K9: 3.9 | L9: 400 | M9: 0.13 | N9: 2.9 | O9: 0.24 | P9: 0.02 | Q9: 28 | R9: 0.29 | S9: 0.3 | T9: 0.24 | U9: 0.02
G10: 6 | H10: =species17 -> Africa | L10: 275 | M10: 0.13 | N10: 1.9 | O10: 0.24 | P10: 0.02 | Q10: 28 | R10: 0.29 | S10: 0.3 | T10: 0.24 | U10: 0.02
G11: 7 | H11: =species18 -> Middle East | I11: 380 | J11: 0.1 | K11: 3.9 | L11: 275 | M11: 0.13 | N11: 1.9 | O11: 0.24 | P11: 0.02 | Q11: 28 | R11: 0.29 | S11: 0.3 | T11: 0.24 | U11: 0.02
G12: 8 | H12: =species19 -> Asia | I12: 380 | J12: 0.1 | K12: 3.9 | L12: 350 | M12: 0.13 | N12: 2.8 | O12: 0.24 | P12: 0.02 | Q12: 28 | R12: 0.29 | S12: 0.3 | T12: 0.24 | U12: 0.02
G13: 9 | H13: =species20 -> Indian Subcontinent | I13: 295 | J13: 0.1 | K13: 3.1 | L13: 275 | M13: 0.13 | N13: 2.6 | O13: 0.24 | P13: 0.02 | Q13: 28 | R13: 0.29 | S13: 0.3 | T13: 0.24 | U13: 0.02
O14: * adapted from IPCC Guidelines, Ch. Ann.10A.2 Table 10A-9
H15: Source: 2006 IPCC Guidelines for National Greenhouse Gas Inventories, Vol.4, Annex 10A.2 | O15: Pig=market swine

Sheet FAOSTAT_Land (hidden)
A1: FAOSTAT 2023 | E1: =Fao_land_col2 -> Agricultural area1990 | G1: =Fao_land_col3 -> Agricultural area2000 | I1: =Fao_land_col4 -> Agricultural area2010 | K1: =Fao_land_col5 -> Agricultural area2015 | M1: =Fao_land_col6 -> Agricultural area2019 | O1: Agricultural area2020 | Q1: =Fao_land_col7 -> Arable land1990 | S1: =Fao_land_col8 -> Arable land2000 | U1: =Fao_land_col9 -> Arable land2010 | W1: =Fao_land_col10 -> Arable land2015 | Y1: =Fao_land_col11 -> Arable land2019 | AA1: Arable land2020 | AC1: =Fao_land_col12 -> Country area1990 | AE1: =Fao_land_col13 -> Country area2000 | AG1: =Fao_land_col14 -> Country area2010 | AI1: =Fao_land_col15 -> Country area2015 | AK1: =Fao_land_col16 -> Country area2019 | AM1: Country area2020 | AO1: =Fao_land_col17 -> Forest area1990 | AQ1: =Fao_land_col18 -> Forest area2000 | AS1: =Fao_land_col19 -> Forest area2010 | AU1: =Fao_land_col20 -> Forest area2015 | AW1: =Fao_land_col21 -> Forest area2019 | AY1: Forest area2020 | BA1: =Fao_land_col22 -> Land area1990 | BC1: =Fao_land_col23 -> Land area2000 | BE1: =Fao_land_col24 -> Land area2010 | BG1: =Fao_land_col25 -> Land area2015 | BI1: =Fao_land_col26 -> Land area2019 | BK1: Land area2020 | BM1: =Fao_land_col27 -> Other land1990 | BO1: =Fao_land_col28 -> Other land2000 | BQ1: =Fao_land_col29 -> Other land2010 | BS1: =Fao_land_col30 -> Other land2015 | BU1: =Fao_land_col31 -> Other land2019 | BW1: Other land2020 | BY1: =Fao_land_col32 -> Permanent crops1990 | CA1: =Fao_land_col33 -> Permanent crops2000 | CC1: =Fao_land_col34 -> Permanent crops2010 | CE1: =Fao_land_col35 -> Permanent crops2015 | CG1: =Fao_land_col36 -> Permanent crops2019 | CI1: Permanent crops2020 | CK1: =Fao_land_col37 -> Permanent meadows and pastures1990 | CM1: =Fao_land_col38 -> Permanent meadows and pastures2000 | CO1: =Fao_land_col39 -> Permanent meadows and pastures2010 | CQ1: =Fao_land_col40 -> Permanent meadows and pastures2015 | CS1: =Fao_land_col41 -> Permanent meadows and pastures2019 | CU1: Permanent meadows and pastures2020 | CW1: =Fao_land_col42 -> Total area equipped for irrigation1990 | CY1: =Fao_land_col43 -> Total area equipped for irrigation2000 | DA1: =Fao_land_col44 -> Total area equipped for irrigation2010 | DC1: =Fao_land_col45 -> Total area equipped for irrigation2015 | DE1: =Fao_land_col46 -> Total area equipped for irrigation2019 | DG1: Total area equipped for irrigation2020
A2: Elements | C2: Areas | E2: Agricultural area | F2: 6610 | G2: Agricultural area | H2: 6610 | I2: Agricultural area | J2: 6610 | K2: Agricultural area | L2: 6610 | M2: Agricultural area | N2: 6610 | O2: Agricultural area | P2: 6610 | Q2: Arable land | R2: 6621 | S2: Arable land | T2: 6621 | U2: Arable land | V2: 6621 | W2: Arable land | X2: 6621 | Y2: Arable land | Z2: 6621 | AA2: Arable land | AB2: 6621 | AC2: Country area | AD2: 6600 | AE2: Country area | AF2: 6600 | AG2: Country area | AH2: 6600 | AI2: Country area | AJ2: 6600 | AK2: Country area | AL2: 6600 | AM2: Country area | AN2: 6600 | AO2: Forest area | AP2: 6661 | AQ2: Forest area | AR2: 6661 | AS2: Forest area | AT2: 6661 | AU2: Forest area | AV2: 6661 | AW2: Forest area | AX2: 6661 | AY2: Forest area | AZ2: 6661 | BA2: Land area | BB2: 6601 | BC2: Land area | BD2: 6601 | BE2: Land area | BF2: 6601 | BG2: Land area | BH2: 6601 | BI2: Land area | BJ2: 6601 | BK2: Land area | BL2: 6601 | BM2: Other land | BN2: 6670 | BO2: Other land | BP2: 6670 | BQ2: Other land | BR2: 6670 | BS2: Other land | BT2: 6670 | BU2: Other land | BV2: 6670 | BW2: Other land | BX2: 6670 | BY2: Permanent crops | BZ2: 6650 | CA2: Permanent crops | CB2: 6650 | CC2: Permanent crops | CD2: 6650 | CE2: Permanent crops | CF2: 6650 | CG2: Permanent crops | CH2: 6650 | CI2: Permanent crops | CJ2: 6650 | CK2: Permanent meadows and pastures | CL2: 6655 | CM2: Permanent meadows and pastures | CN2: 6655 | CO2: Permanent meadows and pastures | CP2: 6655 | CQ2: Permanent meadows and pastures | CR2: 6655 | CS2: Permanent meadows and pastures | CT2: 6655 | CU2: Permanent meadows and pastures | CV2: 6655 | CW2: Total area equipped for irrigation | CX2: 6690 | CY2: Total area equipped for irrigation | CZ2: 6690 | DA2: Total area equipped for irrigation | DB2: 6690 | DC2: Total area equipped for irrigation | DD2: 6690 | DE2: Total area equipped for irrigation | DF2: 6690 | DG2: Total area equipped for irrigation | DH2: 6690
E3: 1990 | G3: 2000 | I3: 2010 | K3: 2015 | M3: 2019 | O3: 2020 | Q3: 1990 | S3: 2000 | U3: 2010 | W3: 2015 | Y3: 2019 | AA3: 2020 | AC3: 1990 | AE3: 2000 | AG3: 2010 | AI3: 2015 | AK3: 2019 | AM3: 2020 | AO3: 1990 | AQ3: 2000 | AS3: 2010 | AU3: 2015 | AW3: 2019 | AY3: 2020 | BA3: 1990 | BC3: 2000 | BE3: 2010 | BG3: 2015 | BI3: 2019 | BK3: 2020 | BM3: 1990 | BO3: 2000 | BQ3: 2010 | BS3: 2015 | BU3: 2019 | BW3: 2020 | BY3: 1990 | CA3: 2000 | CC3: 2010 | CE3: 2015 | CG3: 2019 | CI3: 2020 | CK3: 1990 | CM3: 2000 | CO3: 2010 | CQ3: 2015 | CS3: 2019 | CU3: 2020 | CW3: 1990 | CY3: 2000 | DA3: 2010 | DC3: 2015 | DE3: 2019 | DG3: 2020
A4: Area (1000 Ha) | B4: 5110 | C4: =Fao_land_country47 -> Afghanistan | D4: 2 | E4: 38040 | G4: 37753 | I4: 37911 | K4: 37910 | M4: 38010 | O4: 38356 | Q4: 7910 | S4: 7683 | U4: 7793 | W4: 7765 | Y4: 7788 | AA4: 7829 | AC4: 65286 | AE4: 65286 | AG4: 65286 | AI4: 65286 | AK4: 65286 | AM4: 65286 | AO4: 1208.44 | AQ4: 1208.44 | AS4: 1208.44 | AU4: 1208.44 | AW4: 1208.44 | AY4: 1208 | BA4: 65223 | BC4: 65223 | BE4: 65223 | BG4: 65223 | BI4: 65223 | BK4: 65223 | BM4: 25974.56 | BO4: 26261.56 | BQ4: 26103.56 | BS4: 26104.56 | BU4: 26004.56 | BW4: 25659 | BY4: 130 | CA4: 70 | CC4: 118 | CE4: 145 | CG4: 222 | CI4: 265 | CK4: 30000 | CM4: 30000 | CO4: 30000 | CQ4: 30000 | CS4: 30000 | CU4: 30262 | CW4: 2900 | CY4: 3203 | DA4: 3208 | DC4: 3208 | DE4: 3208 | DG4: 3208
A5: Area (1000 Ha) | B5: 5110 | C5: =Fao_land_country48 -> Albania | D5: 3 | E5: 1121 | G5: 1144 | I5: 1201.3 | K5: 1174.3 | M5: 1174 | O5: 1167 | Q5: 579 | S5: 578 | U5: 626 | W5: 615.1 | Y5: 610 | AA5: 600 | AC5: 2875 | AE5: 2875 | AG5: 2875 | AI5: 2875 | AK5: 2875 | AM5: 2875 | AO5: 788.8 | AQ5: 769.3 | AS5: 782.07 | AU5: 789.1875 | AW5: 788.9 | AY5: 789 | BA5: 2740 | BC5: 2740 | BE5: 2740 | BG5: 2740 | BI5: 2740 | BK5: 2740 | BM5: 830.2 | BO5: 826.7 | BQ5: 756.63 | BS5: 775.2685 | BU5: 775.1 | BW5: 784 | BY5: 125 | CA5: 121 | CC5: 70 | CE5: 81 | CG5: 86 | CI5: 88 | CK5: 417 | CM5: 445 | CO5: 505.3 | CQ5: 478.2 | CS5: 478 | CU5: 478 | CW5: 423 | CY5: 340 | DA5: 331 | DC5: 353.4 | DE5: 356.7 | DG5: 360
A6: Area (1000 Ha) | B6: 5110 | C6: =Fao_land_country49 -> Algeria | D6: 4 | E6: 38676 | G6: 40021 | I6: 41374 | K6: 41456.4 | M6: 41358.847 | O6: 41359 | Q6: 7081 | S6: 7662 | U6: 7502 | W6: 7462.1 | Y6: 7505.017 | AA6: 7505 | AC6: 238174 | AE6: 238174 | AG6: 238174 | AI6: 238174.1 | AK6: 238174.1 | AM6: 238174 | AO6: 1667 | AQ6: 1579 | AS6: 1918 | AU6: 1956 | AW6: 1939 | AY6: 1949 | BA6: 238174 | BC6: 238174 | BE6: 238174 | BG6: 238174.1 | BI6: 238174.1 | BK6: 238174 | BM6: 197831 | BO6: 196574 | BQ6: 194882 | BS6: 194761.7 | BU6: 194876.253 | BW6: 194866 | BY6: 554 | CA6: 530 | CC6: 909 | CE6: 1000.3 | CG6: 1012 | CI6: 1012 | CK6: 31041 | CM6: 31829 | CO6: 32963 | CQ6: 32994 | CS6: 32841.83 | CU6: 32842 | CW6: 437 | CY6: 600.8 | DA6: 1100.8 | DC6: 1360 | DE6: 1365 | DG6: 1365
A7: Area (1000 Ha) | B7: 5110 | C7: =Fao_land_country50 -> American Samoa | D7: 5 | E7: 3.17 | G7: 5.97 | I7: 5.04 | K7: 4.39 | M7: 4.01 | O7: 4 | Q7: 1 | S7: 2.54 | U7: 3.61 | W7: 3.36 | Y7: 3.19 | AA7: 3 | AC7: 20 | AE7: 20 | AG7: 20 | AI7: 20 | AK7: 20 | AM7: 20 | AO7: 18.07 | AQ7: 17.73 | AS7: 17.43 | AU7: 17.28 | AW7: 17.16 | AY7: 17 | BA7: 20 | BC7: 20 | BE7: 20 | BG7: 20 | BI7: 20 | BK7: 20 | BW7: 0 | BY7: 2 | CA7: 3.3 | CC7: 1.4 | CE7: 1 | CG7: 0.75 | CI7: 1 | CK7: 0.17 | CM7: 0.13 | CO7: 0.03 | CQ7: 0.03 | CS7: 0.07 | CU7: 0 | DG7: 0
A8: Area (1000 Ha) | B8: 5110 | C8: =Fao_land_country51 -> Andorra | D8: 6 | E8: 23 | G8: 23 | I8: 19.77 | K8: 18.81 | M8: 18.8 | O8: 19 | Q8: 1 | S8: 1 | U8: 0.77 | W8: 0.81 | Y8: 0.8 | AA8: 1 | AC8: 47 | AE8: 47 | AG8: 47 | AI8: 47 | AK8: 47 | AM8: 47 | AO8: 16 | AQ8: 16 | AS8: 16 | AU8: 16 | AW8: 16 | AY8: 16 | BA8: 47 | BC8: 47 | BE8: 47 | BG8: 47 | BI8: 47 | BK8: 47 | BM8: 8 | BO8: 8 | BQ8: 11.23 | BS8: 12.19 | BU8: 12.2 | BW8: 12 | CK8: 22 | CM8: 22 | CO8: 19 | CQ8: 18 | CS8: 18 | CU8: 18 | DA8: 0.15 | DC8: 0.15 | DE8: 0.15 | DG8: 0
A9: Area (1000 Ha) | B9: 5110 | C9: =Fao_land_country52 -> Angola | D9: 7 | E9: 57404 | G9: 46961.39 | I9: 52512 | K9: 55287.31 | M9: 56952.49 | O9: 56952 | Q9: 2900 | S9: 3000 | U9: 4100 | W9: 4900 | Y9: 4900 | AA9: 4900 | AC9: 124670 | AE9: 124670 | AG9: 124670 | AI9: 124670 | AK9: 124670 | AM9: 124670 | AO9: 79262.78 | AQ9: 77708.61 | AS9: 72158 | AU9: 69382.69 | AW9: 67162.44 | AY9: 66607 | BA9: 124670 | BC9: 124670 | BE9: 124670 | BG9: 124670 | BI9: 124670 | BK9: 124670 | BO9: 0 | BQ9: 0 | BS9: 0 | BU9: 555.07 | BW9: 1110 | BY9: 500 | CA9: 300 | CC9: 290 | CE9: 290 | CG9: 315 | CI9: 315 | CK9: 54004 | CM9: 43661.39 | CO9: 48122 | CQ9: 50097.31 | CS9: 51737.49 | CU9: 51737 | CW9: 82.2 | CY9: 84.1 | DA9: 85.53 | DC9: 85.53 | DE9: 85.53 | DG9: 86
A10: Area (1000 Ha) | B10: 5110 | C10: =Fao_land_country53 -> Anguilla | D10: 258 | O10: 0 | AA10: 0 | AC10: 9 | AE10: 9 | AG10: 9 | AI10: 9 | AK10: 9 | AM10: 9 | AO10: 5.5 | AQ10: 5.5 | AS10: 5.5 | AU10: 5.5 | AW10: 5.5 | AY10: 6 | BA10: 9 | BC10: 9 | BE10: 9 | BG10: 9 | BI10: 9 | BK10: 9 | BM10: 3.5 | BO10: 3.5 | BQ10: 3.5 | BS10: 3.5 | BU10: 3.5 | BW10: 4 | CU10: 0 | DG10: 0
A11: Area (1000 Ha) | B11: 5110 | C11: =Fao_land_country54 -> Antigua and Barbuda | D11: 8 | E11: 9 | G11: 9 | I11: 9 | K11: 9 | M11: 9 | O11: 9 | Q11: 4 | S11: 4 | U11: 4 | W11: 4 | Y11: 4 | AA11: 4 | AC11: 44 | AE11: 44 | AG11: 44 | AI11: 44 | AK11: 44 | AM11: 44 | AO11: 10.11 | AQ11: 9.45 | AS11: 8.78 | AU11: 8.45 | AW11: 8.18 | AY11: 8 | BA11: 44 | BC11: 44 | BE11: 44 | BG11: 44 | BI11: 44 | BK11: 44 | BM11: 24.89 | BO11: 25.55 | BQ11: 26.22 | BS11: 26.55 | BU11: 26.82 | BW11: 27 | BY11: 1 | CA11: 1 | CC11: 1 | CE11: 1 | CG11: 1 | CI11: 1 | CK11: 4 | CM11: 4 | CO11: 4 | CQ11: 4 | CS11: 4 | CU11: 4 | CY11: 0.17 | DA11: 0.32 | DC11: 0.38 | DE11: 0.38 | DG11: 0
A12: Area (1000 Ha) | B12: 5110 | C12: =Fao_land_country55 -> Argentina | D12: 9 | E12: 127565 | G12: 128510 | I12: 126267.9 | K12: 117088.4 | M12: 108381.7597 | O12: 108382 | Q12: 26575 | S12: 27640 | U12: 38003.1 | W12: 36688.1 | Y12: 32632.7597 | AA12: 32633 | AC12: 278040 | AE12: 278040 | AG12: 278040 | AI12: 278040 | AK12: 278040 | AM12: 278040 | AO12: 35204 | AQ12: 33378 | AS12: 30214 | AU12: 29097 | AW12: 28681 | AY12: 28573 | BA12: 273669 | BC12: 273669 | BE12: 273669 | BG12: 273669 | BI12: 273669 | BK12: 273669 | BM12: 110900 | BO12: 111781 | BQ12: 117187.1 | BS12: 127483.6 | BU12: 136606.2403 | BW12: 136714 | BY12: 1020 | CA12: 1000 | CC12: 1000 | CE12: 1000 | CG12: 1068 | CI12: 1068 | CK12: 99970 | CM12: 99870 | CO12: 87264.8 | CQ12: 79400.3 | CS12: 74681 | CU12: 74681 | CW12: 1483 | CY12: 1565 | DA12: 2250 | DC12: 2357 | DE12: 2357 | DG12: 2357
A13: Area (1000 Ha) | B13: 5110 | C13: =Fao_land_country56 -> Armenia | D13: 1 | G13: 1323 | I13: 1735 | K13: 1676.7 | M13: 1677 | O13: 2044 | S13: 450 | U13: 448.5 | W13: 446.7 | Y13: 444.8 | AA13: 444 | AE13: 2974 | AG13: 2974 | AI13: 2974 | AK13: 2974 | AM13: 2974 | AQ13: 332.64 | AS13: 330.56 | AU13: 329.52 | AW13: 328.68 | AY13: 328 | BC13: 2847 | BE13: 2847 | BG13: 2847 | BI13: 2847 | BK13: 2847 | BO13: 1191.36 | BQ13: 781.44 | BS13: 471.78 | BU13: 474.12 | BW13: 475 | CA13: 38 | CC13: 55.1 | CE13: 57.6 | CG13: 60 | CI13: 60 | CM13: 835 | CO13: 1231.4 | CQ13: 1172.4 | CS13: 1172 | CU13: 1172 | CY13: 274 | DA13: 243 | DC13: 221.4 | DE13: 208.1 | DG13: 209
A14: Area (1000 Ha) | B14: 5110 | C14: =Fao_land_country57 -> Aruba | D14: 22 | E14: 2 | G14: 2 | I14: 2 | K14: 2 | M14: 2 | O14: 2 | Q14: 2 | S14: 2 | U14: 2 | W14: 2 | Y14: 2 | AA14: 2 | AC14: 18 | AE14: 18 | AG14: 18 | AI14: 18 | AK14: 18 | AM14: 18 | AO14: 0.42 | AQ14: 0.42 | AS14: 0.42 | AU14: 0.42 | AW14: 0.42 | AY14: 0 | BA14: 18 | BC14: 18 | BE14: 18 | BG14: 18 | BI14: 18 | BK14: 18 | BM14: 15.58 | BO14: 15.58 | BQ14: 15.58 | BS14: 15.58 | BU14: 15.58 | BW14: 16 | CU14: 0 | DG14: 0
A15: Area (1000 Ha) | B15: 5110 | C15: =Fao_land_country58 -> Australia | D15: 10 | E15: 464437 | G15: 455469 | I15: 376372 | K15: 348119 | M15: 362477 | O15: 377002 | Q15: 16956 | S15: 23473 | U15: 25450.2 | W15: 31090.7 | Y15: 30573 | AA15: 30644 | AC15: 774122 | AE15: 774122 | AG15: 774122 | AI15: 774122 | AK15: 774122 | AM15: 774122 | AO15: 133882.2 | AQ15: 131814.1 | AS15: 129546.1 | AU15: 133094.5 | AW15: 134005.1 | AY15: 134005 | BA15: 768230 | BC15: 768230 | BE15: 768230 | BG15: 768230 | BI15: 769202 | BK15: 769202 | BM15: 169910.8 | BO15: 180946.9 | BQ15: 240103.9 | BS15: 269222.5 | BU15: 251395.9 | BW15: 258195 | BY15: 181 | CA15: 296 | CC15: 517.8 | CE15: 306.3 | CG15: 347 | CI15: 352 | CK15: 447300 | CM15: 431700 | CO15: 350404 | CQ15: 316722 | CS15: 331557 | CU15: 324779 | CW15: 1832 | CY15: 2384 | DA15: 2546 | DC15: 2546 | DE15: 2546 | DG15: 2546
A16: Area (1000 Ha) | B16: 5110 | C16: =Fao_land_country59 -> Austria | D16: 11 | E16: 3023.9 | G16: 2940.2 | I16: 2779.2 | K16: 2718.45 | M16: 2651.21 | O16: 2647 | Q16: 1426 | S16: 1399 | U16: 1363.8 | W16: 1346.1 | Y16: 1325.53 | AA16: 1321 | AC16: 8387.9 | AE16: 8387.9 | AG16: 8387.9 | AI16: 8387.9 | AK16: 8387.9 | AM16: 8388 | AO16: 3775.67 | AQ16: 3838.14 | AS16: 3863.2 | AU16: 3881.19 | AW16: 3895.56 | AY16: 3899 | BA16: 8252 | BC16: 8252 | BE16: 8252 | BG16: 8252 | BI16: 8252 | BK16: 8252 | BM16: 1458.43 | BO16: 1479.66 | BQ16: 1614.7 | BS16: 1652.36 | BU16: 1705.23 | BW16: 1706 | BY16: 79 | CA16: 71 | CC16: 65.3 | CE16: 65.49 | CG16: 66.87 | CI16: 67 | CK16: 1518.9 | CM16: 1470.2 | CO16: 1350.1 | CQ16: 1306.86 | CS16: 1258.81 | CU16: 1259 | CW16: 70 | CY16: 94 | DA16: 117 | DC16: 106 | DE16: 99.8 | DG16: 100
A17: Area (1000 Ha) | B17: 5110 | C17: =Fao_land_country60 -> Azerbaijan | D17: 52 | G17: 4740.4 | I17: 4766.8 | K17: 4769.8 | M17: 4779.8 | O17: 4780 | S17: 1825.6 | U17: 1884.1 | W17: 1937.7 | Y17: 2096.1 | AA17: 2084 | AE17: 8660 | AG17: 8660 | AI17: 8660 | AK17: 8660 | AM17: 8660 | AQ17: 987.22 | AS17: 1032.4946 | AU17: 1077.887 | AW17: 1120.24 | AY17: 1132 | BC17: 8260.5 | BE17: 8265.6 | BG17: 8266.3 | BI17: 8265.4 | BK17: 8265 | BO17: 2532.88 | BQ17: 2466.3054 | BS17: 2418.613 | BU17: 2365.46 | BW17: 2353 | CA17: 236.8 | CC17: 227.4 | CE17: 237 | CG17: 260.3 | CI17: 273 | CM17: 2678 | CO17: 2655.3 | CQ17: 2595.1 | CS17: 2423.4 | CU17: 2423 | CY17: 1430 | DA17: 1425 | DC17: 1434.5 | DE17: 1450.2 | DG17: 1480
A18: Area (1000 Ha) | B18: 5110 | C18: =Fao_land_country61 -> Bahamas | D18: 12 | E18: 12 | G18: 13 | I18: 15 | K18: 14 | M18: 14 | O18: 14 | Q18: 8 | S18: 7 | U18: 9 | W18: 8 | Y18: 8 | AA18: 8 | AC18: 1388 | AE18: 1388 | AG18: 1388 | AI18: 1388 | AK18: 1388 | AM18: 1388 | AO18: 509.86 | AQ18: 509.86 | AS18: 509.86 | AU18: 509.86 | AW18: 509.86 | AY18: 510 | BA18: 1001 | BC18: 1001 | BE18: 1001 | BG18: 1001 | BI18: 1001 | BK18: 1001 | BM18: 479.14 | BO18: 478.14 | BQ18: 476.14 | BS18: 477.14 | BU18: 477.14 | BW18: 477 | BY18: 2 | CA18: 4 | CC18: 4 | CE18: 4 | CG18: 4 | CI18: 4 | CK18: 2 | CM18: 2 | CO18: 2 | CQ18: 2 | CS18: 2 | CU18: 2 | CW18: 1 | CY18: 1 | DA18: 1 | DC18: 1 | DE18: 1 | DG18: 1
A19: Area (1000 Ha) | B19: 5110 | C19: =Fao_land_country62 -> Bahrain | D19: 13 | E19: 8 | G19: 9.2 | I19: 8.6 | K19: 8.6 | M19: 8.6 | O19: 9 | Q19: 2 | S19: 2 | U19: 1.6 | W19: 1.6 | Y19: 1.6 | AA19: 2 | AC19: 69 | AE19: 71 | AG19: 76.2 | AI19: 77.8 | AK19: 78.3 | AM19: 79 | AO19: 0.22 | AQ19: 0.37 | AS19: 0.52 | AU19: 0.6 | AW19: 0.68 | AY19: 1 | BA19: 69 | BC19: 71 | BE19: 76.2 | BG19: 77.8 | BI19: 78.3 | BK19: 79 | BM19: 60.78 | BO19: 61.43 | BQ19: 67.08 | BS19: 68.6 | BU19: 69.02 | BW19: 69 | BY19: 2 | CA19: 3.2 | CC19: 3 | CE19: 3 | CG19: 3 | CI19: 3 | CK19: 4 | CM19: 4 | CO19: 4 | CQ19: 4 | CS19: 4 | CU19: 4 | CW19: 2 | CY19: 4 | DA19: 4 | DC19: 4 | DE19: 4 | DG19: 4
A20: Area (1000 Ha) | B20: 5110 | C20: =Fao_land_country63 -> Bangladesh | D20: 16 | E20: 10386 | G20: 9400 | I20: 9241 | K20: 9162.24 | M20: 9397 | O20: 9901 | Q20: 9456 | S20: 8350 | U20: 7791 | W20: 7732.24 | Y20: 7967 | AA20: 8000 | AC20: 14846 | AE20: 14846 | AG20: 14846 | AI20: 14763 | AK20: 14757 | AM20: 14757 | AO20: 1920.33 | AQ20: 1920.3281 | AS20: 1888.342 | AU20: 1883.4 | AW20: 1883.4 | AY20: 1883 | BA20: 13017 | BC20: 13017 | BE20: 13017 | BG20: 13017 | BI20: 13017 | BK20: 13017 | BM20: 710.67 | BO20: 1696.6719 | BQ20: 1887.658 | BS20: 1971.36 | BU20: 1736.6 | BW20: 1233 | BY20: 330 | CA20: 450 | CC20: 850 | CE20: 830 | CG20: 830 | CI20: 1301 | CK20: 600 | CM20: 600 | CO20: 600 | CQ20: 600 | CS20: 600 | CU20: 600 | CW20: 2790 | CY20: 4187 | DA20: 5180 | DC20: 5500 | DE20: 5590 | DG20: 8127
A21: Area (1000 Ha) | B21: 5110 | C21: =Fao_land_country64 -> Barbados | D21: 14 | E21: 19 | G21: 18 | I21: 15 | K21: 11 | M21: 10 | O21: 10 | Q21: 16 | S21: 15 | U21: 12 | W21: 8 | Y21: 7 | AA21: 7 | AC21: 43 | AE21: 43 | AG21: 43 | AI21: 43 | AK21: 43 | AM21: 43 | AO21: 6.3 | AQ21: 6.3 | AS21: 6.3 | AU21: 6.3 | AW21: 6.3 | AY21: 6 | BA21: 43 | BC21: 43 | BE21: 43 | BG21: 43 | BI21: 43 | BK21: 43 | BM21: 17.7 | BO21: 18.7 | BQ21: 21.7 | BS21: 25.7 | BU21: 26.7 | BW21: 27 | BY21: 1 | CA21: 1 | CC21: 1 | CE21: 1 | CG21: 1 | CI21: 1 | CK21: 2 | CM21: 2 | CO21: 2 | CQ21: 2 | CS21: 2 | CU21: 2 | CW21: 5 | CY21: 5 | DA21: 5.4 | DC21: 5.4 | DE21: 5.4 | DG21: 5
A22: Area (1000 Ha) | B22: 5110 | C22: =Fao_land_country65 -> Belarus | D22: 57 | G22: 9252 | I22: 8898 | K22: 8574.2 | M22: 8387 | O22: 8284 | S22: 6133 | U22: 5535 | W22: 5677.4 | Y22: 5713 | AA22: 5660 | AE22: 20760 | AG22: 20760 | AI22: 20760 | AK22: 20760 | AM22: 20761 | AQ22: 8273 | AS22: 8630 | AU22: 8633.5 | AW22: 8753.1 | AY22: 8768 | BC22: 20284.8 | BE22: 20290.2 | BG22: 20297.8 | BI22: 20296.5 | BK22: 20298 | BO22: 2759.8 | BQ22: 2762.2 | BS22: 3082.4 | BU22: 3152.4 | BW22: 3246 | CA22: 124 | CC22: 122 | CE22: 113.2 | CG22: 107 | CI22: 100 | CM22: 2995 | CO22: 3241 | CQ22: 2783.6 | CS22: 2568 | CU22: 2521 | CY22: 125 | DA22: 56.9 | DC22: 30.4 | DE22: 30.3 | DG22: 30
A23: Area (1000 Ha) | B23: 5110 | C23: =Fao_land_country67 -> Belgium | D23: 255 | G23: 1389.6 | I23: 1355.7 | K23: 1328 | M23: 1356.4226 | O23: 1365 | S23: 862 | U23: 834 | W23: 829.5 | Y23: 857.286 | AA23: 865 | AE23: 3053 | AG23: 3053 | AI23: 3053 | AK23: 3053 | AM23: 3053 | AQ23: 667.3 | AS23: 689.87 | AU23: 689.3 | AW23: 689.3 | AY23: 689 | BC23: 3028 | BE23: 3028 | BG23: 3028 | BI23: 3028 | BK23: 3028 | BO23: 971.1 | BQ23: 982.43 | BS23: 1010.7 | BU23: 979.9948 | BW23: 974 | CA23: 20.6 | CC23: 21.7 | CE23: 22.5 | CG23: 23.6727 | CI23: 24 | CM23: 507 | CO23: 500 | CQ23: 476 | CS23: 475.464 | CU23: 476 | CY23: 33 | DA23: 20.9 | DC23: 22.4 | DE23: 24 | DG23: 24
A24: Area (1000 Ha) | B24: 5110 | C24: =Fao_land_country68 -> Belize | D24: 23 | E24: 126 | G24: 149 | I24: 157 | K24: 170 | M24: 172 | O24: 172 | Q24: 52 | S24: 64 | U24: 75 | W24: 88 | Y24: 90 | AA24: 90 | AC24: 2297 | AE24: 2297 | AG24: 2297 | AI24: 2297 | AK24: 2297 | AM24: 2297 | AO24: 1600.03 | AQ24: 1459.3 | AS24: 1391.39 | AU24: 1332.83 | AW24: 1288.21 | AY24: 1277 | BA24: 2281 | BC24: 2281 | BE24: 2281 | BG24: 2281 | BI24: 2281 | BK24: 2281 | BM24: 554.97 | BO24: 672.7 | BQ24: 732.61 | BS24: 778.17 | BU24: 820.79 | BW24: 832 | BY24: 25 | CA24: 35 | CC24: 32 | CE24: 32 | CG24: 32 | CI24: 32 | CK24: 49 | CM24: 50 | CO24: 50 | CQ24: 50 | CS24: 50 | CU24: 50 | CW24: 2 | CY24: 3 | DA24: 3.5 | DC24: 3.5 | DE24: 3.5 | DG24: 4
A25: Area (1000 Ha) | B25: 5110 | C25: =Fao_land_country69 -> Benin | D25: 53 | E25: 2270 | G25: 3195 | I25: 3650 | K25: 3950 | M25: 3950 | O25: 3950 | Q25: 1615 | S25: 2380 | U25: 2500 | W25: 2700 | Y25: 2800 | AA25: 2800 | AC25: 11476 | AE25: 11476 | AG25: 11476 | AI25: 11476 | AK25: 11476 | AM25: 11476 | AO25: 4835.15 | AQ25: 4135.15 | AS25: 3635.15 | AU25: 3385.15 | AW25: 3185.15 | AY25: 3135 | BA25: 11276 | BC25: 11276 | BE25: 11276 | BG25: 11276 | BI25: 11276 | BK25: 11276 | BM25: 4170.85 | BO25: 3945.85 | BQ25: 3990.85 | BS25: 3940.85 | BU25: 4140.85 | BW25: 4191 | BY25: 105 | CA25: 265 | CC25: 600 | CE25: 700 | CG25: 600 | CI25: 600 | CK25: 550 | CM25: 550 | CO25: 550 | CQ25: 550 | CS25: 550 | CU25: 550 | CW25: 9.7 | CY25: 11 | DA25: 23 | DC25: 24.3 | DE25: 24.3 | DG25: 24
A26: Area (1000 Ha) | B26: 5110 | C26: =Fao_land_country70 -> Bermuda | D26: 17 | E26: 0.3 | G26: 0.4 | I26: 0.3 | K26: 0.3 | M26: 0.3 | O26: 0 | Q26: 0.3 | S26: 0.4 | U26: 0.3 | W26: 0.3 | Y26: 0.3 | AA26: 0 | AC26: 5.4 | AE26: 5.4 | AG26: 5.4 | AI26: 429 | AK26: 429 | AM26: 429 | AO26: 1 | AQ26: 1 | AS26: 1 | AU26: 1 | AW26: 1 | AY26: 1 | BA26: 5.4 | BC26: 5.4 | BE26: 5.4 | BG26: 5.4 | BI26: 5.4 | BK26: 5 | BM26: 4.1 | BO26: 4 | BQ26: 4.1 | BS26: 4.1 | BU26: 4.1 | BW26: 4 | CU26: 0 | DG26: 0
A27: Area (1000 Ha) | B27: 5110 | C27: =Fao_land_country71 -> Bhutan | D27: 18 | E27: 454 | G27: 530 | I27: 520 | K27: 525.6 | M27: 513 | O27: 513 | Q27: 135 | S27: 106 | U27: 100.6 | W27: 100.2 | Y27: 94 | AA27: 94 | AC27: 4700 | AE27: 4007.7 | AG27: 3839.4 | AI27: 3839.4 | AK27: 3839 | AM27: 3839 | AO27: 2506.72 | AQ27: 2606 | AS27: 2705.29 | AU27: 2715.18 | AW27: 2723.1 | AY27: 2725 | BA27: 4672.3 | BC27: 3980 | BE27: 3811.7 | BG27: 3811.7 | BI27: 3814 | BK27: 3814 | BM27: 1711.58 | BO27: 844 | BQ27: 586.41 | BS27: 570.92 | BU27: 577.9 | BW27: 576 | BY27: 19 | CA27: 19 | CC27: 12.4 | CE27: 12.4 | CG27: 6 | CI27: 6 | CK27: 300 | CM27: 405 | CO27: 407 | CQ27: 413 | CS27: 413 | CU27: 413 | CW27: 27 | CY27: 27 | DA27: 31.9 | DC27: 33 | DE27: 33 | DG27: 33
A28: Area (1000 Ha) | B28: 5110 | C28: =Fao_land_country72 -> Bolivia (Plurinational State of) | D28: 19 | E28: 35455 | G28: 37143 | I28: 37516 | K28: 37661 | M28: 37787 | O28: 37787 | Q28: 2100 | S28: 3144 | U28: 4297 | W28: 4416 | Y28: 4540 | AA28: 4540 | AC28: 109858 | AE28: 109858 | AG28: 109858 | AI28: 109858 | AK28: 109858 | AM28: 109858 | AO28: 57804.72 | AQ28: 55101.39 | AS28: 53086.01 | AU28: 52027.22 | AW28: 51033.76 | AY28: 50834 | BA28: 108330 | BC28: 108330 | BE28: 108330 | BG28: 108330 | BI28: 108330 | BK28: 108330 | BM28: 15070.28 | BO28: 16085.61 | BQ28: 17727.99 | BS28: 18641.78 | BU28: 19509.24 | BW28: 19709 | BY28: 155 | CA28: 168 | CC28: 219 | CE28: 245 | CG28: 247 | CI28: 247 | CK28: 33200 | CM28: 33831 | CO28: 33000 | CQ28: 33000 | CS28: 33000 | CU28: 33000 | CW28: 183 | CY28: 226 | DA28: 289 | DC28: 297.2 | DE28: 297.2 | DG28: 520
A29: Area (1000 Ha) | B29: 5110 | C29: =Fao_land_country73 -> Bosnia and Herzegovina | D29: 80 | G29: 2130 | I29: 2144 | K29: 2176 | M29: 2216 | O29: 2216 | S29: 1000 | U29: 1004 | W29: 1022 | Y29: 1015 | AA29: 1015 | AE29: 5121 | AG29: 5121 | AI29: 5121 | AK29: 5121 | AM29: 5121 | AQ29: 2111.65 | AS29: 2102.66 | AU29: 2160.5 | AW29: 2187.91 | AY29: 2188 | BC29: 5120 | BE29: 5120 | BG29: 5120 | BI29: 5120 | BK29: 5120 | BO29: 878.35 | BQ29: 873.34 | BS29: 783.5 | BU29: 716.09 | BW29: 716 | CA29: 100 | CC29: 105 | CE29: 105 | CG29: 106 | CI29: 106 | CM29: 1030 | CO29: 1035 | CQ29: 1049 | CS29: 1095 | CU29: 1095 | CY29: 3 | DA29: 3 | DC29: 3 | DE29: 3 | DG29: 3
A30: Area (1000 Ha) | B30: 5110 | C30: =Fao_land_country74 -> Botswana | D30: 20 | E30: 26021 | G30: 25951 | I30: 25861 | K30: 25861.6 | M30: 25862 | O30: 25862 | Q30: 420 | S30: 350 | U30: 259 | W30: 259.6 | Y30: 260 | AA30: 260 | AC30: 58173 | AE30: 58173 | AG30: 58173 | AI30: 58173 | AK30: 58173 | AM30: 58173 | AO30: 18803.7 | AQ30: 17620.7 | AS30: 16437.7 | AU30: 15846.2 | AW30: 15373 | AY30: 15255 | BA30: 56673 | BC30: 56673 | BE30: 56673 | BG30: 56673 | BI30: 56673 | BK30: 56673 | BM30: 11848.3 | BO30: 13101.3 | BQ30: 14374.3 | BS30: 14965.2 | BU30: 15438 | BW30: 15556 | BY30: 1 | CA30: 1 | CC30: 2 | CE30: 2 | CG30: 2 | CI30: 2 | CK30: 25600 | CM30: 25600 | CO30: 25600 | CQ30: 25600 | CS30: 25600 | CU30: 25600 | CW30: 1.4 | CY30: 1.4 | DA30: 2.64 | DC30: 3.39 | DE30: 3.94 | DG30: 4
A31: Area (1000 Ha) | B31: 5110 | C31: =Fao_land_country75 -> Brazil | D31: 21 | E31: 234900 | G31: 228323.5 | I31: 231834.2 | K31: 235438.2 | M31: 236878.801 | O31: 236879 | Q31: 47340 | S31: 45448 | U31: 51405 | W31: 54518 | Y31: 55762 | AA31: 55762 | AC31: 851577 | AE31: 851577 | AG31: 851577 | AI31: 851577 | AK31: 851577 | AM31: 851577 | AO31: 588898 | AQ31: 551088.6 | AS31: 511580.7 | AU31: 503884.8 | AW31: 497798.5 | AY31: 496620 | BA31: 835814 | BC31: 835814 | BE31: 835814 | BG31: 835814 | BI31: 835814 | BK31: 835814 | BM31: 12016 | BO31: 56401.9 | BQ31: 92399.1 | BS31: 96491 | BU31: 101136.699 | BW31: 102316 | BY31: 9116 | CA31: 9422 | CC31: 10252 | CE31: 8469 | CG31: 7756 | CI31: 7756 | CK31: 178444 | CM31: 173453.5 | CO31: 170177.2 | CQ31: 172451.2 | CS31: 173360.801 | CU31: 173361 | CW31: 2700 | CY31: 3691.16 | DA31: 5400 | DC31: 6954.7 | DE31: 8200 | DG31: 8200
A32: Area (1000 Ha) | B32: 5110 | C32: =Fao_land_country76 -> British Virgin Islands | D32: 239 | E32: 8 | G32: 7 | I32: 7 | K32: 7 | M32: 7 | O32: 7 | Q32: 2 | S32: 1 | U32: 1 | W32: 1 | Y32: 1 | AA32: 1 | AC32: 15 | AE32: 15 | AG32: 15 | AI32: 15 | AK32: 15 | AM32: 15 | AO32: 3.71 | AQ32: 3.67 | AS32: 3.64 | AU32: 3.62 | AW32: 3.62 | AY32: 4 | BA32: 15 | BC32: 15 | BE32: 15 | BG32: 15 | BI32: 15 | BK32: 15 | BM32: 3.29 | BO32: 4.33 | BQ32: 4.36 | BS32: 4.38 | BU32: 4.38 | BW32: 4 | BY32: 1 | CA32: 1 | CC32: 1 | CE32: 1 | CG32: 1 | CI32: 1 | CK32: 5 | CM32: 5 | CO32: 5 | CQ32: 5 | CS32: 5 | CU32: 5 | DG32: 0
A33: Area (1000 Ha) | B33: 5110 | C33: =Fao_land_country77 -> Brunei Darussalam | D33: 26 | E33: 11 | G33: 10 | I33: 13.4 | K33: 13.4 | M33: 13.4 | O33: 13 | Q33: 2 | S33: 2 | U33: 4 | W33: 4 | Y33: 4 | AA33: 4 | AC33: 577 | AE33: 577 | AG33: 577 | AI33: 577 | AK33: 577 | AM33: 577 | AO33: 413 | AQ33: 397 | AS33: 380 | AU33: 380 | AW33: 380 | AY33: 380 | BA33: 527 | BC33: 527 | BE33: 527 | BG33: 527 | BI33: 527 | BK33: 527 | BM33: 103 | BO33: 120 | BQ33: 133.6 | BS33: 133.6 | BU33: 133.6 | BW33: 134 | BY33: 4 | CA33: 4 | CC33: 6 | CE33: 6 | CG33: 6 | CI33: 6 | CK33: 5 | CM33: 4 | CO33: 3.4 | CQ33: 3.4 | CS33: 3.4 | CU33: 3 | CW33: 1 | CY33: 1 | DA33: 1 | DC33: 1 | DE33: 1 | DG33: 1
